Workbook

Sheet CONTENTS
A1: Contents
A2: This worksheet provides an overview of all the forms and worksheets required during the design, implementation and
A3: analysis of an experiment. Click on the worksheet name and you will be brought directly to that worksheet.
A4: Worksheet | B4: Worksheet | C4: Intended | D4: Copies | E4: Print | F4: Data Entry | G4: Uses Data
A5: Number | B5: Name | C5: User | D5: Needed | E5: Out | F5: Required | G5: From
B6: Contents | C6: Exp. Designer | D6: 1 | E6: N | F6: N
A7: 1 | B7: Experiment Setup | C7: Exp. Designer | D7: 1 | E7: N | F7: Y
A8: 2 | B8: Search Object Types | C8: Exp. Designer | D8: 1 | E8: N | F8: Y | G8: 1
A9: 3 | B9: Estimate Experiment Design | C9: Exp. Designer | D9: 1 | E9: N | F9: Y | G9: 1, 2
A10: 4 | B10: Environmental Measurements | C10: Exp. Designer | D10: 1 | E10: Y | F10: N | G10: 1
A11: 5 | B11: Photos | C11: Exp. Designer | D11: 1 | E11: Y | F11: N
A12: 6 | B12: AMDR Adult | C12: Exp. Designer | D12: 1 | E12: Y | F12: Y
A13: 7 | B13: AMDR Child | C13: Exp. Designer | D13: 1 | E13: Y | F13: Y
A14: 8 | B14: AMDR Clue | C14: Exp. Designer | D14: 1 | E14: Y | F14: Y
A15: 9 | B15: Actual Experiment Design | C15: Exp. Designer | D15: 1 | E15: N | F15: Y | G15: 1, 2, 3, 6, 7, 8
A16: 10 | B16: Object Placement Table & Chart | C16: Exp. Designer | D16: 1 | E16: Y | F16: N | G16: 1, 2, 3, 9
A17: 11 | B17: Search Object Location Log | C17: Exp. Setup | D17: 1 | E17: Y | F17: Y | G17: 1, 3, 10
A18: 12 | B18: Searcher-Participant Log | C18: Participants | D18: 4 | E18: Y | F18: N | G18: 1
A19: 13 | B19: Team Sign-up | C19: Management | D19: 1 | E19: Y | F19: N | G19: 1, 3
A20: 14 | B20: Subject Information Sheet | C20: Participants | D20: # Participants | E20: Y | F20: N | G20: 1
A21: 15 | B21: Task Instruction Form | C21: Participants | D21: # Searchers | E21: Y | F21: Y | G21: 1
A22: 16 | B22: Data Logger Briefing | C22: Participants | D22: # Data Loggers | E22: Y | F22: N | G22: 1
A23: 17 | B23: Team Tracking | C23: Management | D23: 3 | E23: Y | F23: N | G23: 1
A24: 18 | B24: Vision Tests | C24: Management | D24: 3 | E24: Y Color | F24: N
A25: 19 | B25: Searcher Profile | C25: Participants | D25: # Searchers | E25: Y | F25: N | G25: 1
A26: 20 | B26: Detection Log | C26: Participants | D26: # Searchers | E26: Y | F26: N | G26: 1, 2
A27: 21 | B27: Detection Template | C27: Management/Analyst | D27: 1 | E27: Y Acetate | F27: N | G27: multiple
A28: 22 | B28: Detection Scoring | C28: Management/Analyst | D28: # Searchers | E28: Y | F28: N | G28: multiple
A29: 23 | B29: Data Input Object # 1 | C29: Analyst | D29: 1 | E29: N | F29: Y | G29: 2, 10, 22, 20
A30: 24 | B30: Data Input Object # 2 | C30: Analyst | D30: 1 | E30: N | F30: Y | G30: 2, 10, 22, 20
A31: 25 | B31: Data Input Object # 3 | C31: Analyst | D31: 1 | E31: N | F31: Y | G31: 2, 10, 22, 20
A32: 26 | B32: Data Input Object # 4 | C32: Analyst | D32: 1 | E32: N | F32: Y | G32: 2, 10, 22, 20
A33: 27 | B33: Searcher Profile Data | C33: Analyst | D33: 1 | E33: N | F33: Y | G33: 20
A34: 28 | B34: Data Summary Object # 1 | C34: Analyst | D34: 1 | E34: N | F34: N | G34: 2, 23
A35: 29 | B35: Object 1 SW Estimator Graph | C35: Analyst | D35: 1 | E35: N | F35: N | G35: 28
A36: 30 | B36: Object 1 Lateral Range Curve | C36: Analyst | D36: 1 | E36: N | F36: N | G36: 28
A37: 31 | B37: Data Summary Object # 2 | C37: Analyst | D37: 1 | E37: N | F37: N | G37: 2, 24
A38: 32 | B38: Object 2 SW Estimator Graph | C38: Analyst | D38: 1 | E38: N | F38: N | G38: 31
A39: 33 | B39: Object 2 Lateral Range Curve | C39: Analyst | D39: 1 | E39: N | F39: N | G39: 31
A40: 34 | B40: Data Summary Object # 3 | C40: Analyst | D40: 1 | E40: N | F40: N | G40: 2, 25
A41: 35 | B41: Object 3 SW Estimator Graph | C41: Analyst | D41: 1 | E41: N | F41: N | G41: 34
A42: 36 | B42: Object 3 Lateral Range Curve | C42: Analyst | D42: 1 | E42: N | F42: N | G42: 34
A43: 37 | B43: Data Summary Object # 4 | C43: Analyst | D43: 1 | E43: N | F43: N | G43: 2, 26
A44: 38 | B44: Object 4 SW Estimator Graph | C44: Analyst | D44: 1 | E44: N | F44: N | G44: 37
A45: 39 | B45: Object 4 Lateral Range Curve | C45: Analyst | D45: 1 | E45: N | F45: N | G45: 37
A46: 40 | B46: Raw Data Summary | C46: Analyst | D46: 1 | E46: N | F46: N | G46: multiple
A47: 41 | B47: Summary Report | C47: Analyst | D47: 1 | E47: Y | F47: Y | G47: multiple
A48: 42 | B48: POD Calculation | C48: Analyst | D48: 1 | E48: N | F48: Y
A49: 43 | B49: POD vs. Coverage | C49: Analyst | D49: 1 | E49: N | F49: N | G49: 42
A50: 44 | B50: Ecoregions World | C50: Analyst | D50: 1 | E50: N | F50: N
A51: 45 | B51: Ecoregions USA | C51: Analyst | D51: 1 | E51: N | F51: N
A52: 46 | B52: Calculations | C52: Programmer | D52: N | E52: N | F52: N | G52: multiple

Sheet 1. Experiment Setup
A1: Experiment Setup
B2: This worksheet allows the experiment designer to input information that is required on several worksheets
B3: during the experiment. Filling in the requested information will auto fill the worksheets later and minimize the
B4: data that must be entered by the analyst.
B6: 1. Enter the date the experiment is scheduled to be performed (dd/mm/yy) | K6: 17-07-06
B8: 2. Enter the location of the experiment (City, State/Province) | I8: Mt. Greylock, MA
B10: 3. Enter local sunrise (24 hour format, 8:00) | K10: 05:15:00
B11: Enter local sunset (24 hour format, 20:00) | K11: 20:28:00
C12: Internet link to obtain sunrise/sunset times (worldwide)
B14: 4. Choose season color to describe vegetation during experiment
B15: (brown, green, or white)
B17: 5. Choose the expected terrain/vegetation type where experiment will be conducted.
B19: 6. Choose datum that will be used throughout the experiment
B21: 7. Choose the units that will be used for measurements
B22: (meters is preferred for use with Universal Transverse Mercator (UTM) Grids)
B24: 8. Event Type (choose closest one)
B26: 9. Choose the EcoRegion
C27: World map | E27: USA map | H27: Internet map (most detailed with zoom)
B29: 10. Choose the type of Forest Cover (if in forested area)
C30: Internet map of Forest Cover, zoom to your area, see key for type
B32: 11. Choose closest Land Classification type
C33: Internet map of Land Classification types, zoom to your area, see map key

Sheet 2. Search Object Types
B1: Selecting Search Object Types
B2: Each variable needs 300 interactions between searchers and the object. This typically could be met with
B3: 10 objects of the same type and 30 searchers. Adding a different variable results in the number of interactions
B4: doubling to 600. For this reason, the number of variables is limited to four. The most common variable to
B5: alter is the type of search object. The highest visibility search object is search object type # 1. The software
B6: makes basic recommendations on the suggested types of search objects based upon the recommened
B7: maximum number of search object types. The user may depart from the recommendation when entering
B8: the actual search objects in line 6-9. Only one search object is required. See the guide for visibility examples.
B10: 1. Recommended maximum # of search object types (based on experiment setup) | J10: =VLOOKUP('46. Calculations'!Q10,'46. Calculations'!X4:AA8,3) -> 4
B12: 2. Recommended course time (based on experimentsetup) | J12: =VLOOKUP('46. Calculations'!Q10,'46. Calculations'!X4:AA8,4) -> 4
B14: 3. Recommended course length (preliminary) | J14: =ROUND(3*IF(J10=4,N17*N19,IF(J10=3,P17*P19,IF(J10=2,R17*R19,S17*S19))),) -> 4693 | K14: ='46. Calculations'!P9 -> Yards
B16: 4. Recommended search object types (in order of priority) | I16: Adult High-Visibility | M16: Recommended for 4 | N16: AMDR4 | O16: Recommended for 3 | P16: AMDR3 | Q16: Recommended for 2 | R16: AMDR2 | S16: AMDR1
I17: =IF(J10=1,"",IF(J10=2,"Clue Low-Visibility","Adult Low-Visibility")) -> Adult Low-Visibility | M17: Adult High Visibility | N17: =IF(K14="Meters",AVERAGE(S27,S29,S31,S33),AVERAGE(T27,T29,T31,T33)) -> 23.7 | O17: Adult High-Visibility | P17: =IF(K14="Meters",AVERAGE(S27,S29,S35),AVERAGE(T27,T29,T35)) -> 22.7 | Q17: Adult High-Visibility | R17: =IF(K14="Meters",AVERAGE(S27,S35),AVERAGE(T27,T35)) -> 22.95 | S17: =IF(K14="Meters",S27,T27) -> 37
I18: =IF(J10<3,"",IF(J10=3,"Clue Low-Vis","Child Medium-Visibility")) -> Child Medium-Visibility | M18: Adult Low-Visibility | N18: Search objects | O18: Adult Low-Visibility | Q18: Clue Low-Visibility | R18: Search objects | S18: Object
I19: =IF(J10<4,"","Clue High-Visibility") -> Clue High-Visibility | M19: Child Medium-Visibility | N19: 66 | O19: Clue Low-Visibility | P19: 50 | R19: 33 | S19: 21
M20: Clue High-Visibility
B22: 5. Enter the number of search objects | J22: 3 | M22: Results from input | N22: Number of item
C24: Enter a number between 1 and 4 to represent the different search objects. No two search objects should be the same search object type.
M25: to be used in IDEA | N25: chosen in drop list | Q25: Object lookup | R25: column for vlookup and list box
B26: 6. Choose Search Object Type # 1 (highest visibility) | M26: =VLOOKUP(N26,Q27:R35,2) -> Adult High-Visibility | N26: 1 | R26: Search Object Type | S26: AMDR estimate Meters | T26: AMDR estimate Yards
Q27: 1 | R27: Adult High-Visibility | S27: 34 | T27: 37
B28: =IF(J22>=2,"7. Choose Search Object Type # 2 (optional)","") -> 7. Choose Search Object Type # 2 (optional) | H28: =IF(J22>=2,"","No input needed") ->  | M28: =IF(J22>=2,VLOOKUP($N$28,$Q$27:$R$35,2),"Not Applicable") -> Clue High-Visibility | N28: 7 | Q28: 2 | R28: Adult Medium-Visibility | S28: 25.5 | T28: 27.8
Q29: 3 | R29: Adult Low-Visibility | S29: 20.4 | T29: 22.2
B30: =IF(J22>=3,"8. Choose Search Object Type # 3 (optional)","") -> 8. Choose Search Object Type # 3 (optional) | H30: =IF(J22>=3,"","No input needed") ->  | M30: =IF(J22>=3,VLOOKUP($N$30,$Q$27:$R$35,2),"Not Applicable") -> Clue Low-Visibility | N30: 9 | Q30: 4 | R30: Child High-Visibility | S30: 25.5 | T30: 27.8
Q31: 5 | R31: Child Medium-Visibility | S31: 19.1 | T31: 20.8
B32: =IF(J22=4,"9. Choose Search Object Type # 4 (optional)","") ->  | H32: =IF(J22>=4,"","No input needed") -> No input needed | M32: =IF(J22=4,VLOOKUP($N$32,$Q$27:$R$35,2),"Not Applicable") -> Not Applicable | N32: 7 | Q32: 6 | R32: Child Low-Visibility | S32: 15.3 | T32: 16.7
Q33: 7 | R33: Clue High-Visibility | S33: 13.6 | T33: 14.8
Q34: 8 | R34: Clue Medium-Visibility | S34: 10.2 | T34: 11.1
Q35: 9 | R35: Clue Low-Visibility | S35: 8.16 | T35: 8.9

Sheet 3. Estimate Experiment Design
A1: Experiment Design Using Estimate AMDRs
A2: The purpose of this worksheet is to allow the experiment designer to determine the number of search objects, time,
A3: and total track length required to conduct the experiment given the number of searchers.
A5: 1. Enter the number of searchers who will participate | G5: 30
B7: Input a number of searchers between 12 - 72. Seventy-two searchers will require a 12 hour day, staggered starts of 20 minutes, and running searchers both clockwise and counter-clockwise. If more searchers are expected consider setting up two courses.
A9: 2. Searcher speed | D9: Unit | E9: Maximum | F9: Average | G9: Minimum | K9: Units: | L9: ='46. Calculations'!P9 -> Yards
C10: Speed used for estimates | D10: =IF($L$9="Meters","Km/h","MPH") -> MPH | E10: =E46 -> 1.6 | F10: =F46 -> 1.1 | G10: =G46 -> 0.6
A12: 3. Enter the maximum searching time available for searchers
F13: Suggested maximum searching time | G13: ='2. Search Object Types'!J12 -> 4 | H13: hours
F14: Selected search time | G14: 2 | H14: =IF(G14>0,IF(G14<=4,"Within range","ERROR"),IF(G14="","",IF(G14=0,"","ERROR"))) -> Within range
F15: Search time used in calculations | G15: =IF(G14>0,IF(G14<=4,G14,G13),G13) -> 2
A17: 4. Number of desired search objects (from 2. Search Object Types) | G17: ='2. Search Object Types'!J22 -> 3
A19: 5. Terrain type where the experiment will be conducted (from 1. Experiment Setup): | H19: ='46. Calculations'!P7 -> Eastern Forest (Mountain, Green) | K19: Terrain number | L19: ='46. Calculations'!Q7 -> 2
A21: 6. Estimated AMDR values for each Search Object Type | K21: Objects chosen
E22: Search Object Type | F22: Unit | G22: Estimated AMDR | K22: Object | L22: Object Type number from "Search Objects"
C23: =IF(D23="","","#1") -> #1 | D23: ='2. Search Object Types'!M26 -> Adult High-Visibility | F23: =L9 -> Yards | G23: =ROUND(IF(L9="Meters",VLOOKUP(L23,S67:U75,3),VLOOKUP(L23,S67:U75,3)),1) -> 21 | K23: # 1 | L23: ='2. Search Object Types'!N26 -> 1
C24: =IF(D24="","","#2") -> #2 | D24: =IF('2. Search Object Types'!J22>=2,IF('2. Search Object Types'!M28='2. Search Object Types'!R26,"Error, define object",'2. Search Object Types'!M28),"") -> Clue High-Visibility | F24: =IF(G17>=2,$F$23,"") -> Yards | G24: =IF(G17>=2,ROUND(IF(L9="Meters",VLOOKUP(L24,S67:U75,3),VLOOKUP(L24,S67:U75,3)),1),"") -> 8.4 | K24: # 2 | L24: ='2. Search Object Types'!N28 -> 7
C25: =IF(D25="","","#3") -> #3 | D25: =IF('2. Search Object Types'!J22>=3,IF('2. Search Object Types'!M30='2. Search Object Types'!R26,"Error, define object",'2. Search Object Types'!M30),"") -> Clue Low-Visibility | F25: =IF(G17>=3,$F$23,"") -> Yards | G25: =IF(G17>=3,ROUND(IF(L9="Meters",VLOOKUP(L25,S67:U75,3),VLOOKUP(L25,S67:U75,3)),1),"") -> 5 | K25: # 3 | L25: ='2. Search Object Types'!N30 -> 9
C26: =IF(D26="","","#4") ->  | D26: =IF('2. Search Object Types'!J22=4,IF('2. Search Object Types'!M32='2. Search Object Types'!R26,"Error, define object",'2. Search Object Types'!M32),"") ->  | F26: =IF(G17=4,$F$23,"") ->  | G26: =IF(G17=4,ROUND(IF(L9="Meters",VLOOKUP(L26,S67:U75,3),VLOOKUP(L26,S67:U75,3)),1),"") ->  | K26: # 4 | L26: ='2. Search Object Types'!N32 -> 7
A28: 7. Estimated course design | D28: # Objects | E28: Track Length | F28: Unit | G28: Max Time | H28: Avg Time | I28: Min Time
D29: =ROUND(1.1*((G17*300)/G5),) -> 33 | E29: =ROUND(AVERAGE(G23:G26)*3*D29,) -> 1135 | F29: =F23 -> Yards | G29: =IF(L9="Meters",E29/(1000*G46),IF(L9="Feet",(E29/L52)/G46,(E29/M52)/G46)) -> 1.074810606 | H29: =IF(L9="Meters",E29/(1000*F46),IF(L9="Feet",(E29/L52)/F46,(E29/M52)/F46)) -> 0.5862603306 | I29: =IF(L9="Meters",E29/(1000*E46),IF(L9="Feet",(E29/L52)/E46,(E29/M52)/E46)) -> 0.4030539773
A31: 8. Check Values:
A32: Max # of Search Objects | D32: =G17*25 -> 75 | F32: Maximum Time Range | H32: =G15 -> 2
A33: Min # of Search Objects | D33: =1.1*G17*10 -> 33 | F33: Minimum Time Range | H33: 1
A34: Current # of Search Objects | D34: =D29 -> 33 | F34: Current Estimated Time | H34: =H29 -> 0.5862603306
A35: =IF(D34<D33,"Number of Search Objects too small, make course longer.",IF(D34>D32,"Number of Search Objects too large, increase searchers.","Number of Search Objects correct.")) -> Number of Search Objects correct. | F35: =IF(H34<1,"Average time too short, increase number of search objects or decrease searchers.",IF(H34>4,"Average time too long, increase number of searchers.","Average time acceptable.")) -> Average time too short, increase number of search objects or decrease searchers.
A40: OPTIONAL OPTIONAL OPTIONAL OPTIONAL OPTIONAL OPTIONAL OPTIONAL OPTIONAL In the cells below, enter optional speed, optional size correction values, or optional visibility correction values if desired.
A42: Optional. Enter new speeds | K42: Suggested Speed | L42: Maximum | M42: Average | N42: Minimum
E43: Maximum | F43: Average | G43: Minimum | H43: Unit | K43: Km/h | L43: 2.5 | M43: 1.75 | N43: 1
D44: Suggested Speed | E44: =ROUND(IF($L$9="Meters",L43,L44),1) -> 1.6 | F44: =ROUND(IF($L$9="Meters",M43,M44),1) -> 1.1 | G44: =ROUND(IF($L$9="Meters",N43,N44),1) -> 0.6 | H44: =IF($L$9="Meters","Km/h","MPH") -> MPH | K44: MPH | L44: =L43*$N$49*1000 -> 1.553503788 | M44: =M43*$N$49*1000 -> 1.087452652 | N44: =N43*$N$49*1000 -> 0.6214015152
D45: Enter desired Speed | H45: =IF($L$9="Meters","Km/h","MPH") -> MPH | K45: Feet/h | L45: =ROUND(L43*$L$49*1000,1) -> 8202.5 | M45: =ROUND(M43*$L$49*1000,1) -> 5741.8 | N45: =ROUND(N43*$L$49*1000,1) -> 3281
D46: Speed Used for Estimates | E46: =ROUND(IF($L$9="Meters",IF(E45>1,IF(E45<=10,E45,E44),E44),IF(E45>0.62,IF(E45<=6,E45,E44),E44)),1) -> 1.6 | F46: =ROUND(IF(L9="Meters",IF(F45>0.5,IF(F45<=10,F45,F44),F44),IF(F45>0.31,IF(F45<=6,F45,F44),F44)),1) -> 1.1 | G46: =ROUND(IF(L9="Meters",IF(G45>0.5,IF(G45<=10,G45,G44),G44),IF(G45>0.31,IF(G45<=6,G45,G44),G44)),1) -> 0.6 | H46: =IF($L$9="Meters","Km/h","MPH") -> MPH | K46: Yards/h | L46: =ROUND(L45/3,1) -> 2734.2 | M46: =ROUND(M45/3,1) -> 1913.9 | N46: =ROUND(N45/3,1) -> 1093.7
A48: The corrective values modify the predeterimned AMDR for a High-Visibility Adult, for a chosen terrain type, in order to estimate the AMDR of other search objects such as child or clue size objects as well as medium or low visibility objects. For example, using the predetermined corrective values for size and visibility: The worksheet already provides the estimated AMDR for an Adult High-Visibility search object in Eastern Forest (steep mountainous terrain) in full vegetation is 35 meters. But, for an Adult Low-Visibility object, the worksheet corrects the 35 meter value to 21 meters (35 meters x 0.6 correction for low-visibility = 21). For a Child Medium-Visibility the worksheet would correct the 35 meter value to 20 meters (35 meters x 0.75 correction for child size x 0.75 correction for medium-visibility = 20 meters). Finally, for a Clue High-Visibility, the worksheet corrects the 35 meter value to 14 meters (35 meters x 0.4 correction for clue size x 1.0 correction for high visibility = 14). | K48: Meter | L48: Feet | M48: Yards | N48: mile
A49: Optional. Enter new size correction values | K49: 1 | L49: 3.281 | M49: =L49/3 -> 1.093666667 | N49: =L49/5280 -> 0.0006214015152
B50: Correction values below are used to adjust the estimate AMDR for an adult corresponding to the terrain type
B51: chosen in worksheet # 1 (Setup). Estimate AMDR for adult of selected terrain type is: | I51: =IF(L9="Meters",VLOOKUP(L19,O67:R78,3),IF(L9="Yards",VLOOKUP(L19,O67:R78,4),"Error")) -> 21 | K51: Mile | L51: Feet | M51: Yards | N51: Meters
I52: =L9 -> Yards | K52: 1 | L52: 5280 | M52: =L52/3 -> 1760 | N52: =1/N49 -> 1609.265468
E53: Adult | F53: Child | G53: Clue
D54: Suggested value | E54: 1 | F54: 0.75 | G54: 0.4
D55: Entered desired value
D56: Value used for estimates | E56: =IF(E55>0,IF(E55<=1,E55,E54),E54) -> 1 | F56: =IF(F55>0,IF(F55<=1,F55,F54),F54) -> 0.75 | G56: =IF(G55>0,IF(G55<=1,G55,G54),G54) -> 0.4
A58: Optional. Enter new visibility correction values
E59: High-Visibility | F59: Medium-Visibility | G59: Low-Visibility
D60: Suggested value | E60: 1 | F60: 0.75 | G60: 0.6
D61: Selected value
D62: Value used for estimates | E62: =IF(E61>0,IF(E61<=1,E61,E60),E60) -> 1 | F62: =IF(F61>0,IF(F61<=1,F61,F60),F60) -> 0.75 | G62: =IF(G61>0,IF(G61<=1,G61,G60),G60) -> 0.6
O66: vlookup for terrain | P66: terrain | Q66: Meters | R66: Yards | S66: Object chosen | T66: Search Object | U66: Estimated AMDR
O67: 1 | P67: California Oak/Field | Q67: 41 | R67: =ROUND(Q67*$M$49,) -> 45 | S67: ='2. Search Object Types'!Q27 -> 1 | T67: ='2. Search Object Types'!R27 -> Adult High-Visibility | U67: =I51*E56*E62 -> 21
O68: 2 | P68: Eastern Forest (Mountain, Green) | Q68: 19 | R68: 21 | S68: ='2. Search Object Types'!Q28 -> 2 | T68: ='2. Search Object Types'!R28 -> Adult Medium-Visibility | U68: =I51*E56*F62 -> 15.75
O69: 3 | P69: Eastern Forest (Mountain, Brown) | Q69: 80 | R69: 87 | S69: ='2. Search Object Types'!Q29 -> 3 | T69: ='2. Search Object Types'!R29 -> Adult Low-Visibility | U69: =I51*E56*G62 -> 12.6
O70: 4 | P70: Eastern Forest (Steep Mountain side) (Green) | Q70: 35 | R70: 38 | S70: ='2. Search Object Types'!Q30 -> 4 | T70: ='2. Search Object Types'!R30 -> Child High-Visibility | U70: =I51*F56*E62 -> 15.75
O71: 5 | P71: Field (flat) 15 cm vertical ground cover | Q71: 45 | R71: 49 | S71: ='2. Search Object Types'!Q31 -> 5 | T71: ='2. Search Object Types'!R31 -> Child Medium-Visibility | U71: =I51*F56*F62 -> 11.8125
O72: 6 | P72: Field (flat) 35 cm vertical ground cover | Q72: 12 | R72: 13 | S72: ='2. Search Object Types'!Q32 -> 6 | T72: ='2. Search Object Types'!R32 -> Child Low-Visibility | U72: =I51*F56*G62 -> 9.45
O73: 7 | P73: Field (flat) 75 cm vertical ground cover | Q73: 4 | R73: 4 | S73: ='2. Search Object Types'!Q33 -> 7 | T73: ='2. Search Object Types'!R33 -> Clue High-Visibility | U73: =I51*G56*E62 -> 8.4
O74: 8 | P74: High Density Urban | Q74: 8 | R74: 9 | S74: ='2. Search Object Types'!Q34 -> 8 | T74: ='2. Search Object Types'!R34 -> Clue Medium-Visibility | U74: =I51*G56*F62 -> 6.3
O75: 9 | P75: Medium Density Urban | Q75: 10 | R75: 11 | S75: ='2. Search Object Types'!Q35 -> 9 | T75: ='2. Search Object Types'!R35 -> Clue Low-Visibility | U75: =I51*G56*G62 -> 5.04
O76: 10 | P76: New Mexico Pine Forest (Mountain) | Q76: 34 | R76: 37
O77: 11 | P77: Orchard (Green) | Q77: 14 | R77: 15
O78: 12 | P78: Western (Maritime) pine (Green) | Q78: 34 | R78: 37

Sheet 4. Env. Measurements
A1: Environmental Measurements
A2: The Environmental Measurements worksheet allows the researcher to record the land, vegetation, and weather
A3: characteristics found at the site used to obtain the AMDR measurements. Environmental measurements should be
A4: taken at the same time as obtaining the AMDR measurements.
A5: 1. Date | C5: 2. Time | E5: 3. Location | G5: 4. Researcher's Name
A6: 2006-06-16 | E6: ='46. Calculations'!P5 -> Mt. Greylock, MA | G6: Charles Twardy
A7: Weather
A8: Record the general weather and light characteristics. Measurements are typically taken during optimal weather.
A9: 5. Temp | B9: 6. Wind | C9: 7. Lux | D9: 8. Weather | E9: 9. Visibility | F9: 10. Light (direct,indirect,overcast,darkday,twilight) | J9: 11. Snow Depth
A10: 26 c | D10: Clear | E10: Good | F10: Clear | J10: 0
A11: General Characteristics
A12: General characteristics are automatically carried over from the setup page.
A13: 12. Season Color | C13: 13. Eco-Region | E13: 14. NLCD Classification | G13: 15. Gap Classification | I13: 16. Forest Cover
A14: ='[1]1. Setup'!N15 -> Brown | C14: ='[1]1. Setup'!N26 -> 210 Warm Continental Division | E14: ='[1]1. Setup'!N32 -> Deciduous Broadleaf Forest | I14: ='[1]1. Setup'!N29 -> Eastern Forest -- Maple - Beech - Birch
A15: Location
A16: Ideally two locations are used to obtain AMDR measurements. This form is designed to allow for environmental
A17: measurements from both locations. See instruction manual for further details on how to take measurements.
A18: Site #1 | B18: GPS E | D18: GPS W | F18: Site #2 | G18: GPS E | I18: GPS W
B19: 18 646735 | D19: 4 713174 | G19: 18 646890 | I19: 4713057
A20: Vegetation: List the types and sizes of the predominant vegetation. Describe the ground cover, mid-story (small trees/shrubs), and
A21: canopy (types of trees, diameters, relative density).
A22: Ground: | B22: Evening of 15 Jun, storms coming. No notes taken, Hillside, scattered brush, no ferns | F22: More ferny, medium for course, about 1/m2, Measured at 8", 2" using 5 " slope estimated
A25: Mid-Story: | B25: Some saplings | F25: Not much, few saplings about 1/100m2
A28: Canopy: | B28: Proabably not much | F28: Maple, birch, mixed decdious, 1-3' diamater about 1/100m2
J31: Average
A32: Ground Cover: Measure the average | D32: 7.5 | E32: centimeters | G32: 13 | H32: centimeters | J32: =IF(D32+G32=0,"",AVERAGE(D32,G32)) -> 10.25
A33: height of the ground cover.
A34: Slope: Using an inclinameter | E34: degrees | G34: 10 | H34: degrees | J34: =IF(D34+G34=0,"",AVERAGE(D34,G34)) -> 10
A35: give the slope of the terrain
A36: Obstructions: Count the # of rocks | D36: 5 | J36: =IF(D36+G36=0,"",AVERAGE(D36,G36)) -> 5
A37: /obstructions (at least 1'x1'x1') found
A38: within a 10 x 10 meter radius
A39: Horizontal Obstructions: Pace or measure (laser range finder) how far it is possible to see (at chest height) for each cardinal direction. A person may disappear due to vegetation or terrain. Enter the reason they disappear ("V"=vegetation, "T"=terrain). | D39: Distance | E39: T or V | H39: Distance | I39: T or V | J39: =IF(SUM(D40:D43,H40:H43)=0,"",AVERAGE(D40:D43,H40:H43)) -> 57.2
D40: 67 | E40: T | F40: North | H40: 78
F41: East
D42: 48 | E42: v | F42: South | H42: 45
F43: West | H43: 48
A49: Photographs
A50: Digital photographs should be taken of the sites. Digital photographs should be inserted on the photo worksheet
A53: Suggested equipment: Laser Range Finder, tape measure, GPS, topographic map, notebook, pencil,
A54: compass, digital camera, Environmental Measurements worksheet printed out on waterproof paper.

Sheet 5. Photos
A1: Photographic Site Record
A2: The photographic site record worksheet allows the researcher to document with photographs the vegetation and terrain at the site where AMDR measurements where taken. In addition, photographs are taken to provide an overall view of the experiment course region, and a sample of the search object.
A5: 1. Date | C5: 2. Time | E5: 3. Location | G5: 4. Photographer's Name
E6: ='46. Calculations'!P5 -> Mt. Greylock, MA
A7: AMDR Site Photographs
A8: Take four photographs (digital pictures) of each of the four cardinal directions while standing at the site where the search object was placed for obtaining AMDR data. Click on target location, from menu, Insert, Picture, from file or Camera. Use format picture to set picture width to 3"
A11: Photo #1 | F11: Photo #2
A25: Comments: | F25: Comments:
A27: Photo #3 | F27: Photo #4
A41: Comments: | F41: Comments:
A43: Photo #5 Picture of Search Object | F43: Photo #6 Picture of General Terrain
A58: Comments: | F58: Comments:

Sheet 6. AMDR Adult
A1: Determining AMDR Worksheet--Adult
A2: The Determining Average Maximum Detection (AMDR) Worksheet allows the researcher to determine and
A3: document AMDR and other measures to quantitate field visibility. The values entered will automatically
A4: be used to determine several other experiment values on later worksheets.
A5: 1. Date | C5: 2. Time | E5: 3. Object Type | G5: 4. GPS E | I5: GPS N
E6: Adult
A7: 5. Location | E7: 6. Terrain Type | G7: 7. Cloud Cover | I7: 8. Precipitation
A8: ='46. Calculations'!P5 -> Mt. Greylock, MA
A9: AMDR Measurements
A10: Starting on Leg 1 move toward the target until the target is detected. Record the distance the target was first
A11: detected in the red AMRDd column. Move backwards until the target is no longer seen and record the distance
A12: in the blue AMDRe column. Pace the same distance at a right angle to start Leg 2 and repeat the procedure.
G14: High Visibility (normally Orange/white)
G15: Trial #1 | I15: Trial #2
F16: Leg # | G16: AMDRd | H16: AMDRe | I16: AMDRd | J16: AMDRe
F17: 1 | G17: 26 | H17: 44 | I17: 73 | J17: 73
F18: 2 | G18: 20 | H18: 35 | I18: 51 | J18: 58
F19: 3 | G19: 30 | H19: 45 | I19: 44 | J19: 54
F20: 4 | G20: 68 | H20: 70 | I20: 24 | J20: 40
F21: 5 | G21: 64 | H21: 70 | I21: 50 | J21: 60
F22: 6 | G22: 31 | H22: 47 | I22: 34 | J22: 46
F23: 7 | G23: 19 | H23: 24 | I23: 22 | J23: 26
F24: 8 | G24: 36 | H24: 36 | I24: 23 | J24: 26
F25: AVG | G25: =IF(SUM(G17:G24)>0,AVERAGE(G17:G24),"") -> 36.75 | H25: =IF(SUM(H17:H24)>0,AVERAGE(H17:H24),"") -> 46.375 | I25: =IF(SUM(I17:I24)>0,AVERAGE(I17:I24),"") -> 40.125 | J25: =IF(SUM(J17:J24)>0,AVERAGE(J17:J24),"") -> 47.875
F26: MAX | G26: =IF(SUM(G17:G24)>0,MAX(G17:G24),"") -> 68 | H26: =IF(SUM(H17:H24)>0,MAX(H17:H24),"") -> 70 | I26: =IF(SUM(I17:I24)>0,MAX(I17:I24),"") -> 73 | J26: =IF(SUM(J17:J24)>0,MAX(J17:J24),"") -> 73
F27: AVG | G27: =IF(SUM(G17:G24,I17:I24)>0,AVERAGE(G17:G24,I17:I24),"") -> 38.4375 | H27: =IF(SUM(H17:H24,J17:J24)>0,AVERAGE(H17:H24,J17:J24),"") -> 47.125
F28: AVGall | G28: =IF(SUM(G17:J24)>0,AVERAGE(G17:J24),"") -> 42.78125 | H28: ='46. Calculations'!P9 -> Yards
F30: Suggested equipment:
F31: Highest visibility target, Laser Range finder, tape
F32: measure, GPS, topographic map, Vegetative density
F33: board, notebook, pencil, Determining AMDR work-
F34: sheet, digital camera, compass.
B37: Medium Visibility (normally blue) | F37: Low Visibility (normally green/brown)
B38: Trial #1 | D38: Trial #2 | G38: Trial #1 | I38: Trial #2
A39: Leg # | B39: AMDRd | C39: AMDRe | D39: AMDRd | E39: AMDRe | F39: Leg # | G39: AMDRd | H39: AMDRe | I39: AMDRd | J39: AMDRe
A40: 1 | F40: 1
A41: 2 | F41: 2
A42: 3 | F42: 3
A43: 4 | F43: 4
A44: 5 | F44: 5
A45: 6 | F45: 6
A46: 7 | F46: 7
A47: 8 | F47: 8
A48: AVG | B48: =IF(SUM(B40:B47)>0,AVERAGE(B40:B47),"") ->  | C48: =IF(SUM(C40:C47)>0,AVERAGE(C40:C47),"") ->  | D48: =IF(SUM(D40:D47)>0,AVERAGE(D40:D47),"") ->  | E48: =IF(SUM(E40:E47)>0,AVERAGE(E40:E47),"") ->  | F48: AVG | G48: =IF(SUM(G40:G47)>0,AVERAGE(G40:G47),"") ->  | H48: =IF(SUM(H40:H47)>0,AVERAGE(H40:H47),"") ->  | I48: =IF(SUM(I40:I47)>0,AVERAGE(I40:I47),"") ->  | J48: =IF(SUM(J40:J47)>0,AVERAGE(J40:J47),"") -> 
A49: MAX | B49: =IF(SUM(B40:B47)>0,MAX(B40:B47),"") ->  | C49: =IF(SUM(C40:C47)>0,MAX(C40:C47),"") ->  | D49: =IF(SUM(D40:D47)>0,MAX(D40:D47),"") ->  | E49: =IF(SUM(E40:E47)>0,MAX(E40:E47),"") ->  | F49: MAX | G49: =IF(SUM(G40:G47)>0,MAX(G40:G47),"") ->  | H49: =IF(SUM(H40:H47)>0,MAX(H40:H47),"") ->  | I49: =IF(SUM(I40:I47)>0,MAX(I40:I47),"") ->  | J49: =IF(SUM(J40:J47)>0,MAX(J40:J47),"") -> 
A50: AVG | B50: =IF(SUM(B40:B47,D40:D47)>0,AVERAGE(B40:B47,D40:D47),"") ->  | C50: =IF(SUM(C40:C47,E40:E47)>0,AVERAGE(C40:C47,E40:E47),"") ->  | F50: AVG | G50: =IF(SUM(G40:G47,I40:I47)>0,AVERAGE(G40:G47,I40:I47),"") ->  | H50: =IF(SUM(H40:H47,J40:J47)>0,AVERAGE(H40:H47,J40:J47),"") -> 
A51: AVGall | B51: =IF(SUM(B40:E47)>0,AVERAGE(B40:E47),"") ->  | C51: =H28 -> Yards | F51: AVGall | G51: =IF(SUM(G40:J47)>0,AVERAGE(G40:J47),"") ->  | H51: =H28 -> Yards
B53: AMDRd | C53: AMDRe | D53: AMDR
A54: High Vis
A55: Medium Vis
A56: Low Vis

Sheet 7. AMDR Child
A1: Determining AMDR Worksheet--Child
A2: The Determining Average Maximum Detection (AMDR) Worksheet allows the researcher to determine and
A3: document AMDR and other measures to quantitate field visibility. The values entered will automatically
A4: be used to determine several other experiment values on later worksheets.
A5: 1. Date | C5: 2. Time | E5: 3. Object Type | G5: 4. GPS E | I5: GPS N
E6: Child
A7: 5. Location | E7: 6. Terrain Type | G7: 7. Cloud Cover | I7: 8. Precipitation
A8: ='46. Calculations'!P5 -> Mt. Greylock, MA
A9: AMDR Measurements
A10: Starting on Leg 1 move toward the target until the target is detected. Record the distance the target was first
A11: detected in the red AMRDd column. Move backwards until the target is no longer seen and record the distance
A12: in the blue AMDRe column. Pace the same distance at a right angle to start Leg 2 and repeat the procedure.
G14: High Visibility (normally Orange/white)
G15: Trial #1 | I15: Trial #2
F16: Leg # | G16: AMDRd | H16: AMDRe | I16: AMDRd | J16: AMDRe
F17: 1
F18: 2
F19: 3
F20: 4
F21: 5
F22: 6
F23: 7
F24: 8
F25: AVG | G25: =IF(SUM(G17:G24)>0,AVERAGE(G17:G24),"") ->  | H25: =IF(SUM(H17:H24)>0,AVERAGE(H17:H24),"") ->  | I25: =IF(SUM(I17:I24)>0,AVERAGE(I17:I24),"") ->  | J25: =IF(SUM(J17:J24)>0,AVERAGE(J17:J24),"") -> 
F26: MAX | G26: =IF(SUM(G17:G24)>0,MAX(G17:G24),"") ->  | H26: =IF(SUM(H17:H24)>0,MAX(H17:H24),"") ->  | I26: =IF(SUM(I17:I24)>0,MAX(I17:I24),"") ->  | J26: =IF(SUM(J17:J24)>0,MAX(J17:J24),"") -> 
F27: AVG | G27: =IF(SUM(G17:G24,I17:I24)>0,AVERAGE(G17:G24,I17:I24),"") ->  | H27: =IF(SUM(H17:H24,J17:J24)>0,AVERAGE(H17:H24,J17:J24),"") -> 
F28: AVGall | G28: =IF(SUM(G17:J24)>0,AVERAGE(G17:J24),"") ->  | H28: ='46. Calculations'!P9 -> Yards
F30: Suggested equipment:
F31: Highest visibility target, Laser Range finder, tape
F32: measure, GPS, topographic map, Vegetative density
F33: board, notebook, pencil, Determining AMDR work-
F34: sheet, digital camera, compass.
B37: Medium Visibility (normally blue) | F37: Low Visibility (normally green/brown)
B38: Trial #1 | D38: Trial #2 | G38: Trial #1 | I38: Trial #2
A39: Leg # | B39: AMDRd | C39: AMDRe | D39: AMDRd | E39: AMDRe | F39: Leg # | G39: AMDRd | H39: AMDRe | I39: AMDRd | J39: AMDRe
A40: 1 | F40: 1
A41: 2 | F41: 2
A42: 3 | F42: 3
A43: 4 | F43: 4
A44: 5 | F44: 5
A45: 6 | F45: 6
A46: 7 | F46: 7
A47: 8 | F47: 8
A48: AVG | B48: =IF(SUM(B40:B47)>0,AVERAGE(B40:B47),"") ->  | C48: =IF(SUM(C40:C47)>0,AVERAGE(C40:C47),"") ->  | D48: =IF(SUM(D40:D47)>0,AVERAGE(D40:D47),"") ->  | E48: =IF(SUM(E40:E47)>0,AVERAGE(E40:E47),"") ->  | F48: AVG | G48: =IF(SUM(G40:G47)>0,AVERAGE(G40:G47),"") ->  | H48: =IF(SUM(H40:H47)>0,AVERAGE(H40:H47),"") ->  | I48: =IF(SUM(I40:I47)>0,AVERAGE(I40:I47),"") ->  | J48: =IF(SUM(J40:J47)>0,AVERAGE(J40:J47),"") -> 
A49: MAX | B49: =IF(SUM(B40:B47)>0,MAX(B40:B47),"") ->  | C49: =IF(SUM(C40:C47)>0,MAX(C40:C47),"") ->  | D49: =IF(SUM(D40:D47)>0,MAX(D40:D47),"") ->  | E49: =IF(SUM(E40:E47)>0,MAX(E40:E47),"") ->  | F49: MAX | G49: =IF(SUM(G40:G47)>0,MAX(G40:G47),"") ->  | H49: =IF(SUM(H40:H47)>0,MAX(H40:H47),"") ->  | I49: =IF(SUM(I40:I47)>0,MAX(I40:I47),"") ->  | J49: =IF(SUM(J40:J47)>0,MAX(J40:J47),"") -> 
A50: AVG | B50: =IF(SUM(B40:B47,D40:D47)>0,AVERAGE(B40:B47,D40:D47),"") ->  | C50: =IF(SUM(C40:C47,E40:E47)>0,AVERAGE(C40:C47,E40:E47),"") ->  | F50: AVG | G50: =IF(SUM(G40:G47,I40:I47)>0,AVERAGE(G40:G47,I40:I47),"") ->  | H50: =IF(SUM(H40:H47,J40:J47)>0,AVERAGE(H40:H47,J40:J47),"") -> 
A51: AVGall | B51: =IF(SUM(B40:E47)>0,AVERAGE(B40:E47),"") ->  | C51: =H28 -> Yards | F51: AVGall | G51: =IF(SUM(G40:J47)>0,AVERAGE(G40:J47),"") ->  | H51: =H28 -> Yards
B53: AMDRd | C53: AMDRe | D53: AMDR
A54: High Vis
A55: Medium Vis
A56: Low Vis

Sheet 8. AMDR Clue
A1: Determining AMDR Worksheet--Clue
A2: The Determining Average Maximum Detection (AMDR) Worksheet allows the researcher to determine and
A3: document AMDR and other measures to quantitate field visibility. The values entered will automatically
A4: be used to determine several other experiment values on later worksheets.
A5: 1. Date | C5: 2. Time | E5: 3. Object Type | G5: 4. GPS E | I5: GPS N
E6: Clue
A7: 5. Location | E7: 6. Terrain Type | G7: 7. Cloud Cover | I7: 8. Precipitation
A8: ='46. Calculations'!P5 -> Mt. Greylock, MA
A9: AMDR Measurements
A10: Starting on Leg 1 move toward the target until the target is detected. Record the distance the target was first
A11: detected in the red AMDRd column. Move backwards until the target is no longer seen and record the distance
A12: in the blue AMDRe column. Pace the same distance at a right angle to start Leg 2 and repeat the procedure.
G14: High Visibility (normally Orange/white)
G15: Trial #1 | I15: Trial #2
F16: Leg # | G16: AMDRd | H16: AMDRe | I16: AMDRd | J16: AMDRe
F17: 1 | G17: 23 | H17: 36
F18: 2 | G18: 23 | H18: 30
F19: 3 | G19: 8 | H19: 11
F20: 4 | G20: 12 | H20: 16
F21: 5 | G21: 18 | H21: 28
F22: 6 | G22: 7 | H22: 18
F23: 7 | G23: 12 | H23: 18
F24: 8 | G24: 7 | H24: 18
F25: AVG | G25: =IF(SUM(G17:G24)>0,AVERAGE(G17:G24),"") -> 13.75 | H25: =IF(SUM(H17:H24)>0,AVERAGE(H17:H24),"") -> 21.875 | I25: =IF(SUM(I17:I24)>0,AVERAGE(I17:I24),"") ->  | J25: =IF(SUM(J17:J24)>0,AVERAGE(J17:J24),"") -> 
F26: MAX | G26: =IF(SUM(G17:G24)>0,MAX(G17:G24),"") -> 23 | H26: =IF(SUM(H17:H24)>0,MAX(H17:H24),"") -> 36 | I26: =IF(SUM(I17:I24)>0,MAX(I17:I24),"") ->  | J26: =IF(SUM(J17:J24)>0,MAX(J17:J24),"") -> 
F27: AVG | G27: =IF(SUM(G17:G24,I17:I24)>0,AVERAGE(G17:G24,I17:I24),"") -> 13.75 | H27: =IF(SUM(H17:H24,J17:J24)>0,AVERAGE(H17:H24,J17:J24),"") -> 21.875
F28: AVGall | G28: =IF(SUM(G17:J24)>0,AVERAGE(G17:J24),"") -> 17.8125 | H28: ='46. Calculations'!P9 -> Yards
F30: Suggested equipment:
F31: Highest visibility target, Laser Range finder, tape
F32: measure, GPS, topographic map, Vegetative density
F33: board, notebook, pencil, Determining AMDR work-
F34: sheet, digital camera, compass.
B37: Medium Visibility (normally blue) | F37: Low Visibility (normally green/brown)
B38: Trial #1 | D38: Trial #2 | G38: Trial #1 | I38: Trial #2
A39: Leg # | B39: AMDRd | C39: AMDRe | D39: AMDRd | E39: AMDRe | F39: Leg # | G39: AMDRd | H39: AMDRe | I39: AMDRd | J39: AMDRe
A40: 1 | F40: 1
A41: 2 | F41: 2
A42: 3 | F42: 3
A43: 4 | F43: 4
A44: 5 | F44: 5
A45: 6 | F45: 6
A46: 7 | F46: 7
A47: 8 | F47: 8
A48: AVG | B48: =IF(SUM(B40:B47)>0,AVERAGE(B40:B47),"") ->  | C48: =IF(SUM(C40:C47)>0,AVERAGE(C40:C47),"") ->  | D48: =IF(SUM(D40:D47)>0,AVERAGE(D40:D47),"") ->  | E48: =IF(SUM(E40:E47)>0,AVERAGE(E40:E47),"") ->  | F48: AVG | G48: =IF(SUM(G40:G47)>0,AVERAGE(G40:G47),"") ->  | H48: =IF(SUM(H40:H47)>0,AVERAGE(H40:H47),"") ->  | I48: =IF(SUM(I40:I47)>0,AVERAGE(I40:I47),"") ->  | J48: =IF(SUM(J40:J47)>0,AVERAGE(J40:J47),"") -> 
A49: MAX | B49: =IF(SUM(B40:B47)>0,MAX(B40:B47),"") ->  | C49: =IF(SUM(C40:C47)>0,MAX(C40:C47),"") ->  | D49: =IF(SUM(D40:D47)>0,MAX(D40:D47),"") ->  | E49: =IF(SUM(E40:E47)>0,MAX(E40:E47),"") ->  | F49: MAX | G49: =IF(SUM(G40:G47)>0,MAX(G40:G47),"") ->  | H49: =IF(SUM(H40:H47)>0,MAX(H40:H47),"") ->  | I49: =IF(SUM(I40:I47)>0,MAX(I40:I47),"") ->  | J49: =IF(SUM(J40:J47)>0,MAX(J40:J47),"") -> 
A50: AVG | B50: =IF(SUM(B40:B47,D40:D47)>0,AVERAGE(B40:B47,D40:D47),"") ->  | C50: =IF(SUM(C40:C47,E40:E47)>0,AVERAGE(C40:C47,E40:E47),"") ->  | F50: AVG | G50: =IF(SUM(G40:G47,I40:I47)>0,AVERAGE(G40:G47,I40:I47),"") ->  | H50: =IF(SUM(H40:H47,J40:J47)>0,AVERAGE(H40:H47,J40:J47),"") -> 
A51: AVGall | B51: =IF(SUM(B40:E47)>0,AVERAGE(B40:E47),"") ->  | C51: =H28 -> Yards | F51: AVGall | G51: =IF(SUM(G40:J47)>0,AVERAGE(G40:J47),"") ->  | H51: =H28 -> Yards
B53: AMDRd | C53: AMDRe | D53: AMDR
A54: High Vis
A55: Medium Vis
A56: Low Vis

Sheet 9. Actual Experiment Design
A1: Experiment Design Using Actual AMDRs
A2: The purpose of this worksheet is to show the experiment designer the number of search objects, time, and total track length required to conduct the experiment given the number of searchers, search time, and actual AMDRs.
A4: 1. Enter the number of searchers who will participate | F4: From estimate: | G4: New: | H4: Used:
F5: ='3. Estimate Experiment Design'!G5 -> 30 | G5: 40 | H5: =IF(AND(G5>=12,G5<=72),G5,F5) -> 40
B6: If actual number of searchers is different than estimated, enter new number of searchers. The number must be between 12 and 72.
A8: 2. Searcher speed | E8: Unit | F8: Maximum | G8: Average | H8: Minimum | L8: Units: | M8: ='46. Calculations'!P9 -> Yards
D9: Speed used for course design | E9: =IF($M$8="Meters","Km/h","MPH") -> MPH | F9: =E49 -> 1.6 | G9: =F49 -> 1.1 | H9: =G49 -> 0.6
B10: If desired, adjust speed by scrolling down and change speed values.
A12: 3. Enter the maximum searching time available for searchers
F13: Search time from estimate AMDRs | G13: ='3. Estimate Experiment Design'!G15 -> 2 | H13: hours
F14: New selected search time | G14: 3 | H14: =IF(G14>0,IF(G14<=4,"Within range","ERROR"),IF(G14="","",IF(G14=0,"","ERROR"))) -> Within range
F15: Search time for course design | G15: =IF(G14>0,IF(G14<=4,G14,G13),G13) -> 3
A17: 4. Number of desired search objects (from setup) | G17: ='2. Search Object Types'!J22 -> 3
A19: 5. Terrain type where the experiment will be conducted (from setup): | G19: ='46. Calculations'!P7 -> Eastern Forest (Mountain, Green)
L20: Objects chosen
A21: 6. Actual AMDR values for each Search Object Type | L21: Object | M21: Object Type number from "Search Objects"
E22: Search Object Type | F22: Unit | G22: Actual AMDR (extinquish) | L22: # 1 | M22: ='2. Search Object Types'!N26 -> 1
C23: =IF(D23="","","#1") -> #1 | D23: ='2. Search Object Types'!M26 -> Adult High-Visibility | F23: =M8 -> Yards | G23: =ROUND(IF(M8="Meters",VLOOKUP(M22,Q59:T67,4),VLOOKUP(M22,Q59:T67,4)),1) -> 47.1 | L23: # 2 | M23: ='2. Search Object Types'!N28 -> 7
C24: =IF(D24="","","#2") -> #2 | D24: =IF('2. Search Object Types'!J22>=2,IF('2. Search Object Types'!M28='2. Search Object Types'!R26,"Error, define object",'2. Search Object Types'!M28),"") -> Clue High-Visibility | F24: =IF(G17>=2,$F$23,"") -> Yards | G24: =IF(G17>=2,ROUND(IF(M8="Meters",VLOOKUP(M23,Q59:T67,4),VLOOKUP(M23,Q59:T67,4)),1),"") -> 21.9 | L24: # 3 | M24: ='2. Search Object Types'!N30 -> 9
C25: =IF(D25="","","#3") -> #3 | D25: =IF('2. Search Object Types'!J22>=3,IF('2. Search Object Types'!M30='2. Search Object Types'!R26,"Error, define object",'2. Search Object Types'!M30),"") -> Clue Low-Visibility | F25: =IF(G17>=3,$F$23,"") -> Yards | G25: =IF(G17>=3,ROUND(IF(M8="Meters",VLOOKUP(M24,Q59:T67,4),VLOOKUP(M24,Q59:T67,4)),1),"") -> 5 | L25: # 4 | M25: ='2. Search Object Types'!N32 -> 7
C26: =IF(D26="","","#4") ->  | D26: =IF('2. Search Object Types'!J22=4,IF('2. Search Object Types'!M32='2. Search Object Types'!R26,"Error, define object",'2. Search Object Types'!M32),"") ->  | F26: =IF(G17=4,$F$23,"") ->  | G26: =IF(G17=4,ROUND(IF(M8="Meters",VLOOKUP(M25,Q59:T67,4),VLOOKUP(M25,Q59:T67,4)),1),"") -> 
A28: 7. Actual course design | D28: # Objects | E28: Track Length | F28: Unit | G28: Max Time | H28: Avg Time | I28: Min Time
D29: =ROUNDUP(1.1*((G17*300)/H5),) -> 25 | E29: =ROUND(AVERAGE(G23:G26)*3*D29,) -> 1850 | F29: =F23 -> Yards | G29: =IF(M8="Meters",E29/(1000*G49),IF(M8="Feet",(E29/M56)/G49,(E29/N56)/G49)) -> 1.751893939 | H29: =IF(M8="Meters",E29/(1000*F49),IF(M8="Feet",(E29/M56)/F49,(E29/N56)/F49)) -> 0.9555785124 | I29: =IF(M8="Meters",E29/(1000*E49),IF(M8="Feet",(E29/M56)/E49,(E29/N56)/E49)) -> 0.6569602273
A31: 8. Enter actual Track Length: | E31: 3100 | F31: =M8 -> Yards
B32: Track Length used in software: | E32: =IF(AND(E31<=E29*1.1,E31>=E29*0.9),E31,E29) -> 1850 | F32: =M8 -> Yards
A34: 9. Check Values:
A35: Max # of Search Objects | D35: =G17*25 -> 75 | F35: Maximum Time Range | H35: =G15 -> 3
A36: Min # of Search Objects | D36: =1.1*G17*10 -> 33 | F36: Minimum Time Range | H36: 1
A37: Current # of Search Objects | D37: =D29 -> 25 | F37: Current Estimated Time | H37: =H29 -> 0.9555785124
A38: =IF(D37<D36,"Number of Search Objects too small, make course longer.",IF(D37>D35,"Number of Search Objects too large, increase searchers.","Number of Search Objects correct.")) -> Number of Search Objects too small, make course longer. | F38: =IF(H37<1,"Average time too short, increase number of search objects.",IF(H37>4,"Average time too long, increase number of searchers.","Average time acceptable.")) -> Average time too short, increase number of search objects.
A43: In the cells below, enter optional speed values or track length if desired.
A45: Optional. Enter speeds
E46: Maximum | F46: Average | G46: Minimum | H46: Unit | L46: Suggested Speed | M46: Maximum | N46: Average | O46: Minimum
D47: Speed from Estimates | E47: ='3. Estimate Experiment Design'!E10 -> 1.6 | F47: ='3. Estimate Experiment Design'!F10 -> 1.1 | G47: ='3. Estimate Experiment Design'!G10 -> 0.6 | H47: =IF($M$8="Meters","Km/h","MPH") -> MPH | L47: Km/h | M47: ='3. Estimate Experiment Design'!L43 -> 2.5 | N47: ='3. Estimate Experiment Design'!M43 -> 1.75 | O47: ='3. Estimate Experiment Design'!N43 -> 1
D48: Enter desired Speed | H48: =IF($M$8="Meters","Km/h","MPH") -> MPH | L48: MPH | M48: =M47*$O$53*1000 -> 1.553503788 | N48: =N47*$O$53*1000 -> 1.087452652 | O48: =O47*$O$53*1000 -> 0.6214015152
D49: Speed Used for Course Design | E49: =IF($M$8="Meters",IF(E48>1,IF(E48<=10,E48,E47),E47),IF(E48>0.62,IF(E48<=6,E48,E47),E47)) -> 1.6 | F49: =IF(M8="Meters",IF(F48>0.5,IF(F48<=10,F48,F47),F47),IF(F48>0.31,IF(F48<=6,F48,F47),F47)) -> 1.1 | G49: =IF(M8="Meters",IF(G48>0.5,IF(G48<=10,G48,G47),G47),IF(G48>0.31,IF(G48<=6,G48,G47),G47)) -> 0.6 | H49: =IF($M$8="Meters","Km/h","MPH") -> MPH | L49: Feet/h | M49: =ROUND(M47*$M$53*1000,1) -> 8202.5 | N49: =ROUND(N47*$M$53*1000,1) -> 5741.8 | O49: =ROUND(O47*$M$53*1000,1) -> 3281
L50: Yards/h | M50: =ROUND(M49/3,1) -> 2734.2 | N50: =ROUND(N49/3,1) -> 1913.9 | O50: =ROUND(O49/3,1) -> 1093.7
L52: Meter | M52: Feet | N52: Yards | O52: mile
L53: 1 | M53: 3.281 | N53: =M53/3 -> 1.093666667 | O53: =M53/5280 -> 0.0006214015152
L55: Mile | M55: Feet | N55: Yards | O55: Meters
L56: 1 | M56: 5280 | N56: =M56/3 -> 1760 | O56: =1/O53 -> 1609.265468
Q58: Chosen number for 2-4 objects | R58: Search Object | S58: Actual AMDR (Detect) | T58: Actual AMDR (extinguish)
Q59: ='2. Search Object Types'!Q27 -> 1 | R59: ='2. Search Object Types'!R27 -> Adult High-Visibility | S59: =IF('6. AMDR Adult'!G27="",'3. Estimate Experiment Design'!U67,'6. AMDR Adult'!G27) -> 38.4375 | T59: =IF('6. AMDR Adult'!H27="",'3. Estimate Experiment Design'!U67,'6. AMDR Adult'!H27) -> 47.125
Q60: ='2. Search Object Types'!Q28 -> 2 | R60: ='2. Search Object Types'!R28 -> Adult Medium-Visibility | S60: =IF('6. AMDR Adult'!B50="",'3. Estimate Experiment Design'!U68,'6. AMDR Adult'!B50) -> 15.75 | T60: =IF('6. AMDR Adult'!C50="",'3. Estimate Experiment Design'!U68,'6. AMDR Adult'!C50) -> 15.75
Q61: ='2. Search Object Types'!Q29 -> 3 | R61: ='2. Search Object Types'!R29 -> Adult Low-Visibility | S61: =IF('6. AMDR Adult'!G50="",'3. Estimate Experiment Design'!U69,'6. AMDR Adult'!G50) -> 12.6 | T61: =IF('6. AMDR Adult'!H50="",'3. Estimate Experiment Design'!U69,'6. AMDR Adult'!H50) -> 12.6
Q62: ='2. Search Object Types'!Q30 -> 4 | R62: ='2. Search Object Types'!R30 -> Child High-Visibility | S62: =IF('7. AMDR Child'!G27="",'3. Estimate Experiment Design'!U70,'7. AMDR Child'!G27) -> 15.75 | T62: =IF('7. AMDR Child'!H27="",'3. Estimate Experiment Design'!U70,'7. AMDR Child'!H27) -> 15.75
Q63: ='2. Search Object Types'!Q31 -> 5 | R63: ='2. Search Object Types'!R31 -> Child Medium-Visibility | S63: =IF('7. AMDR Child'!B50="",'3. Estimate Experiment Design'!U71,'7. AMDR Child'!B50) -> 11.8125 | T63: =IF('7. AMDR Child'!C50="",'3. Estimate Experiment Design'!U71,'7. AMDR Child'!C50) -> 11.8125
Q64: ='2. Search Object Types'!Q32 -> 6 | R64: ='2. Search Object Types'!R32 -> Child Low-Visibility | S64: =IF('7. AMDR Child'!G50="",'3. Estimate Experiment Design'!U72,'7. AMDR Child'!G50) -> 9.45 | T64: =IF('7. AMDR Child'!H50="",'3. Estimate Experiment Design'!U72,'7. AMDR Child'!H50) -> 9.45
Q65: ='2. Search Object Types'!Q33 -> 7 | R65: ='2. Search Object Types'!R33 -> Clue High-Visibility | S65: =IF('8. AMDR Clue'!G27="",'3. Estimate Experiment Design'!U73,'8. AMDR Clue'!G27) -> 13.75 | T65: =IF('8. AMDR Clue'!H27="",'3. Estimate Experiment Design'!U73,'8. AMDR Clue'!H27) -> 21.875
Q66: ='2. Search Object Types'!Q34 -> 8 | R66: ='2. Search Object Types'!R34 -> Clue Medium-Visibility | S66: =IF('8. AMDR Clue'!B50="",'3. Estimate Experiment Design'!U74,'8. AMDR Clue'!B50) -> 6.3 | T66: =IF('8. AMDR Clue'!C50="",'3. Estimate Experiment Design'!U74,'8. AMDR Clue'!C50) -> 6.3
Q67: ='2. Search Object Types'!Q35 -> 9 | R67: ='2. Search Object Types'!R35 -> Clue Low-Visibility | S67: =IF('8. AMDR Clue'!G50="",'3. Estimate Experiment Design'!U75,'8. AMDR Clue'!G50) -> 5.04 | T67: =IF('8. AMDR Clue'!H50="",'3. Estimate Experiment Design'!U75,'8. AMDR Clue'!H50) -> 5.04

Sheet 10. Obj. Placement Tabl & Chart
B1: Object Placement Table & Chart
B2: This worksheet randomly determines the placement of search objects based upon the AMDR.
B3: Date Created: | D3: ='46. Calculations'!AN3 -> 2012-07-12 | F3: Units: | G3: ='46. Calculations'!AQ3 -> Yards | J3: Total # of Suggested Objects: | K3: ='46. Calculations'!AU3 -> 25
H11: 0 | I11: 0 | J11: 0 | K11: 0
B22: Location Number | C22: Track Distance | D22: Lateral Range | E22: Left - Right | G22: Search Object Type (# and description) | H22: Orientation
B23: ='46. Calculations'!AL6 -> 1 | C23: ='46. Calculations'!AM6 -> 35.325 | D23: ='46. Calculations'!AN6 -> 18 | E23: ='46. Calculations'!AO6 -> Left | F23: ='46. Calculations'!AP6 -> 1 | G23: ='46. Calculations'!AQ6 -> Adult High-Visibility | H23: ='46. Calculations'!AR6 -> 15.27774018
B24: ='46. Calculations'!AL7 -> 2 | C24: ='46. Calculations'!AM7 -> 151.3 | D24: ='46. Calculations'!AN7 -> 24 | E24: ='46. Calculations'!AO7 -> Right | F24: ='46. Calculations'!AP7 -> 2 | G24: ='46. Calculations'!AQ7 -> Clue High-Visibility | H24: ='46. Calculations'!AR7 -> 65.0150001
B25: ='46. Calculations'!AL8 -> 3 | C25: ='46. Calculations'!AM8 -> 208 | D25: ='46. Calculations'!AN8 -> 51 | E25: ='46. Calculations'!AO8 -> Right | F25: ='46. Calculations'!AP8 -> 1 | G25: ='46. Calculations'!AQ8 -> Adult High-Visibility | H25: ='46. Calculations'!AR8 -> 204.7684364
B26: ='46. Calculations'!AL9 -> 4 | C26: ='46. Calculations'!AM9 -> 375.3 | D26: ='46. Calculations'!AN9 -> 0.49 | E26: ='46. Calculations'!AO9 -> Left | F26: ='46. Calculations'!AP9 -> 2 | G26: ='46. Calculations'!AQ9 -> Clue High-Visibility | H26: ='46. Calculations'!AR9 -> 330.7894964
B27: ='46. Calculations'!AL10 -> 5 | C27: ='46. Calculations'!AM10 -> 418 | D27: ='46. Calculations'!AN10 -> 4 | E27: ='46. Calculations'!AO10 -> Right | F27: ='46. Calculations'!AP10 -> 3 | G27: ='46. Calculations'!AQ10 -> Clue Low-Visibility | H27: ='46. Calculations'!AR10 -> 265.5130775
B28: ='46. Calculations'!AL11 -> 6 | C28: ='46. Calculations'!AM11 -> 445 | D28: ='46. Calculations'!AN11 -> 8 | E28: ='46. Calculations'!AO11 -> Right | F28: ='46. Calculations'!AP11 -> 2 | G28: ='46. Calculations'!AQ11 -> Clue High-Visibility | H28: ='46. Calculations'!AR11 -> 169.8719405
B29: ='46. Calculations'!AL12 -> 7 | C29: ='46. Calculations'!AM12 -> 580.7 | D29: ='46. Calculations'!AN12 -> 35 | E29: ='46. Calculations'!AO12 -> Right | F29: ='46. Calculations'!AP12 -> 1 | G29: ='46. Calculations'!AQ12 -> Adult High-Visibility | H29: ='46. Calculations'!AR12 -> 198.4099276
B30: ='46. Calculations'!AL13 -> 8 | C30: ='46. Calculations'!AM13 -> 639 | D30: ='46. Calculations'!AN13 -> 2 | E30: ='46. Calculations'!AO13 -> Right | F30: ='46. Calculations'!AP13 -> 3 | G30: ='46. Calculations'!AQ13 -> Clue Low-Visibility | H30: ='46. Calculations'!AR13 -> 188.2226384
B31: ='46. Calculations'!AL14 -> 9 | C31: ='46. Calculations'!AM14 -> 653 | D31: ='46. Calculations'!AN14 -> 0.09 | E31: ='46. Calculations'!AO14 -> Right | F31: ='46. Calculations'!AP14 -> 3 | G31: ='46. Calculations'!AQ14 -> Clue Low-Visibility | H31: ='46. Calculations'!AR14 -> 322.3179231
B32: ='46. Calculations'!AL15 -> 10 | C32: ='46. Calculations'!AM15 -> 702 | D32: ='46. Calculations'!AN15 -> 13 | E32: ='46. Calculations'!AO15 -> Left | F32: ='46. Calculations'!AP15 -> 2 | G32: ='46. Calculations'!AQ15 -> Clue High-Visibility | H32: ='46. Calculations'!AR15 -> 311.0302915
B33: ='46. Calculations'!AL16 -> 11 | C33: ='46. Calculations'!AM16 -> 805.7 | D33: ='46. Calculations'!AN16 -> 0.19 | E33: ='46. Calculations'!AO16 -> Right | F33: ='46. Calculations'!AP16 -> 1 | G33: ='46. Calculations'!AQ16 -> Adult High-Visibility | H33: ='46. Calculations'!AR16 -> 216.1987139
B34: ='46. Calculations'!AL17 -> 12 | C34: ='46. Calculations'!AM17 -> 885 | D34: ='46. Calculations'!AN17 -> 32 | E34: ='46. Calculations'!AO17 -> Left | F34: ='46. Calculations'!AP17 -> 2 | G34: ='46. Calculations'!AQ17 -> Clue High-Visibility | H34: ='46. Calculations'!AR17 -> 224.2664399
B35: ='46. Calculations'!AL18 -> 13 | C35: ='46. Calculations'!AM18 -> 958.7 | D35: ='46. Calculations'!AN18 -> 20 | E35: ='46. Calculations'!AO18 -> Left | F35: ='46. Calculations'!AP18 -> 2 | G35: ='46. Calculations'!AQ18 -> Clue High-Visibility | H35: ='46. Calculations'!AR18 -> 321.8423502
B36: ='46. Calculations'!AL19 -> 14 | C36: ='46. Calculations'!AM19 -> 1011.4 | D36: ='46. Calculations'!AN19 -> 7 | E36: ='46. Calculations'!AO19 -> Left | F36: ='46. Calculations'!AP19 -> 3 | G36: ='46. Calculations'!AQ19 -> Clue Low-Visibility | H36: ='46. Calculations'!AR19 -> 86.22369281
B37: ='46. Calculations'!AL20 -> 15 | C37: ='46. Calculations'!AM20 -> 1026.4 | D37: ='46. Calculations'!AN20 -> 5 | E37: ='46. Calculations'!AO20 -> Left | F37: ='46. Calculations'!AP20 -> 3 | G37: ='46. Calculations'!AQ20 -> Clue Low-Visibility | H37: ='46. Calculations'!AR20 -> 108.648758
B38: ='46. Calculations'!AL21 -> 16 | C38: ='46. Calculations'!AM21 -> 1113.4 | D38: ='46. Calculations'!AN21 -> 61 | E38: ='46. Calculations'!AO21 -> Left | F38: ='46. Calculations'!AP21 -> 1 | G38: ='46. Calculations'!AQ21 -> Adult High-Visibility | H38: ='46. Calculations'!AR21 -> 306.9935155
B39: ='46. Calculations'!AL22 -> 17 | C39: ='46. Calculations'!AM22 -> 1261.7 | D39: ='46. Calculations'!AN22 -> 50 | E39: ='46. Calculations'!AO22 -> Right | F39: ='46. Calculations'!AP22 -> 1 | G39: ='46. Calculations'!AQ22 -> Adult High-Visibility | H39: ='46. Calculations'!AR22 -> 27.87747952
B40: ='46. Calculations'!AL23 -> 18 | C40: ='46. Calculations'!AM23 -> 1350 | D40: ='46. Calculations'!AN23 -> 24 | E40: ='46. Calculations'!AO23 -> Left | F40: ='46. Calculations'!AP23 -> 1 | G40: ='46. Calculations'!AQ23 -> Adult High-Visibility | H40: ='46. Calculations'!AR23 -> 332.9476956
B41: ='46. Calculations'!AL24 -> 19 | C41: ='46. Calculations'!AM24 -> 1460.3 | D41: ='46. Calculations'!AN24 -> 61 | E41: ='46. Calculations'!AO24 -> Right | F41: ='46. Calculations'!AP24 -> 1 | G41: ='46. Calculations'!AQ24 -> Adult High-Visibility | H41: ='46. Calculations'!AR24 -> 231.8869814
B42: ='46. Calculations'!AL25 -> 20 | C42: ='46. Calculations'!AM25 -> 1604.6 | D42: ='46. Calculations'!AN25 -> 4 | E42: ='46. Calculations'!AO25 -> Right | F42: ='46. Calculations'!AP25 -> 3 | G42: ='46. Calculations'!AQ25 -> Clue Low-Visibility | H42: ='46. Calculations'!AR25 -> 309.0772537
B43: ='46. Calculations'!AL26 -> 21 | C43: ='46. Calculations'!AM26 -> 1620.6 | D43: ='46. Calculations'!AN26 -> 3 | E43: ='46. Calculations'!AO26 -> Right | F43: ='46. Calculations'!AP26 -> 2 | G43: ='46. Calculations'!AQ26 -> Clue High-Visibility | H43: ='46. Calculations'!AR26 -> 315.2568947
B44: ='46. Calculations'!AL27 -> 22 | C44: ='46. Calculations'!AM27 -> 1722.3 | D44: ='46. Calculations'!AN27 -> 31 | E44: ='46. Calculations'!AO27 -> Right | F44: ='46. Calculations'!AP27 -> 2 | G44: ='46. Calculations'!AQ27 -> Clue High-Visibility | H44: ='46. Calculations'!AR27 -> 162.0890423
B45: ='46. Calculations'!AL28 -> 23 | C45: ='46. Calculations'!AM28 -> 1750 | D45: ='46. Calculations'!AN28 -> 0.38 | E45: ='46. Calculations'!AO28 -> Left | F45: ='46. Calculations'!AP28 -> 3 | G45: ='46. Calculations'!AQ28 -> Clue Low-Visibility | H45: ='46. Calculations'!AR28 -> 208.5584214
B46: ='46. Calculations'!AL29 -> 24 | C46: ='46. Calculations'!AM29 -> 1855 | D46: ='46. Calculations'!AN29 -> 47 | E46: ='46. Calculations'!AO29 -> Left | F46: ='46. Calculations'!AP29 -> 1 | G46: ='46. Calculations'!AQ29 -> Adult High-Visibility | H46: ='46. Calculations'!AR29 -> 150.4432442
B47: ='46. Calculations'!AL30 -> 25 | C47: ='46. Calculations'!AM30 -> 1941.3 | D47: ='46. Calculations'!AN30 -> 2 | E47: ='46. Calculations'!AO30 -> Left | F47: ='46. Calculations'!AP30 -> 2 | G47: ='46. Calculations'!AQ30 -> Clue High-Visibility | H47: ='46. Calculations'!AR30 -> 259.9815369
B48: ='46. Calculations'!AL31 -> 26 | C48: ='46. Calculations'!AM31 -> 1975 | D48: ='46. Calculations'!AN31 -> 3 | E48: ='46. Calculations'!AO31 -> Left | F48: ='46. Calculations'!AP31 -> 3 | G48: ='46. Calculations'!AQ31 -> Clue Low-Visibility | H48: ='46. Calculations'!AR31 -> 227.955751
B49: ='46. Calculations'!AL32 -> 0 | C49: ='46. Calculations'!AM32 -> 0 | D49: ='46. Calculations'!AN32 -> 0 | E49: ='46. Calculations'!AO32 -> 0 | F49: ='46. Calculations'!AP32 -> 0 | G49: ='46. Calculations'!AQ32 -> 0 | H49: ='46. Calculations'!AR32 -> 0
B50: ='46. Calculations'!AL33 -> 0 | C50: ='46. Calculations'!AM33 -> 0 | D50: ='46. Calculations'!AN33 -> 0 | E50: ='46. Calculations'!AO33 -> 0 | F50: ='46. Calculations'!AP33 -> 0 | G50: ='46. Calculations'!AQ33 -> 0 | H50: ='46. Calculations'!AR33 -> 0
B51: ='46. Calculations'!AL34 -> 0 | C51: ='46. Calculations'!AM34 -> 0 | D51: ='46. Calculations'!AN34 -> 0 | E51: ='46. Calculations'!AO34 -> 0 | F51: ='46. Calculations'!AP34 -> 0 | G51: ='46. Calculations'!AQ34 -> 0 | H51: ='46. Calculations'!AR34 -> 0
B52: ='46. Calculations'!AL35 -> 0 | C52: ='46. Calculations'!AM35 -> 0 | D52: ='46. Calculations'!AN35 -> 0 | E52: ='46. Calculations'!AO35 -> 0 | F52: ='46. Calculations'!AP35 -> 0 | G52: ='46. Calculations'!AQ35 -> 0 | H52: ='46. Calculations'!AR35 -> 0 | J52: ='46. Calculations'!AT35 -> Search Object Type # 1
B53: ='46. Calculations'!AL36 -> 0 | C53: ='46. Calculations'!AM36 -> 0 | D53: ='46. Calculations'!AN36 -> 0 | E53: ='46. Calculations'!AO36 -> 0 | F53: ='46. Calculations'!AP36 -> 0 | G53: ='46. Calculations'!AQ36 -> 0 | H53: ='46. Calculations'!AR36 -> 0 | J53: ='46. Calculations'!AT36 -> Adult High-Visibility
B54: ='46. Calculations'!AL37 -> 0 | C54: ='46. Calculations'!AM37 -> 0 | D54: ='46. Calculations'!AN37 -> 0 | E54: ='46. Calculations'!AO37 -> 0 | F54: ='46. Calculations'!AP37 -> 0 | G54: ='46. Calculations'!AQ37 -> 0 | H54: ='46. Calculations'!AR37 -> 0 | J54: ='46. Calculations'!AT37 -> AMDR1 | L54: ='46. Calculations'!AV37 -> 47.1
B55: ='46. Calculations'!AL38 -> 0 | C55: ='46. Calculations'!AM38 -> 0 | D55: ='46. Calculations'!AN38 -> 0 | E55: ='46. Calculations'!AO38 -> 0 | F55: ='46. Calculations'!AP38 -> 0 | G55: ='46. Calculations'!AQ38 -> 0 | H55: ='46. Calculations'!AR38 -> 0
B56: ='46. Calculations'!AL39 -> 0 | C56: ='46. Calculations'!AM39 -> 0 | D56: ='46. Calculations'!AN39 -> 0 | E56: ='46. Calculations'!AO39 -> 0 | F56: ='46. Calculations'!AP39 -> 0 | G56: ='46. Calculations'!AQ39 -> 0 | H56: ='46. Calculations'!AR39 -> 0 | J56: ='46. Calculations'!AT39 -> Search Object Type # 2
B57: ='46. Calculations'!AL40 -> 0 | C57: ='46. Calculations'!AM40 -> 0 | D57: ='46. Calculations'!AN40 -> 0 | E57: ='46. Calculations'!AO40 -> 0 | F57: ='46. Calculations'!AP40 -> 0 | G57: ='46. Calculations'!AQ40 -> 0 | H57: ='46. Calculations'!AR40 -> 0 | J57: ='46. Calculations'!AT40 -> Clue High-Visibility
B58: ='46. Calculations'!AL41 -> 0 | C58: ='46. Calculations'!AM41 -> 0 | D58: ='46. Calculations'!AN41 -> 0 | E58: ='46. Calculations'!AO41 -> 0 | F58: ='46. Calculations'!AP41 -> 0 | G58: ='46. Calculations'!AQ41 -> 0 | H58: ='46. Calculations'!AR41 -> 0 | J58: ='46. Calculations'!AT41 -> AMDR2 | L58: ='46. Calculations'!AV41 -> 21.9
B59: ='46. Calculations'!AL42 -> 0 | C59: ='46. Calculations'!AM42 -> 0 | D59: ='46. Calculations'!AN42 -> 0 | E59: ='46. Calculations'!AO42 -> 0 | F59: ='46. Calculations'!AP42 -> 0 | G59: ='46. Calculations'!AQ42 -> 0 | H59: ='46. Calculations'!AR42 -> 0
B60: ='46. Calculations'!AL43 -> 0 | C60: ='46. Calculations'!AM43 -> 0 | D60: ='46. Calculations'!AN43 -> 0 | E60: ='46. Calculations'!AO43 -> 0 | F60: ='46. Calculations'!AP43 -> 0 | G60: ='46. Calculations'!AQ43 -> 0 | H60: ='46. Calculations'!AR43 -> 0 | J60: ='46. Calculations'!AT43 -> Search Object Type # 3
B61: ='46. Calculations'!AL44 -> 0 | C61: ='46. Calculations'!AM44 -> 0 | D61: ='46. Calculations'!AN44 -> 0 | E61: ='46. Calculations'!AO44 -> 0 | F61: ='46. Calculations'!AP44 -> 0 | G61: ='46. Calculations'!AQ44 -> 0 | H61: ='46. Calculations'!AR44 -> 0 | J61: ='46. Calculations'!AT44 -> Clue Low-Visibility
B62: ='46. Calculations'!AL45 -> 0 | C62: ='46. Calculations'!AM45 -> 0 | D62: ='46. Calculations'!AN45 -> 0 | E62: ='46. Calculations'!AO45 -> 0 | F62: ='46. Calculations'!AP45 -> 0 | G62: ='46. Calculations'!AQ45 -> 0 | H62: ='46. Calculations'!AR45 -> 0 | J62: ='46. Calculations'!AT45 -> AMDR3 | L62: ='46. Calculations'!AV45 -> 5
B63: ='46. Calculations'!AL46 -> 0 | C63: ='46. Calculations'!AM46 -> 0 | D63: ='46. Calculations'!AN46 -> 0 | E63: ='46. Calculations'!AO46 -> 0 | F63: ='46. Calculations'!AP46 -> 0 | G63: ='46. Calculations'!AQ46 -> 0 | H63: ='46. Calculations'!AR46 -> 0
B64: ='46. Calculations'!AL47 -> 0 | C64: ='46. Calculations'!AM47 -> 0 | D64: ='46. Calculations'!AN47 -> 0 | E64: ='46. Calculations'!AO47 -> 0 | F64: ='46. Calculations'!AP47 -> 0 | G64: ='46. Calculations'!AQ47 -> 0 | H64: ='46. Calculations'!AR47 -> 0 | J64: ='46. Calculations'!AT47 -> 
B65: ='46. Calculations'!AL48 -> 0 | C65: ='46. Calculations'!AM48 -> 0 | D65: ='46. Calculations'!AN48 -> 0 | E65: ='46. Calculations'!AO48 -> 0 | F65: ='46. Calculations'!AP48 -> 0 | G65: ='46. Calculations'!AQ48 -> 0 | H65: ='46. Calculations'!AR48 -> 0 | J65: ='46. Calculations'!AT48 -> Not Applicable
B66: ='46. Calculations'!AL49 -> 0 | C66: ='46. Calculations'!AM49 -> 0 | D66: ='46. Calculations'!AN49 -> 0 | E66: ='46. Calculations'!AO49 -> 0 | F66: ='46. Calculations'!AP49 -> 0 | G66: ='46. Calculations'!AQ49 -> 0 | H66: ='46. Calculations'!AR49 -> 0 | J66: ='46. Calculations'!AT49 ->  | L66: ='46. Calculations'!AV49 -> 0
B67: ='46. Calculations'!AL50 -> 0 | C67: ='46. Calculations'!AM50 -> 0 | D67: ='46. Calculations'!AN50 -> 0 | E67: ='46. Calculations'!AO50 -> 0 | F67: ='46. Calculations'!AP50 -> 0 | G67: ='46. Calculations'!AQ50 -> 0 | H67: ='46. Calculations'!AR50 -> 0
B68: ='46. Calculations'!AL51 -> 0 | C68: ='46. Calculations'!AM51 -> 0 | D68: ='46. Calculations'!AN51 -> 0 | E68: ='46. Calculations'!AO51 -> 0 | F68: ='46. Calculations'!AP51 -> 0 | G68: ='46. Calculations'!AQ51 -> 0 | H68: ='46. Calculations'!AR51 -> 0
B69: ='46. Calculations'!AL52 -> 0 | C69: ='46. Calculations'!AM52 -> 0 | D69: ='46. Calculations'!AN52 -> 0 | E69: ='46. Calculations'!AO52 -> 0 | F69: ='46. Calculations'!AP52 -> 0 | G69: ='46. Calculations'!AQ52 -> 0 | H69: ='46. Calculations'!AR52 -> 0 | J69: Course Layout-Shopping List
B70: ='46. Calculations'!AL53 -> 0 | C70: ='46. Calculations'!AM53 -> 0 | D70: ='46. Calculations'!AN53 -> 0 | E70: ='46. Calculations'!AO53 -> 0 | F70: ='46. Calculations'!AP53 -> 0 | G70: ='46. Calculations'!AQ53 -> 0 | H70: ='46. Calculations'!AR53 -> 0 | J70: =6*(ROUNDUP(MAX($C$23:$C$140)/1000,)) -> 12 | K70: Flagging tape rolls
B71: ='46. Calculations'!AL54 -> 0 | C71: ='46. Calculations'!AM54 -> 0 | D71: ='46. Calculations'!AN54 -> 0 | E71: ='46. Calculations'!AO54 -> 0 | F71: ='46. Calculations'!AP54 -> 0 | G71: ='46. Calculations'!AQ54 -> 0 | H71: ='46. Calculations'!AR54 -> 0 | J71: =3*(ROUNDUP(MAX($C$23:$C$140)/1000,)) -> 6 | K71: Yellow flags
B72: ='46. Calculations'!AL55 -> 0 | C72: ='46. Calculations'!AM55 -> 0 | D72: ='46. Calculations'!AN55 -> 0 | E72: ='46. Calculations'!AO55 -> 0 | F72: ='46. Calculations'!AP55 -> 0 | G72: ='46. Calculations'!AQ55 -> 0 | H72: ='46. Calculations'!AR55 -> 0 | J72: =40*(ROUNDUP(MAX($C$23:$C$140)/1000,)) -> 80 | K72: Lime green flags
B73: ='46. Calculations'!AL56 -> 0 | C73: ='46. Calculations'!AM56 -> 0 | D73: ='46. Calculations'!AN56 -> 0 | E73: ='46. Calculations'!AO56 -> 0 | F73: ='46. Calculations'!AP56 -> 0 | G73: ='46. Calculations'!AQ56 -> 0 | H73: ='46. Calculations'!AR56 -> 0 | J73: =200*(ROUNDUP(MAX($C$23:$C$140)/1000,)) -> 400 | K73: Red flags
B74: ='46. Calculations'!AL57 -> 0 | C74: ='46. Calculations'!AM57 -> 0 | D74: ='46. Calculations'!AN57 -> 0 | E74: ='46. Calculations'!AO57 -> 0 | F74: ='46. Calculations'!AP57 -> 0 | G74: ='46. Calculations'!AQ57 -> 0 | H74: ='46. Calculations'!AR57 -> 0 | J74: =10*(ROUNDUP(MAX($C$23:$C$140)/1000,)) -> 20 | K74: Orange flags
B75: ='46. Calculations'!AL58 -> 0 | C75: ='46. Calculations'!AM58 -> 0 | D75: ='46. Calculations'!AN58 -> 0 | E75: ='46. Calculations'!AO58 -> 0 | F75: ='46. Calculations'!AP58 -> 0 | G75: ='46. Calculations'!AQ58 -> 0 | H75: ='46. Calculations'!AR58 -> 0 | J75: 2 | K75: Permanent markers
B76: ='46. Calculations'!AL59 -> 0 | C76: ='46. Calculations'!AM59 -> 0 | D76: ='46. Calculations'!AN59 -> 0 | E76: ='46. Calculations'!AO59 -> 0 | F76: ='46. Calculations'!AP59 -> 0 | G76: ='46. Calculations'!AQ59 -> 0 | H76: ='46. Calculations'!AR59 -> 0 | K76: Waterproof paper
B77: ='46. Calculations'!AL60 -> 0 | C77: ='46. Calculations'!AM60 -> 0 | D77: ='46. Calculations'!AN60 -> 0 | E77: ='46. Calculations'!AO60 -> 0 | F77: ='46. Calculations'!AP60 -> 0 | G77: ='46. Calculations'!AQ60 -> 0 | H77: ='46. Calculations'!AR60 -> 0 | K77: Clear plastic or acetate
B78: ='46. Calculations'!AL61 -> 0 | C78: ='46. Calculations'!AM61 -> 0 | D78: ='46. Calculations'!AN61 -> 0 | E78: ='46. Calculations'!AO61 -> 0 | F78: ='46. Calculations'!AP61 -> 0 | G78: ='46. Calculations'!AQ61 -> 0 | H78: ='46. Calculations'!AR61 -> 0 | J78: 6 to 12 | K78: Clipboards
B79: ='46. Calculations'!AL62 -> 0 | C79: ='46. Calculations'!AM62 -> 0 | D79: ='46. Calculations'!AN62 -> 0 | E79: ='46. Calculations'!AO62 -> 0 | F79: ='46. Calculations'!AP62 -> 0 | G79: ='46. Calculations'!AQ62 -> 0 | H79: ='46. Calculations'!AR62 -> 0 | J79: 12 to 24 | K79: Pencils/Pens
B80: ='46. Calculations'!AL63 -> 0 | C80: ='46. Calculations'!AM63 -> 0 | D80: ='46. Calculations'!AN63 -> 0 | E80: ='46. Calculations'!AO63 -> 0 | F80: ='46. Calculations'!AP63 -> 0 | G80: ='46. Calculations'!AQ63 -> 0 | H80: ='46. Calculations'!AR63 -> 0 | J80: 2 | K80: Staplers
B81: ='46. Calculations'!AL64 -> 0 | C81: ='46. Calculations'!AM64 -> 0 | D81: ='46. Calculations'!AN64 -> 0 | E81: ='46. Calculations'!AO64 -> 0 | F81: ='46. Calculations'!AP64 -> 0 | G81: ='46. Calculations'!AQ64 -> 0 | H81: ='46. Calculations'!AR64 -> 0 | K81: Adhesive tape
B82: ='46. Calculations'!AL65 -> 0 | C82: ='46. Calculations'!AM65 -> 0 | D82: ='46. Calculations'!AN65 -> 0 | E82: ='46. Calculations'!AO65 -> 0 | F82: ='46. Calculations'!AP65 -> 0 | G82: ='46. Calculations'!AQ65 -> 0 | H82: ='46. Calculations'!AR65 -> 0 | K82: Blank paper/cardboard
B83: ='46. Calculations'!AL66 -> 0 | C83: ='46. Calculations'!AM66 -> 0 | D83: ='46. Calculations'!AN66 -> 0 | E83: ='46. Calculations'!AO66 -> 0 | F83: ='46. Calculations'!AP66 -> 0 | G83: ='46. Calculations'!AQ66 -> 0 | H83: ='46. Calculations'!AR66 -> 0 | J83: 3 | K83: Folders
B84: ='46. Calculations'!AL67 -> 0 | C84: ='46. Calculations'!AM67 -> 0 | D84: ='46. Calculations'!AN67 -> 0 | E84: ='46. Calculations'!AO67 -> 0 | F84: ='46. Calculations'!AP67 -> 0 | G84: ='46. Calculations'!AQ67 -> 0 | H84: ='46. Calculations'!AR67 -> 0
B85: ='46. Calculations'!AL68 -> 0 | C85: ='46. Calculations'!AM68 -> 0 | D85: ='46. Calculations'!AN68 -> 0 | E85: ='46. Calculations'!AO68 -> 0 | F85: ='46. Calculations'!AP68 -> 0 | G85: ='46. Calculations'!AQ68 -> 0 | H85: ='46. Calculations'!AR68 -> 0
B86: ='46. Calculations'!AL69 -> 0 | C86: ='46. Calculations'!AM69 -> 0 | D86: ='46. Calculations'!AN69 -> 0 | E86: ='46. Calculations'!AO69 -> 0 | F86: ='46. Calculations'!AP69 -> 0 | G86: ='46. Calculations'!AQ69 -> 0 | H86: ='46. Calculations'!AR69 -> 0
B87: ='46. Calculations'!AL70 -> 0 | C87: ='46. Calculations'!AM70 -> 0 | D87: ='46. Calculations'!AN70 -> 0 | E87: ='46. Calculations'!AO70 -> 0 | F87: ='46. Calculations'!AP70 -> 0 | G87: ='46. Calculations'!AQ70 -> 0 | H87: ='46. Calculations'!AR70 -> 0
B88: ='46. Calculations'!AL71 -> 0 | C88: ='46. Calculations'!AM71 -> 0 | D88: ='46. Calculations'!AN71 -> 0 | E88: ='46. Calculations'!AO71 -> 0 | F88: ='46. Calculations'!AP71 -> 0 | G88: ='46. Calculations'!AQ71 -> 0 | H88: ='46. Calculations'!AR71 -> 0
B89: ='46. Calculations'!AL72 -> 0 | C89: ='46. Calculations'!AM72 -> 0 | D89: ='46. Calculations'!AN72 -> 0 | E89: ='46. Calculations'!AO72 -> 0 | F89: ='46. Calculations'!AP72 -> 0 | G89: ='46. Calculations'!AQ72 -> 0 | H89: ='46. Calculations'!AR72 -> 0
B90: ='46. Calculations'!AL73 -> 0 | C90: ='46. Calculations'!AM73 -> 0 | D90: ='46. Calculations'!AN73 -> 0 | E90: ='46. Calculations'!AO73 -> 0 | F90: ='46. Calculations'!AP73 -> 0 | G90: ='46. Calculations'!AQ73 -> 0 | H90: ='46. Calculations'!AR73 -> 0
B91: ='46. Calculations'!AL74 -> 0 | C91: ='46. Calculations'!AM74 -> 0 | D91: ='46. Calculations'!AN74 -> 0 | E91: ='46. Calculations'!AO74 -> 0 | F91: ='46. Calculations'!AP74 -> 0 | G91: ='46. Calculations'!AQ74 -> 0 | H91: ='46. Calculations'!AR74 -> 0
B92: ='46. Calculations'!AL75 -> 0 | C92: ='46. Calculations'!AM75 -> 0 | D92: ='46. Calculations'!AN75 -> 0 | E92: ='46. Calculations'!AO75 -> 0 | F92: ='46. Calculations'!AP75 -> 0 | G92: ='46. Calculations'!AQ75 -> 0 | H92: ='46. Calculations'!AR75 -> 0
B93: ='46. Calculations'!AL76 -> 0 | C93: ='46. Calculations'!AM76 -> 0 | D93: ='46. Calculations'!AN76 -> 0 | E93: ='46. Calculations'!AO76 -> 0 | F93: ='46. Calculations'!AP76 -> 0 | G93: ='46. Calculations'!AQ76 -> 0 | H93: ='46. Calculations'!AR76 -> 0
B94: ='46. Calculations'!AL77 -> 0 | C94: ='46. Calculations'!AM77 -> 0 | D94: ='46. Calculations'!AN77 -> 0 | E94: ='46. Calculations'!AO77 -> 0 | F94: ='46. Calculations'!AP77 -> 0 | G94: ='46. Calculations'!AQ77 -> 0 | H94: ='46. Calculations'!AR77 -> 0
B95: ='46. Calculations'!AL78 -> 0 | C95: ='46. Calculations'!AM78 -> 0 | D95: ='46. Calculations'!AN78 -> 0 | E95: ='46. Calculations'!AO78 -> 0 | F95: ='46. Calculations'!AP78 -> 0 | G95: ='46. Calculations'!AQ78 -> 0 | H95: ='46. Calculations'!AR78 -> 0
B96: ='46. Calculations'!AL79 -> 0 | C96: ='46. Calculations'!AM79 -> 0 | D96: ='46. Calculations'!AN79 -> 0 | E96: ='46. Calculations'!AO79 -> 0 | F96: ='46. Calculations'!AP79 -> 0 | G96: ='46. Calculations'!AQ79 -> 0 | H96: ='46. Calculations'!AR79 -> 0
B97: ='46. Calculations'!AL80 -> 0 | C97: ='46. Calculations'!AM80 -> 0 | D97: ='46. Calculations'!AN80 -> 0 | E97: ='46. Calculations'!AO80 -> 0 | F97: ='46. Calculations'!AP80 -> 0 | G97: ='46. Calculations'!AQ80 -> 0 | H97: ='46. Calculations'!AR80 -> 0
B98: ='46. Calculations'!AL81 -> 0 | C98: ='46. Calculations'!AM81 -> 0 | D98: ='46. Calculations'!AN81 -> 0 | E98: ='46. Calculations'!AO81 -> 0 | F98: ='46. Calculations'!AP81 -> 0 | G98: ='46. Calculations'!AQ81 -> 0 | H98: ='46. Calculations'!AR81 -> 0
B99: ='46. Calculations'!AL82 -> 0 | C99: ='46. Calculations'!AM82 -> 0 | D99: ='46. Calculations'!AN82 -> 0 | E99: ='46. Calculations'!AO82 -> 0 | F99: ='46. Calculations'!AP82 -> 0 | G99: ='46. Calculations'!AQ82 -> 0 | H99: ='46. Calculations'!AR82 -> 0
B100: ='46. Calculations'!AL83 -> 0 | C100: ='46. Calculations'!AM83 -> 0 | D100: ='46. Calculations'!AN83 -> 0 | E100: ='46. Calculations'!AO83 -> 0 | F100: ='46. Calculations'!AP83 -> 0 | G100: ='46. Calculations'!AQ83 -> 0 | H100: ='46. Calculations'!AR83 -> 0
B101: ='46. Calculations'!AL84 -> 0 | C101: ='46. Calculations'!AM84 -> 0 | D101: ='46. Calculations'!AN84 -> 0 | E101: ='46. Calculations'!AO84 -> 0 | F101: ='46. Calculations'!AP84 -> 0 | G101: ='46. Calculations'!AQ84 -> 0 | H101: ='46. Calculations'!AR84 -> 0
B102: ='46. Calculations'!AL85 -> 0 | C102: ='46. Calculations'!AM85 -> 0 | D102: ='46. Calculations'!AN85 -> 0 | E102: ='46. Calculations'!AO85 -> 0 | F102: ='46. Calculations'!AP85 -> 0 | G102: ='46. Calculations'!AQ85 -> 0 | H102: ='46. Calculations'!AR85 -> 0
B103: ='46. Calculations'!AL86 -> 0 | C103: ='46. Calculations'!AM86 -> 0 | D103: ='46. Calculations'!AN86 -> 0 | E103: ='46. Calculations'!AO86 -> 0 | F103: ='46. Calculations'!AP86 -> 0 | G103: ='46. Calculations'!AQ86 -> 0 | H103: ='46. Calculations'!AR86 -> 0
B104: ='46. Calculations'!AL87 -> 0 | C104: ='46. Calculations'!AM87 -> 0 | D104: ='46. Calculations'!AN87 -> 0 | E104: ='46. Calculations'!AO87 -> 0 | F104: ='46. Calculations'!AP87 -> 0 | G104: ='46. Calculations'!AQ87 -> 0 | H104: ='46. Calculations'!AR87 -> 0
B105: ='46. Calculations'!AL88 -> 0 | C105: ='46. Calculations'!AM88 -> 0 | D105: ='46. Calculations'!AN88 -> 0 | E105: ='46. Calculations'!AO88 -> 0 | F105: ='46. Calculations'!AP88 -> 0 | G105: ='46. Calculations'!AQ88 -> 0 | H105: ='46. Calculations'!AR88 -> 0
B106: ='46. Calculations'!AL89 -> 0 | C106: ='46. Calculations'!AM89 -> 0 | D106: ='46. Calculations'!AN89 -> 0 | E106: ='46. Calculations'!AO89 -> 0 | F106: ='46. Calculations'!AP89 -> 0 | G106: ='46. Calculations'!AQ89 -> 0 | H106: ='46. Calculations'!AR89 -> 0
B107: ='46. Calculations'!AL90 -> 0 | C107: ='46. Calculations'!AM90 -> 0 | D107: ='46. Calculations'!AN90 -> 0 | E107: ='46. Calculations'!AO90 -> 0 | F107: ='46. Calculations'!AP90 -> 0 | G107: ='46. Calculations'!AQ90 -> 0 | H107: ='46. Calculations'!AR90 -> 0
B108: ='46. Calculations'!AL91 -> 0 | C108: ='46. Calculations'!AM91 -> 0 | D108: ='46. Calculations'!AN91 -> 0 | E108: ='46. Calculations'!AO91 -> 0 | F108: ='46. Calculations'!AP91 -> 0 | G108: ='46. Calculations'!AQ91 -> 0 | H108: ='46. Calculations'!AR91 -> 0
B109: ='46. Calculations'!AL92 -> 0 | C109: ='46. Calculations'!AM92 -> 0 | D109: ='46. Calculations'!AN92 -> 0 | E109: ='46. Calculations'!AO92 -> 0 | F109: ='46. Calculations'!AP92 -> 0 | G109: ='46. Calculations'!AQ92 -> 0 | H109: ='46. Calculations'!AR92 -> 0
B110: ='46. Calculations'!AL93 -> 0 | C110: ='46. Calculations'!AM93 -> 0 | D110: ='46. Calculations'!AN93 -> 0 | E110: ='46. Calculations'!AO93 -> 0 | F110: ='46. Calculations'!AP93 -> 0 | G110: ='46. Calculations'!AQ93 -> 0 | H110: ='46. Calculations'!AR93 -> 0
B111: ='46. Calculations'!AL94 -> 0 | C111: ='46. Calculations'!AM94 -> 0 | D111: ='46. Calculations'!AN94 -> 0 | E111: ='46. Calculations'!AO94 -> 0 | F111: ='46. Calculations'!AP94 -> 0 | G111: ='46. Calculations'!AQ94 -> 0 | H111: ='46. Calculations'!AR94 -> 0
B112: ='46. Calculations'!AL95 -> 0 | C112: ='46. Calculations'!AM95 -> 0 | D112: ='46. Calculations'!AN95 -> 0 | E112: ='46. Calculations'!AO95 -> 0 | F112: ='46. Calculations'!AP95 -> 0 | G112: ='46. Calculations'!AQ95 -> 0 | H112: ='46. Calculations'!AR95 -> 0
B113: ='46. Calculations'!AL96 -> 0 | C113: ='46. Calculations'!AM96 -> 0 | D113: ='46. Calculations'!AN96 -> 0 | E113: ='46. Calculations'!AO96 -> 0 | F113: ='46. Calculations'!AP96 -> 0 | G113: ='46. Calculations'!AQ96 -> 0 | H113: ='46. Calculations'!AR96 -> 0
B114: ='46. Calculations'!AL97 -> 0 | C114: ='46. Calculations'!AM97 -> 0 | D114: ='46. Calculations'!AN97 -> 0 | E114: ='46. Calculations'!AO97 -> 0 | F114: ='46. Calculations'!AP97 -> 0 | G114: ='46. Calculations'!AQ97 -> 0 | H114: ='46. Calculations'!AR97 -> 0
B115: ='46. Calculations'!AL98 -> 0 | C115: ='46. Calculations'!AM98 -> 0 | D115: ='46. Calculations'!AN98 -> 0 | E115: ='46. Calculations'!AO98 -> 0 | F115: ='46. Calculations'!AP98 -> 0 | G115: ='46. Calculations'!AQ98 -> 0 | H115: ='46. Calculations'!AR98 -> 0
B116: ='46. Calculations'!AL99 -> 0 | C116: ='46. Calculations'!AM99 -> 0 | D116: ='46. Calculations'!AN99 -> 0 | E116: ='46. Calculations'!AO99 -> 0 | F116: ='46. Calculations'!AP99 -> 0 | G116: ='46. Calculations'!AQ99 -> 0 | H116: ='46. Calculations'!AR99 -> 0
B117: ='46. Calculations'!AL100 -> 0 | C117: ='46. Calculations'!AM100 -> 0 | D117: ='46. Calculations'!AN100 -> 0 | E117: ='46. Calculations'!AO100 -> 0 | F117: ='46. Calculations'!AP100 -> 0 | G117: ='46. Calculations'!AQ100 -> 0 | H117: ='46. Calculations'!AR100 -> 0
B118: ='46. Calculations'!AL101 -> 0 | C118: ='46. Calculations'!AM101 -> 0 | D118: ='46. Calculations'!AN101 -> 0 | E118: ='46. Calculations'!AO101 -> 0 | F118: ='46. Calculations'!AP101 -> 0 | G118: ='46. Calculations'!AQ101 -> 0 | H118: ='46. Calculations'!AR101 -> 0
B119: ='46. Calculations'!AL102 -> 0 | C119: ='46. Calculations'!AM102 -> 0 | D119: ='46. Calculations'!AN102 -> 0 | E119: ='46. Calculations'!AO102 -> 0 | F119: ='46. Calculations'!AP102 -> 0 | G119: ='46. Calculations'!AQ102 -> 0 | H119: ='46. Calculations'!AR102 -> 0
B120: ='46. Calculations'!AL103 -> 0 | C120: ='46. Calculations'!AM103 -> 0 | D120: ='46. Calculations'!AN103 -> 0 | E120: ='46. Calculations'!AO103 -> 0 | F120: ='46. Calculations'!AP103 -> 0 | G120: ='46. Calculations'!AQ103 -> 0 | H120: ='46. Calculations'!AR103 -> 0
B121: ='46. Calculations'!AL104 -> 0 | C121: ='46. Calculations'!AM104 -> 0 | D121: ='46. Calculations'!AN104 -> 0 | E121: ='46. Calculations'!AO104 -> 0 | F121: ='46. Calculations'!AP104 -> 0 | G121: ='46. Calculations'!AQ104 -> 0 | H121: ='46. Calculations'!AR104 -> 0
B122: ='46. Calculations'!AL105 -> 0 | C122: ='46. Calculations'!AM105 -> 0 | D122: ='46. Calculations'!AN105 -> 0 | E122: ='46. Calculations'!AO105 -> 0 | F122: ='46. Calculations'!AP105 -> 0 | G122: ='46. Calculations'!AQ105 -> 0 | H122: ='46. Calculations'!AR105 -> 0
B123: ='46. Calculations'!AL106 -> 0 | C123: ='46. Calculations'!AM106 -> 0 | D123: ='46. Calculations'!AN106 -> 0 | E123: ='46. Calculations'!AO106 -> 0 | F123: ='46. Calculations'!AP106 -> 0 | G123: ='46. Calculations'!AQ106 -> 0 | H123: ='46. Calculations'!AR106 -> 0
B124: ='46. Calculations'!AL107 -> 0 | C124: ='46. Calculations'!AM107 -> 0 | D124: ='46. Calculations'!AN107 -> 0 | E124: ='46. Calculations'!AO107 -> 0 | F124: ='46. Calculations'!AP107 -> 0 | G124: ='46. Calculations'!AQ107 -> 0 | H124: ='46. Calculations'!AR107 -> 0
B125: ='46. Calculations'!AL108 -> 0 | C125: ='46. Calculations'!AM108 -> 0 | D125: ='46. Calculations'!AN108 -> 0 | E125: ='46. Calculations'!AO108 -> 0 | F125: ='46. Calculations'!AP108 -> 0 | G125: ='46. Calculations'!AQ108 -> 0 | H125: ='46. Calculations'!AR108 -> 0
B126: ='46. Calculations'!AL109 -> 0 | C126: ='46. Calculations'!AM109 -> 0 | D126: ='46. Calculations'!AN109 -> 0 | E126: ='46. Calculations'!AO109 -> 0 | F126: ='46. Calculations'!AP109 -> 0 | G126: ='46. Calculations'!AQ109 -> 0 | H126: ='46. Calculations'!AR109 -> 0
B127: ='46. Calculations'!AL110 -> 0 | C127: ='46. Calculations'!AM110 -> 0 | D127: ='46. Calculations'!AN110 -> 0 | E127: ='46. Calculations'!AO110 -> 0 | F127: ='46. Calculations'!AP110 -> 0 | G127: ='46. Calculations'!AQ110 -> 0 | H127: ='46. Calculations'!AR110 -> 0
B128: ='46. Calculations'!AL111 -> 0 | C128: ='46. Calculations'!AM111 -> 0 | D128: ='46. Calculations'!AN111 -> 0 | E128: ='46. Calculations'!AO111 -> 0 | F128: ='46. Calculations'!AP111 -> 0 | G128: ='46. Calculations'!AQ111 -> 0 | H128: ='46. Calculations'!AR111 -> 0
B129: ='46. Calculations'!AL112 -> 0 | C129: ='46. Calculations'!AM112 -> 0 | D129: ='46. Calculations'!AN112 -> 0 | E129: ='46. Calculations'!AO112 -> 0 | F129: ='46. Calculations'!AP112 -> 0 | G129: ='46. Calculations'!AQ112 -> 0 | H129: ='46. Calculations'!AR112 -> 0
B130: ='46. Calculations'!AL113 -> 0 | C130: ='46. Calculations'!AM113 -> 0 | D130: ='46. Calculations'!AN113 -> 0 | E130: ='46. Calculations'!AO113 -> 0 | F130: ='46. Calculations'!AP113 -> 0 | G130: ='46. Calculations'!AQ113 -> 0 | H130: ='46. Calculations'!AR113 -> 0
B131: ='46. Calculations'!AL114 -> 0 | C131: ='46. Calculations'!AM114 -> 0 | D131: ='46. Calculations'!AN114 -> 0 | E131: ='46. Calculations'!AO114 -> 0 | F131: ='46. Calculations'!AP114 -> 0 | G131: ='46. Calculations'!AQ114 -> 0 | H131: ='46. Calculations'!AR114 -> 0
B132: ='46. Calculations'!AL115 -> 0 | C132: ='46. Calculations'!AM115 -> 0 | D132: ='46. Calculations'!AN115 -> 0 | E132: ='46. Calculations'!AO115 -> 0 | F132: ='46. Calculations'!AP115 -> 0 | G132: ='46. Calculations'!AQ115 -> 0 | H132: ='46. Calculations'!AR115 -> 0
B133: ='46. Calculations'!AL116 -> 0 | C133: ='46. Calculations'!AM116 -> 0 | D133: ='46. Calculations'!AN116 -> 0 | E133: ='46. Calculations'!AO116 -> 0 | F133: ='46. Calculations'!AP116 -> 0 | G133: ='46. Calculations'!AQ116 -> 0 | H133: ='46. Calculations'!AR116 -> 0
B134: ='46. Calculations'!AL117 -> 0 | C134: ='46. Calculations'!AM117 -> 0 | D134: ='46. Calculations'!AN117 -> 0 | E134: ='46. Calculations'!AO117 -> 0 | F134: ='46. Calculations'!AP117 -> 0 | G134: ='46. Calculations'!AQ117 -> 0 | H134: ='46. Calculations'!AR117 -> 0
B135: ='46. Calculations'!AL118 -> 0 | C135: ='46. Calculations'!AM118 -> 0 | D135: ='46. Calculations'!AN118 -> 0 | E135: ='46. Calculations'!AO118 -> 0 | F135: ='46. Calculations'!AP118 -> 0 | G135: ='46. Calculations'!AQ118 -> 0 | H135: ='46. Calculations'!AR118 -> 0
B136: ='46. Calculations'!AL119 -> 0 | C136: ='46. Calculations'!AM119 -> 0 | D136: ='46. Calculations'!AN119 -> 0 | E136: ='46. Calculations'!AO119 -> 0 | F136: ='46. Calculations'!AP119 -> 0 | G136: ='46. Calculations'!AQ119 -> 0 | H136: ='46. Calculations'!AR119 -> 0
B137: ='46. Calculations'!AL120 -> 0 | C137: ='46. Calculations'!AM120 -> 0 | D137: ='46. Calculations'!AN120 -> 0 | E137: ='46. Calculations'!AO120 -> 0 | F137: ='46. Calculations'!AP120 -> 0 | G137: ='46. Calculations'!AQ120 -> 0 | H137: ='46. Calculations'!AR120 -> 0
B147: =B1 -> Object Placement Table & Chart
B148: =B2 -> This worksheet randomly determines the placement of search objects based upon the AMDR.
B149: Date Created: | D149: 2006-06-08 | F149: Units: | G149: =G3 -> Yards | J149: Total # of Suggested Objects | K149: 25
B151: Object # | C151: Track Distance | D151: Lateral Range | E151: Left - Right | F151: Search Object Type (# and description) | H151: Orientation
B152: 1 | C152: 15.75 | D152: 31 | E152: Left | F152: 1 | G152: Adult High-Visibility | H152: 230.0887717
B153: 2 | C153: 74 | D153: 17 | E153: Right | F153: 1 | G153: Adult High-Visibility | H153: 117.6732136
B154: 3 | C154: 129 | D154: 0.21 | E154: Right | F154: 3 | G154: Clue Low-Visibility | H154: 18.63335966
B155: 4 | C155: 148 | D155: 7 | E155: Right | F155: 3 | G155: Clue Low-Visibility | H155: 208.5690644
B156: 5 | C156: 161 | D156: 6 | E156: Right | F156: 3 | G156: Clue Low-Visibility | H156: 210.0665136
B157: 6 | C157: 180 | D157: 2 | E157: Left | F157: 3 | G157: Clue Low-Visibility | H157: 153.2033492
B158: 7 | C158: 191 | D158: 9 | E158: Right | F158: 1 | G158: Adult High-Visibility | H158: 12.4975696
B159: 8 | C159: 286 | D159: 77 | E159: Right | F159: 2 | G159: Clue High-Visibility | H159: 1.180459126
B160: 9 | C160: 620 | D160: 109 | E160: Right | F160: 2 | G160: Clue High-Visibility | H160: 122.2972717
B161: 10 | C161: 874 | D161: 0.28 | E161: Right | F161: 1 | G161: Adult High-Visibility | H161: 104.2446923
B162: 11 | C162: 994 | D162: 150 | E162: Right | F162: 2 | G162: Clue High-Visibility | H162: 44.58840996
B163: 12 | C163: 1222 | D163: 22 | E163: Right | F163: 1 | G163: Adult High-Visibility | H163: 14.0506305
B164: 13 | C164: 1276 | D164: 4 | E164: Left | F164: 3 | G164: Clue Low-Visibility | H164: 268.9454572
B165: 14 | C165: 1366 | D165: 2 | E165: Left | F165: 2 | G165: Clue High-Visibility | H165: 139.3600196
B166: 15 | C166: 1734 | D166: 38 | E166: Left | F166: 2 | G166: Clue High-Visibility | H166: 274.9559084
B167: 16 | C167: 1899 | D167: 38 | E167: Left | F167: 2 | G167: Clue High-Visibility | H167: 352.5870791
B168: 17 | C168: 2207 | D168: 6 | E168: Right | F168: 1 | G168: Adult High-Visibility | H168: 303.8865791
B169: 18 | C169: 2259 | D169: 20 | E169: Left | F169: 1 | G169: Adult High-Visibility | H169: 350.5628099
B170: 19 | C170: 2325 | D170: 146 | E170: Right | F170: 2 | G170: Clue High-Visibility | H170: 189.3445584
B171: 20 | C171: 2625 | D171: 0.15 | E171: Left | F171: 3 | G171: Clue Low-Visibility | H171: 26.46302258
B172: 21 | C172: 2637 | D172: 14 | E172: Left | F172: 1 | G172: Adult High-Visibility | H172: 167.6618394 | J172: Search Object Type # 1
B173: 22 | C173: 2755 | D173: 101 | E173: Right | F173: 2 | G173: Clue High-Visibility | H173: 168.6014602 | J173: Adult High-Visibility
B174: 23 | C174: 2998 | D174: 7 | E174: Right | F174: 3 | G174: Clue Low-Visibility | H174: 201.4636278 | J174: AMDR1 | L174: 21
B175: 24 | C175: 3191 | D175: 7 | E175: Right | F175: 2 | G175: Clue High-Visibility | H175: 303.2091801
B176: 25 | C176: 3313 | D176: 4 | E176: Right | F176: 3 | G176: Clue Low-Visibility | H176: 90.48480241 | J176: Search Object Type # 2
B177: 26 | C177: 3351 | D177: 23 | E177: Right | F177: 1 | G177: Adult High-Visibility | H177: 86.97627587 | J177: Clue High-Visibility
B178: 0 | C178: 0 | D178: 0 | E178: 0 | F178: 0 | G178: 0 | H178: 0 | J178: AMDR2 | L178: 100
B179: 0 | C179: 0 | D179: 0 | E179: 0 | F179: 0 | G179: 0 | H179: 0
B180: 0 | C180: 0 | D180: 0 | E180: 0 | F180: 0 | G180: 0 | H180: 0 | J180: Search Object Type # 3
B181: 0 | C181: 0 | D181: 0 | E181: 0 | F181: 0 | G181: 0 | H181: 0 | J181: Clue Low-Visibility
B182: 0 | C182: 0 | D182: 0 | E182: 0 | F182: 0 | G182: 0 | H182: 0 | J182: AMDR3 | L182: 5
B183: 0 | C183: 0 | D183: 0 | E183: 0 | F183: 0 | G183: 0 | H183: 0
B184: 0 | C184: 0 | D184: 0 | E184: 0 | F184: 0 | G184: 0 | H184: 0
B185: 0 | C185: 0 | D185: 0 | E185: 0 | F185: 0 | G185: 0 | H185: 0 | J185: Not Applicable
B186: 0 | C186: 0 | D186: 0 | E186: 0 | F186: 0 | G186: 0 | H186: 0 | L186: 0
B187: 0 | C187: 0 | D187: 0 | E187: 0 | F187: 0 | G187: 0 | H187: 0
B188: 0 | C188: 0 | D188: 0 | E188: 0 | F188: 0 | G188: 0 | H188: 0
B189: 0 | C189: 0 | D189: 0 | E189: 0 | F189: 0 | G189: 0 | H189: 0
B190: 0 | C190: 0 | D190: 0 | E190: 0 | F190: 0 | G190: 0 | H190: 0
B191: 0 | C191: 0 | D191: 0 | E191: 0 | F191: 0 | G191: 0 | H191: 0
B192: 0 | C192: 0 | D192: 0 | E192: 0 | F192: 0 | G192: 0 | H192: 0
B193: 0 | C193: 0 | D193: 0 | E193: 0 | F193: 0 | G193: 0 | H193: 0
B194: 0 | C194: 0 | D194: 0 | E194: 0 | F194: 0 | G194: 0 | H194: 0
B195: 0 | C195: 0 | D195: 0 | E195: 0 | F195: 0 | G195: 0 | H195: 0
B196: 0 | C196: 0 | D196: 0 | E196: 0 | F196: 0 | G196: 0 | H196: 0
B197: 0 | C197: 0 | D197: 0 | E197: 0 | F197: 0 | G197: 0 | H197: 0
B198: 0 | C198: 0 | D198: 0 | E198: 0 | F198: 0 | G198: 0 | H198: 0
B199: 0 | C199: 0 | D199: 0 | E199: 0 | F199: 0 | G199: 0 | H199: 0
B200: 0 | C200: 0 | D200: 0 | E200: 0 | F200: 0 | G200: 0 | H200: 0
B201: 0 | C201: 0 | D201: 0 | E201: 0 | F201: 0 | G201: 0 | H201: 0
B202: 0 | C202: 0 | D202: 0 | E202: 0 | F202: 0 | G202: 0 | H202: 0
B203: 0 | C203: 0 | D203: 0 | E203: 0 | F203: 0 | G203: 0 | H203: 0
B204: 0 | C204: 0 | D204: 0 | E204: 0 | F204: 0 | G204: 0 | H204: 0 | J204: Course Layout-Shopping List
B205: 0 | C205: 0 | D205: 0 | E205: 0 | F205: 0 | G205: 0 | H205: 0 | J205: 24 | K205: Flagging tape rolls
B206: 0 | C206: 0 | D206: 0 | E206: 0 | F206: 0 | G206: 0 | H206: 0 | J206: 12 | K206: Yellow flags
B207: 0 | C207: 0 | D207: 0 | E207: 0 | F207: 0 | G207: 0 | H207: 0 | J207: 160 | K207: Lime green flags
B208: 0 | C208: 0 | D208: 0 | E208: 0 | F208: 0 | G208: 0 | H208: 0 | J208: 800 | K208: Red flags
B209: 0 | C209: 0 | D209: 0 | E209: 0 | F209: 0 | G209: 0 | H209: 0 | J209: 40 | K209: Orange flags
B210: 0 | C210: 0 | D210: 0 | E210: 0 | F210: 0 | G210: 0 | H210: 0 | J210: 2 | K210: Permanent markers
B211: 0 | C211: 0 | D211: 0 | E211: 0 | F211: 0 | G211: 0 | H211: 0 | K211: Waterproof paper
B212: 0 | C212: 0 | D212: 0 | E212: 0 | F212: 0 | G212: 0 | H212: 0 | K212: Clear plastic or acetate
B213: 0 | C213: 0 | D213: 0 | E213: 0 | F213: 0 | G213: 0 | H213: 0 | J213: 6 to 12 | K213: Clipboards
B214: 0 | C214: 0 | D214: 0 | E214: 0 | F214: 0 | G214: 0 | H214: 0 | J214: 12 to 24 | K214: Pencils/Pens
B215: 0 | C215: 0 | D215: 0 | E215: 0 | F215: 0 | G215: 0 | H215: 0 | J215: 2 | K215: Staplers
B216: 0 | C216: 0 | D216: 0 | E216: 0 | F216: 0 | G216: 0 | H216: 0 | K216: Adhesive tape
B217: 0 | C217: 0 | D217: 0 | E217: 0 | F217: 0 | G217: 0 | H217: 0 | K217: Blank paper/cardboard
B218: 0 | C218: 0 | D218: 0 | E218: 0 | F218: 0 | G218: 0 | H218: 0 | J218: 3 | K218: Folders
B219: 0 | C219: 0 | D219: 0 | E219: 0 | F219: 0 | G219: 0 | H219: 0
B220: 0 | C220: 0 | D220: 0 | E220: 0 | F220: 0 | G220: 0 | H220: 0
B221: 0 | C221: 0 | D221: 0 | E221: 0 | F221: 0 | G221: 0 | H221: 0
B222: 0 | C222: 0 | D222: 0 | E222: 0 | F222: 0 | G222: 0 | H222: 0
B223: 0 | C223: 0 | D223: 0 | E223: 0 | F223: 0 | G223: 0 | H223: 0
B224: 0 | C224: 0 | D224: 0 | E224: 0 | F224: 0 | G224: 0 | H224: 0
B225: 0 | C225: 0 | D225: 0 | E225: 0 | F225: 0 | G225: 0 | H225: 0
B226: 0 | C226: 0 | D226: 0 | E226: 0 | F226: 0 | G226: 0 | H226: 0
B227: 0 | C227: 0 | D227: 0 | E227: 0 | F227: 0 | G227: 0 | H227: 0
... 39 more rows

Sheet 11. Search Object Location
A1: Search Object Location Log
A2: This worksheet allows documentation of the actual placement of objects, way points, legs, and other measurements during the actual setup in the field. This worksheet should be printed prior to setting up the experiment and brought into the field to facilitate field recording. Object Placement & Chart (Worksheet # 10) must also be printed out and brought into the field to determine the targeted object locations. Print on waterproof paper.
A3: 1. Date | C3: 2. Time | D3: 3. Location | F3: 4. Name
A4: ='1. Experiment Setup'!K6 -> 17-07-06 | D4: ='46. Calculations'!P5 -> Mt. Greylock, MA
A5: 5. Object Type # 1 | C5: 6. Object Type # 2 | E5: 7. Object Type # 3 | F5: 8. Object Type # 4 | G5: 9. Datum | H5: 10. Units
A6: ='2. Search Object Types'!M26 -> Adult High-Visibility | C6: =IF('2. Search Object Types'!J22>=2,'2. Search Object Types'!M28,"Not Applicable") -> Clue High-Visibility | E6: =IF('2. Search Object Types'!J22>=3,'2. Search Object Types'!M30,"Not Applicable") -> Clue Low-Visibility | F6: =IF('2. Search Object Types'!J22=4,'2. Search Object Types'!M32,"Not Applicable") -> Not Applicable | G6: ='46. Calculations'!P8 -> WGS 84 | H6: ='46. Calculations'!P9 -> Yards
A7: Instructions
A8: Log the actual locations based on Worksheet # 10 (Object Placement & Chart). Placement along Track Distance (TD) can be determined by roller wheel or GPS odometer. The lateral range distance should be determined by Laser Range Finder or tape measure.
A9: Suggested Equipment. Laying out the course will require the following: search objects (described in "A Simple Guide to Conducting Ground Search and Rescue Detection Experiments"), stake wire flags, permanent marker, flagging tape, GPS, Laser Range Finder, measuring tape, stakes, reflectors, roller wheel, digital camera, compass, topographic map, pencils, and the following forms on waterproof paper (10. Object Placement & Chart and 11. Search Object Location Log).
A10: Location # | B10: Object Type | C10: Track Distance | D10: Lateral Range | E10: Left - Right | F10: Orientation | G10: Elevation | H10: Verification
A11: Example | B11: 1 | C11: 28 | D11: 17 | E11: L | F11: 180 | G11: Up | H11: ü | K11: =115-COUNTIF('10. Obj. Placement Tabl & Chart'!B152:B267,0) -> 26
A12: 1
A13: 2
A14: 3
A15: 4
A16: 5
A17: 6
A18: 7
A19: 8
A20: 9
A21: 10
A22: 11
A23: 12
A24: 13
A25: 14
A26: 15
A27: 16
A28: 17
A29: 18
A30: 19
A31: 20
A32: 21
A33: 22
A34: 23
A35: 24
A36: 25
A37: 26
A38: 27
A39: 28
A40: 29
A41: 30
A42: 31
A43: 32
A44: 33
A45: 34
A46: 35
A47: 36
A48: 37
A49: 38
A50: 39
A51: 40
A52: 41
A53: 42
A54: 43
A55: 44
A56: 45
A57: 46
A58: 47
A59: 48
A60: 49
A61: 50
A62: 51
A63: 52
A64: 53
A65: 54
A66: 55
A67: 56
A68: 57
A69: 58
A70: 59
A71: 60
A72: 61
A73: 62
A74: 63
A75: 64
A76: 65
A77: 66
A78: 67
A79: 68
A80: 69
A81: 70
A82: 71
A83: 72
A84: 73
A85: 74
A86: 75
A87: 76
A88: 77
A89: 78
A90: 79
A91: 80
A92: 81
A93: 82
A94: 83
A95: 84
A96: 85
A97: 86
A98: 87
A99: 88
A100: 89
A101: 90
A102: 91
A103: 92
A104: 93
A105: 94
A106: 95
A107: 96
A108: 97
A109: 98
A110: 99
A111: 100
A112: 101
A113: 102
A114: 103
A115: 104
A116: 105
A117: 106
A118: 107
A119: 108
A120: 109
A121: 110
A122: 111
A123: 112
A124: 113
A125: 114
A126: 115

Sheet 12. Searcher-Participant Log
A1: Searcher--Participant Log
A2: Print as many copies as needed.
A3: 1. Date | B3: ='1. Experiment Setup'!K6 -> 17-07-06 | D3: 2. Location | F3: ='46. Calculations'!P5 -> Mt. Greylock, MA | K3: 3. Page | L3: of
A4: Printed Name | D4: Organization | G4: SAR | H4: Emergency Contact | K4: Arrival | L4: Available | M4: Departure
G5: Qualification | K5: Date/Time | L5: Until? | M5: Date/Time

Sheet 13. Team Sign-Up
A1: Team Sign-Up | E1: 1. Location | G1: 2. Experiment Date | I1: 3. Projected # searchers
E2: ='1. Experiment Setup'!$I$8 -> Mt. Greylock, MA | G2: ='1. Experiment Setup'!$K$6 -> 17-07-06 | I2: ='3. Estimate Experiment Design'!G5 -> 30
A3: 4. Sunrise | D3: 5. Sunset | F3: 6. Estimated Avg Completion | I3: 7. Actual Avg
A4: ='1. Experiment Setup'!K10 -> 05:15:00 | D4: ='1. Experiment Setup'!K11 -> 20:28:00 | F4: ='3. Estimate Experiment Design'!G15 -> 2 | G4: hours
A5: The team sign-up log is used to schedule the departure times for teams (searcher and data logger)
A6: participating in the experiment. All attempts should be made to assign teams in the clock-wise
A7: direction before sending teams counter-clockwise. Searchers cannot function as a searcher
A8: twice. However, they can serve as a searcher then a data logger. Data loggers may be reassigned
A9: as often as needed.
A10: Team | C10: Clock-wise | G10: Counter-Clockwise
A11: Number | B11: Time | C11: Searcher | E11: Data Logger | G11: Searcher | I11: Data Logger
B12: 07:00:00
B13: 07:15:00
B14: 07:30:00
B15: 07:45:00
B16: 08:00:00
B17: 08:15:00
B18: 08:30:00
B19: 08:45:00
B20: 09:00:00
B21: 09:15:00
B22: 09:30:00
B23: 09:45:00
B24: 10:00:00
B25: 10:15:00
B26: 10:30:00
B27: 10:45:00
B28: 11:00:00
B29: 11:15:00
B30: 11:30:00
B31: 11:45:00
B32: 12:00:00
B33: 12:15:00
B34: 12:30:00
B35: 12:45:00
B36: 13:00:00
B37: 13:15:00
B38: 13:30:00
B39: 13:45:00
B40: 14:00:00
B41: 14:15:00
B42: 14:30:00
B43: 14:45:00
B44: 15:00:00
B45: 15:15:00
B46: 15:30:00
B47: 15:45:00
B48: 16:00:00
B49: 16:15:00
B50: 16:30:00
B51: 16:45:00
B52: 17:00:00
B53: 17:15:00
B54: 17:30:00
B55: 17:45:00
B56: 18:00:00

Sheet 14. Subject Information Sheet
A1: Subject Information | D1: 1. Location | G1: 2. Date | I1: 3. Time
A2: Sheet | D2: ='1. Experiment Setup'!$I$8 -> Mt. Greylock, MA | G2: ='1. Experiment Setup'!K6 -> 17-07-06 | I2: 06:00:00
A3: 4. Subject Name | G3: 5. Gender | I3: 6. Age
A4: Thomas Tema | G4: Male | I4: 35
A5: 7. Name to Call | F5: 8. Expected Response
A6: Tom (N/A) | F6: None, subject 100% deaf
A7: 9. Subject's Plans or Intent
A8: Subject departed campground to scout out survey locations. Last seen at the campground last night. Reported
A9: missing by employer early this morning. Should have been out of the field early.
A10: 10. Physical Description | E10: 11. Photo Changes: | H10: Date Taken | I10: 2002
A11: Height: | B11: 5'10" | C11: Weight | D11: 175 lbs | E11: Clean-shaven when last seen.
A12: Race | B12: White | C12: Build | D12: Avg
A13: Eyes | B13: Hazel | C13: Hair | D13: Blond
A14: Complexion | B14: Good | C14: Facial hair | D14: Clean
A19: 12. Clothing Description
A20: Dark blue pants, dark blue workshirt. May
A21: have white overalls with him. May have
A22: orange survey vest. Black boots. May have
A23: small backpack with assorted gear.
A29: 13. Footwear/Track Description
A30: Vibram sole.
A39: 14. Incident Summary/Other Pertinent Information
A41: Subject parked at campground. Is a contractor to do survey work. Should have returned Friday night.
A42: Contractor informed SAR of overdue report this morning. Subject is an insulin dependent
A43: diabetic and is totally deaf.
A53: Subj. Info. Sheet | C53: 15. Prepared by | H53: 16. Date Prepared
A54: Worksheet 14
A55: 2006-03-24 | C55: R. Koester | H55: ='1. Experiment Setup'!K6 -> 17-07-06

Sheet 15. Task Instructions
A1: 1. Resource Type | J1: 4. Task Completed e
A2: 2. Planning # | J2: 5. Partial Completion e
A3: 3. Priority: | J3: 6. Urgent Follow-Up e
A4: Task Assignment | E4: 7. Task Number | F4: 8. Team Identifier | G4: 9. Resource Type | H4: 10. Task Map | J4: 11. Datum
A5: Form | G5: Ground | J5: ='46. Calculations'!P8 -> WGS 84
B6: 12. Task Instructions
B7: Data loggers serves as team leader and will handle navigation, team control, and radio communications.
B8: Start task as indicated on map and follow pink flags data logger indicates.
B9: Stay on track marked by pink flags at all times.
B10: Proceed at a typical search speed for a sweep task. Data logger may ask you to speed up.
A11: A | B11: Do NOT race through the course, Data logger may ask you to slow down.
A12: S | B12: Upon spotting a search object; stop, point at the object, tell data logger what object is, and estimated range.
A13: S | B13: Data loggers will give guidance to types of valid clues that need to be reported.
A14: I | B14: Do NOT report objects over the radio!
A15: G | B15: Talk to your data logger to a minimum.
A16: N | B16: Data logger is responsible for recording all results.
A17: M | B17: If you spot another team moving in the same direction as you, follow your data loggers instructions.
A18: E | B18: Upon completing assigned task area return to base for debriefing.
A19: N | B19: Do not share your results with anyone until the experiment has concluded.
A20: T
B22: 13. Previous Search Effort in Area | H22: 16. Briefing Checklist
H23: Expected time frame
B24: Several teams have already walked the track today, do not record or report | H24: Teams nearby
B25: tracks. | H25: Encounter with team
B26: 14. Transportation to Area | F26: 15. Equipment | H26: Terrain/Hazards
H27: Weather/Safety
H28: Subject Information
H29: Rescue/Medical Plan
A31: T | B31: 17. Role | C31: Name | G31: Agency | H31: Medical Certification
A32: E | B32: Data Logger
A33: A | B33: Searcher
A34: M
B35: 18. Pertinent Phone Numbers | F35: 19. Communications Instructions
B36: Base: | F36: Report to base when starting task, at each 500 m waypoint,
B37: Base Cell: | F37: and when finishing task. Do NOT radio in clues or search
A38: C | B38: Team Cell #1: | F38: objects.
A39: O | B39: Team Cell #2:
A40: M
A41: M | B41: 20. Function | E41: Frequency | F41: Channel Description | H41: Comments
A42: O | B42: Tactical I (Team - Base)
B43: Tactical II
B44: Logistics
B45: Command
A46: 21. Notes/Safety Message
A53: Task Assignment Fm | D53: 22. Prepared by: | G53: 23. Briefed by: | I53: 24. Time out:
A54: Worksheet 15
A55: 2006-03-24

Sheet 16. Data Logger Briefing
A1: General Briefing | D1: 1. Location | H1: 2. Date
A2: Data Logger | D2: ='1. Experiment Setup'!I8 -> Mt. Greylock, MA | H2: ='1. Experiment Setup'!K6 -> 17-07-06
A3: 3. Task Instructions
A4: Data Logger serves as team leader and will handle navigation, team control, and radio communications.
A5: Start task as indicated on map, follow flags. Yellow flags serve as start, waypoint, and finish indicators.
A6: Lime-green flags mark every 25 meters. These will help determine your location when a clue is reported.
A7: Hot pink flags assist with navigation and help to mark the course. STAY ON THE TRACK
A8: Stay behind the searcher.
A9: Record the starting time on your detection log. If possible radio in your starting and finishing time.
A10: Your searcher should be encouraged to move at a typical sweep task speed. Not racing or moving too slow.
A11: Your team should reach the 100 meter mark (yellow flag) within 6 minutes. If longer, ask your searcher to
A12: increase speed. If you reach the 100 meter mark quicker than 2 minutes ask your searcher to slow down.
A13: Talk to the searcher to a minimum.
A14: GIVE NO CLUES or HINTS, to the number of clues, types of clues. You may encourage searcher to avoid
A15: reporting common trash or items not related to the search scenario.
A16: Do NOT discuss what you found or didn't find if you covered the course as a searcher.
A17: Do NOT report any clues over the radio.
A18: Do NOT allow the searcher to leave the search track. If they think they spot a search object record the sighting.
A19: Do NOT record any tracks or signs.
A20: Upon searcher spotting an object, record the sighting on the detection log (as instructed).
A21: Record the time you pass a yellow flag (placed every 500 meters or at other waypoints).
A22: PASSING RULES: 1) The first time you spot a team in front, slow down or wait 5 minutes (unless the team
A23: has stopped; then pass). 2) If you catch up to the team again, passing is allowed. 3) Initiating passing should
A24: be done when within voice contact. 4) Announce you are going to pass, try to ensure team is not in process of
A25: recording a sighting. 5) Do not allow searchers to discuss clues spotted. 6) If your team was passed, make
A26: sure your searcher stays focused on searching. 7.) USE COMMON SENSE, | H26: 16. Briefing Checklist
A27: The goal is to avoid one searcher watching another searcher making a sighting. | H27: Expected time frame
A28: Be sure to report back to base for debriefing and collection of your forms. | H28: Teams nearby
H29: Encounter with team
A30: 14. Transportation to Area | E30: 15. Equipment | H30: Terrain/Hazards
E31: Data logging record sheet | H31: Weather/Safety
H32: Subject Information
H33: Rescue/Medical Plan
A35: Communication Plan
A36: 17. Pertinent Phone Numbers | E36: 18. Communications Instructions
A37: Base: | E37: Report to base when starting task, at each 500 m waypoint
A38: Base Cell: | E38: and when finishing task. Do NOT radio in clues or search
A39: Team Cell #1: | E39: objects.
A40: Team Cell #2:
A42: 19. Function | D42: Frequency | F42: Channel Description | H42: Comments
A43: Tactical I (Team - Base)
A44: Tactical II
A45: Logistics
A46: Command
A47: 20. Notes/Safety Message
A53: Data Logger | C53: 21. Prepared by: | G53: 22. Briefed by: | I53: 23. Time out:
A54: Worksheet 16
A55: 2006-03-24

Sheet 17. Team Tracking
A1: Team Tracking Log | E1: 1. Location | H1: 2. Date | J1: 3. Page _______ of ________ Pages
F2: ='46. Calculations'!P5 -> Mt. Greylock, MA | H2: ='1. Experiment Setup'!K6 -> 17-07-06
A3: Task | B3: Team | C3: Searcher | E3: Data Logger | G3: Team Cell Phone | I3: Clock or | K3: Time | L3: Time | M3: Time | N3: Time
A4: Number | B4: Identifier | C4: Name | E4: Name | G4: Number | I4: Counterclock wise | K4: Out* | L4: Start* | M4: Done* | N4: Back*
A28: * Local Time, 24-hour format. Once a team has returned to base, highlight the entire row.

Sheet 18. Vision Tests
A1: Color Vision Tests
A2: Two vision tests will be given to search participants. Visual acuity (20/20) and the Ishihara test for color
A3: blindness. The tests should be given by the experiment staff as part of the check-in procedure. The results
A4: will be recorded on the Searcher Profile (Worksheet # 19).
A6: Ishihara Test for Color Blindness
A7: Instructions: Print out this page on a color printer. Place under a clear plastic sheet for protection.
A9: Instructions for Searchers:
A10: Please record the numbers you see revealed in the patterns of notes below on your Searcher Profile
A11: (Worksheet # 19) under the color blindness test.
A12: A | F12: B
A26: C | F26: D
A41: E | F41: F
A60: Visual acuity tests are found as PDF files.

Sheet 19. Searcher Profile
A1: Searcher | C1: 1. Name | E1: 2. SAR Organization | G1: 3.SAR Sign-In Level | I1: 4. Date/Time
A2: Profile
A3: FOR OFFICE USE | C3: INSTRUCTIONS: Please complete all the requested information in section A prior to
A4: Searcher | C4: departing on your search task. Your name will not be entered into the final database.
A5: Number | C5: The research staff will assist you in completing section B (measurements). After you
C6: return from your task, please complete section C (Debriefing). Thank-You!
A7: Section A - Searcher Demographics
A8: 6. Age | B8: 7. Gender | C8: 9. # of years in SAR | E8: 10. # of Searches | G8: 11. # of Search in Field | I8: 12. Regular Occupation
B9: Male
B10: Female
A11: 13. Primary SAR Specialty (Check only one) | I11: None
A12: Ground Searcher | C12: Bike SAR | E12: Helicopter pilot | G12: Ski Patrol | I12: Mountain rescue
A13: Tracking | C13: ATV SAR | E13: Fixed-wing pilot | G13: Swiftwater rescue | I13: USAR
A14: Dog Handler | C14: Snowmobile SAR | E14: Maritime SAR | G14: Cave rescue | I14: SAR management
A15: Mounted (horse) | C15: 4 x 4 SAR | E15: Fire/EMS | G15: Tech. Rescue | I15: Other:_________
A16: 14. SAR Certifications (Please list)
A19: Section B - Physical Characteristics
A20: 15. Height w/ boots | C20: 16. Wear Glasses? | E20: 17. Eyewear in field? | G20: 18. Visual Acuity
C21: No | E21: No | I21: Uncorrected | J21: Corrected
C22: Yes | E22: Yes | H22: Right
C23: Sometimes | H23: Left
A24: 19. Colorblind? | C24: 20. Using the supplied Ishihara colorblindness chart, please record the | I24: A. | J24: B.
A25: Yes | C25: numbers revealed by the pattern of dots. Leave blank if no numbers seen. | I25: C. | J25: D.
A26: No | I26: E. | J26: F.
A27: Section C - Debriefing
A28: 21. Hours on Task | C28: 22. Morale? | E28: 23. Fatigue | G28: 24. Estimated POD
C29: High | E29: Alert
C30: Medium | E30: Medium | H30: Object | J30: Est. POD
C31: Low | E31: Drowsy | G31: Object 1 | H31: ='2. Search Object Types'!M26 -> Adult High-Visibility
A32: 25. Temp | B32: 26. Wind Speed | D32: 27. Cloud Cover (%) | F32: 28. Lux | G32: Object 2 | H32: =IF('2. Search Object Types'!J22>=2,'2. Search Object Types'!M28,"Not Applicable") -> Clue High-Visibility
G33: Object 3 | H33: =IF('2. Search Object Types'!J22>=3,'2. Search Object Types'!M30,"Not Applicable") -> Clue Low-Visibility
G34: Object 4 | H34: =IF('2. Search Object Types'!J22=4,'2. Search Object Types'!M32,"Not Applicable") -> Not Applicable
A35: 29. Light (direct, indirect, overcast, darkday, twilight, night) | F35: 30. Precipitation (type and intensity) | I35: 31. Meteorological Visibility
A38: 32.Problems encountered on Task/Suggestions/Comments | G38: 33. Optional Question | I38: 34.Optional Question 2
A42: 35. Are you willing to serve as a data logger today? | E42: 36. E-mail address (optional - only if you wish to be contacted about results)
A45: Section D - Data Loggers Comments
A46: Searcher | C46: Never | D46: Once | E46: Seldom | F46: Frequently | G46: Data logger comments, suggestions, problems encountered
A47: Looked backwards
A48: Looked sideways
A49: Stopped and searched
A50: Scanned systematically
A51: Talked
A52: Wore hat/hood
A54: Searcher Profile | C54: 37. Debriefed by | E54: 38. Time | G54: PLEASE MAKE SURE THIS FORM IS
A55: Worksheet # 19 | G55: TURNED INTO MISSION BASE STAFF!
A56: 2006-03-25 | G56: THANK-YOU

Sheet 20. Detection Log
A1: Detection | F1: 1. Searcher's Name | N1: 2. Data Logger's Name | V1: 3. Location | AB1: 4. Date
A2: Log | V2: ='1. Experiment Setup'!$I$8 -> Mt. Greylock, MA | AB2: ='1. Experiment Setup'!K6 -> 17-07-06
A3: 5. Direction of Movement | H3: Clockwise (#s increasing) | Q3: Counterclockwise
A4: 6. Search Object Type 1 | H4: 7. Search Object Type 2 | P4: 8. Search Object Type 3 | X4: 9. Search Object Type 4
B5: ='2. Search Object Types'!M26 -> Adult High-Visibility | I5: =IF('2. Search Object Types'!J22>=2,'2. Search Object Types'!M28,"Not Applicable") -> Clue High-Visibility | Q5: =IF('2. Search Object Types'!J22>=3,'2. Search Object Types'!M30,"Not Applicable") -> Clue Low-Visibility | Y5: =IF('2. Search Object Types'!J22=4,'2. Search Object Types'!M32,"Not Applicable") -> Not Applicable
A6: Instructions: For each sighting the searcher makes, the data logger should record the following information:
A7: The team's location by placing a dot on the track using the wayflags, the time of the sighting, what the searcher
A8: sees, the estimated range of the object, and an arrow that gives the relative direction of the object.
A9: All sightings should be recorded even if not matching to a known object. An example sighting record is provided
A10: below. Record time at start, finish, and waypoints specified.
E12: =IF($F$52="Meters", "1 Km", "1,000 Yd") -> 1,000 Yd | P12: =IF($F$52="Meters", "2 Km", "2,000 Yd") -> 2,000 Yd | AA12: =IF($F$52="Meters", "3 Km", "3,000 Yd") -> 3,000 Yd
E16: 900 | P16: 1900 | AA16: 2900
E20: 800 | P20: 1800 | AA20: 2800
E24: 700 | P24: 1700 | AA24: 2700
E28: 600 | P28: 1600 | AA28: 2600
E32: 500 | P32: 1500 | AA32: 2500
E36: 400 | P36: 1400 | AA36: 2400
E40: 300 | P40: 1300 | AA40: 2300
E44: 200 | P44: 1200 | AA44: 2200
E48: 100 | P48: 1100 | AA48: 2100
AE49: 400
E52: 0 | F52: ='46. Calculations'!P9 -> Yards | P52: =IF($F$52="Meters", "1 Km", "1,000 Yd") -> 1,000 Yd | AA52: =IF($F$52="Meters", "2 Km", "2,000") -> 2,000 | AD52: 14:32, 1,
AA53: =IF($F$52="Meters", "", "Yd") -> Yd | AD53: =IF(F52="Meters","20 m","20 yd") -> 20 yd | AE53: 300
A54: Example object data recording: While walking the track clockwise the searcher first spots object 1
A55: at 14:32 halfway between flags 325 and 350, 20 meters (or yards) away at 4 o'clock.
A56: Detection | F56: 1. Searcher's Name | N56: 2. Data Logger's Name | V56: 3. Location | AB56: 4. Date
A57: Log (Cnt'd) | V57: ='1. Experiment Setup'!$I$8 -> Mt. Greylock, MA | AB57: ='1. Experiment Setup'!K61 -> 00:00:00
A58: 5. Direction of Movement | H58: Clockwise (#s increasing) | Q58: Counterclockwise
A59: 6. Search Object Type 1 | H59: 7. Search Object Type 2 | P59: 8. Search Object Type 3 | X59: 9. Search Object Type 4
B60: =B5 -> Adult High-Visibility | I60: =I5 -> Clue High-Visibility | Q60: =Q5 -> Clue Low-Visibility | Y60: =Y5 -> Not Applicable
A61: Instructions: For each sighting the searcher makes, the data logger should record the following information:
A62: The team's location by placing a dot on the track using the wayflags, the time of the sighting, what the searcher
A63: sees, the estimated range of the object, and an arrow that gives the relative direction of the object.
A64: All sightings should be recorded even if not matching to a known object. An example sighting record is provided
A65: below. Record time at start, finish, and waypoints specified.
E67: =IF($F$52="Meters", "4 Km", "4,000 Yd") -> 4,000 Yd | P67: =IF($F$52="Meters", "5 Km", "5,000 Yd") -> 5,000 Yd | AA67: =IF($F$52="Meters", "6 Km", "6,000 Yd") -> 6,000 Yd
E71: 3900 | P71: 4900 | AA71: 5900
E75: 3800 | P75: 4800 | AA75: 5800
E79: 3700 | P79: 4700 | AA79: 5700
E83: 3600 | P83: 4600 | AA83: 5600
E87: 3500 | P87: 4500 | AA87: 5500
E91: 3400 | P91: 4400 | AA91: 5400
E95: 3300 | P95: 4300 | AA95: 5300
E99: 3200 | P99: 4200 | AA99: 5200
E103: 3100 | P103: 4100 | AA103: 5100
AE104: 400
E107: =IF($F$52="Meters", "3 Km", "3,000 Yd") -> 3,000 Yd | P107: =IF($F$52="Meters", "4 Km", "4,000 Yd") -> 4,000 Yd | AA107: =IF($F$52="Meters", "5 Km", "5,000") -> 5,000 | AD107: 14:32, 1,
AA108: =IF($F$52="Meters", "", "Yd") -> Yd | AD108: =IF(F107="Meters","20 m","20 yd") -> 20 yd | AE108: 300
A109: Example object data recording: While walking the track clockwise the searcher first spots object 1
A110: at 14:32 halfway between flags 325 and 350, 20 meters (or yards) away at 4 o'clock.

Sheet 21. Detection Template
A1: Detection Log Scoring Template | T1: 1. Location | W1: ='1. Experiment Setup'!$I$8 -> Mt. Greylock, MA
A2: 6. Search Object Type 1 | H2: 7. Search Object Type 2 | P2: 8. Search Object Type 3 | X2: 9. Search Object Type 4
B3: ='2. Search Object Types'!M26 -> Adult High-Visibility | I3: =IF('2. Search Object Types'!J22>=2,'2. Search Object Types'!M28,"Not Applicable") -> Clue High-Visibility | Q3: =IF('2. Search Object Types'!J22>=3,'2. Search Object Types'!M30,"Not Applicable") -> Clue Low-Visibility | Y3: =IF('2. Search Object Types'!J22=4,'2. Search Object Types'!M32,"Not Applicable") -> Not Applicable
A4: Instructions: Print out a copy of this template. Then, using Search Object Placement and Chart (Worksheet # 10) plot the known location of each search object. Plot track distance, lateral range, right/left, and search object type. Indicate the search object type by 1, 2, 3 or 4. Copy/print the template onto acetate. Place the acetate over each searcher's Detection Log (Worksheet # 20) and determine for each search object if a valid detection occurred. For each search object, record on the Detection Scoring (Worksheet # 22) a "1" if a valid detection was made or a "0" if the it was missed. | Y4: Example
AD5: 400
Y6: Object #4
Y7: TL=327 | AD7: 50 m
Y8: LR=50 | AD8: #4, 1,
Y9: Right | AD9: 300
Y10: Object Type=1
E12: =IF($F$52="Meters", "1 Km", "1,000 Yd") -> 1,000 Yd | P12: =IF($F$52="Meters", "2 Km", "2,000 Yd") -> 2,000 Yd | AA12: =IF($F$52="Meters", "3 Km", "3,000 Yd") -> 3,000 Yd
E16: 900 | P16: 1900 | AA16: 2900
E20: 800 | P20: 1800 | AA20: 2800
E24: 700 | P24: 1700 | AA24: 2700
E28: 600 | P28: 1600 | AA28: 2600
E32: 500 | P32: 1500 | AA32: 2500
E36: 400 | P36: 1400 | AA36: 2400
E40: 300 | P40: 1300 | AA40: 2300
E44: 200 | P44: 1200 | AA44: 2200
E48: 100 | P48: 1100 | AA48: 2100
E52: 0 | F52: ='46. Calculations'!P9 -> Yards | P52: =IF($F$52="Meters", "1 Km", "1,000 Yd") -> 1,000 Yd | AA52: =IF($F$52="Meters", "2 Km", "2,000") -> 2,000
AA53: =IF($F$52="Meters", "", "Yd") -> Yd
A56: Detection Log Scoring Template (Cnt'd) | T56: 1. Location | W56: =W1 -> Mt. Greylock, MA
A57: 6. Search Object Type 1 | H57: 7. Search Object Type 2 | P57: 8. Search Object Type 3 | X57: 9. Search Object Type 4
B58: =B3 -> Adult High-Visibility | I58: =I3 -> Clue High-Visibility | Q58: =Q3 -> Clue Low-Visibility | Y58: =Y3 -> Not Applicable
A59: Instructions: Print out a copy of this template. Then, using Object Placement and Chart (Worksheet # 10) plot the known location of each search object. Plot the track distance, lateral range, right/left, and search object type. Indicate the search object type by 1, 2, 3 or 4. Copy/print the template onto acetate. Place the acetate over each searcher's Detection Log (Worksheet # 20) and determine for each search object if a valid detection occurred. For each search object, record on the Detection Scoring (Worksheet # 22) a "1" if a valid detection was made or a "0" if the it was missed. | Y59: Example
AD60: 400
Y61: Object #4
Y62: TL=327 | AD62: 50 m
Y63: LR=50 | AD63: #4, 1,
Y64: Right | AD64: 300
Y65: Object Type=1
E67: =IF($F$52="Meters", "4 Km", "4,000 Yd") -> 4,000 Yd | P67: =IF($F$52="Meters", "5 Km", "5,000 Yd") -> 5,000 Yd | AA67: =IF($F$52="Meters", "6 Km", "6,000 Yd") -> 6,000 Yd
E71: 3900 | P71: 4900 | AA71: 5900
E75: 3800 | P75: 4800 | AA75: 5800
E79: 3700 | P79: 4700 | AA79: 5700
E83: 3600 | P83: 4600 | AA83: 5600
E87: 3500 | P87: 4500 | AA87: 5500
E91: 3400 | P91: 4400 | AA91: 5400
E95: 3300 | P95: 4300 | AA95: 5300
E99: 3200 | P99: 4200 | AA99: 5200
E103: 3100 | P103: 4100 | AA103: 5100
E107: =IF($F$52="Meters", "3 Km", "3,000 Yd") -> 3,000 Yd | P107: =IF($F$52="Meters", "4 Km", "4,000 Yd") -> 4,000 Yd | AA107: =IF($F$52="Meters", "5 Km", "5,000") -> 5,000
AA108: =IF($F$52="Meters", "", "Yd") -> Yd

Sheet 22. Detection Scoring
A1: Detection | C1: 1. Searcher's Name | F1: 2. Searcher Number | H1: 3. Data Logger's Name | J1: 4. Date
A2: Scoring | J2: ='1. Experiment Setup'!K6 -> 17-07-06
A3: 5. Search Object 1 | C3: 6. Search Object 2 | E3: 7. Search Object 3 | G3: 8. Search Object 3 | I3: 7. Location
A4: ='2. Search Object Types'!M26 -> Adult High-Visibility | C4: =IF('2. Search Object Types'!J22>=2,'2. Search Object Types'!M28,"Not Applicable") -> Clue High-Visibility | E4: =IF('2. Search Object Types'!J22>=3,'2. Search Object Types'!M30,"Not Applicable") -> Clue Low-Visibility | G4: =IF('2. Search Object Types'!J22=4,'2. Search Object Types'!M32,"Not Applicable") -> Not Applicable | I4: =IF('2. Search Object Types'!J22=4,'2. Search Object Types'!M32,"Not Applicable") -> Not Applicable
A5: Instructions: Make changes by hand on this form iff changes to the track, location numbers, and search object types, were made after Object Placement and Chart (Worksheet # 10) was printed or during search object set-up. Using the searcher's Detection Log (Worksheet # 20) and the Detection Template (Worksheet # 21), record detection results as follows: Record a zero "0" in the appropriate search object column if the search object was missed. Record a one "1" in the appropriate search object column if that search object was detected. Leave the other search object columns blank. Staple together the following forms: the Searcher Profile (Worksheet # 19), the Detection Log (Worksheet # 20), and the scored Detection Scoring (Worksheet # 22). The results from this paper form will be inputted into the Data Input Object 1, 2, 3 and 4 (Worksheets # 23, 24, and 25) in order to determine the Sweep Width value for each object.
A7: Location | B7: Search | C7: Detections | D7: Detections | E7: Detections | G7: Location | H7: Detections | I7: Detections | J7: Detections | K7: Detections | O7: Search Object type from Worksheet 10 | P7: Search object types | Q7: number of items
A8: Number | B8: Object 1 | C8: Object 2 | D8: Object 3 | E8: Object 4 | G8: Number | H8: Object 1 | I8: Object 2 | J8: Object 3 | K8: Object 4 | O8: ='10. Obj. Placement Tabl & Chart'!F152 -> 1 | P8: 0 | Q8: ='10. Obj. Placement Tabl & Chart'!K149 -> 25
A9: 1 | G9: 51 | O9: ='10. Obj. Placement Tabl & Chart'!F153 -> 1 | P9: 1
A10: 2 | G10: 52 | O10: ='10. Obj. Placement Tabl & Chart'!F154 -> 3 | P10: 2
A11: 3 | G11: 53 | O11: ='10. Obj. Placement Tabl & Chart'!F155 -> 3 | P11: 3
A12: 4 | G12: 54 | O12: ='10. Obj. Placement Tabl & Chart'!F156 -> 3 | P12: 4
A13: 5 | G13: 55 | O13: ='10. Obj. Placement Tabl & Chart'!F157 -> 3
A14: 6 | G14: 56 | O14: ='10. Obj. Placement Tabl & Chart'!F158 -> 1
A15: 7 | G15: 57 | O15: ='10. Obj. Placement Tabl & Chart'!F159 -> 2
A16: 8 | G16: 58 | O16: ='10. Obj. Placement Tabl & Chart'!F160 -> 2
A17: 9 | G17: 59 | O17: ='10. Obj. Placement Tabl & Chart'!F161 -> 1
A18: 10 | G18: 60 | O18: ='10. Obj. Placement Tabl & Chart'!F162 -> 2
A19: 11 | G19: 61 | O19: ='10. Obj. Placement Tabl & Chart'!F163 -> 1
A20: 12 | G20: 62 | O20: ='10. Obj. Placement Tabl & Chart'!F164 -> 3
A21: 13 | G21: 63 | O21: ='10. Obj. Placement Tabl & Chart'!F165 -> 2
A22: 14 | G22: 64 | O22: ='10. Obj. Placement Tabl & Chart'!F166 -> 2
A23: 15 | G23: 65 | O23: ='10. Obj. Placement Tabl & Chart'!F167 -> 2
A24: 16 | G24: 66 | O24: ='10. Obj. Placement Tabl & Chart'!F168 -> 1
A25: 17 | G25: 67 | O25: ='10. Obj. Placement Tabl & Chart'!F169 -> 1
A26: 18 | G26: 68 | O26: ='10. Obj. Placement Tabl & Chart'!F170 -> 2
A27: 19 | G27: 69 | O27: ='10. Obj. Placement Tabl & Chart'!F171 -> 3
A28: 20 | G28: 70 | O28: ='10. Obj. Placement Tabl & Chart'!F172 -> 1
A29: 21 | G29: 71 | O29: ='10. Obj. Placement Tabl & Chart'!F173 -> 2
A30: 22 | G30: 72 | O30: ='10. Obj. Placement Tabl & Chart'!F174 -> 3
A31: 23 | G31: 73 | O31: ='10. Obj. Placement Tabl & Chart'!F175 -> 2
A32: 24 | G32: 74 | O32: ='10. Obj. Placement Tabl & Chart'!F176 -> 3
A33: 25 | G33: 75 | O33: ='10. Obj. Placement Tabl & Chart'!F177 -> 1
A34: 26 | G34: 76 | O34: ='10. Obj. Placement Tabl & Chart'!F178 -> 0
A35: 27 | G35: 77 | O35: ='10. Obj. Placement Tabl & Chart'!F179 -> 0
A36: 28 | G36: 78 | O36: ='10. Obj. Placement Tabl & Chart'!F180 -> 0
A37: 29 | G37: 79 | O37: ='10. Obj. Placement Tabl & Chart'!F181 -> 0
A38: 30 | G38: 80 | O38: ='10. Obj. Placement Tabl & Chart'!F182 -> 0
A39: 31 | G39: 81 | O39: ='10. Obj. Placement Tabl & Chart'!F183 -> 0
A40: 32 | G40: 82 | O40: ='10. Obj. Placement Tabl & Chart'!F184 -> 0
A41: 33 | G41: 83 | O41: ='10. Obj. Placement Tabl & Chart'!F185 -> 0
A42: 34 | G42: 84 | O42: ='10. Obj. Placement Tabl & Chart'!F186 -> 0
A43: 35 | G43: 85 | O43: ='10. Obj. Placement Tabl & Chart'!F187 -> 0
A44: 36 | G44: 86 | O44: ='10. Obj. Placement Tabl & Chart'!F188 -> 0
A45: 37 | G45: 87 | O45: ='10. Obj. Placement Tabl & Chart'!F189 -> 0
A46: 38 | G46: 88 | O46: ='10. Obj. Placement Tabl & Chart'!F190 -> 0
A47: 39 | G47: 89 | O47: ='10. Obj. Placement Tabl & Chart'!F191 -> 0
A48: 40 | G48: 90 | O48: ='10. Obj. Placement Tabl & Chart'!F192 -> 0
A49: 41 | G49: 91 | O49: ='10. Obj. Placement Tabl & Chart'!F193 -> 0
A50: 42 | G50: 92 | O50: ='10. Obj. Placement Tabl & Chart'!F194 -> 0
A51: 43 | G51: 93 | O51: ='10. Obj. Placement Tabl & Chart'!F195 -> 0
A52: 44 | G52: 94 | O52: ='10. Obj. Placement Tabl & Chart'!F196 -> 0
A53: 45 | G53: 95 | O53: ='10. Obj. Placement Tabl & Chart'!F197 -> 0
A54: 46 | G54: 96 | O54: ='10. Obj. Placement Tabl & Chart'!F198 -> 0
A55: 47 | G55: 97 | O55: ='10. Obj. Placement Tabl & Chart'!F199 -> 0
A56: 48 | G56: 98 | O56: ='10. Obj. Placement Tabl & Chart'!F200 -> 0
A57: 49 | G57: 99 | O57: ='10. Obj. Placement Tabl & Chart'!F201 -> 0
A58: 50 | G58: 100 | O58: ='10. Obj. Placement Tabl & Chart'!F202 -> 0
O59: ='10. Obj. Placement Tabl & Chart'!F203 -> 0
O60: ='10. Obj. Placement Tabl & Chart'!F204 -> 0
A61: 101 | G61: 106 | O61: ='10. Obj. Placement Tabl & Chart'!F205 -> 0
A62: 102 | G62: 107 | O62: ='10. Obj. Placement Tabl & Chart'!F206 -> 0
A63: 103 | G63: 108 | O63: ='10. Obj. Placement Tabl & Chart'!F207 -> 0
A64: 104 | G64: 109 | O64: ='10. Obj. Placement Tabl & Chart'!F208 -> 0
A65: 105 | G65: 110 | O65: ='10. Obj. Placement Tabl & Chart'!F209 -> 0
O66: ='10. Obj. Placement Tabl & Chart'!F210 -> 0
O67: ='10. Obj. Placement Tabl & Chart'!F211 -> 0
O68: ='10. Obj. Placement Tabl & Chart'!F212 -> 0
O69: ='10. Obj. Placement Tabl & Chart'!F213 -> 0
O70: ='10. Obj. Placement Tabl & Chart'!F214 -> 0
O71: ='10. Obj. Placement Tabl & Chart'!F215 -> 0
O72: ='10. Obj. Placement Tabl & Chart'!F216 -> 0
O73: ='10. Obj. Placement Tabl & Chart'!F217 -> 0
O74: ='10. Obj. Placement Tabl & Chart'!F218 -> 0
O75: ='10. Obj. Placement Tabl & Chart'!F219 -> 0
O76: ='10. Obj. Placement Tabl & Chart'!F220 -> 0
O77: ='10. Obj. Placement Tabl & Chart'!F221 -> 0
O78: ='10. Obj. Placement Tabl & Chart'!F222 -> 0
O79: ='10. Obj. Placement Tabl & Chart'!F223 -> 0
O80: ='10. Obj. Placement Tabl & Chart'!F224 -> 0
O81: ='10. Obj. Placement Tabl & Chart'!F225 -> 0
O82: ='10. Obj. Placement Tabl & Chart'!F226 -> 0
O83: ='10. Obj. Placement Tabl & Chart'!F227 -> 0
O84: ='10. Obj. Placement Tabl & Chart'!F228 -> 0
O85: ='10. Obj. Placement Tabl & Chart'!F229 -> 0
O86: ='10. Obj. Placement Tabl & Chart'!F230 -> 0
O87: ='10. Obj. Placement Tabl & Chart'!F231 -> 0
O88: ='10. Obj. Placement Tabl & Chart'!F232 -> 0
O89: ='10. Obj. Placement Tabl & Chart'!F233 -> 0
O90: ='10. Obj. Placement Tabl & Chart'!F234 -> 0
O91: ='10. Obj. Placement Tabl & Chart'!F235 -> 0
O92: ='10. Obj. Placement Tabl & Chart'!F236 -> 0
O93: ='10. Obj. Placement Tabl & Chart'!F237 -> 0
O94: ='10. Obj. Placement Tabl & Chart'!F238 -> 0
O95: ='10. Obj. Placement Tabl & Chart'!F239 -> 0
O96: ='10. Obj. Placement Tabl & Chart'!F240 -> 0
O97: ='10. Obj. Placement Tabl & Chart'!F241 -> 0
O98: ='10. Obj. Placement Tabl & Chart'!F242 -> 0
O99: ='10. Obj. Placement Tabl & Chart'!F243 -> 0
O100: ='10. Obj. Placement Tabl & Chart'!F244 -> 0
O101: ='10. Obj. Placement Tabl & Chart'!F245 -> 0
O102: ='10. Obj. Placement Tabl & Chart'!F246 -> 0
O103: ='10. Obj. Placement Tabl & Chart'!F247 -> 0
O104: ='10. Obj. Placement Tabl & Chart'!F248 -> 0
O105: ='10. Obj. Placement Tabl & Chart'!F249 -> 0
O106: ='10. Obj. Placement Tabl & Chart'!F250 -> 0
O107: ='10. Obj. Placement Tabl & Chart'!F251 -> 0
O108: ='10. Obj. Placement Tabl & Chart'!F252 -> 0
O109: ='10. Obj. Placement Tabl & Chart'!F253 -> 0
O110: ='10. Obj. Placement Tabl & Chart'!F254 -> 0
O111: ='10. Obj. Placement Tabl & Chart'!F255 -> 0
O112: ='10. Obj. Placement Tabl & Chart'!F256 -> 0
O113: ='10. Obj. Placement Tabl & Chart'!F257 -> 0
O114: ='10. Obj. Placement Tabl & Chart'!F258 -> 0
O115: ='10. Obj. Placement Tabl & Chart'!F259 -> 0
O116: ='10. Obj. Placement Tabl & Chart'!F260 -> 0
O117: ='10. Obj. Placement Tabl & Chart'!F261 -> 0
O118: ='10. Obj. Placement Tabl & Chart'!F262 -> 0
O119: ='10. Obj. Placement Tabl & Chart'!F263 -> 0
O120: ='10. Obj. Placement Tabl & Chart'!F264 -> 0
O121: ='10. Obj. Placement Tabl & Chart'!F265 -> 0
O122: ='10. Obj. Placement Tabl & Chart'!F266 -> 0

Sheet 23. Data Input Object # 1
A1: Data Input Search Object Type # 1 | K1: ='2. Search Object Types'!M26 -> Adult High-Visibility
A2: Instructions: The purpose of this worksheet is to enter each searcher's detections and non-detections, scored on the Detection Scoring (Worksheet # 22) form for Search Object Type # 1. From Detection Scoring (Worksheet #22) of each searcher, enter the search object location number in the "Location #" column. From Object Placement and Chart (Worksheet # 10) enter the lateral range of the location number (for each Search Object Type # 1 that was placed in the experiment). From each Searcher Profile (Worksheet # 20), enter each searcher number assigned. For each search object and searcher interaction record either a "1" if a valid detection occurred (scored on the detection summary form), or a "0" if the object was not detected. Leave other cells blank if no object placed.
C3: Searcher Number
A4: Location # | B4: LR | C4: 1 | D4: 2 | E4: 3 | F4: 4 | G4: 5 | H4: 6 | I4: 7 | J4: 8 | K4: 9 | L4: 10 | M4: 11 | N4: 12 | O4: 13 | P4: 14 | Q4: 15 | R4: 16 | S4: 17 | T4: 18 | U4: 19 | V4: 20 | W4: 21 | X4: 22 | Y4: 23 | Z4: 24 | AA4: 25 | AB4: 26 | AC4: 27 | AD4: 28 | AE4: 29 | AF4: 30 | AG4: 31 | AH4: 32 | AI4: 33 | AJ4: 34 | AK4: 35 | AL4: 36 | AM4: 37 | AN4: 38 | AO4: 39 | AP4: 40 | AQ4: 41 | AR4: 42 | AS4: 43 | AT4: 44 | AU4: 45 | AV4: 46 | AW4: 47 | AX4: 48 | AY4: 49 | AZ4: 50 | BA4: 51 | BB4: 52 | BC4: 53 | BD4: 54 | BE4: 55 | BF4: 56 | BG4: 57 | BH4: 58 | BI4: 59 | BJ4: 60 | BK4: 61 | BL4: 62 | BM4: 63 | BN4: 64 | BO4: 65 | BP4: 66 | BQ4: 67 | BR4: 68 | BS4: 69 | BT4: 70 | BU4: 71 | BV4: 72 | BW4: 73 | BX4: 74 | BY4: 75 | BZ4: 76 | CA4: 77 | CB4: Count | CC4: Detections | CD4: Misses | CE4: % Detected
A5: 1 | B5: 19 | C5: 1 | D5: 0 | E5: 1 | F5: 0 | G5: 1 | H5: 1 | I5: 1 | J5: 1 | K5: 0 | L5: 0 | M5: 1 | N5: 1 | O5: 0 | P5: 0 | Q5: 1 | R5: 0 | S5: 0 | T5: 1 | U5: 1 | V5: 1 | W5: 0 | X5: 1 | Y5: 0 | Z5: 1 | AA5: 0 | AB5: 0 | AC5: 1 | AD5: 0 | AE5: 0 | AF5: 0 | AG5: 1 | AH5: 0 | AI5: 0 | AJ5: 0 | CB5: =COUNT(C5:CA5) -> 34 | CC5: =SUM(C5:CA5) -> 16 | CD5: =CB5-CC5 -> 18 | CE5: =CC5/CB5 -> 0.4705882353
A6: 5 | B6: 36 | C6: 1 | D6: 1 | E6: 1 | F6: 1 | G6: 1 | H6: 0 | I6: 1 | J6: 1 | K6: 1 | L6: 1 | M6: 1 | N6: 1 | O6: 0 | P6: 1 | Q6: 1 | R6: 1 | S6: 1 | T6: 1 | U6: 1 | V6: 1 | W6: 1 | X6: 1 | Y6: 0 | Z6: 0 | AA6: 1 | AB6: 1 | AC6: 1 | AD6: 1 | AE6: 0 | AF6: 1 | AG6: 1 | AH6: 1 | AI6: 0 | AJ6: 1 | CB6: 34 | CC6: 28 | CD6: =CB6-CC6 -> 6 | CE6: =CC6/CB6 -> 0.8235294118
A7: 8 | B7: 4 | C7: 1 | D7: 1 | E7: 1 | F7: 1 | G7: 1 | H7: 1 | I7: 1 | J7: 1 | K7: 1 | L7: 1 | M7: 1 | N7: 1 | O7: 1 | P7: 1 | Q7: 1 | R7: 1 | S7: 1 | T7: 1 | U7: 1 | V7: 1 | W7: 1 | X7: 1 | Y7: 1 | Z7: 1 | AA7: 1 | AB7: 1 | AC7: 1 | AD7: 1 | AE7: 1 | AF7: 1 | AG7: 1 | AH7: 1 | AI7: 1 | AJ7: 1 | CB7: 34 | CC7: 34 | CD7: 0 | CE7: 1
A8: 10 | B8: 15 | C8: 0 | D8: 1 | E8: 1 | F8: 1 | G8: 1 | H8: 1 | I8: 1 | J8: 0 | K8: 1 | L8: 1 | M8: 1 | N8: 1 | O8: 1 | P8: 1 | Q8: 1 | R8: 1 | S8: 1 | T8: 1 | U8: 1 | V8: 0 | W8: 0 | X8: 1 | Y8: 1 | Z8: 0 | AA8: 1 | AB8: 1 | AC8: 1 | AD8: 1 | AE8: 0 | AF8: 1 | AG8: 1 | AH8: 1 | AI8: 0 | AJ8: 1 | CB8: 34 | CC8: 27 | CD8: 7 | CE8: 0.7941176471
A9: 11 | B9: 15 | C9: 1 | D9: 1 | E9: 1 | F9: 1 | G9: 1 | H9: 1 | I9: 1 | J9: 1 | K9: 1 | L9: 0 | M9: 1 | N9: 1 | O9: 1 | P9: 1 | Q9: 1 | R9: 1 | S9: 1 | T9: 1 | U9: 1 | V9: 1 | W9: 1 | X9: 1 | Y9: 0 | Z9: 0 | AA9: 1 | AB9: 1 | AC9: 1 | AD9: 1 | AE9: 1 | AF9: 0 | AG9: 1 | AH9: 0 | AI9: 0 | AJ9: 1 | CB9: 34 | CC9: 28 | CD9: 6 | CE9: 0.8235294118
A10: 15 | B10: 67 | C10: 0 | D10: 0 | E10: 0 | F10: 0 | G10: 0 | H10: 0 | I10: 0 | J10: 0 | K10: 0 | L10: 0 | M10: 0 | N10: 0 | O10: 0 | P10: 0 | Q10: 0 | R10: 0 | S10: 0 | T10: 0 | U10: 0 | V10: 0 | W10: 0 | X10: 0 | Y10: 0 | Z10: 0 | AA10: 0 | AB10: 0 | AC10: 0 | AD10: 0 | AE10: 0 | AF10: 0 | AG10: 0 | AH10: 0 | AI10: 0 | AJ10: 0 | CB10: 34 | CC10: 0 | CD10: 34 | CE10: 0
A11: 19 | B11: 37 | C11: 0 | D11: 0 | E11: 0 | F11: 0 | G11: 0 | H11: 0 | I11: 0 | J11: 0 | K11: 0 | L11: 0 | M11: 0 | N11: 0 | O11: 0 | P11: 0 | Q11: 0 | R11: 0 | S11: 0 | T11: 0 | U11: 0 | V11: 0 | W11: 0 | X11: 0 | Y11: 0 | Z11: 0 | AA11: 0 | AB11: 0 | AC11: 0 | AD11: 0 | AE11: 0 | AF11: 0 | AG11: 0 | AH11: 0 | AI11: 0 | AJ11: 0 | CB11: 34 | CC11: 0 | CD11: 34 | CE11: 0
A12: 20 | B12: 5 | C12: 1 | D12: 1 | E12: 1 | F12: 1 | G12: 1 | H12: 1 | I12: 1 | J12: 0 | K12: 1 | L12: 1 | M12: 1 | N12: 1 | O12: 1 | P12: 1 | Q12: 1 | R12: 1 | S12: 1 | T12: 1 | U12: 1 | V12: 1 | W12: 1 | X12: 1 | Y12: 1 | Z12: 1 | AA12: 1 | AB12: 1 | AC12: 1 | AD12: 1 | AE12: 1 | AF12: 1 | AG12: 1 | AH12: 1 | AI12: 0 | AJ12: 1 | CB12: 34 | CC12: 32 | CD12: 2 | CE12: 0.9411764706
A13: 21 | B13: 40 | C13: 0 | D13: 0 | E13: 0 | F13: 1 | G13: 1 | H13: 0 | I13: 1 | J13: 1 | K13: 1 | L13: 0 | M13: 1 | N13: 0 | O13: 1 | P13: 1 | Q13: 1 | R13: 1 | S13: 0 | T13: 1 | U13: 1 | V13: 1 | W13: 0 | X13: 1 | Y13: 1 | Z13: 0 | AA13: 0 | AB13: 1 | AC13: 1 | AD13: 1 | AE13: 0 | AF13: 0 | AG13: 1 | AH13: 0 | AI13: 1 | AJ13: 1 | CB13: 34 | CC13: 21 | CD13: 13 | CE13: 0.6176470588
A14: 22 | B14: 36 | C14: 0 | D14: 0 | E14: 0 | F14: 0 | G14: 0 | H14: 0 | I14: 0 | J14: 0 | K14: 0 | L14: 0 | M14: 0 | N14: 0 | O14: 0 | P14: 0 | Q14: 0 | R14: 0 | S14: 0 | T14: 0 | U14: 0 | V14: 0 | W14: 0 | X14: 0 | Y14: 0 | Z14: 0 | AA14: 0 | AB14: 0 | AC14: 0 | AD14: 0 | AE14: 0 | AF14: 0 | AG14: 0 | AH14: 0 | AI14: 0 | AJ14: 0 | CB14: 34 | CC14: 0 | CD14: 34 | CE14: 0
A15: 30 | B15: 23 | C15: 0 | D15: 0 | E15: 0 | F15: 0 | G15: 0 | H15: 0 | I15: 0 | J15: 0 | K15: 0 | L15: 0 | M15: 1 | N15: 0 | O15: 0 | P15: 0 | Q15: 0 | R15: 0 | S15: 0 | T15: 1 | U15: 0 | V15: 0 | W15: 0 | X15: 0 | Y15: 0 | Z15: 0 | AA15: 0 | AB15: 0 | AC15: 0 | AD15: 0 | AE15: 0 | AF15: 0 | AG15: 0 | AH15: 0 | AI15: 0 | AJ15: 0 | CB15: 34 | CC15: 2 | CD15: 32 | CE15: 0.05882352941
A16: 32 | B16: 29 | C16: 0 | D16: 0 | E16: 0 | F16: 0 | G16: 0 | H16: 0 | I16: 0 | J16: 0 | K16: 0 | L16: 0 | M16: 0 | N16: 0 | O16: 1 | P16: 0 | Q16: 0 | R16: 0 | S16: 0 | T16: 0 | U16: 0 | V16: 0 | W16: 0 | X16: 0 | Y16: 0 | Z16: 0 | AA16: 0 | AB16: 0 | AC16: 0 | AD16: 0 | AE16: 0 | AF16: 0 | AG16: 0 | AH16: 0 | AI16: 0 | AJ16: 0 | CB16: 34 | CC16: 1 | CD16: 33 | CE16: 0.02941176471
A17: 36 | B17: 7 | C17: 1 | D17: 1 | E17: 1 | F17: 1 | G17: 1 | H17: 1 | I17: 1 | J17: 1 | K17: 1 | L17: 1 | M17: 1 | N17: 1 | O17: 0 | P17: 1 | Q17: 1 | R17: 1 | S17: 1 | T17: 1 | U17: 1 | V17: 1 | W17: 1 | X17: 1 | Y17: 1 | Z17: 1 | AA17: 1 | AB17: 1 | AC17: 0 | AD17: 1 | AE17: 1 | AF17: 1 | AG17: 1 | AH17: 1 | AI17: 1 | AJ17: 1 | CB17: 34 | CC17: 32 | CD17: 2 | CE17: 0.9411764706
A18: 41 | B18: 11 | C18: 1 | D18: 1 | E18: 1 | F18: 1 | G18: 1 | H18: 1 | I18: 1 | J18: 1 | K18: 1 | L18: 1 | M18: 1 | N18: 1 | O18: 1 | P18: 1 | Q18: 1 | R18: 1 | S18: 1 | T18: 1 | U18: 1 | V18: 1 | W18: 1 | X18: 1 | Y18: 1 | Z18: 1 | AA18: 1 | AB18: 1 | AC18: 1 | AD18: 1 | AE18: 1 | AF18: 1 | AG18: 1 | AH18: 1 | AI18: 1 | AJ18: 1 | CB18: =COUNT(C18:CA18) -> 34 | CC18: =SUM(C18:CA18) -> 34 | CD18: =CB18-CC18 -> 0 | CE18: =CC18/CB18 -> 1
A19: 44v | B19: 67 | C19: 0 | D19: 0 | E19: 0 | F19: 0 | G19: 0 | H19: 0 | I19: 0 | J19: 0 | K19: 0 | L19: 0 | M19: 0 | N19: 0 | O19: 0 | P19: 0 | Q19: 0 | R19: 0 | S19: 0 | T19: 0 | U19: 0 | V19: 0 | W19: 0 | X19: 0 | Y19: 0 | Z19: 0 | AA19: 0 | AB19: 0 | AC19: 0 | AD19: 0 | AE19: 0 | AF19: 0 | AG19: 0 | AH19: 0 | AI19: 0 | AJ19: 0 | CB19: =COUNT(C19:CA19) -> 34 | CC19: =SUM(C19:CA19) -> 0 | CD19: =CB19-CC19 -> 34 | CE19: =CC19/CB19 -> 0
A20: 46v | B20: 62 | C20: 0 | D20: 0 | E20: 0 | F20: 0 | G20: 0 | H20: 0 | I20: 0 | J20: 0 | K20: 0 | L20: 0 | M20: 0 | N20: 0 | O20: 0 | P20: 0 | Q20: 0 | R20: 0 | S20: 0 | T20: 0 | U20: 0 | V20: 0 | W20: 0 | X20: 0 | Y20: 0 | Z20: 0 | AA20: 0 | AB20: 0 | AC20: 0 | AD20: 0 | AE20: 0 | AF20: 0 | AG20: 0 | AH20: 0 | AI20: 0 | AJ20: 0 | CB20: =COUNT(C20:CA20) -> 34 | CC20: =SUM(C20:CA20) -> 0 | CD20: =CB20-CC20 -> 34 | CE20: =CC20/CB20 -> 0
A21: 47v | B21: 52 | C21: 0 | D21: 0 | E21: 0 | F21: 0 | G21: 0 | H21: 0 | I21: 0 | J21: 0 | K21: 0 | L21: 0 | M21: 0 | N21: 0 | O21: 0 | P21: 0 | Q21: 0 | R21: 0 | S21: 0 | T21: 0 | U21: 0 | V21: 0 | W21: 0 | X21: 0 | Y21: 0 | Z21: 0 | AA21: 0 | AB21: 0 | AC21: 0 | AD21: 0 | AE21: 0 | AF21: 0 | AG21: 0 | AH21: 0 | AI21: 0 | AJ21: 0 | CB21: =COUNT(C21:CA21) -> 34 | CC21: =SUM(C21:CA21) -> 0 | CD21: =CB21-CC21 -> 34 | CE21: =CC21/CB21 -> 0
CB22: =COUNT(C22:CA22) -> 0 | CC22: =SUM(C22:CA22) -> 0 | CD22: =CB22-CC22 -> 0 | CE22: =CC22/CB22 -> 
CB23: 0 | CC23: 0 | CD23: 0
CB24: 0 | CC24: 0 | CD24: 0
CB25: 0 | CC25: 0 | CD25: 0
CB26: 0 | CC26: 0 | CD26: 0
CB27: 0 | CC27: 0 | CD27: 0
CB28: 0 | CC28: 0 | CD28: 0
CB29: 0 | CC29: 0 | CD29: 0
CB30: 0 | CC30: 0 | CD30: 0
CB31: 0 | CC31: 0 | CD31: 0
CB32: 0 | CC32: 0 | CD32: 0
CB33: 0 | CC33: 0 | CD33: 0
CB34: 0 | CC34: 0 | CD34: 0
A35: Count of objects | B35: =COUNT(B5:B34) -> 17 | C35: =COUNT(C5:C34) -> 17 | D35: =COUNT(D5:D34) -> 17 | E35: 17 | F35: 17 | G35: 17 | H35: 17 | I35: 17 | J35: 17 | K35: 17 | L35: 17 | M35: 17 | N35: 17 | O35: 17 | P35: 17 | Q35: 17 | R35: 17 | S35: 17 | T35: 17 | U35: 17 | V35: 17 | W35: 17 | X35: 17 | Y35: 17 | Z35: 17 | AA35: 17 | AB35: 17 | AC35: 17 | AD35: 17 | AE35: 17 | AF35: 17 | AG35: 17 | AH35: 17 | AI35: =COUNT(AI5:AI34) -> 17 | AJ35: 17 | AK35: 0 | AL35: 0 | AM35: 0 | AN35: 0 | AO35: 0 | AP35: 0 | AQ35: 0 | AR35: 0 | AS35: 0 | AT35: 0 | AU35: 0 | AV35: 0 | AW35: 0 | AX35: 0 | AY35: 0 | AZ35: 0 | BA35: 0 | BB35: 0 | BC35: 0 | BD35: 0 | BE35: 0 | BF35: 0 | BG35: 0 | BH35: 0 | BI35: 0 | BJ35: 0 | BK35: 0 | BL35: =COUNT(BL5:BL34) -> 0 | BM35: 0 | BN35: 0 | BO35: =COUNT(BO5:BO34) -> 0 | BP35: 0 | BQ35: 0 | BR35: 0 | BS35: 0 | BT35: 0 | BU35: 0 | BV35: 0 | BW35: 0 | BX35: 0 | BY35: 0 | BZ35: 0 | CA35: 0
A36: Detected | C36: =SUM(C5:C34) -> 7 | D36: 7 | E36: 8 | F36: 8 | G36: 9 | H36: 7 | I36: 9 | J36: 7 | K36: 8 | L36: 6 | M36: 10 | N36: 8 | O36: 7 | P36: 8 | Q36: 9 | R36: 8 | S36: 7 | T36: 10 | U36: 9 | V36: 8 | W36: 6 | X36: 9 | Y36: 6 | Z36: 5 | AA36: 7 | AB36: 8 | AC36: 8 | AD36: 8 | AE36: 5 | AF36: 6 | AG36: 9 | AH36: 6 | AI36: =SUM(AI5:AI34) -> 4 | AJ36: 8 | AK36: 0 | AL36: 0 | AM36: 0 | AN36: 0 | AO36: 0 | AP36: 0 | AQ36: 0 | AR36: 0 | AS36: 0 | AT36: 0 | AU36: 0 | AV36: 0 | AW36: 0 | AX36: 0 | AY36: 0 | AZ36: 0 | BA36: 0 | BB36: 0 | BC36: 0 | BD36: 0 | BE36: 0 | BF36: 0 | BG36: 0 | BH36: 0 | BI36: 0 | BJ36: 0 | BK36: 0 | BL36: =SUM(BL5:BL34) -> 0 | BM36: 0 | BN36: 0 | BO36: =SUM(BO5:BO34) -> 0 | BP36: 0 | BQ36: 0 | BR36: 0 | BS36: 0 | BT36: 0 | BU36: 0 | BV36: 0 | BW36: 0 | BX36: 0 | BY36: 0 | BZ36: 0 | CA36: 0
A37: % Detected | C37: =IF(C35=0,"",C36/C35) -> 0.4117647059 | D37: =IF(D35=0,"",D36/D35) -> 0.4117647059 | E37: 0.4705882353 | F37: 0.4705882353 | G37: 0.5294117647 | H37: 0.4117647059 | I37: 0.5294117647 | J37: 0.4117647059 | K37: 0.4705882353 | L37: 0.3529411765 | M37: 0.5882352941 | N37: 0.4705882353 | O37: 0.4117647059 | P37: 0.4705882353 | Q37: 0.5294117647 | R37: 0.4705882353 | S37: 0.4117647059 | T37: 0.5882352941 | U37: 0.5294117647 | V37: 0.4705882353 | W37: 0.3529411765 | X37: 0.5294117647 | Y37: 0.3529411765 | Z37: 0.2941176471 | AA37: 0.4117647059 | AB37: 0.4705882353 | AC37: 0.4705882353 | AD37: 0.4705882353 | AE37: 0.2941176471 | AF37: 0.3529411765 | AG37: 0.5294117647 | AH37: 0.3529411765 | AI37: 0.2352941176 | AJ37: 0.4705882353 | BP37: =IF(BP35=0,"",BP36/BP35) -> 
A38: Count of searchers | B38: =COUNT(C37:CA37) -> 34

Sheet 24. Data Input Object # 2
A1: Data Input Search Object Type # 2 | K1: =IF('2. Search Object Types'!J22>=2,'2. Search Object Types'!M28,"Not applicable") -> Clue High-Visibility
A2: Instructions: The purpose of this worksheet is to enter each searcher's detections and non-detections, scored on the Detection Scoring (Worksheet # 22) form for Search Object Type # 2. From Detection Scoring (Worksheet #22) of each searcher, enter the search object location number in the "Location #" column. From Object Placement and Chart (Worksheet # 10) enter the lateral range of the location number (for each Search Object Type # 2 that was placed in the experiment). From each Searcher Profile (Worksheet # 20), enter each searcher number assigned. For each search object and searcher interaction record either a "1" if a valid detection occurred (scored on the detection summary form), or a "0" if the object was not detected. Leave other cells blank if no object placed.
C3: Searcher Number
A4: Location # | B4: LR | C4: 1 | D4: 2 | E4: 3 | F4: 4 | G4: 5 | H4: 6 | I4: 7 | J4: 8 | K4: 9 | L4: 10 | M4: 11 | N4: 12 | O4: 13 | P4: 14 | Q4: 15 | R4: 16 | S4: 17 | T4: 18 | U4: 19 | V4: 20 | W4: 21 | X4: 22 | Y4: 23 | Z4: 24 | AA4: 25 | AB4: 26 | AC4: 27 | AD4: 28 | AE4: 29 | AF4: 30 | AG4: 31 | AH4: 32 | AI4: 33 | AJ4: 34 | AK4: 35 | AL4: 36 | AM4: 37 | AN4: 38 | AO4: 39 | AP4: 40 | AQ4: 41 | AR4: 42 | AS4: 43 | AT4: 44 | AU4: 45 | AV4: 46 | AW4: 47 | AX4: 48 | AY4: 49 | AZ4: 50 | BA4: 51 | BB4: 52 | BC4: 53 | BD4: 54 | BE4: 55 | BF4: 56 | BG4: 57 | BH4: 58 | BI4: 59 | BJ4: 60 | BK4: 61 | BL4: 62 | BM4: 63 | BN4: 64 | BO4: 65 | BP4: 66 | BQ4: 67 | BR4: 68 | BS4: 69 | BT4: 70 | BU4: 71 | BV4: 72 | BW4: 73 | BX4: 74 | BY4: 75 | BZ4: 76 | CA4: 77 | CB4: Count | CC4: Detections | CD4: Misses | CE4: % Detected
A5: 2 | B5: 17 | C5: 1 | D5: 1 | E5: 1 | F5: 1 | G5: 1 | H5: 1 | I5: 1 | J5: 1 | K5: 1 | L5: 1 | M5: 1 | N5: 1 | O5: 1 | P5: 1 | Q5: 1 | R5: 1 | S5: 1 | T5: 1 | U5: 1 | V5: 1 | W5: 1 | X5: 1 | Y5: 1 | Z5: 1 | AA5: 1 | AB5: 1 | AC5: 1 | AD5: 1 | AE5: 0 | AF5: 1 | AG5: 1 | AH5: 1 | AI5: 0 | AJ5: 1 | CB5: =COUNT(C5:CA5) -> 34 | CC5: =SUM(C5:CA5) -> 32 | CD5: =CB5-CC5 -> 2 | CE5: =CC5/CB5 -> 0.9411764706
A6: 4 | B6: 32 | C6: 0 | D6: 0 | E6: 0 | F6: 0 | G6: 0 | H6: 0 | I6: 0 | J6: 0 | K6: 0 | L6: 0 | M6: 0 | N6: 0 | O6: 0 | P6: 0 | Q6: 0 | R6: 0 | S6: 0 | T6: 0 | U6: 0 | V6: 0 | W6: 0 | X6: 0 | Y6: 0 | Z6: 0 | AA6: 1 | AB6: 0 | AC6: 0 | AD6: 0 | AE6: 0 | AF6: 0 | AG6: 0 | AH6: 0 | AI6: 0 | AJ6: 0 | CB6: =COUNT(C6:CA6) -> 34 | CC6: =SUM(C6:CA6) -> 1 | CD6: =CB6-CC6 -> 33 | CE6: =CC6/CB6 -> 0.02941176471
A7: 6 | B7: 1 | C7: 1 | D7: 1 | E7: 0 | F7: 1 | G7: 1 | H7: 1 | I7: 1 | J7: 1 | K7: 1 | L7: 1 | M7: 1 | N7: 1 | O7: 1 | P7: 1 | Q7: 1 | R7: 1 | S7: 1 | T7: 1 | U7: 1 | V7: 1 | W7: 1 | X7: 1 | Y7: 1 | Z7: 1 | AA7: 1 | AB7: 1 | AC7: 1 | AD7: 1 | AE7: 1 | AF7: 1 | AG7: 1 | AH7: 1 | AI7: 1 | AJ7: 1 | CB7: 34 | CC7: 33 | CD7: 1 | CE7: 0.9705882353
A8: 9 | B8: 32 | C8: 0 | D8: 0 | E8: 0 | F8: 0 | G8: 0 | H8: 1 | I8: 0 | J8: 0 | K8: 0 | L8: 0 | M8: 0 | N8: 0 | O8: 0 | P8: 0 | Q8: 0 | R8: 0 | S8: 0 | T8: 0 | U8: 0 | V8: 0 | W8: 0 | X8: 1 | Y8: 0 | Z8: 0 | AA8: 0 | AB8: 0 | AC8: 0 | AD8: 0 | AE8: 0 | AF8: 0 | AG8: 0 | AH8: 0 | AI8: 0 | AJ8: 0 | CB8: 34 | CC8: 2 | CD8: 32 | CE8: 0.05882352941
A9: 12 | B9: 9 | C9: 1 | D9: 1 | E9: 0 | F9: 1 | G9: 1 | H9: 1 | I9: 1 | J9: 1 | K9: 1 | L9: 1 | M9: 1 | N9: 1 | O9: 1 | P9: 1 | Q9: 1 | R9: 1 | S9: 1 | T9: 1 | U9: 0 | V9: 1 | W9: 1 | X9: 1 | Y9: 1 | Z9: 1 | AA9: 1 | AB9: 0 | AC9: 1 | AD9: 1 | AE9: 0 | AF9: 0 | AG9: 1 | AH9: 1 | AI9: 0 | AJ9: 1 | CB9: 34 | CC9: 28 | CD9: 6 | CE9: 0.8235294118
A10: 14 | B10: 26 | C10: 0 | D10: 0 | E10: 1 | F10: 1 | G10: 1 | H10: 0 | I10: 1 | J10: 1 | K10: 0 | L10: 1 | M10: 0 | N10: 0 | O10: 0 | P10: 1 | Q10: 1 | R10: 1 | S10: 0 | T10: 0 | U10: 0 | V10: 1 | W10: 1 | X10: 1 | Y10: 1 | Z10: 0 | AA10: 0 | AB10: 1 | AC10: 1 | AD10: 0 | AE10: 0 | AF10: 0 | AG10: 1 | AH10: 0 | AI10: 1 | AJ10: 0 | CB10: 34 | CC10: 17 | CD10: 17 | CE10: 0.5
A11: 16 | B11: 9 | C11: 0 | D11: 0 | E11: 1 | F11: 0 | G11: 0 | H11: 1 | I11: 1 | J11: 1 | K11: 1 | L11: 1 | M11: 1 | N11: 1 | O11: 1 | P11: 1 | Q11: 1 | R11: 0 | S11: 0 | T11: 0 | U11: 0 | V11: 0 | W11: 0 | X11: 0 | Y11: 0 | Z11: 1 | AA11: 0 | AB11: 0 | AC11: 1 | AD11: 1 | AE11: 0 | AF11: 0 | AG11: 1 | AH11: 0 | AI11: 0 | AJ11: 1 | CB11: 34 | CC11: 16 | CD11: 18 | CE11: 0.4705882353
A12: 17 | B12: 16 | CB12: 0 | CC12: 0 | CD12: 0
A13: 24 | B13: 25 | C13: 0 | D13: 1 | E13: 0 | F13: 1 | G13: 1 | H13: 1 | I13: 1 | J13: 1 | K13: 1 | L13: 1 | M13: 1 | N13: 1 | O13: 1 | P13: 1 | Q13: 1 | R13: 1 | S13: 1 | T13: 0 | U13: 1 | V13: 1 | W13: 1 | X13: 1 | Y13: 0 | Z13: 1 | AA13: 0 | AB13: 1 | AC13: 0 | AD13: 0 | AE13: 0 | AF13: 1 | AG13: 1 | AH13: 1 | AI13: 0 | AJ13: 1 | CB13: 34 | CC13: 25 | CD13: 9 | CE13: 0.7352941176
A14: 26 | B14: 2 | C14: 1 | D14: 1 | E14: 1 | F14: 1 | G14: 1 | H14: 1 | I14: 1 | J14: 1 | K14: 1 | L14: 1 | M14: 1 | N14: 1 | O14: 1 | P14: 1 | Q14: 1 | R14: 1 | S14: 1 | T14: 1 | U14: 1 | V14: 1 | W14: 1 | X14: 1 | Y14: 0 | Z14: 1 | AA14: 1 | AB14: 1 | AC14: 1 | AD14: 1 | AE14: 1 | AF14: 1 | AG14: 1 | AH14: 1 | AI14: 1 | AJ14: 1 | CB14: 34 | CC14: 33 | CD14: 1 | CE14: 0.9705882353
A15: 31 | B15: 12 | C15: 0 | D15: 1 | E15: 0 | F15: 0 | G15: 0 | H15: 0 | I15: 0 | J15: 0 | K15: 0 | L15: 1 | M15: 0 | N15: 0 | O15: 0 | P15: 0 | Q15: 0 | R15: 0 | S15: 0 | T15: 0 | U15: 1 | V15: 0 | W15: 0 | X15: 0 | Y15: 0 | Z15: 0 | AA15: 0 | AB15: 1 | AC15: 0 | AD15: 0 | AE15: 0 | AF15: 0 | AG15: 0 | AH15: 0 | AI15: 0 | AJ15: 0 | CB15: 34 | CC15: 4 | CD15: 30 | CE15: 0.1176470588
A16: 33 | B16: 12 | C16: 0 | D16: 1 | E16: 0 | F16: 0 | G16: 0 | H16: 1 | I16: 0 | J16: 0 | K16: 0 | L16: 0 | M16: 0 | N16: 0 | O16: 0 | P16: 0 | Q16: 0 | R16: 0 | S16: 0 | T16: 0 | U16: 0 | V16: 0 | W16: 0 | X16: 0 | Y16: 0 | Z16: 0 | AA16: 0 | AB16: 0 | AC16: 0 | AD16: 0 | AE16: 0 | AF16: 0 | AG16: 0 | AH16: 0 | AI16: 0 | AJ16: 0 | CB16: =COUNT(C16:CA16) -> 34 | CC16: =SUM(C16:CA16) -> 2 | CD16: =CB16-CC16 -> 32 | CE16: =CC16/CB16 -> 0.05882352941
A17: 38 | B17: 16 | C17: 0 | D17: 0 | E17: 0 | F17: 0 | G17: 0 | H17: 0 | I17: 0 | J17: 0 | K17: 0 | L17: 0 | M17: 1 | N17: 0 | O17: 0 | P17: 0 | Q17: 0 | R17: 0 | S17: 0 | T17: 0 | U17: 0 | V17: 0 | W17: 0 | X17: 0 | Y17: 0 | Z17: 0 | AA17: 0 | AB17: 0 | AC17: 0 | AD17: 1 | AE17: 0 | AF17: 0 | AG17: 0 | AH17: 0 | AI17: 0 | AJ17: 0 | CB17: =COUNT(C17:CA17) -> 34 | CC17: =SUM(C17:CA17) -> 2 | CD17: =CB17-CC17 -> 32 | CE17: =CC17/CB17 -> 0.05882352941
A18: 39 | B18: 4 | C18: 1 | D18: 1 | E18: 1 | F18: 1 | G18: 1 | H18: 1 | I18: 1 | J18: 1 | K18: 1 | L18: 1 | M18: 0 | N18: 1 | O18: 1 | P18: 1 | Q18: 1 | R18: 1 | S18: 1 | T18: 1 | U18: 1 | V18: 1 | W18: 1 | X18: 1 | Y18: 1 | Z18: 1 | AA18: 1 | AB18: 1 | AC18: 1 | AD18: 0 | AE18: 1 | AF18: 1 | AG18: 1 | AH18: 1 | AI18: 0 | AJ18: 1 | CB18: =COUNT(C18:CA18) -> 34 | CC18: =SUM(C18:CA18) -> 31 | CD18: =CB18-CC18 -> 3 | CE18: =CC18/CB18 -> 0.9117647059
A19: 48v | B19: 25 | C19: 0 | D19: 0 | E19: 0 | F19: 0 | G19: 0 | H19: 0 | I19: 0 | J19: 0 | K19: 0 | L19: 0 | M19: 0 | N19: 0 | O19: 0 | P19: 0 | Q19: 0 | R19: 0 | S19: 0 | T19: 0 | U19: 0 | V19: 0 | W19: 0 | X19: 0 | Y19: 0 | Z19: 0 | AA19: 0 | AB19: 0 | AC19: 0 | AD19: 0 | AE19: 0 | AF19: 0 | AG19: 0 | AH19: 0 | AI19: 0 | AJ19: 0 | CB19: =COUNT(C19:CA19) -> 34 | CC19: =SUM(C19:CA19) -> 0 | CD19: =CB19-CC19 -> 34 | CE19: =CC19/CB19 -> 0
CB20: =COUNT(C20:CA20) -> 0 | CC20: =SUM(C20:CA20) -> 0 | CD20: =CB20-CC20 -> 0 | CE20: =CC20/CB20 -> 
CB21: 0 | CC21: 0 | CD21: 0
CB22: 0 | CC22: 0 | CD22: 0
CB23: 0 | CC23: 0 | CD23: 0
CB24: 0 | CC24: 0 | CD24: 0
CB25: 0 | CC25: 0 | CD25: 0
CB26: 0 | CC26: 0 | CD26: 0
CB27: 0 | CC27: 0 | CD27: 0
CB28: 0 | CC28: 0 | CD28: 0
CB29: 0 | CC29: 0 | CD29: 0
CB30: 0 | CC30: 0 | CD30: 0
CB31: 0 | CC31: 0 | CD31: 0
CB32: 0 | CC32: 0 | CD32: 0
CB33: 0 | CC33: 0 | CD33: 0
CB34: 0 | CC34: 0 | CD34: 0
A35: Count of objects | B35: =COUNT(B5:B34) -> 15 | C35: =COUNT(C5:C34) -> 14 | D35: =COUNT(D5:D34) -> 14 | E35: 14 | F35: 14 | G35: 14 | H35: 14 | I35: 14 | J35: 14 | K35: 14 | L35: 14 | M35: 14 | N35: 14 | O35: 14 | P35: 14 | Q35: 14 | R35: 14 | S35: 14 | T35: 14 | U35: 14 | V35: 14 | W35: 14 | X35: 14 | Y35: 14 | Z35: 14 | AA35: 14 | AB35: 14 | AC35: 14 | AD35: 14 | AE35: 14 | AF35: 14 | AG35: 14 | AH35: 14 | AI35: 14 | AJ35: 14 | AK35: 0 | AL35: 0 | AM35: 0 | AN35: 0 | AO35: 0 | AP35: 0 | AQ35: 0 | AR35: 0 | AS35: 0 | AT35: 0 | AU35: 0 | AV35: 0 | AW35: 0 | AX35: 0 | AY35: 0 | AZ35: 0 | BA35: 0 | BB35: 0 | BC35: 0 | BD35: 0 | BE35: 0 | BF35: 0 | BG35: 0 | BH35: 0 | BI35: 0 | BJ35: 0 | BK35: 0 | BL35: 0 | BM35: 0 | BN35: 0 | BO35: 0 | BP35: =COUNT(BP5:BP34) -> 0 | BQ35: 0 | BR35: 0 | BS35: 0 | BT35: 0 | BU35: 0 | BV35: 0 | BW35: 0 | BX35: 0 | BY35: 0 | BZ35: 0 | CA35: 0
A36: Detected | C36: =SUM(C5:C34) -> 5 | D36: =SUM(D5:D34) -> 8 | E36: 5 | F36: 7 | G36: 7 | H36: 9 | I36: 8 | J36: 8 | K36: 7 | L36: 9 | M36: 7 | N36: 7 | O36: 7 | P36: 8 | Q36: 8 | R36: 7 | S36: 6 | T36: 5 | U36: 6 | V36: 7 | W36: 7 | X36: 8 | Y36: 5 | Z36: 7 | AA36: 6 | AB36: 7 | AC36: 7 | AD36: 6 | AE36: 3 | AF36: 5 | AG36: 8 | AH36: 6 | AI36: 3 | AJ36: 7 | AK36: 0 | AL36: 0 | AM36: 0 | AN36: 0 | AO36: 0 | AP36: 0 | AQ36: 0 | AR36: 0 | AS36: 0 | AT36: 0 | AU36: 0 | AV36: 0 | AW36: 0 | AX36: 0 | AY36: 0 | AZ36: 0 | BA36: 0 | BB36: 0 | BC36: 0 | BD36: 0 | BE36: 0 | BF36: 0 | BG36: 0 | BH36: 0 | BI36: 0 | BJ36: 0 | BK36: 0 | BL36: 0 | BM36: 0 | BN36: 0 | BO36: 0 | BP36: =SUM(BP5:BP34) -> 0 | BQ36: 0 | BR36: 0 | BS36: 0 | BT36: 0 | BU36: 0 | BV36: 0 | BW36: 0 | BX36: 0 | BY36: 0 | BZ36: 0 | CA36: 0
A37: % Detected | C37: =IF(C35=0,"",C36/C35) -> 0.3571428571 | D37: =IF(D35=0,"",D36/D35) -> 0.5714285714 | E37: 0.3571428571 | F37: 0.5 | G37: 0.5 | H37: 0.6428571429 | I37: 0.5714285714 | J37: 0.5714285714 | K37: 0.5 | L37: 0.6428571429 | M37: 0.5 | N37: 0.5 | O37: 0.5 | P37: 0.5714285714 | Q37: 0.5714285714 | R37: 0.5 | S37: 0.4285714286 | T37: 0.3571428571 | U37: 0.4285714286 | V37: 0.5 | W37: 0.5 | X37: 0.5714285714 | Y37: 0.3571428571 | Z37: 0.5 | AA37: 0.4285714286 | AB37: 0.5 | AC37: 0.5 | AD37: 0.4285714286 | AE37: 0.2142857143 | AF37: 0.3571428571 | AG37: 0.5714285714 | AH37: 0.4285714286 | AI37: 0.2142857143 | AJ37: 0.5 | BP37: =IF(BP35=0,"",BP36/BP35) -> 
A38: Count of searchers | B38: =COUNT(C37:CA37) -> 34

Sheet 25. Data Input Object # 3
A1: Data Input Search Object Type # 3 | K1: =IF('2. Search Object Types'!J22>=3,'2. Search Object Types'!M30,"Not applicable") -> Clue Low-Visibility
A2: Instructions: The purpose of this worksheet is to enter each searcher's detections and non-detections, scored on the Detection Scoring (Worksheet # 22) form for Search Object Type # 3. From Detection Scoring (Worksheet #22) of each searcher, enter the search object location number in the "Location #" column. From Object Placement and Chart (Worksheet # 10) enter the lateral range of the location number (for each Search Object Type # 3 that was placed in the experiment). From each Searcher Profile (Worksheet # 20), enter each searcher number assigned. For each search object and searcher interaction record either a "1" if a valid detection occurred (scored on the detection summary form), or a "0" if the object was not detected. Leave other cells blank if no object placed.
C3: Searcher Number
A4: Location # | B4: LR | C4: 1 | D4: 2 | E4: 3 | F4: 4 | G4: 5 | H4: 6 | I4: 7 | J4: 8 | K4: 9 | L4: 10 | M4: 11 | N4: 12 | O4: 13 | P4: 14 | Q4: 15 | R4: 16 | S4: 17 | T4: 18 | U4: 19 | V4: 20 | W4: 21 | X4: 22 | Y4: 23 | Z4: 24 | AA4: 25 | AB4: 26 | AC4: 27 | AD4: 28 | AE4: 29 | AF4: 30 | AG4: 31 | AH4: 32 | AI4: 33 | AJ4: 34 | AK4: 35 | AL4: 36 | AM4: 37 | AN4: 38 | AO4: 39 | AP4: 40 | AQ4: 41 | AR4: 42 | AS4: 43 | AT4: 44 | AU4: 45 | AV4: 46 | AW4: 47 | AX4: 48 | AY4: 49 | AZ4: 50 | BA4: 51 | BB4: 52 | BC4: 53 | BD4: 54 | BE4: 55 | BF4: 56 | BG4: 57 | BH4: 58 | BI4: 59 | BJ4: 60 | BK4: 61 | BL4: 62 | BM4: 63 | BN4: 64 | BO4: 65 | BP4: 66 | BQ4: 67 | BR4: 68 | BS4: 69 | BT4: 70 | BU4: 71 | BV4: 72 | BW4: 73 | BX4: 74 | BY4: 75 | BZ4: 76 | CA4: 77 | CB4: Count | CC4: Detections | CD4: Misses | CE4: % Detected
A5: 3 | B5: 9 | C5: 1 | D5: 1 | E5: 1 | F5: 1 | G5: 1 | H5: 1 | I5: 1 | J5: 1 | K5: 0 | L5: 1 | M5: 1 | N5: 1 | O5: 1 | P5: 1 | Q5: 1 | R5: 1 | S5: 1 | T5: 1 | U5: 1 | V5: 1 | W5: 1 | X5: 1 | Y5: 0 | Z5: 1 | AA5: 1 | AB5: 1 | AC5: 1 | AD5: 1 | AE5: 0 | AF5: 0 | AG5: 1 | AH5: 1 | AI5: 0 | AJ5: 1 | CB5: =COUNT(C5:CA5) -> 34 | CC5: =SUM(C5:CA5) -> 29 | CD5: =CB5-CC5 -> 5 | CE5: =CC5/CB5 -> 0.8529411765
A6: 7 | B6: 18 | C6: 1 | D6: 1 | E6: 0 | F6: 0 | G6: 0 | H6: 1 | I6: 1 | J6: 1 | K6: 1 | L6: 1 | M6: 1 | N6: 1 | O6: 1 | P6: 1 | Q6: 1 | R6: 1 | S6: 1 | T6: 1 | U6: 1 | V6: 1 | W6: 1 | X6: 1 | Y6: 1 | Z6: 0 | AA6: 1 | AB6: 1 | AC6: 0 | AD6: 1 | AE6: 0 | AF6: 1 | AG6: 1 | AH6: 0 | AI6: 0 | AJ6: 0 | CB6: 34 | CC6: 25 | CD6: 9 | CE6: 0.7352941176
A7: 13 | B7: 0.37 | C7: 1 | D7: 0 | E7: 0 | F7: 0 | G7: 0 | H7: 1 | I7: 1 | J7: 0 | K7: 0 | L7: 0 | M7: 0 | N7: 1 | O7: 0 | P7: 0 | Q7: 0 | R7: 1 | S7: 1 | T7: 0 | U7: 1 | V7: 0 | W7: 0 | X7: 0 | Y7: 0 | Z7: 0 | AA7: 1 | AB7: 0 | AC7: 1 | AD7: 1 | AE7: 0 | AF7: 0 | AG7: 0 | AH7: 1 | AI7: 1 | AJ7: 0 | CB7: 34 | CC7: 12 | CD7: 22 | CE7: 0.3529411765
A8: 18 | B8: 18 | C8: 0 | D8: 0 | E8: 0 | F8: 0 | G8: 0 | H8: 0 | I8: 0 | J8: 0 | K8: 0 | L8: 0 | M8: 0 | N8: 0 | O8: 0 | P8: 0 | Q8: 0 | R8: 0 | S8: 0 | T8: 0 | U8: 0 | V8: 0 | W8: 0 | X8: 0 | Y8: 0 | Z8: 0 | AA8: 0 | AB8: 0 | AC8: 0 | AD8: 0 | AE8: 0 | AF8: 0 | AG8: 0 | AH8: 0 | AI8: 0 | AJ8: 0 | CB8: 34 | CC8: 0 | CD8: 34 | CE8: 0
A9: 23 | B9: 8 | C9: 0 | D9: 0 | E9: 0 | F9: 0 | G9: 0 | H9: 0 | I9: 1 | J9: 0 | K9: 0 | L9: 1 | M9: 0 | N9: 0 | O9: 1 | P9: 0 | Q9: 0 | R9: 0 | S9: 0 | T9: 0 | U9: 0 | V9: 0 | W9: 0 | X9: 0 | Y9: 0 | Z9: 0 | AA9: 0 | AB9: 0 | AC9: 0 | AD9: 0 | AE9: 0 | AF9: 0 | AG9: 0 | AH9: 0 | AI9: 0 | AJ9: 0 | CB9: 34 | CC9: 3 | CD9: 31 | CE9: 0.08823529412
A10: 25 | B10: 5 | C10: 1 | D10: 1 | E10: 1 | F10: 1 | G10: 1 | H10: 1 | I10: 1 | J10: 1 | K10: 1 | L10: 1 | M10: 1 | N10: 1 | O10: 1 | P10: 1 | Q10: 1 | R10: 1 | S10: 1 | T10: 1 | U10: 1 | V10: 0 | W10: 1 | X10: 1 | Y10: 1 | Z10: 1 | AA10: 1 | AB10: 1 | AC10: 1 | AD10: 1 | AE10: 1 | AF10: 1 | AG10: 1 | AH10: 1 | AI10: 0 | AJ10: 1 | CB10: 34 | CC10: 32 | CD10: 2 | CE10: 0.9411764706
A11: 27 | B11: 14 | C11: 0 | D11: 0 | E11: 0 | F11: 0 | G11: 0 | H11: 0 | I11: 0 | J11: 0 | K11: 0 | L11: 0 | M11: 1 | N11: 0 | O11: 0 | P11: 0 | Q11: 0 | R11: 1 | S11: 0 | T11: 0 | U11: 0 | V11: 0 | W11: 0 | X11: 0 | Y11: 0 | Z11: 0 | AA11: 0 | AB11: 0 | AC11: 0 | AD11: 0 | AE11: 0 | AF11: 0 | AG11: 0 | AH11: 0 | AI11: 0 | AJ11: 0 | CB11: 34 | CC11: 2 | CD11: 32 | CE11: 0.05882352941
A12: 28 | B12: 11 | C12: 0 | D12: 0 | E12: 0 | F12: 0 | G12: 0 | H12: 0 | I12: 1 | J12: 0 | K12: 0 | L12: 0 | M12: 0 | N12: 0 | O12: 0 | P12: 0 | Q12: 0 | R12: 0 | S12: 0 | T12: 0 | U12: 0 | V12: 0 | W12: 0 | X12: 0 | Y12: 0 | Z12: 0 | AA12: 0 | AB12: 0 | AC12: 0 | AD12: 0 | AE12: 0 | AF12: 0 | AG12: 0 | AH12: 0 | AI12: 0 | AJ12: 0 | CB12: 34 | CC12: 1 | CD12: 33 | CE12: 0.02941176471
A13: 29 | B13: 6 | C13: 1 | D13: 1 | E13: 0 | F13: 1 | G13: 0 | H13: 1 | I13: 1 | J13: 1 | K13: 1 | L13: 0 | M13: 1 | N13: 1 | O13: 1 | P13: 1 | Q13: 1 | R13: 1 | S13: 0 | T13: 0 | U13: 1 | V13: 1 | W13: 1 | X13: 0 | Y13: 1 | Z13: 1 | AA13: 1 | AB13: 1 | AC13: 1 | AD13: 1 | AE13: 1 | AF13: 1 | AG13: 1 | AH13: 1 | AI13: 0 | AJ13: 1 | CB13: 34 | CC13: 27 | CD13: 7 | CE13: 0.7941176471
A14: 34 | B14: 1 | C14: 1 | D14: 1 | E14: 0 | F14: 0 | G14: 1 | H14: 1 | I14: 1 | J14: 0 | K14: 0 | L14: 1 | M14: 0 | N14: 1 | O14: 1 | P14: 0 | Q14: 0 | R14: 1 | S14: 0 | T14: 0 | U14: 0 | V14: 1 | W14: 0 | X14: 1 | Y14: 0 | Z14: 1 | AA14: 1 | AB14: 0 | AC14: 1 | AD14: 1 | AE14: 1 | AF14: 0 | AG14: 0 | AH14: 1 | AI14: 1 | AJ14: 1 | CB14: 34 | CC14: 19 | CD14: 15 | CE14: 0.5588235294
A15: 35 | B15: 14 | C15: 0 | D15: 0 | E15: 0 | F15: 0 | G15: 0 | H15: 0 | I15: 0 | J15: 0 | K15: 0 | L15: 0 | M15: 0 | N15: 0 | O15: 0 | P15: 0 | Q15: 0 | R15: 0 | S15: 0 | T15: 0 | U15: 0 | V15: 0 | W15: 0 | X15: 0 | Y15: 0 | Z15: 0 | AA15: 0 | AB15: 0 | AC15: 1 | AD15: 0 | AE15: 0 | AF15: 0 | AG15: 0 | AH15: 0 | AI15: 0 | AJ15: 0 | CB15: 34 | CC15: 1 | CD15: 33 | CE15: 0.02941176471
A16: 37 | B16: 8 | C16: 0 | D16: 0 | E16: 0 | F16: 0 | G16: 0 | H16: 0 | I16: 1 | J16: 0 | K16: 0 | L16: 0 | M16: 0 | N16: 1 | O16: 0 | P16: 1 | Q16: 0 | R16: 0 | S16: 0 | T16: 0 | U16: 0 | V16: 0 | W16: 0 | X16: 0 | Y16: 0 | Z16: 1 | AA16: 0 | AB16: 0 | AC16: 0 | AD16: 0 | AE16: 0 | AF16: 0 | AG16: 0 | AH16: 0 | AI16: 0 | AJ16: 0 | CB16: 34 | CC16: 4 | CD16: 30 | CE16: 0.1176470588
A17: 40 | B17: 5 | C17: 0 | D17: 1 | E17: 0 | F17: 0 | G17: 1 | H17: 1 | I17: 1 | J17: 0 | K17: 1 | L17: 1 | M17: 0 | N17: 1 | O17: 1 | P17: 1 | Q17: 1 | R17: 1 | S17: 1 | T17: 1 | U17: 1 | V17: 1 | W17: 1 | X17: 0 | Y17: 1 | Z17: 0 | AA17: 0 | AB17: 1 | AC17: 1 | AD17: 1 | AE17: 1 | AF17: 1 | AG17: 1 | AH17: 1 | AI17: 0 | AJ17: 0 | CB17: =COUNT(C17:CA17) -> 34 | CC17: =SUM(C17:CA17) -> 24 | CD17: =CB17-CC17 -> 10 | CE17: =CC17/CB17 -> 0.7058823529
A18: 42 | B18: 6 | C18: 1 | D18: 0 | E18: 0 | F18: 0 | G18: 0 | H18: 0 | I18: 1 | J18: 1 | K18: 0 | L18: 0 | M18: 0 | N18: 1 | O18: 0 | P18: 0 | Q18: 0 | R18: 1 | S18: 0 | T18: 1 | U18: 1 | V18: 0 | W18: 0 | X18: 0 | Y18: 0 | Z18: 1 | AA18: 0 | AB18: 0 | AC18: 0 | AD18: 0 | AE18: 0 | AF18: 0 | AG18: 1 | AH18: 0 | AI18: 0 | AJ18: 0 | CB18: =COUNT(C18:CA18) -> 34 | CC18: =SUM(C18:CA18) -> 9 | CD18: =CB18-CC18 -> 25 | CE18: =CC18/CB18 -> 0.2647058824
A19: 43v ??? | B19: 0.37 | CB19: =COUNT(C19:CA19) -> 0 | CC19: =SUM(C19:CA19) -> 0 | CD19: =CB19-CC19 -> 0 | CE19: =CC19/CB19 -> 
A20: 45v | B20: 14 | C20: 0 | D20: 0 | E20: 0 | F20: 0 | G20: 0 | H20: 0 | I20: 0 | J20: 0 | K20: 0 | L20: 0 | M20: 0 | N20: 0 | O20: 0 | P20: 0 | Q20: 0 | R20: 0 | S20: 0 | T20: 0 | U20: 0 | V20: 0 | W20: 0 | X20: 0 | Y20: 0 | Z20: 0 | AA20: 0 | AB20: 0 | AC20: 0 | AD20: 0 | AE20: 0 | AF20: 0 | AG20: 0 | AH20: 0 | AI20: 0 | AJ20: 0 | CB20: =COUNT(C20:CA20) -> 34 | CC20: =SUM(C20:CA20) -> 0 | CD20: =CB20-CC20 -> 34 | CE20: =CC20/CB20 -> 0
CB21: =COUNT(C21:CA21) -> 0 | CC21: =SUM(C21:CA21) -> 0 | CD21: =CB21-CC21 -> 0 | CE21: =CC21/CB21 -> 
CB22: 0 | CC22: 0 | CD22: 0
CB23: 0 | CC23: 0 | CD23: 0
CB24: 0 | CC24: 0 | CD24: 0
CB25: 0 | CC25: 0 | CD25: 0
CB26: 0 | CC26: 0 | CD26: 0
CB27: 0 | CC27: 0 | CD27: 0
CB28: 0 | CC28: 0 | CD28: 0
CB29: 0 | CC29: 0 | CD29: 0
CB30: 0 | CC30: 0 | CD30: 0
CB31: 0 | CC31: 0 | CD31: 0
CB32: 0 | CC32: 0 | CD32: 0
CB33: 0 | CC33: 0 | CD33: 0
CB34: 0 | CC34: 0 | CD34: 0
A35: Count of objects | B35: =COUNT(B5:B34) -> 16 | C35: =COUNT(C5:C34) -> 15 | D35: 15 | E35: 15 | F35: 15 | G35: 15 | H35: 15 | I35: 15 | J35: 15 | K35: 15 | L35: 15 | M35: 15 | N35: 15 | O35: 15 | P35: 15 | Q35: 15 | R35: 15 | S35: 15 | T35: 15 | U35: 15 | V35: 15 | W35: 15 | X35: 15 | Y35: 15 | Z35: 15 | AA35: 15 | AB35: 15 | AC35: 15 | AD35: 15 | AE35: 15 | AF35: 15 | AG35: 15 | AH35: 15 | AI35: =COUNT(AI5:AI34) -> 15 | AJ35: 15 | AK35: 0 | AL35: 0 | AM35: 0 | AN35: 0 | AO35: 0 | AP35: 0 | AQ35: 0 | AR35: 0 | AS35: 0 | AT35: 0 | AU35: 0 | AV35: 0 | AW35: 0 | AX35: 0 | AY35: 0 | AZ35: 0 | BA35: 0 | BB35: 0 | BC35: 0 | BD35: 0 | BE35: 0 | BF35: 0 | BG35: 0 | BH35: 0 | BI35: 0 | BJ35: 0 | BK35: 0 | BL35: 0 | BM35: 0 | BN35: 0 | BO35: =COUNT(BO5:BO34) -> 0 | BP35: 0 | BQ35: 0 | BR35: 0 | BS35: 0 | BT35: 0 | BU35: 0 | BV35: 0 | BW35: 0 | BX35: 0 | BY35: 0 | BZ35: 0 | CA35: 0
A36: Detected | C36: =SUM(C5:C34) -> 7 | D36: 6 | E36: 2 | F36: 3 | G36: 4 | H36: 7 | I36: 11 | J36: 5 | K36: 4 | L36: 6 | M36: 5 | N36: 9 | O36: 7 | P36: 6 | Q36: 5 | R36: 9 | S36: 5 | T36: 5 | U36: 7 | V36: 5 | W36: 5 | X36: 4 | Y36: 4 | Z36: 6 | AA36: 6 | AB36: 5 | AC36: 7 | AD36: 7 | AE36: 4 | AF36: 4 | AG36: 6 | AH36: 6 | AI36: =SUM(AI5:AI34) -> 2 | AJ36: 4 | AK36: 0 | AL36: 0 | AM36: 0 | AN36: 0 | AO36: 0 | AP36: 0 | AQ36: 0 | AR36: 0 | AS36: 0 | AT36: 0 | AU36: 0 | AV36: 0 | AW36: 0 | AX36: 0 | AY36: 0 | AZ36: 0 | BA36: 0 | BB36: 0 | BC36: 0 | BD36: 0 | BE36: 0 | BF36: 0 | BG36: 0 | BH36: 0 | BI36: 0 | BJ36: 0 | BK36: 0 | BL36: 0 | BM36: 0 | BN36: 0 | BO36: =SUM(BO5:BO34) -> 0 | BP36: 0 | BQ36: 0 | BR36: 0 | BS36: 0 | BT36: 0 | BU36: 0 | BV36: 0 | BW36: 0 | BX36: 0 | BY36: 0 | BZ36: 0 | CA36: 0
A37: % Detected | C37: =IF(C35=0,"",C36/C35) -> 0.4666666667 | D37: =IF(D35=0,"",D36/D35) -> 0.4 | E37: 0.1333333333 | F37: 0.2 | G37: 0.2666666667 | H37: 0.4666666667 | I37: 0.7333333333 | J37: 0.3333333333 | K37: 0.2666666667 | L37: 0.4 | M37: 0.3333333333 | N37: 0.6 | O37: 0.4666666667 | P37: 0.4 | Q37: 0.3333333333 | R37: 0.6 | S37: 0.3333333333 | T37: 0.3333333333 | U37: 0.4666666667 | V37: 0.3333333333 | W37: 0.3333333333 | X37: 0.2666666667 | Y37: 0.2666666667 | Z37: 0.4 | AA37: 0.4 | AB37: 0.3333333333 | AC37: 0.4666666667 | AD37: 0.4666666667 | AE37: 0.2666666667 | AF37: 0.2666666667 | AG37: 0.4 | AH37: 0.4 | AI37: 0.1333333333 | AJ37: 0.2666666667 | BP37: =IF(BP35=0,"",BP36/BP35) -> 
A38: Count of searchers | B38: =COUNT(C37:CA37) -> 34

Sheet 26. Data Input Object # 4
A1: Data Input Search Object Type # 4 | K1: =IF('2. Search Object Types'!J22=4,'2. Search Object Types'!M32,"Not applicable") -> Not applicable
A2: Instructions: The purpose of this worksheet is to enter each searcher's detections and non-detections, scored on the Detection Scoring (Worksheet # 22) form for Search Object Type # 4. From Detection Scoring (Worksheet #22) of each searcher, enter the search object location number in the "Location #" column. From Object Placement and Chart (Worksheet # 10) enter the lateral range of the location number (for each Search Object Type # 4 that was placed in the experiment). From each Searcher Profile (Worksheet # 20), enter each searcher number assigned. For each search object and searcher interaction record either a "1" if a valid detection occurred (scored on the detection summary form), or a "0" if the object was not detected. Leave other cells blank if no object placed.
C3: Searcher Number
A4: Location # | B4: LR | C4: 1 | D4: 2 | E4: 3 | F4: 4 | G4: 5 | H4: 6 | I4: 7 | J4: 8 | K4: 9 | L4: 10 | M4: 11 | N4: 12 | O4: 13 | P4: 14 | Q4: 15 | R4: 16 | S4: 17 | T4: 18 | U4: 19 | V4: 20 | W4: 21 | X4: 22 | Y4: 23 | Z4: 24 | AA4: 25 | AB4: 26 | AC4: 27 | AD4: 28 | AE4: 29 | AF4: 30 | AG4: 31 | AH4: 32 | AI4: 33 | AJ4: 34 | AK4: 35 | AL4: 36 | AM4: 37 | AN4: 38 | AO4: 39 | AP4: 40 | AQ4: 41 | AR4: 42 | AS4: 43 | AT4: 44 | AU4: 45 | AV4: 46 | AW4: 47 | AX4: 48 | AY4: 49 | AZ4: 50 | BA4: 51 | BB4: 52 | BC4: 53 | BD4: 54 | BE4: 55 | BF4: 56 | BG4: 57 | BH4: 58 | BI4: 59 | BJ4: 60 | BK4: 61 | BL4: 62 | BM4: 63 | BN4: 64 | BO4: 65 | BP4: 66 | BQ4: 67 | BR4: 68 | BS4: 69 | BT4: 70 | BU4: 71 | BV4: 72 | BW4: 73 | BX4: 74 | BY4: 75 | BZ4: 76 | CA4: 77 | CB4: Count | CC4: Detections | CD4: Misses | CE4: % Detected
CB5: =COUNT(C5:CA5) -> 0 | CC5: =SUM(C5:CA5) -> 0 | CD5: =CB5-CC5 -> 0 | CE5: =CC5/CB5 -> 
CB6: 0 | CC6: 0 | CD6: 0
CB7: 0 | CC7: 0 | CD7: 0
CB8: 0 | CC8: 0 | CD8: 0
CB9: 0 | CC9: 0 | CD9: 0
CB10: 0 | CC10: 0 | CD10: 0
CB11: 0 | CC11: 0 | CD11: 0
CB12: 0 | CC12: 0 | CD12: 0
CB13: 0 | CC13: 0 | CD13: 0
CB14: 0 | CC14: 0 | CD14: 0
CB15: 0 | CC15: 0 | CD15: 0
CB16: 0 | CC16: 0 | CD16: 0
CB17: 0 | CC17: 0 | CD17: 0
CB18: 0 | CC18: 0 | CD18: 0
CB19: 0 | CC19: 0 | CD19: 0
CB20: 0 | CC20: 0 | CD20: 0
CB21: 0 | CC21: 0 | CD21: 0
CB22: 0 | CC22: 0 | CD22: 0
CB23: 0 | CC23: 0 | CD23: 0
CB24: 0 | CC24: 0 | CD24: 0
CB25: =COUNT(C25:CA25) -> 0 | CC25: =SUM(C25:CA25) -> 0 | CD25: =CB25-CC25 -> 0 | CE25: =CC25/CB25 -> 
CB26: =COUNT(C26:CA26) -> 0 | CC26: =SUM(C26:CA26) -> 0 | CD26: =CB26-CC26 -> 0 | CE26: =CC26/CB26 -> 
CB27: =COUNT(C27:CA27) -> 0 | CC27: =SUM(C27:CA27) -> 0 | CD27: =CB27-CC27 -> 0 | CE27: =CC27/CB27 -> 
CB28: =COUNT(C28:CA28) -> 0 | CC28: =SUM(C28:CA28) -> 0 | CD28: =CB28-CC28 -> 0 | CE28: =CC28/CB28 -> 
CB29: =COUNT(C29:CA29) -> 0 | CC29: =SUM(C29:CA29) -> 0 | CD29: =CB29-CC29 -> 0 | CE29: =CC29/CB29 -> 
CB30: 0 | CC30: 0 | CD30: 0
CB31: 0 | CC31: 0 | CD31: 0
CB32: 0 | CC32: 0 | CD32: 0
CB33: 0 | CC33: 0 | CD33: 0
CB34: 0 | CC34: 0 | CD34: 0
A35: Count of objects | B35: =COUNT(B5:B34) -> 0 | C35: =COUNT(C5:C34) -> 0 | D35: =COUNT(D5:D34) -> 0 | E35: 0 | F35: 0 | G35: 0 | H35: 0 | I35: 0 | J35: 0 | K35: 0 | L35: 0 | M35: 0 | N35: 0 | O35: 0 | P35: 0 | Q35: 0 | R35: 0 | S35: 0 | T35: 0 | U35: 0 | V35: 0 | W35: 0 | X35: 0 | Y35: 0 | Z35: 0 | AA35: 0 | AB35: 0 | AC35: 0 | AD35: 0 | AE35: 0 | AF35: 0 | AG35: 0 | AH35: 0 | AI35: =COUNT(AI5:AI34) -> 0 | AJ35: 0 | AK35: 0 | AL35: 0 | AM35: 0 | AN35: 0 | AO35: 0 | AP35: 0 | AQ35: 0 | AR35: 0 | AS35: 0 | AT35: 0 | AU35: 0 | AV35: 0 | AW35: 0 | AX35: 0 | AY35: 0 | AZ35: 0 | BA35: 0 | BB35: 0 | BC35: 0 | BD35: 0 | BE35: 0 | BF35: 0 | BG35: 0 | BH35: 0 | BI35: 0 | BJ35: 0 | BK35: 0 | BL35: 0 | BM35: 0 | BN35: 0 | BO35: =COUNT(BO5:BO34) -> 0 | BP35: 0 | BQ35: 0 | BR35: 0 | BS35: 0 | BT35: 0 | BU35: 0 | BV35: 0 | BW35: 0 | BX35: 0 | BY35: 0 | BZ35: 0 | CA35: 0
A36: Detected | C36: =SUM(C5:C34) -> 0 | D36: 0 | E36: 0 | F36: 0 | G36: 0 | H36: 0 | I36: 0 | J36: 0 | K36: 0 | L36: 0 | M36: 0 | N36: 0 | O36: 0 | P36: 0 | Q36: 0 | R36: 0 | S36: 0 | T36: 0 | U36: 0 | V36: 0 | W36: 0 | X36: 0 | Y36: 0 | Z36: 0 | AA36: 0 | AB36: 0 | AC36: 0 | AD36: 0 | AE36: 0 | AF36: 0 | AG36: 0 | AH36: 0 | AI36: =SUM(AI5:AI34) -> 0 | AJ36: 0 | AK36: 0 | AL36: 0 | AM36: 0 | AN36: 0 | AO36: 0 | AP36: 0 | AQ36: 0 | AR36: 0 | AS36: 0 | AT36: 0 | AU36: 0 | AV36: 0 | AW36: 0 | AX36: 0 | AY36: 0 | AZ36: 0 | BA36: 0 | BB36: 0 | BC36: 0 | BD36: 0 | BE36: 0 | BF36: 0 | BG36: 0 | BH36: 0 | BI36: 0 | BJ36: 0 | BK36: 0 | BL36: 0 | BM36: 0 | BN36: 0 | BO36: =SUM(BO5:BO34) -> 0 | BP36: 0 | BQ36: 0 | BR36: 0 | BS36: 0 | BT36: 0 | BU36: 0 | BV36: 0 | BW36: 0 | BX36: 0 | BY36: 0 | BZ36: 0 | CA36: 0
A37: % Detected | C37: =IF(C35=0,"",C36/C35) ->  | D37: =IF(D35=0,"",D36/D35) ->  | BP37: =IF(BP35=0,"",BP36/BP35) -> 
A38: Count of searchers | B38: =COUNT(C37:CA37) -> 0

Sheet 27. Searcher Profile Data
A1: Searcher Profile Data Entry
B4: Searcher Number
A5: Searcher Characteristic | B5: 1 | C5: 2 | D5: 3 | E5: 4 | F5: 5 | G5: 6 | H5: 7 | I5: 8 | J5: 9 | K5: 10 | L5: 11 | M5: 12 | N5: 13 | O5: 14 | P5: 15 | Q5: 16 | R5: 17 | S5: 18 | T5: 19 | U5: 20 | V5: 21 | W5: 22 | X5: 23 | Y5: 24 | Z5: 25 | AA5: 26 | AB5: 27 | AC5: 28 | AD5: 29 | AE5: 30 | AF5: 31 | AG5: 32 | AH5: 33 | AI5: 34 | AJ5: 35 | AK5: 36 | AL5: 37 | AM5: 38 | AN5: 39 | AO5: 40 | AP5: 41 | AQ5: 42 | AR5: 43 | AS5: 44 | AT5: 45 | AU5: 46 | AV5: 47 | AW5: 48 | AX5: 49 | AY5: 50 | AZ5: 51 | BA5: 52 | BB5: 53 | BC5: 54 | BD5: 55 | BE5: 56 | BF5: 57 | BG5: 58 | BH5: 59 | BI5: 60 | BJ5: 61 | BK5: 62 | BL5: 63 | BM5: 64 | BN5: 65 | BO5: 66 | BP5: 67 | BQ5: 68 | BR5: 69 | BS5: 70 | BT5: 71 | BU5: 72 | BV5: 73 | BW5: 74 | BX5: 75 | BY5: 76 | BZ5: 77
A6: Age (in years)
A7: Gender (M or F)
A8: Years in SAR
A9: # of SAR Searches
A10: # of Searches in a field
A11: Regular Occupation
A12: Avg # of Searches | B12: =IF(B8=0,"",B9/B8) ->  | C12: =IF(C8=0,"",C9/C8) ->  | BO12: =IF(BO8=0,"",BO9/BO8) -> 
A13: Primary SAR specialty
A14: SAR Certifications
A15: Height with boots
A16: Wear glasses
A17: Eyewear in field
A18: R eye visual acuity
A19: L eye visual acuity
A20: Colorblindness
A21: Hours on Task
A22: Speed compared to average | B22: =IF(B21=0,"",'9. Actual Experiment Design'!$G$9/B21) ->  | C22: =IF(C21=0,"",'9. Actual Experiment Design'!$G$9/C21) ->  | D22: =IF(D21=0,"",'9. Actual Experiment Design'!$G$9/D21) ->  | E22: =IF(E21=0,"",'9. Actual Experiment Design'!$G$9/E21) ->  | F22: =IF(F21=0,"",'9. Actual Experiment Design'!$G$9/F21) ->  | G22: =IF(G21=0,"",'9. Actual Experiment Design'!$G$9/G21) ->  | H22: =IF(H21=0,"",'9. Actual Experiment Design'!$G$9/H21) ->  | I22: =IF(I21=0,"",'9. Actual Experiment Design'!$G$9/I21) ->  | J22: =IF(J21=0,"",'9. Actual Experiment Design'!$G$9/J21) ->  | K22: =IF(K21=0,"",'9. Actual Experiment Design'!$G$9/K21) ->  | L22: =IF(L21=0,"",'9. Actual Experiment Design'!$G$9/L21) ->  | M22: =IF(M21=0,"",'9. Actual Experiment Design'!$G$9/M21) ->  | N22: =IF(N21=0,"",'9. Actual Experiment Design'!$G$9/N21) ->  | O22: =IF(O21=0,"",'9. Actual Experiment Design'!$G$9/O21) ->  | P22: =IF(P21=0,"",'9. Actual Experiment Design'!$G$9/P21) ->  | Q22: =IF(Q21=0,"",'9. Actual Experiment Design'!$G$9/Q21) ->  | R22: =IF(R21=0,"",'9. Actual Experiment Design'!$G$9/R21) ->  | S22: =IF(S21=0,"",'9. Actual Experiment Design'!$G$9/S21) ->  | T22: =IF(T21=0,"",'9. Actual Experiment Design'!$G$9/T21) ->  | U22: =IF(U21=0,"",'9. Actual Experiment Design'!$G$9/U21) ->  | V22: =IF(V21=0,"",'9. Actual Experiment Design'!$G$9/V21) ->  | W22: =IF(W21=0,"",'9. Actual Experiment Design'!$G$9/W21) ->  | X22: =IF(X21=0,"",'9. Actual Experiment Design'!$G$9/X21) ->  | Y22: =IF(Y21=0,"",'9. Actual Experiment Design'!$G$9/Y21) ->  | Z22: =IF(Z21=0,"",'9. Actual Experiment Design'!$G$9/Z21) ->  | AA22: =IF(AA21=0,"",'9. Actual Experiment Design'!$G$9/AA21) ->  | AB22: =IF(AB21=0,"",'9. Actual Experiment Design'!$G$9/AB21) ->  | AC22: =IF(AC21=0,"",'9. Actual Experiment Design'!$G$9/AC21) ->  | AD22: =IF(AD21=0,"",'9. Actual Experiment Design'!$G$9/AD21) ->  | AE22: =IF(AE21=0,"",'9. Actual Experiment Design'!$G$9/AE21) ->  | AF22: =IF(AF21=0,"",'9. Actual Experiment Design'!$G$9/AF21) ->  | AG22: =IF(AG21=0,"",'9. Actual Experiment Design'!$G$9/AG21) ->  | AH22: =IF(AH21=0,"",'9. Actual Experiment Design'!$G$9/AH21) ->  | AI22: =IF(AI21=0,"",'9. Actual Experiment Design'!$G$9/AI21) ->  | AJ22: =IF(AJ21=0,"",'9. Actual Experiment Design'!$G$9/AJ21) ->  | AK22: =IF(AK21=0,"",'9. Actual Experiment Design'!$G$9/AK21) ->  | AL22: =IF(AL21=0,"",'9. Actual Experiment Design'!$G$9/AL21) ->  | AM22: =IF(AM21=0,"",'9. Actual Experiment Design'!$G$9/AM21) ->  | AN22: =IF(AN21=0,"",'9. Actual Experiment Design'!$G$9/AN21) ->  | AO22: =IF(AO21=0,"",'9. Actual Experiment Design'!$G$9/AO21) ->  | AP22: =IF(AP21=0,"",'9. Actual Experiment Design'!$G$9/AP21) ->  | AQ22: =IF(AQ21=0,"",'9. Actual Experiment Design'!$G$9/AQ21) ->  | AR22: =IF(AR21=0,"",'9. Actual Experiment Design'!$G$9/AR21) ->  | AS22: =IF(AS21=0,"",'9. Actual Experiment Design'!$G$9/AS21) ->  | AT22: =IF(AT21=0,"",'9. Actual Experiment Design'!$G$9/AT21) ->  | AU22: =IF(AU21=0,"",'9. Actual Experiment Design'!$G$9/AU21) ->  | AV22: =IF(AV21=0,"",'9. Actual Experiment Design'!$G$9/AV21) ->  | AW22: =IF(AW21=0,"",'9. Actual Experiment Design'!$G$9/AW21) ->  | AX22: =IF(AX21=0,"",'9. Actual Experiment Design'!$G$9/AX21) ->  | AY22: =IF(AY21=0,"",'9. Actual Experiment Design'!$G$9/AY21) ->  | AZ22: =IF(AZ21=0,"",'9. Actual Experiment Design'!$G$9/AZ21) ->  | BA22: =IF(BA21=0,"",'9. Actual Experiment Design'!$G$9/BA21) ->  | BB22: =IF(BB21=0,"",'9. Actual Experiment Design'!$G$9/BB21) ->  | BC22: =IF(BC21=0,"",'9. Actual Experiment Design'!$G$9/BC21) ->  | BD22: =IF(BD21=0,"",'9. Actual Experiment Design'!$G$9/BD21) ->  | BE22: =IF(BE21=0,"",'9. Actual Experiment Design'!$G$9/BE21) ->  | BF22: =IF(BF21=0,"",'9. Actual Experiment Design'!$G$9/BF21) ->  | BG22: =IF(BG21=0,"",'9. Actual Experiment Design'!$G$9/BG21) ->  | BH22: =IF(BH21=0,"",'9. Actual Experiment Design'!$G$9/BH21) ->  | BI22: =IF(BI21=0,"",'9. Actual Experiment Design'!$G$9/BI21) ->  | BJ22: =IF(BJ21=0,"",'9. Actual Experiment Design'!$G$9/BJ21) ->  | BK22: =IF(BK21=0,"",'9. Actual Experiment Design'!$G$9/BK21) ->  | BL22: =IF(BL21=0,"",'9. Actual Experiment Design'!$G$9/BL21) ->  | BM22: =IF(BM21=0,"",'9. Actual Experiment Design'!$G$9/BM21) ->  | BN22: =IF(BN21=0,"",'9. Actual Experiment Design'!$G$9/BN21) ->  | BO22: =IF(BO21=0,"",'9. Actual Experiment Design'!$G$9/BO21) ->  | BP22: =IF(BP21=0,"",'9. Actual Experiment Design'!$G$9/BP21) ->  | BQ22: =IF(BQ21=0,"",'9. Actual Experiment Design'!$G$9/BQ21) ->  | BR22: =IF(BR21=0,"",'9. Actual Experiment Design'!$G$9/BR21) ->  | BS22: =IF(BS21=0,"",'9. Actual Experiment Design'!$G$9/BS21) ->  | BT22: =IF(BT21=0,"",'9. Actual Experiment Design'!$G$9/BT21) ->  | BU22: =IF(BU21=0,"",'9. Actual Experiment Design'!$G$9/BU21) ->  | BV22: =IF(BV21=0,"",'9. Actual Experiment Design'!$G$9/BV21) ->  | BW22: =IF(BW21=0,"",'9. Actual Experiment Design'!$G$9/BW21) ->  | BX22: =IF(BX21=0,"",'9. Actual Experiment Design'!$G$9/BX21) ->  | BY22: =IF(BY21=0,"",'9. Actual Experiment Design'!$G$9/BY21) ->  | BZ22: =IF(BZ21=0,"",'9. Actual Experiment Design'!$G$9/BZ21) -> 
A23: Morale self assessment
A24: Fatigue self assessment
A25: Self POD Object #1
A26: Self POD Object #2
A27: Self POD Object #3
A28: Self POD Object #4
A29: Actual POD Search Object Type #1 | B29: ='23. Data Input Object # 1'!C37 -> 0.4117647059 | C29: ='23. Data Input Object # 1'!D37 -> 0.4117647059 | D29: ='23. Data Input Object # 1'!E37 -> 0.4705882353 | E29: ='23. Data Input Object # 1'!F37 -> 0.4705882353 | F29: ='23. Data Input Object # 1'!G37 -> 0.5294117647 | G29: ='23. Data Input Object # 1'!H37 -> 0.4117647059 | H29: ='23. Data Input Object # 1'!I37 -> 0.5294117647 | I29: ='23. Data Input Object # 1'!J37 -> 0.4117647059 | J29: ='23. Data Input Object # 1'!K37 -> 0.4705882353 | K29: ='23. Data Input Object # 1'!L37 -> 0.3529411765 | L29: ='23. Data Input Object # 1'!M37 -> 0.5882352941 | M29: ='23. Data Input Object # 1'!N37 -> 0.4705882353 | N29: ='23. Data Input Object # 1'!O37 -> 0.4117647059 | O29: ='23. Data Input Object # 1'!P37 -> 0.4705882353 | P29: ='23. Data Input Object # 1'!Q37 -> 0.5294117647 | Q29: ='23. Data Input Object # 1'!R37 -> 0.4705882353 | R29: ='23. Data Input Object # 1'!S37 -> 0.4117647059 | S29: ='23. Data Input Object # 1'!T37 -> 0.5882352941 | T29: ='23. Data Input Object # 1'!U37 -> 0.5294117647 | U29: ='23. Data Input Object # 1'!V37 -> 0.4705882353 | V29: ='23. Data Input Object # 1'!W37 -> 0.3529411765 | W29: ='23. Data Input Object # 1'!X37 -> 0.5294117647 | X29: ='23. Data Input Object # 1'!Y37 -> 0.3529411765 | Y29: ='23. Data Input Object # 1'!Z37 -> 0.2941176471 | Z29: ='23. Data Input Object # 1'!AA37 -> 0.4117647059 | AA29: ='23. Data Input Object # 1'!AB37 -> 0.4705882353 | AB29: ='23. Data Input Object # 1'!AC37 -> 0.4705882353 | AC29: ='23. Data Input Object # 1'!AD37 -> 0.4705882353 | AD29: ='23. Data Input Object # 1'!AE37 -> 0.2941176471 | AE29: ='23. Data Input Object # 1'!AF37 -> 0.3529411765 | AF29: ='23. Data Input Object # 1'!AG37 -> 0.5294117647 | AG29: ='23. Data Input Object # 1'!AH37 -> 0.3529411765 | AH29: ='23. Data Input Object # 1'!AI37 -> 0.2352941176 | AI29: ='23. Data Input Object # 1'!AJ37 -> 0.4705882353 | AJ29: ='23. Data Input Object # 1'!AK37 ->  | AK29: ='23. Data Input Object # 1'!AL37 ->  | AL29: ='23. Data Input Object # 1'!AM37 ->  | AM29: ='23. Data Input Object # 1'!AN37 ->  | AN29: ='23. Data Input Object # 1'!AO37 ->  | AO29: ='23. Data Input Object # 1'!AP37 ->  | AP29: ='23. Data Input Object # 1'!AQ37 ->  | AQ29: ='23. Data Input Object # 1'!AR37 ->  | AR29: ='23. Data Input Object # 1'!AS37 ->  | AS29: ='23. Data Input Object # 1'!AT37 ->  | AT29: ='23. Data Input Object # 1'!AU37 ->  | AU29: ='23. Data Input Object # 1'!AV37 ->  | AV29: ='23. Data Input Object # 1'!AW37 ->  | AW29: ='23. Data Input Object # 1'!AX37 ->  | AX29: ='23. Data Input Object # 1'!AY37 ->  | AY29: ='23. Data Input Object # 1'!AZ37 ->  | AZ29: ='23. Data Input Object # 1'!BA37 ->  | BA29: ='23. Data Input Object # 1'!BB37 ->  | BB29: ='23. Data Input Object # 1'!BC37 ->  | BC29: ='23. Data Input Object # 1'!BD37 ->  | BD29: ='23. Data Input Object # 1'!BE37 ->  | BE29: ='23. Data Input Object # 1'!BF37 ->  | BF29: ='23. Data Input Object # 1'!BG37 ->  | BG29: ='23. Data Input Object # 1'!BH37 ->  | BH29: ='23. Data Input Object # 1'!BI37 ->  | BI29: ='23. Data Input Object # 1'!BJ37 ->  | BJ29: ='23. Data Input Object # 1'!BK37 ->  | BK29: ='23. Data Input Object # 1'!BL37 ->  | BL29: ='23. Data Input Object # 1'!BM37 ->  | BM29: ='23. Data Input Object # 1'!BN37 ->  | BN29: ='23. Data Input Object # 1'!BO37 ->  | BO29: ='23. Data Input Object # 1'!BP37 ->  | BP29: ='23. Data Input Object # 1'!BQ37 ->  | BQ29: ='23. Data Input Object # 1'!BR37 ->  | BR29: ='23. Data Input Object # 1'!BS37 ->  | BS29: ='23. Data Input Object # 1'!BT37 ->  | BT29: ='23. Data Input Object # 1'!BU37 ->  | BU29: ='23. Data Input Object # 1'!BV37 ->  | BV29: ='23. Data Input Object # 1'!BW37 ->  | BW29: ='23. Data Input Object # 1'!BX37 ->  | BX29: ='23. Data Input Object # 1'!BY37 ->  | BY29: ='23. Data Input Object # 1'!BZ37 ->  | BZ29: ='23. Data Input Object # 1'!CA37 -> 
A30: Actual POD Search Object Type #2 | B30: ='24. Data Input Object # 2'!C37 -> 0.3571428571 | C30: ='24. Data Input Object # 2'!D37 -> 0.5714285714 | D30: ='24. Data Input Object # 2'!E37 -> 0.3571428571 | E30: ='24. Data Input Object # 2'!F37 -> 0.5 | F30: ='24. Data Input Object # 2'!G37 -> 0.5 | G30: ='24. Data Input Object # 2'!H37 -> 0.6428571429 | H30: ='24. Data Input Object # 2'!I37 -> 0.5714285714 | I30: ='24. Data Input Object # 2'!J37 -> 0.5714285714 | J30: ='24. Data Input Object # 2'!K37 -> 0.5 | K30: ='24. Data Input Object # 2'!L37 -> 0.6428571429 | L30: ='24. Data Input Object # 2'!M37 -> 0.5 | M30: ='24. Data Input Object # 2'!N37 -> 0.5 | N30: ='24. Data Input Object # 2'!O37 -> 0.5 | O30: ='24. Data Input Object # 2'!P37 -> 0.5714285714 | P30: ='24. Data Input Object # 2'!Q37 -> 0.5714285714 | Q30: ='24. Data Input Object # 2'!R37 -> 0.5 | R30: ='24. Data Input Object # 2'!S37 -> 0.4285714286 | S30: ='24. Data Input Object # 2'!T37 -> 0.3571428571 | T30: ='24. Data Input Object # 2'!U37 -> 0.4285714286 | U30: ='24. Data Input Object # 2'!V37 -> 0.5 | V30: ='24. Data Input Object # 2'!W37 -> 0.5 | W30: ='24. Data Input Object # 2'!X37 -> 0.5714285714 | X30: ='24. Data Input Object # 2'!Y37 -> 0.3571428571 | Y30: ='24. Data Input Object # 2'!Z37 -> 0.5 | Z30: ='24. Data Input Object # 2'!AA37 -> 0.4285714286 | AA30: ='24. Data Input Object # 2'!AB37 -> 0.5 | AB30: ='24. Data Input Object # 2'!AC37 -> 0.5 | AC30: ='24. Data Input Object # 2'!AD37 -> 0.4285714286 | AD30: ='24. Data Input Object # 2'!AE37 -> 0.2142857143 | AE30: ='24. Data Input Object # 2'!AF37 -> 0.3571428571 | AF30: ='24. Data Input Object # 2'!AG37 -> 0.5714285714 | AG30: ='24. Data Input Object # 2'!AH37 -> 0.4285714286 | AH30: ='24. Data Input Object # 2'!AI37 -> 0.2142857143 | AI30: ='24. Data Input Object # 2'!AJ37 -> 0.5 | AJ30: ='24. Data Input Object # 2'!AK37 ->  | AK30: ='24. Data Input Object # 2'!AL37 ->  | AL30: ='24. Data Input Object # 2'!AM37 ->  | AM30: ='24. Data Input Object # 2'!AN37 ->  | AN30: ='24. Data Input Object # 2'!AO37 ->  | AO30: ='24. Data Input Object # 2'!AP37 ->  | AP30: ='24. Data Input Object # 2'!AQ37 ->  | AQ30: ='24. Data Input Object # 2'!AR37 ->  | AR30: ='24. Data Input Object # 2'!AS37 ->  | AS30: ='24. Data Input Object # 2'!AT37 ->  | AT30: ='24. Data Input Object # 2'!AU37 ->  | AU30: ='24. Data Input Object # 2'!AV37 ->  | AV30: ='24. Data Input Object # 2'!AW37 ->  | AW30: ='24. Data Input Object # 2'!AX37 ->  | AX30: ='24. Data Input Object # 2'!AY37 ->  | AY30: ='24. Data Input Object # 2'!AZ37 ->  | AZ30: ='24. Data Input Object # 2'!BA37 ->  | BA30: ='24. Data Input Object # 2'!BB37 ->  | BB30: ='24. Data Input Object # 2'!BC37 ->  | BC30: ='24. Data Input Object # 2'!BD37 ->  | BD30: ='24. Data Input Object # 2'!BE37 ->  | BE30: ='24. Data Input Object # 2'!BF37 ->  | BF30: ='24. Data Input Object # 2'!BG37 ->  | BG30: ='24. Data Input Object # 2'!BH37 ->  | BH30: ='24. Data Input Object # 2'!BI37 ->  | BI30: ='24. Data Input Object # 2'!BJ37 ->  | BJ30: ='24. Data Input Object # 2'!BK37 ->  | BK30: ='24. Data Input Object # 2'!BL37 ->  | BL30: ='24. Data Input Object # 2'!BM37 ->  | BM30: ='24. Data Input Object # 2'!BN37 ->  | BN30: ='24. Data Input Object # 2'!BO37 ->  | BO30: ='24. Data Input Object # 2'!BP37 ->  | BP30: ='24. Data Input Object # 2'!BQ37 ->  | BQ30: ='24. Data Input Object # 2'!BR37 ->  | BR30: ='24. Data Input Object # 2'!BS37 ->  | BS30: ='24. Data Input Object # 2'!BT37 ->  | BT30: ='24. Data Input Object # 2'!BU37 ->  | BU30: ='24. Data Input Object # 2'!BV37 ->  | BV30: ='24. Data Input Object # 2'!BW37 ->  | BW30: ='24. Data Input Object # 2'!BX37 ->  | BX30: ='24. Data Input Object # 2'!BY37 ->  | BY30: ='24. Data Input Object # 2'!BZ37 ->  | BZ30: ='24. Data Input Object # 2'!CA37 -> 
A31: Actual POD Search Object Type #3 | B31: ='25. Data Input Object # 3'!C37 -> 0.4666666667 | C31: ='25. Data Input Object # 3'!D37 -> 0.4 | D31: ='25. Data Input Object # 3'!E37 -> 0.1333333333 | E31: ='25. Data Input Object # 3'!F37 -> 0.2 | F31: ='25. Data Input Object # 3'!G37 -> 0.2666666667 | G31: ='25. Data Input Object # 3'!H37 -> 0.4666666667 | H31: ='25. Data Input Object # 3'!I37 -> 0.7333333333 | I31: ='25. Data Input Object # 3'!J37 -> 0.3333333333 | J31: ='25. Data Input Object # 3'!K37 -> 0.2666666667 | K31: ='25. Data Input Object # 3'!L37 -> 0.4 | L31: ='25. Data Input Object # 3'!M37 -> 0.3333333333 | M31: ='25. Data Input Object # 3'!N37 -> 0.6 | N31: ='25. Data Input Object # 3'!O37 -> 0.4666666667 | O31: ='25. Data Input Object # 3'!P37 -> 0.4 | P31: ='25. Data Input Object # 3'!Q37 -> 0.3333333333 | Q31: ='25. Data Input Object # 3'!R37 -> 0.6 | R31: ='25. Data Input Object # 3'!S37 -> 0.3333333333 | S31: ='25. Data Input Object # 3'!T37 -> 0.3333333333 | T31: ='25. Data Input Object # 3'!U37 -> 0.4666666667 | U31: ='25. Data Input Object # 3'!V37 -> 0.3333333333 | V31: ='25. Data Input Object # 3'!W37 -> 0.3333333333 | W31: ='25. Data Input Object # 3'!X37 -> 0.2666666667 | X31: ='25. Data Input Object # 3'!Y37 -> 0.2666666667 | Y31: ='25. Data Input Object # 3'!Z37 -> 0.4 | Z31: ='25. Data Input Object # 3'!AA37 -> 0.4 | AA31: ='25. Data Input Object # 3'!AB37 -> 0.3333333333 | AB31: ='25. Data Input Object # 3'!AC37 -> 0.4666666667 | AC31: ='25. Data Input Object # 3'!AD37 -> 0.4666666667 | AD31: ='25. Data Input Object # 3'!AE37 -> 0.2666666667 | AE31: ='25. Data Input Object # 3'!AF37 -> 0.2666666667 | AF31: ='25. Data Input Object # 3'!AG37 -> 0.4 | AG31: ='25. Data Input Object # 3'!AH37 -> 0.4 | AH31: ='25. Data Input Object # 3'!AI37 -> 0.1333333333 | AI31: ='25. Data Input Object # 3'!AJ37 -> 0.2666666667 | AJ31: ='25. Data Input Object # 3'!AK37 ->  | AK31: ='25. Data Input Object # 3'!AL37 ->  | AL31: ='25. Data Input Object # 3'!AM37 ->  | AM31: ='25. Data Input Object # 3'!AN37 ->  | AN31: ='25. Data Input Object # 3'!AO37 ->  | AO31: ='25. Data Input Object # 3'!AP37 ->  | AP31: ='25. Data Input Object # 3'!AQ37 ->  | AQ31: ='25. Data Input Object # 3'!AR37 ->  | AR31: ='25. Data Input Object # 3'!AS37 ->  | AS31: ='25. Data Input Object # 3'!AT37 ->  | AT31: ='25. Data Input Object # 3'!AU37 ->  | AU31: ='25. Data Input Object # 3'!AV37 ->  | AV31: ='25. Data Input Object # 3'!AW37 ->  | AW31: ='25. Data Input Object # 3'!AX37 ->  | AX31: ='25. Data Input Object # 3'!AY37 ->  | AY31: ='25. Data Input Object # 3'!AZ37 ->  | AZ31: ='25. Data Input Object # 3'!BA37 ->  | BA31: ='25. Data Input Object # 3'!BB37 ->  | BB31: ='25. Data Input Object # 3'!BC37 ->  | BC31: ='25. Data Input Object # 3'!BD37 ->  | BD31: ='25. Data Input Object # 3'!BE37 ->  | BE31: ='25. Data Input Object # 3'!BF37 ->  | BF31: ='25. Data Input Object # 3'!BG37 ->  | BG31: ='25. Data Input Object # 3'!BH37 ->  | BH31: ='25. Data Input Object # 3'!BI37 ->  | BI31: ='25. Data Input Object # 3'!BJ37 ->  | BJ31: ='25. Data Input Object # 3'!BK37 ->  | BK31: ='25. Data Input Object # 3'!BL37 ->  | BL31: ='25. Data Input Object # 3'!BM37 ->  | BM31: ='25. Data Input Object # 3'!BN37 ->  | BN31: ='25. Data Input Object # 3'!BO37 ->  | BO31: ='25. Data Input Object # 3'!BP37 ->  | BP31: ='25. Data Input Object # 3'!BQ37 ->  | BQ31: ='25. Data Input Object # 3'!BR37 ->  | BR31: ='25. Data Input Object # 3'!BS37 ->  | BS31: ='25. Data Input Object # 3'!BT37 ->  | BT31: ='25. Data Input Object # 3'!BU37 ->  | BU31: ='25. Data Input Object # 3'!BV37 ->  | BV31: ='25. Data Input Object # 3'!BW37 ->  | BW31: ='25. Data Input Object # 3'!BX37 ->  | BX31: ='25. Data Input Object # 3'!BY37 ->  | BY31: ='25. Data Input Object # 3'!BZ37 ->  | BZ31: ='25. Data Input Object # 3'!CA37 -> 
A32: Actual POD Search Object Type #4 | B32: ='26. Data Input Object # 4'!C37 ->  | C32: ='26. Data Input Object # 4'!D37 ->  | D32: ='26. Data Input Object # 4'!E37 ->  | E32: ='26. Data Input Object # 4'!F37 ->  | F32: ='26. Data Input Object # 4'!G37 ->  | G32: ='26. Data Input Object # 4'!H37 ->  | H32: ='26. Data Input Object # 4'!I37 ->  | I32: ='26. Data Input Object # 4'!J37 ->  | J32: ='26. Data Input Object # 4'!K37 ->  | K32: ='26. Data Input Object # 4'!L37 ->  | L32: ='26. Data Input Object # 4'!M37 ->  | M32: ='26. Data Input Object # 4'!N37 ->  | N32: ='26. Data Input Object # 4'!O37 ->  | O32: ='26. Data Input Object # 4'!P37 ->  | P32: ='26. Data Input Object # 4'!Q37 ->  | Q32: ='26. Data Input Object # 4'!R37 ->  | R32: ='26. Data Input Object # 4'!S37 ->  | S32: ='26. Data Input Object # 4'!T37 ->  | T32: ='26. Data Input Object # 4'!U37 ->  | U32: ='26. Data Input Object # 4'!V37 ->  | V32: ='26. Data Input Object # 4'!W37 ->  | W32: ='26. Data Input Object # 4'!X37 ->  | X32: ='26. Data Input Object # 4'!Y37 ->  | Y32: ='26. Data Input Object # 4'!Z37 ->  | Z32: ='26. Data Input Object # 4'!AA37 ->  | AA32: ='26. Data Input Object # 4'!AB37 ->  | AB32: ='26. Data Input Object # 4'!AC37 ->  | AC32: ='26. Data Input Object # 4'!AD37 ->  | AD32: ='26. Data Input Object # 4'!AE37 ->  | AE32: ='26. Data Input Object # 4'!AF37 ->  | AF32: ='26. Data Input Object # 4'!AG37 ->  | AG32: ='26. Data Input Object # 4'!AH37 ->  | AH32: ='26. Data Input Object # 4'!AI37 ->  | AI32: ='26. Data Input Object # 4'!AJ37 ->  | AJ32: ='26. Data Input Object # 4'!AK37 ->  | AK32: ='26. Data Input Object # 4'!AL37 ->  | AL32: ='26. Data Input Object # 4'!AM37 ->  | AM32: ='26. Data Input Object # 4'!AN37 ->  | AN32: ='26. Data Input Object # 4'!AO37 ->  | AO32: ='26. Data Input Object # 4'!AP37 ->  | AP32: ='26. Data Input Object # 4'!AQ37 ->  | AQ32: ='26. Data Input Object # 4'!AR37 ->  | AR32: ='26. Data Input Object # 4'!AS37 ->  | AS32: ='26. Data Input Object # 4'!AT37 ->  | AT32: ='26. Data Input Object # 4'!AU37 ->  | AU32: ='26. Data Input Object # 4'!AV37 ->  | AV32: ='26. Data Input Object # 4'!AW37 ->  | AW32: ='26. Data Input Object # 4'!AX37 ->  | AX32: ='26. Data Input Object # 4'!AY37 ->  | AY32: ='26. Data Input Object # 4'!AZ37 ->  | AZ32: ='26. Data Input Object # 4'!BA37 ->  | BA32: ='26. Data Input Object # 4'!BB37 ->  | BB32: ='26. Data Input Object # 4'!BC37 ->  | BC32: ='26. Data Input Object # 4'!BD37 ->  | BD32: ='26. Data Input Object # 4'!BE37 ->  | BE32: ='26. Data Input Object # 4'!BF37 ->  | BF32: ='26. Data Input Object # 4'!BG37 ->  | BG32: ='26. Data Input Object # 4'!BH37 ->  | BH32: ='26. Data Input Object # 4'!BI37 ->  | BI32: ='26. Data Input Object # 4'!BJ37 ->  | BJ32: ='26. Data Input Object # 4'!BK37 ->  | BK32: ='26. Data Input Object # 4'!BL37 ->  | BL32: ='26. Data Input Object # 4'!BM37 ->  | BM32: ='26. Data Input Object # 4'!BN37 ->  | BN32: ='26. Data Input Object # 4'!BO37 ->  | BO32: ='26. Data Input Object # 4'!BP37 ->  | BP32: ='26. Data Input Object # 4'!BQ37 ->  | BQ32: ='26. Data Input Object # 4'!BR37 ->  | BR32: ='26. Data Input Object # 4'!BS37 ->  | BS32: ='26. Data Input Object # 4'!BT37 ->  | BT32: ='26. Data Input Object # 4'!BU37 ->  | BU32: ='26. Data Input Object # 4'!BV37 ->  | BV32: ='26. Data Input Object # 4'!BW37 ->  | BW32: ='26. Data Input Object # 4'!BX37 ->  | BX32: ='26. Data Input Object # 4'!BY37 ->  | BY32: ='26. Data Input Object # 4'!BZ37 ->  | BZ32: ='26. Data Input Object # 4'!CA37 -> 
A33: Delta POD Search Object Type #1 | B33: =IF(B25=0,"",ABS(B25-B29)) ->  | C33: =IF(C25=0,"",ABS(C25-C29)) ->  | BO33: =IF(BO25=0,"",ABS(BO25-BO29)) -> 
A34: Delta POD Search Object Type #2 | B34: =IF(B26=0,"",ABS(B26-B30)) ->  | C34: =IF(C26=0,"",ABS(C26-C30)) ->  | BO34: =IF(BO26=0,"",ABS(BO26-BO30)) -> 
A35: Delta POD Search Object Type #3 | B35: =IF(B26=0,"",ABS(B26-B31)) ->  | C35: =IF(C26=0,"",ABS(C26-C31)) ->  | BO35: =IF(BO26=0,"",ABS(BO26-BO31)) -> 
A36: Delta POD Search Object Type #4 | B36: =IF(B26=0,"",ABS(B26-B32)) ->  | C36: =IF(C26=0,"",ABS(C26-C32)) ->  | BO36: =IF(BO26=0,"",ABS(BO26-BO32)) -> 
A37: Temperature (F)
A38: Wind Speed (mph)
A39: Cloud Cover (%)
A40: Lux
A41: Light
A42: Precipitation (type and intensity)
A43: Meteorological Visibility
A44: Problems
A45: Optional question
A46: Optional question 2
A47: Willing to be data logger?
A48: email address
A49: Data logger: Looked backwards
A50: Data logger: looked sideways
A51: Data logger: stopped and searched
A52: Data logger: scanned systematically
A53: Data logger: Talked
A54: Data logger: Wore hat/hood

Sheet 28. Data Summary Object # 1
A1: Data Summary Search Object Type #1 | I1: ='2. Search Object Types'!M26 -> Adult High-Visibility
A2: Purpose: This worksheet allows the researcher to easily review the summary data involving detections of search object type # 1. It also sets up the two graphs
A3: used to determine the sweep width of search object type # 1. No data entry is required on this worksheet.
A4: Instructions: Click on the green button below to sort the data by lateral range values. The data should now be arranged from the smallest lateral range to the
A5: greatest lateral range. Chart One (Area under the curve for search object type # 1) and chart two (intersection of values) should automatically be generated. See
A6: further instructions found at someplace clever to determine the sweep width value.
A9: Location # | B9: LR | C9: Count | D9: Detections | E9: Misses | F9: % Detected | H9: Detcum | I9: Missescum | S9: Clue # | T9: LR | U9: Count | V9: Detections | W9: Misses | X9: % Detected | Z9: Det cum for chart | AA9: Misses cum for chart
A10: ='23. Data Input Object # 1'!A7 -> 8 | B10: =IF(A10=0,1000,'23. Data Input Object # 1'!B7) -> 4 | C10: ='23. Data Input Object # 1'!CB7 -> 34 | D10: ='23. Data Input Object # 1'!CC7 -> 34 | E10: ='23. Data Input Object # 1'!CD7 -> 0 | F10: =IF(A10=0,-1,D10/C10) -> 1 | H10: =SUM(V10:$V$39) -> 255 | I10: =SUM($W$10:W10) -> 0 | S10: =A10 -> 8 | T10: =IF(A10=0,T9,B10) -> 4 | U10: =C10 -> 34 | V10: =D10 -> 34 | W10: =E10 -> 0 | X10: =IF(A10=0,X9,V10/U10) -> 1 | Y10: =IF(AND(H10>I10,H11<I11),T10+(I10-H10)*(T11-T10)/((H11-H10)-(I11-I10)),IF(H10=I10,H10)) -> FALSE | Z10: =IF(A10=0,Z9,H10) -> 255 | AA10: =IF(A10=100,I9,I10) -> 0
A11: ='23. Data Input Object # 1'!A12 -> 20 | B11: =IF(A11=0,1000,'23. Data Input Object # 1'!B12) -> 5 | C11: ='23. Data Input Object # 1'!CB12 -> 34 | D11: ='23. Data Input Object # 1'!CC12 -> 32 | E11: ='23. Data Input Object # 1'!CD12 -> 2 | F11: 0.9411764706 | H11: =SUM(V11:$V$39) -> 221 | I11: =SUM($W$10:W11) -> 2 | S11: 20 | T11: 5 | U11: 34 | V11: 32 | W11: 2 | X11: 0.9411764706 | Y11: FALSE | Z11: 221 | AA11: 2
A12: ='23. Data Input Object # 1'!A17 -> 36 | B12: =IF(A12=0,1000,'23. Data Input Object # 1'!B17) -> 7 | C12: ='23. Data Input Object # 1'!CB17 -> 34 | D12: ='23. Data Input Object # 1'!CC17 -> 32 | E12: ='23. Data Input Object # 1'!CD17 -> 2 | F12: 0.9411764706 | H12: =SUM(V12:$V$39) -> 189 | I12: =SUM($W$10:W12) -> 4 | S12: 36 | T12: 7 | U12: 34 | V12: 32 | W12: 2 | X12: 0.9411764706 | Y12: FALSE | Z12: 189 | AA12: 4
A13: ='23. Data Input Object # 1'!A18 -> 41 | B13: =IF(A13=0,1000,'23. Data Input Object # 1'!B18) -> 11 | C13: ='23. Data Input Object # 1'!CB18 -> 34 | D13: ='23. Data Input Object # 1'!CC18 -> 34 | E13: ='23. Data Input Object # 1'!CD18 -> 0 | F13: 1 | H13: =SUM(V13:$V$39) -> 157 | I13: =SUM($W$10:W13) -> 4 | S13: 41 | T13: 11 | U13: 34 | V13: 34 | W13: 0 | X13: 1 | Y13: FALSE | Z13: 157 | AA13: 4
A14: ='23. Data Input Object # 1'!A8 -> 10 | B14: =IF(A14=0,1000,'23. Data Input Object # 1'!B8) -> 15 | C14: ='23. Data Input Object # 1'!CB8 -> 34 | D14: ='23. Data Input Object # 1'!CC8 -> 27 | E14: ='23. Data Input Object # 1'!CD8 -> 7 | F14: 0.7941176471 | H14: =SUM(V14:$V$39) -> 123 | I14: =SUM($W$10:W14) -> 11 | S14: 10 | T14: 15 | U14: 34 | V14: 27 | W14: 7 | X14: 0.7941176471 | Y14: FALSE | Z14: 123 | AA14: 11
A15: ='23. Data Input Object # 1'!A9 -> 11 | B15: =IF(A15=0,1000,'23. Data Input Object # 1'!B9) -> 15 | C15: ='23. Data Input Object # 1'!CB9 -> 34 | D15: ='23. Data Input Object # 1'!CC9 -> 28 | E15: ='23. Data Input Object # 1'!CD9 -> 6 | F15: 0.8235294118 | H15: =SUM(V15:$V$39) -> 96 | I15: =SUM($W$10:W15) -> 17 | S15: 11 | T15: 15 | U15: 34 | V15: 28 | W15: 6 | X15: 0.8235294118 | Y15: FALSE | Z15: 96 | AA15: 17
A16: ='23. Data Input Object # 1'!A5 -> 1 | B16: =IF(A16=0,1000,'23. Data Input Object # 1'!B5) -> 19 | C16: ='23. Data Input Object # 1'!CB5 -> 34 | D16: ='23. Data Input Object # 1'!CC5 -> 16 | E16: ='23. Data Input Object # 1'!CD5 -> 18 | F16: 0.4705882353 | H16: =SUM(V16:$V$39) -> 68 | I16: =SUM($W$10:W16) -> 35 | S16: 1 | T16: 19 | U16: 34 | V16: 16 | W16: 18 | X16: 0.4705882353 | Y16: 21.75 | Z16: 68 | AA16: 35
A17: ='23. Data Input Object # 1'!A15 -> 30 | B17: =IF(A17=0,1000,'23. Data Input Object # 1'!B15) -> 23 | C17: ='23. Data Input Object # 1'!CB15 -> 34 | D17: ='23. Data Input Object # 1'!CC15 -> 2 | E17: ='23. Data Input Object # 1'!CD15 -> 32 | F17: 0.05882352941 | H17: =SUM(V17:$V$39) -> 52 | I17: =SUM($W$10:W17) -> 67 | S17: 30 | T17: 23 | U17: 34 | V17: 2 | W17: 32 | X17: 0.05882352941 | Y17: =IF(AND(H17>I17,H23<I23),T17+(I17-H17)*(T23-T17)/((H23-H17)-(I23-I17)),IF(H17=I17,H17)) -> FALSE | Z17: 52 | AA17: 67
A18: ='23. Data Input Object # 1'!A16 -> 32 | B18: =IF(A18=0,1000,'23. Data Input Object # 1'!B16) -> 29 | C18: ='23. Data Input Object # 1'!CB16 -> 34 | D18: ='23. Data Input Object # 1'!CC16 -> 1 | E18: ='23. Data Input Object # 1'!CD16 -> 33 | F18: 0.02941176471 | H18: =SUM(V18:$V$39) -> 50 | I18: =SUM($W$10:W18) -> 100 | S18: 32 | T18: 29 | U18: 34 | V18: 1 | W18: 33 | X18: 0.02941176471 | Y18: FALSE | Z18: 50 | AA18: 100
A19: ='23. Data Input Object # 1'!A14 -> 22 | B19: =IF(A19=0,1000,'23. Data Input Object # 1'!B14) -> 36 | C19: ='23. Data Input Object # 1'!CB14 -> 34 | D19: ='23. Data Input Object # 1'!CC14 -> 0 | E19: ='23. Data Input Object # 1'!CD14 -> 34 | F19: 0 | H19: =SUM(V19:$V$39) -> 49 | I19: =SUM($W$10:W19) -> 134 | S19: 22 | T19: 36 | U19: 34 | V19: 0 | W19: 34 | X19: 0 | Y19: FALSE | Z19: 49 | AA19: 134
A20: ='23. Data Input Object # 1'!A6 -> 5 | B20: =IF(A20=0,1000,'23. Data Input Object # 1'!B6) -> 36 | C20: ='23. Data Input Object # 1'!CB6 -> 34 | D20: ='23. Data Input Object # 1'!CC6 -> 28 | E20: ='23. Data Input Object # 1'!CD6 -> 6 | F20: 0.8235294118 | H20: =SUM(V20:$V$39) -> 49 | I20: =SUM($W$10:W20) -> 140 | S20: 5 | T20: 36 | U20: 34 | V20: 28 | W20: 6 | X20: 0.8235294118 | Y20: FALSE | Z20: 49 | AA20: 140
A21: ='23. Data Input Object # 1'!A11 -> 19 | B21: =IF(A21=0,1000,'23. Data Input Object # 1'!B11) -> 37 | C21: ='23. Data Input Object # 1'!CB11 -> 34 | D21: ='23. Data Input Object # 1'!CC11 -> 0 | E21: ='23. Data Input Object # 1'!CD11 -> 34 | F21: 0 | H21: =SUM(V21:$V$39) -> 21 | I21: =SUM($W$10:W21) -> 174 | S21: 19 | T21: 37 | U21: 34 | V21: 0 | W21: 34 | X21: 0 | Y21: FALSE | Z21: 21 | AA21: 174
A22: ='23. Data Input Object # 1'!A13 -> 21 | B22: =IF(A22=0,1000,'23. Data Input Object # 1'!B13) -> 40 | C22: ='23. Data Input Object # 1'!CB13 -> 34 | D22: ='23. Data Input Object # 1'!CC13 -> 21 | E22: ='23. Data Input Object # 1'!CD13 -> 13 | F22: 0.6176470588 | H22: =SUM(V22:$V$39) -> 21 | I22: =SUM($W$10:W22) -> 187 | S22: 21 | T22: 40 | U22: 34 | V22: 21 | W22: 13 | X22: 0.6176470588 | Y22: FALSE | Z22: 21 | AA22: 187
A23: ='23. Data Input Object # 1'!A21 -> 47v | B23: =IF(A23=0,1000,'23. Data Input Object # 1'!B21) -> 52 | C23: ='23. Data Input Object # 1'!CB21 -> 34 | D23: ='23. Data Input Object # 1'!CC21 -> 0 | E23: ='23. Data Input Object # 1'!CD21 -> 34 | F23: 0 | H23: =SUM(V23:$V$39) -> 0 | I23: =SUM($W$10:W23) -> 221 | S23: 47v | T23: 52 | U23: 34 | V23: 0 | W23: 34 | X23: 0 | Y23: FALSE | Z23: 0 | AA23: 221
A24: ='23. Data Input Object # 1'!A20 -> 46v | B24: =IF(A24=0,1000,'23. Data Input Object # 1'!B20) -> 62 | C24: ='23. Data Input Object # 1'!CB20 -> 34 | D24: ='23. Data Input Object # 1'!CC20 -> 0 | E24: ='23. Data Input Object # 1'!CD20 -> 34 | F24: 0 | H24: =SUM(V24:$V$39) -> 0 | I24: =SUM($W$10:W24) -> 255 | S24: 46v | T24: 62 | U24: 34 | V24: 0 | W24: 34 | X24: 0 | Y24: FALSE | Z24: 0 | AA24: 255
A25: ='23. Data Input Object # 1'!A10 -> 15 | B25: =IF(A25=0,1000,'23. Data Input Object # 1'!B10) -> 67 | C25: ='23. Data Input Object # 1'!CB10 -> 34 | D25: ='23. Data Input Object # 1'!CC10 -> 0 | E25: ='23. Data Input Object # 1'!CD10 -> 34 | F25: 0 | H25: =SUM(V25:$V$39) -> 0 | I25: =SUM($W$10:W25) -> 289 | S25: 15 | T25: 67 | U25: 34 | V25: 0 | W25: 34 | X25: 0 | Y25: FALSE | Z25: 0 | AA25: 289
A26: ='23. Data Input Object # 1'!A19 -> 44v | B26: =IF(A26=0,1000,'23. Data Input Object # 1'!B19) -> 67 | C26: ='23. Data Input Object # 1'!CB19 -> 34 | D26: ='23. Data Input Object # 1'!CC19 -> 0 | E26: ='23. Data Input Object # 1'!CD19 -> 34 | F26: 0 | H26: =SUM(V26:$V$39) -> 0 | I26: =SUM($W$10:W26) -> 323 | S26: 44v | T26: 67 | U26: 34 | V26: 0 | W26: 34 | X26: 0 | Y26: FALSE | Z26: 0 | AA26: 323
A27: ='23. Data Input Object # 1'!A22 -> 0 | B27: =IF(A27=0,1000,'23. Data Input Object # 1'!B22) -> 1000 | C27: ='23. Data Input Object # 1'!CB22 -> 0 | D27: ='23. Data Input Object # 1'!CC22 -> 0 | E27: ='23. Data Input Object # 1'!CD22 -> 0 | F27: -1 | H27: =SUM(V27:$V$39) -> 0 | I27: =SUM($W$10:W27) -> 323 | S27: 0 | T27: 67 | U27: 0 | V27: 0 | W27: 0 | X27: 0 | Y27: FALSE | Z27: 0 | AA27: 323
A28: ='23. Data Input Object # 1'!A23 -> 0 | B28: =IF(A28=0,1000,'23. Data Input Object # 1'!B23) -> 1000 | C28: ='23. Data Input Object # 1'!CB23 -> 0 | D28: ='23. Data Input Object # 1'!CC23 -> 0 | E28: ='23. Data Input Object # 1'!CD23 -> 0 | F28: -1 | H28: =SUM(V28:$V$39) -> 0 | I28: =SUM($W$10:W28) -> 323 | S28: 0 | T28: 67 | U28: 0 | V28: 0 | W28: 0 | X28: 0 | Y28: FALSE | Z28: 0 | AA28: 323
A29: ='23. Data Input Object # 1'!A24 -> 0 | B29: =IF(A29=0,1000,'23. Data Input Object # 1'!B24) -> 1000 | C29: ='23. Data Input Object # 1'!CB24 -> 0 | D29: ='23. Data Input Object # 1'!CC24 -> 0 | E29: ='23. Data Input Object # 1'!CD24 -> 0 | F29: -1 | H29: =SUM(V29:$V$39) -> 0 | I29: =SUM($W$10:W29) -> 323 | S29: 0 | T29: 67 | U29: 0 | V29: 0 | W29: 0 | X29: 0 | Y29: FALSE | Z29: 0 | AA29: 323
A30: ='23. Data Input Object # 1'!A25 -> 0 | B30: =IF(A30=0,1000,'23. Data Input Object # 1'!B25) -> 1000 | C30: ='23. Data Input Object # 1'!CB25 -> 0 | D30: ='23. Data Input Object # 1'!CC25 -> 0 | E30: ='23. Data Input Object # 1'!CD25 -> 0 | F30: -1 | H30: =SUM(V30:$V$39) -> 0 | I30: =SUM($W$10:W30) -> 323 | S30: 0 | T30: 67 | U30: 0 | V30: 0 | W30: 0 | X30: 0 | Y30: FALSE | Z30: 0 | AA30: 323
A31: ='23. Data Input Object # 1'!A26 -> 0 | B31: =IF(A31=0,1000,'23. Data Input Object # 1'!B26) -> 1000 | C31: ='23. Data Input Object # 1'!CB26 -> 0 | D31: ='23. Data Input Object # 1'!CC26 -> 0 | E31: ='23. Data Input Object # 1'!CD26 -> 0 | F31: -1 | H31: =SUM(V31:$V$39) -> 0 | I31: =SUM($W$10:W31) -> 323 | S31: 0 | T31: 67 | U31: 0 | V31: 0 | W31: 0 | X31: 0 | Y31: FALSE | Z31: 0 | AA31: 323
A32: ='23. Data Input Object # 1'!A27 -> 0 | B32: =IF(A32=0,1000,'23. Data Input Object # 1'!B27) -> 1000 | C32: ='23. Data Input Object # 1'!CB27 -> 0 | D32: ='23. Data Input Object # 1'!CC27 -> 0 | E32: ='23. Data Input Object # 1'!CD27 -> 0 | F32: -1 | H32: =SUM(V32:$V$39) -> 0 | I32: =SUM($W$10:W32) -> 323 | S32: 0 | T32: 67 | U32: 0 | V32: 0 | W32: 0 | X32: 0 | Y32: FALSE | Z32: 0 | AA32: 323
A33: ='23. Data Input Object # 1'!A28 -> 0 | B33: =IF(A33=0,1000,'23. Data Input Object # 1'!B28) -> 1000 | C33: ='23. Data Input Object # 1'!CB28 -> 0 | D33: ='23. Data Input Object # 1'!CC28 -> 0 | E33: ='23. Data Input Object # 1'!CD28 -> 0 | F33: -1 | H33: =SUM(V33:$V$39) -> 0 | I33: =SUM($W$10:W33) -> 323 | S33: 0 | T33: 67 | U33: 0 | V33: 0 | W33: 0 | X33: 0 | Y33: FALSE | Z33: 0 | AA33: 323
A34: ='23. Data Input Object # 1'!A29 -> 0 | B34: =IF(A34=0,1000,'23. Data Input Object # 1'!B29) -> 1000 | C34: ='23. Data Input Object # 1'!CB29 -> 0 | D34: ='23. Data Input Object # 1'!CC29 -> 0 | E34: ='23. Data Input Object # 1'!CD29 -> 0 | F34: -1 | H34: =SUM(V34:$V$39) -> 0 | I34: =SUM($W$10:W34) -> 323 | S34: 0 | T34: 67 | U34: 0 | V34: 0 | W34: 0 | X34: 0 | Y34: =IF(AND(H34>I34,H41<I41),T34+(I34-H34)*(T41-T34)/((H41-H34)-(I41-I34)),IF(H34=I34,H34)) -> FALSE | Z34: 0 | AA34: 323
A35: ='23. Data Input Object # 1'!A30 -> 0 | B35: =IF(A35=0,1000,'23. Data Input Object # 1'!B30) -> 1000 | C35: ='23. Data Input Object # 1'!CB30 -> 0 | D35: ='23. Data Input Object # 1'!CC30 -> 0 | E35: ='23. Data Input Object # 1'!CD30 -> 0 | F35: -1 | H35: =SUM(V35:$V$39) -> 0 | I35: =SUM($W$10:W35) -> 323 | S35: 0 | T35: 67 | U35: 0 | V35: 0 | W35: 0 | X35: 0 | Y35: FALSE | Z35: 0 | AA35: 323
A36: ='23. Data Input Object # 1'!A31 -> 0 | B36: =IF(A36=0,1000,'23. Data Input Object # 1'!B31) -> 1000 | C36: ='23. Data Input Object # 1'!CB31 -> 0 | D36: ='23. Data Input Object # 1'!CC31 -> 0 | E36: ='23. Data Input Object # 1'!CD31 -> 0 | F36: -1 | H36: =SUM(V36:$V$39) -> 0 | I36: =SUM($W$10:W36) -> 323 | S36: 0 | T36: 67 | U36: 0 | V36: 0 | W36: 0 | X36: 0 | Y36: FALSE | Z36: 0 | AA36: 323
A37: ='23. Data Input Object # 1'!A32 -> 0 | B37: =IF(A37=0,1000,'23. Data Input Object # 1'!B32) -> 1000 | C37: ='23. Data Input Object # 1'!CB32 -> 0 | D37: ='23. Data Input Object # 1'!CC32 -> 0 | E37: ='23. Data Input Object # 1'!CD32 -> 0 | F37: -1 | H37: =SUM(V37:$V$39) -> 0 | I37: =SUM($W$10:W37) -> 323 | S37: 0 | T37: 67 | U37: 0 | V37: 0 | W37: 0 | X37: 0 | Y37: FALSE | Z37: 0 | AA37: 323
A38: ='23. Data Input Object # 1'!A33 -> 0 | B38: =IF(A38=0,1000,'23. Data Input Object # 1'!B33) -> 1000 | C38: ='23. Data Input Object # 1'!CB33 -> 0 | D38: ='23. Data Input Object # 1'!CC33 -> 0 | E38: ='23. Data Input Object # 1'!CD33 -> 0 | F38: -1 | H38: =SUM(V38:$V$39) -> 0 | I38: =SUM($W$10:W38) -> 323 | S38: 0 | T38: 67 | U38: 0 | V38: 0 | W38: 0 | X38: 0 | Y38: FALSE | Z38: 0 | AA38: 323
A39: ='23. Data Input Object # 1'!A34 -> 0 | B39: =IF(A39=0,1000,'23. Data Input Object # 1'!B34) -> 1000 | C39: ='23. Data Input Object # 1'!CB34 -> 0 | D39: ='23. Data Input Object # 1'!CC34 -> 0 | E39: ='23. Data Input Object # 1'!CD34 -> 0 | F39: -1 | H39: =SUM(V39:$V$39) -> 0 | I39: =SUM($W$10:W39) -> 323 | S39: 0 | T39: 67 | U39: 0 | V39: 0 | W39: 0 | X39: 0 | Y39: FALSE | Z39: 0 | AA39: 323
A41: Checksums | C41: =SUM(C10:C39) -> 578 | D41: =SUM(D10:D39) -> 255 | E41: =SUM(E10:E39) -> 323
A42: Effective Sweep Width: | E42: =2*MAX(Y9:Y38) -> 43.5 | F42: ='46. Calculations'!P9 -> Yards
A43: Max POD | C43: =MAX(F11:F41) -> 1

Sheet 31. Data Summary Object # 2
A1: Data Summary Object # 2 | F1: ='24. Data Input Object # 2'!K1 -> Clue High-Visibility
A2: Purpose: This worksheet allows the researcher to easily review the summary data involving detections of search object type # 2. It also sets up the two graphs
A3: used to determine the sweep width of search object type # 2. No data entry is required on this worksheet.
A4: Instructions: Click on the green button below to sort the data by lateral range values. The data should now be arranged from the smallest lateral range to the
A5: greatest lateral range. Chart One (Area under the curve for search object type # 2) and chart two (intersection of values) should automatically be generated. See
A6: instructions found at someplace clever to determine the sweep width value.
A9: Location # | B9: LR | C9: Count | D9: Detections | E9: Misses | F9: % Detected | H9: Detcum | I9: Missescum | S9: Clue # | T9: LR | U9: Count | V9: Detections | W9: Misses | X9: % Detected
A10: ='24. Data Input Object # 2'!A7 -> 6 | B10: =IF(A10=0,1000,'24. Data Input Object # 2'!B7) -> 1 | C10: ='24. Data Input Object # 2'!CB7 -> 34 | D10: ='24. Data Input Object # 2'!CC7 -> 33 | E10: ='24. Data Input Object # 2'!CD7 -> 1 | F10: =IF(A10=0,-1,D10/C10) -> 0.9705882353 | H10: =SUM(V10:$V$39) -> 226 | I10: =SUM($W$10:W10) -> 1 | S10: =A10 -> 6 | T10: =IF(A10=0,T9,B10) -> 1 | U10: =C10 -> 34 | V10: =D10 -> 33 | W10: =E10 -> 1 | X10: =IF(A10=0,X9,V10/U10) -> 0.9705882353 | Y10: =IF(AND(H10>I10,H11<I11),T10+(I10-H10)*(T11-T10)/((H11-H10)-(I11-I10)),IF(H10=I10,I10)) -> FALSE
A11: ='24. Data Input Object # 2'!A14 -> 26 | B11: =IF(A11=0,1000,'24. Data Input Object # 2'!B14) -> 2 | C11: ='24. Data Input Object # 2'!CB14 -> 34 | D11: ='24. Data Input Object # 2'!CC14 -> 33 | E11: ='24. Data Input Object # 2'!CD14 -> 1 | F11: 0.9705882353 | H11: =SUM(V11:$V$39) -> 193 | I11: =SUM($W$10:W11) -> 2 | S11: 26 | T11: =IF(A11=0,T10,B11) -> 2 | U11: 34 | V11: 33 | W11: 1 | X11: =IF(A11=0,X10,V11/U11) -> 0.9705882353 | Y11: FALSE
A12: ='24. Data Input Object # 2'!A18 -> 39 | B12: =IF(A12=0,1000,'24. Data Input Object # 2'!B18) -> 4 | C12: ='24. Data Input Object # 2'!CB18 -> 34 | D12: ='24. Data Input Object # 2'!CC18 -> 31 | E12: ='24. Data Input Object # 2'!CD18 -> 3 | F12: 0.9117647059 | H12: =SUM(V12:$V$39) -> 160 | I12: =SUM($W$10:W12) -> 5 | S12: 39 | T12: 4 | U12: 34 | V12: 31 | W12: 3 | X12: 0.9117647059 | Y12: FALSE
A13: ='24. Data Input Object # 2'!A11 -> 16 | B13: =IF(A13=0,1000,'24. Data Input Object # 2'!B11) -> 9 | C13: ='24. Data Input Object # 2'!CB11 -> 34 | D13: ='24. Data Input Object # 2'!CC11 -> 16 | E13: ='24. Data Input Object # 2'!CD11 -> 18 | F13: 0.4705882353 | H13: =SUM(V13:$V$39) -> 129 | I13: =SUM($W$10:W13) -> 23 | S13: 16 | T13: 9 | U13: 34 | V13: 16 | W13: 18 | X13: 0.4705882353 | Y13: FALSE
A14: ='24. Data Input Object # 2'!A9 -> 12 | B14: =IF(A14=0,1000,'24. Data Input Object # 2'!B9) -> 9 | C14: ='24. Data Input Object # 2'!CB9 -> 34 | D14: ='24. Data Input Object # 2'!CC9 -> 28 | E14: ='24. Data Input Object # 2'!CD9 -> 6 | F14: 0.8235294118 | H14: =SUM(V14:$V$39) -> 113 | I14: =SUM($W$10:W14) -> 29 | S14: 12 | T14: 9 | U14: 34 | V14: 28 | W14: 6 | X14: 0.8235294118 | Y14: FALSE
A15: ='24. Data Input Object # 2'!A15 -> 31 | B15: =IF(A15=0,1000,'24. Data Input Object # 2'!B15) -> 12 | C15: ='24. Data Input Object # 2'!CB15 -> 34 | D15: ='24. Data Input Object # 2'!CC15 -> 4 | E15: ='24. Data Input Object # 2'!CD15 -> 30 | F15: 0.1176470588 | H15: =SUM(V15:$V$39) -> 85 | I15: =SUM($W$10:W15) -> 59 | S15: 31 | T15: 12 | U15: 34 | V15: 4 | W15: 30 | X15: 0.1176470588 | Y15: 12
A16: ='24. Data Input Object # 2'!A16 -> 33 | B16: =IF(A16=0,1000,'24. Data Input Object # 2'!B16) -> 12 | C16: ='24. Data Input Object # 2'!CB16 -> 34 | D16: ='24. Data Input Object # 2'!CC16 -> 2 | E16: ='24. Data Input Object # 2'!CD16 -> 32 | F16: 0.05882352941 | H16: =SUM(V16:$V$39) -> 81 | I16: =SUM($W$10:W16) -> 91 | S16: 33 | T16: 12 | U16: 34 | V16: 2 | W16: 32 | X16: 0.05882352941 | Y16: FALSE
A17: ='24. Data Input Object # 2'!A12 -> 17 | B17: =IF(A17=0,1000,'24. Data Input Object # 2'!B12) -> 16 | C17: ='24. Data Input Object # 2'!CB12 -> 0 | D17: ='24. Data Input Object # 2'!CC12 -> 0 | E17: ='24. Data Input Object # 2'!CD12 -> 0 | H17: =SUM(V17:$V$39) -> 79 | I17: =SUM($W$10:W17) -> 91 | S17: 17 | T17: 16 | U17: 0 | V17: 0 | W17: 0 | Y17: FALSE
A18: ='24. Data Input Object # 2'!A17 -> 38 | B18: =IF(A18=0,1000,'24. Data Input Object # 2'!B17) -> 16 | C18: ='24. Data Input Object # 2'!CB17 -> 34 | D18: ='24. Data Input Object # 2'!CC17 -> 2 | E18: ='24. Data Input Object # 2'!CD17 -> 32 | F18: =IF(A18=0,-1,D18/C18) -> 0.05882352941 | H18: =SUM(V18:$V$39) -> 79 | I18: =SUM($W$10:W18) -> 123 | S18: 38 | T18: 16 | U18: 34 | V18: 2 | W18: 32 | X18: 0.05882352941 | Y18: FALSE
A19: ='24. Data Input Object # 2'!A5 -> 2 | B19: =IF(A19=0,1000,'24. Data Input Object # 2'!B5) -> 17 | C19: ='24. Data Input Object # 2'!CB5 -> 34 | D19: ='24. Data Input Object # 2'!CC5 -> 32 | E19: ='24. Data Input Object # 2'!CD5 -> 2 | F19: 0.9411764706 | H19: =SUM(V19:$V$39) -> 77 | I19: =SUM($W$10:W19) -> 125 | S19: 2 | T19: 17 | U19: 34 | V19: 32 | W19: 2 | X19: 0.9411764706 | Y19: FALSE
A20: ='24. Data Input Object # 2'!A13 -> 24 | B20: =IF(A20=0,1000,'24. Data Input Object # 2'!B13) -> 25 | C20: ='24. Data Input Object # 2'!CB13 -> 34 | D20: ='24. Data Input Object # 2'!CC13 -> 25 | E20: ='24. Data Input Object # 2'!CD13 -> 9 | F20: 0.7352941176 | H20: =SUM(V20:$V$39) -> 45 | I20: =SUM($W$10:W20) -> 134 | S20: 24 | T20: 25 | U20: 34 | V20: 25 | W20: 9 | X20: 0.7352941176 | Y20: FALSE
A21: ='24. Data Input Object # 2'!A19 -> 48v | B21: =IF(A21=0,1000,'24. Data Input Object # 2'!B19) -> 25 | C21: ='24. Data Input Object # 2'!CB19 -> 34 | D21: ='24. Data Input Object # 2'!CC19 -> 0 | E21: ='24. Data Input Object # 2'!CD19 -> 34 | F21: 0 | H21: =SUM(V21:$V$39) -> 20 | I21: =SUM($W$10:W21) -> 168 | S21: 48v | T21: 25 | U21: 34 | V21: 0 | W21: 34 | X21: 0 | Y21: FALSE
A22: ='24. Data Input Object # 2'!A10 -> 14 | B22: =IF(A22=0,1000,'24. Data Input Object # 2'!B10) -> 26 | C22: ='24. Data Input Object # 2'!CB10 -> 34 | D22: ='24. Data Input Object # 2'!CC10 -> 17 | E22: ='24. Data Input Object # 2'!CD10 -> 17 | F22: 0.5 | H22: =SUM(V22:$V$39) -> 20 | I22: =SUM($W$10:W22) -> 185 | S22: 14 | T22: 26 | U22: 34 | V22: 17 | W22: 17 | X22: 0.5 | Y22: FALSE
A23: ='24. Data Input Object # 2'!A8 -> 9 | B23: =IF(A23=0,1000,'24. Data Input Object # 2'!B8) -> 32 | C23: ='24. Data Input Object # 2'!CB8 -> 34 | D23: ='24. Data Input Object # 2'!CC8 -> 2 | E23: ='24. Data Input Object # 2'!CD8 -> 32 | F23: 0.05882352941 | H23: =SUM(V23:$V$39) -> 3 | I23: =SUM($W$10:W23) -> 217 | S23: 9 | T23: 32 | U23: 34 | V23: 2 | W23: 32 | X23: 0.05882352941 | Y23: FALSE
A24: ='24. Data Input Object # 2'!A6 -> 4 | B24: =IF(A24=0,1000,'24. Data Input Object # 2'!B6) -> 32 | C24: ='24. Data Input Object # 2'!CB6 -> 34 | D24: ='24. Data Input Object # 2'!CC6 -> 1 | E24: ='24. Data Input Object # 2'!CD6 -> 33 | F24: 0.02941176471 | H24: =SUM(V24:$V$39) -> 1 | I24: =SUM($W$10:W24) -> 250 | S24: 4 | T24: 32 | U24: 34 | V24: 1 | W24: 33 | X24: 0.02941176471 | Y24: FALSE
A25: ='24. Data Input Object # 2'!A20 -> 0 | B25: =IF(A25=0,1000,'24. Data Input Object # 2'!B20) -> 1000 | C25: ='24. Data Input Object # 2'!CB20 -> 0 | D25: ='24. Data Input Object # 2'!CC20 -> 0 | E25: ='24. Data Input Object # 2'!CD20 -> 0 | F25: -1 | H25: =SUM(V25:$V$39) -> 0 | I25: =SUM($W$10:W25) -> 250 | S25: 0 | T25: 32 | U25: 0 | V25: 0 | W25: 0 | X25: 0.02941176471 | Y25: =IF(AND(H25>I25,H31<I31),T25+(I25-H25)*(T31-T25)/((H31-H25)-(I31-I25)),IF(H25=I25,I25)) -> FALSE
A26: ='24. Data Input Object # 2'!A21 -> 0 | B26: =IF(A26=0,1000,'24. Data Input Object # 2'!B21) -> 1000 | C26: ='24. Data Input Object # 2'!CB21 -> 0 | D26: ='24. Data Input Object # 2'!CC21 -> 0 | E26: ='24. Data Input Object # 2'!CD21 -> 0 | F26: -1 | H26: =SUM(V26:$V$39) -> 0 | I26: =SUM($W$10:W26) -> 250 | S26: =A26 -> 0 | T26: 32 | U26: =C26 -> 0 | V26: =D26 -> 0 | W26: =E26 -> 0 | X26: 0.02941176471 | Y26: =IF(AND(H26>I26,H32<I32),T26+(I26-H26)*(T32-T26)/((H32-H26)-(I32-I26)),IF(H26=I26,I26)) -> FALSE
A27: ='24. Data Input Object # 2'!A22 -> 0 | B27: =IF(A27=0,1000,'24. Data Input Object # 2'!B22) -> 1000 | C27: ='24. Data Input Object # 2'!CB22 -> 0 | D27: ='24. Data Input Object # 2'!CC22 -> 0 | E27: ='24. Data Input Object # 2'!CD22 -> 0 | F27: -1 | H27: =SUM(V27:$V$39) -> 0 | I27: =SUM($W$10:W27) -> 250 | S27: 0 | T27: 32 | U27: 0 | V27: 0 | W27: 0 | X27: 0.02941176471 | Y27: FALSE
A28: ='24. Data Input Object # 2'!A23 -> 0 | B28: =IF(A28=0,1000,'24. Data Input Object # 2'!B23) -> 1000 | C28: ='24. Data Input Object # 2'!CB23 -> 0 | D28: ='24. Data Input Object # 2'!CC23 -> 0 | E28: ='24. Data Input Object # 2'!CD23 -> 0 | F28: -1 | H28: =SUM(V28:$V$39) -> 0 | I28: =SUM($W$10:W28) -> 250 | S28: 0 | T28: 32 | U28: 0 | V28: 0 | W28: 0 | X28: 0.02941176471 | Y28: FALSE
A29: ='24. Data Input Object # 2'!A24 -> 0 | B29: =IF(A29=0,1000,'24. Data Input Object # 2'!B24) -> 1000 | C29: ='24. Data Input Object # 2'!CB24 -> 0 | D29: ='24. Data Input Object # 2'!CC24 -> 0 | E29: ='24. Data Input Object # 2'!CD24 -> 0 | F29: -1 | H29: =SUM(V29:$V$39) -> 0 | I29: =SUM($W$10:W29) -> 250 | S29: 0 | T29: 32 | U29: 0 | V29: 0 | W29: 0 | X29: 0.02941176471 | Y29: FALSE
A30: ='24. Data Input Object # 2'!A25 -> 0 | B30: =IF(A30=0,1000,'24. Data Input Object # 2'!B25) -> 1000 | C30: ='24. Data Input Object # 2'!CB25 -> 0 | D30: ='24. Data Input Object # 2'!CC25 -> 0 | E30: ='24. Data Input Object # 2'!CD25 -> 0 | F30: -1 | H30: =SUM(V30:$V$39) -> 0 | I30: =SUM($W$10:W30) -> 250 | S30: 0 | T30: 32 | U30: 0 | V30: 0 | W30: 0 | X30: 0.02941176471 | Y30: FALSE
A31: ='24. Data Input Object # 2'!A26 -> 0 | B31: =IF(A31=0,1000,'24. Data Input Object # 2'!B26) -> 1000 | C31: ='24. Data Input Object # 2'!CB26 -> 0 | D31: ='24. Data Input Object # 2'!CC26 -> 0 | E31: ='24. Data Input Object # 2'!CD26 -> 0 | F31: -1 | H31: =SUM(V31:$V$39) -> 0 | I31: =SUM($W$10:W31) -> 250 | S31: 0 | T31: 32 | U31: 0 | V31: 0 | W31: 0 | X31: 0.02941176471 | Y31: FALSE
A32: ='24. Data Input Object # 2'!A27 -> 0 | B32: =IF(A32=0,1000,'24. Data Input Object # 2'!B27) -> 1000 | C32: ='24. Data Input Object # 2'!CB27 -> 0 | D32: ='24. Data Input Object # 2'!CC27 -> 0 | E32: ='24. Data Input Object # 2'!CD27 -> 0 | F32: -1 | H32: =SUM(V32:$V$39) -> 0 | I32: =SUM($W$10:W32) -> 250 | S32: 0 | T32: 32 | U32: 0 | V32: 0 | W32: 0 | X32: 0.02941176471 | Y32: FALSE
A33: ='24. Data Input Object # 2'!A28 -> 0 | B33: =IF(A33=0,1000,'24. Data Input Object # 2'!B28) -> 1000 | C33: ='24. Data Input Object # 2'!CB28 -> 0 | D33: ='24. Data Input Object # 2'!CC28 -> 0 | E33: ='24. Data Input Object # 2'!CD28 -> 0 | F33: -1 | H33: =SUM(V33:$V$39) -> 0 | I33: =SUM($W$10:W33) -> 250 | S33: 0 | T33: 32 | U33: 0 | V33: 0 | W33: 0 | X33: 0.02941176471 | Y33: FALSE
A34: ='24. Data Input Object # 2'!A29 -> 0 | B34: =IF(A34=0,1000,'24. Data Input Object # 2'!B29) -> 1000 | C34: ='24. Data Input Object # 2'!CB29 -> 0 | D34: ='24. Data Input Object # 2'!CC29 -> 0 | E34: ='24. Data Input Object # 2'!CD29 -> 0 | F34: -1 | H34: =SUM(V34:$V$39) -> 0 | I34: =SUM($W$10:W34) -> 250 | S34: 0 | T34: 32 | U34: 0 | V34: 0 | W34: 0 | X34: 0.02941176471 | Y34: FALSE
A35: ='24. Data Input Object # 2'!A30 -> 0 | B35: =IF(A35=0,1000,'24. Data Input Object # 2'!B30) -> 1000 | C35: ='24. Data Input Object # 2'!CB30 -> 0 | D35: ='24. Data Input Object # 2'!CC30 -> 0 | E35: ='24. Data Input Object # 2'!CD30 -> 0 | F35: -1 | H35: =SUM(V35:$V$39) -> 0 | I35: =SUM($W$10:W35) -> 250 | S35: 0 | T35: 32 | U35: 0 | V35: 0 | W35: 0 | X35: 0.02941176471 | Y35: FALSE
A36: ='24. Data Input Object # 2'!A31 -> 0 | B36: =IF(A36=0,1000,'24. Data Input Object # 2'!B31) -> 1000 | C36: ='24. Data Input Object # 2'!CB31 -> 0 | D36: ='24. Data Input Object # 2'!CC31 -> 0 | E36: ='24. Data Input Object # 2'!CD31 -> 0 | F36: -1 | H36: =SUM(V36:$V$39) -> 0 | I36: =SUM($W$10:W36) -> 250 | S36: 0 | T36: 32 | U36: 0 | V36: 0 | W36: 0 | X36: 0.02941176471 | Y36: FALSE
A37: ='24. Data Input Object # 2'!A32 -> 0 | B37: =IF(A37=0,1000,'24. Data Input Object # 2'!B32) -> 1000 | C37: ='24. Data Input Object # 2'!CB32 -> 0 | D37: ='24. Data Input Object # 2'!CC32 -> 0 | E37: ='24. Data Input Object # 2'!CD32 -> 0 | F37: -1 | H37: =SUM(V37:$V$39) -> 0 | I37: =SUM($W$10:W37) -> 250 | S37: 0 | T37: 32 | U37: 0 | V37: 0 | W37: 0 | X37: 0.02941176471 | Y37: FALSE
A38: ='24. Data Input Object # 2'!A33 -> 0 | B38: =IF(A38=0,1000,'24. Data Input Object # 2'!B33) -> 1000 | C38: ='24. Data Input Object # 2'!CB33 -> 0 | D38: ='24. Data Input Object # 2'!CC33 -> 0 | E38: ='24. Data Input Object # 2'!CD33 -> 0 | F38: -1 | H38: =SUM(V38:$V$39) -> 0 | I38: =SUM($W$10:W38) -> 250 | S38: 0 | T38: 32 | U38: 0 | V38: 0 | W38: 0 | X38: 0.02941176471 | Y38: FALSE
A39: ='24. Data Input Object # 2'!A34 -> 0 | B39: =IF(A39=0,1000,'24. Data Input Object # 2'!B34) -> 1000 | C39: ='24. Data Input Object # 2'!CB34 -> 0 | D39: ='24. Data Input Object # 2'!CC34 -> 0 | E39: ='24. Data Input Object # 2'!CD34 -> 0 | F39: -1 | H39: =SUM(V39:$V$39) -> 0 | I39: =SUM($W$10:W39) -> 250 | S39: 0 | T39: 32 | U39: 0 | V39: 0 | W39: 0 | X39: 0.02941176471 | Y39: FALSE
A41: Check Sums | C41: =SUM(C10:C39) -> 476 | D41: =SUM(D10:D39) -> 226 | E41: =SUM(E10:E39) -> 250
A42: Effective Sweep Width | D42: =2*MAX(Y10:Y39) -> 24 | E42: ='46. Calculations'!P9 -> Yards
A43: Maximum POD = | C43: =MAX(F10:F39) -> 0.9705882353

Sheet 34. Data Summary Object # 3
A1: Data Summary Object # 3 | F1: ='25. Data Input Object # 3'!K1 -> Clue Low-Visibility
A2: Purpose: This worksheet allows the researcher to easily review the summary data involving detections of search object type # 3. It also sets up the two graphs
A3: used to determine the sweep width of search object type # 3. No data entry is required on this worksheet.
A4: Instructions: Click on the green button below to sort the data by lateral range values. The data should now be arranged from the smallest lateral range to the
A5: greatest lateral range. Chart One (Area under the curve for search object type # 3) and chart two (intersection of values) should automatically be generated. See
A6: instructions found at someplace clever to determine the sweep width value.
A9: Location # | B9: LR | C9: Count | D9: Detections | E9: Misses | F9: % Detected | H9: Detcum | I9: Missescum | S9: Clue # | T9: LR | U9: Count | V9: Detections | W9: Misses | X9: % Detected
A10: ='25. Data Input Object # 3'!A7 -> 13 | B10: =IF(A10=0,1000,'25. Data Input Object # 3'!B7) -> 0.37 | C10: ='25. Data Input Object # 3'!CB7 -> 34 | D10: ='25. Data Input Object # 3'!CC7 -> 12 | E10: ='25. Data Input Object # 3'!CD7 -> 22 | F10: =IF(A10=0,-1,D10/C10) -> 0.3529411765 | H10: =SUM(V10:$V$39) -> 188 | I10: =SUM($W$10:W10) -> 22 | S10: =A10 -> 13 | T10: =IF(A10=0,T9,B10) -> 0.37 | U10: =C10 -> 34 | V10: =D10 -> 12 | W10: =E10 -> 22 | X10: =IF(A10=0,X9,V10/U10) -> 0.3529411765 | Y10: =IF(AND(H10>I10,H11<I11),T10+(I10-H10)*(T11-T10)/((H11-H10)-(I11-I10)),IF(H10=I10,I10)) -> FALSE
A11: ='25. Data Input Object # 3'!A19 -> 43v ??? | B11: =IF(A11=0,1000,'25. Data Input Object # 3'!B19) -> 0.37 | C11: ='25. Data Input Object # 3'!CB19 -> 0 | D11: ='25. Data Input Object # 3'!CC19 -> 0 | E11: ='25. Data Input Object # 3'!CD19 -> 0 | H11: =SUM(V11:$V$39) -> 176 | I11: =SUM($W$10:W11) -> 22 | S11: 43v ??? | T11: =IF(A11=0,T10,B11) -> 0.37 | U11: 0 | V11: 0 | W11: 0 | X11: =IF(A11=0,X10,V11/U11) ->  | Y11: FALSE
A12: ='25. Data Input Object # 3'!A14 -> 34 | B12: =IF(A12=0,1000,'25. Data Input Object # 3'!B14) -> 1 | C12: ='25. Data Input Object # 3'!CB14 -> 34 | D12: ='25. Data Input Object # 3'!CC14 -> 19 | E12: ='25. Data Input Object # 3'!CD14 -> 15 | F12: =IF(A12=0,-1,D12/C12) -> 0.5588235294 | H12: =SUM(V12:$V$39) -> 176 | I12: =SUM($W$10:W12) -> 37 | S12: 34 | T12: 1 | U12: 34 | V12: 19 | W12: 15 | X12: 0.5588235294 | Y12: FALSE
A13: ='25. Data Input Object # 3'!A10 -> 25 | B13: =IF(A13=0,1000,'25. Data Input Object # 3'!B10) -> 5 | C13: ='25. Data Input Object # 3'!CB10 -> 34 | D13: ='25. Data Input Object # 3'!CC10 -> 32 | E13: ='25. Data Input Object # 3'!CD10 -> 2 | F13: 0.9411764706 | H13: =SUM(V13:$V$39) -> 157 | I13: =SUM($W$10:W13) -> 39 | S13: 25 | T13: 5 | U13: 34 | V13: 32 | W13: 2 | X13: 0.9411764706 | Y13: FALSE
A14: ='25. Data Input Object # 3'!A17 -> 40 | B14: =IF(A14=0,1000,'25. Data Input Object # 3'!B17) -> 5 | C14: ='25. Data Input Object # 3'!CB17 -> 34 | D14: ='25. Data Input Object # 3'!CC17 -> 24 | E14: ='25. Data Input Object # 3'!CD17 -> 10 | F14: 0.7058823529 | H14: =SUM(V14:$V$39) -> 125 | I14: =SUM($W$10:W14) -> 49 | S14: 40 | T14: 5 | U14: 34 | V14: 24 | W14: 10 | X14: 0.7058823529 | Y14: FALSE
A15: ='25. Data Input Object # 3'!A13 -> 29 | B15: =IF(A15=0,1000,'25. Data Input Object # 3'!B13) -> 6 | C15: ='25. Data Input Object # 3'!CB13 -> 34 | D15: ='25. Data Input Object # 3'!CC13 -> 27 | E15: ='25. Data Input Object # 3'!CD13 -> 7 | F15: 0.7941176471 | H15: =SUM(V15:$V$39) -> 101 | I15: =SUM($W$10:W15) -> 56 | S15: 29 | T15: 6 | U15: 34 | V15: 27 | W15: 7 | X15: 0.7941176471 | Y15: 6
A16: ='25. Data Input Object # 3'!A18 -> 42 | B16: =IF(A16=0,1000,'25. Data Input Object # 3'!B18) -> 6 | C16: ='25. Data Input Object # 3'!CB18 -> 34 | D16: ='25. Data Input Object # 3'!CC18 -> 9 | E16: ='25. Data Input Object # 3'!CD18 -> 25 | F16: 0.2647058824 | H16: =SUM(V16:$V$39) -> 74 | I16: =SUM($W$10:W16) -> 81 | S16: 42 | T16: 6 | U16: 34 | V16: 9 | W16: 25 | X16: 0.2647058824 | Y16: FALSE
A17: ='25. Data Input Object # 3'!A9 -> 23 | B17: =IF(A17=0,1000,'25. Data Input Object # 3'!B9) -> 8 | C17: ='25. Data Input Object # 3'!CB9 -> 34 | D17: ='25. Data Input Object # 3'!CC9 -> 3 | E17: ='25. Data Input Object # 3'!CD9 -> 31 | F17: 0.08823529412 | H17: =SUM(V17:$V$39) -> 65 | I17: =SUM($W$10:W17) -> 112 | S17: 23 | T17: 8 | U17: 34 | V17: 3 | W17: 31 | X17: 0.08823529412 | Y17: FALSE
A18: ='25. Data Input Object # 3'!A16 -> 37 | B18: =IF(A18=0,1000,'25. Data Input Object # 3'!B16) -> 8 | C18: ='25. Data Input Object # 3'!CB16 -> 34 | D18: ='25. Data Input Object # 3'!CC16 -> 4 | E18: ='25. Data Input Object # 3'!CD16 -> 30 | F18: 0.1176470588 | H18: =SUM(V18:$V$39) -> 62 | I18: =SUM($W$10:W18) -> 142 | S18: 37 | T18: 8 | U18: 34 | V18: 4 | W18: 30 | X18: 0.1176470588 | Y18: =IF(AND(H18>I18,H24<I24),T18+(I18-H18)*(T24-T18)/((H24-H18)-(I24-I18)),IF(H18=I18,I18)) -> FALSE
A19: ='25. Data Input Object # 3'!A5 -> 3 | B19: =IF(A19=0,1000,'25. Data Input Object # 3'!B5) -> 9 | C19: ='25. Data Input Object # 3'!CB5 -> 34 | D19: ='25. Data Input Object # 3'!CC5 -> 29 | E19: ='25. Data Input Object # 3'!CD5 -> 5 | F19: 0.8529411765 | H19: =SUM(V19:$V$39) -> 58 | I19: =SUM($W$10:W19) -> 147 | S19: =A19 -> 3 | T19: 9 | U19: =C19 -> 34 | V19: =D19 -> 29 | W19: =E19 -> 5 | X19: 0.8529411765 | Y19: =IF(AND(H19>I19,H25<I25),T19+(I19-H19)*(T25-T19)/((H25-H19)-(I25-I19)),IF(H19=I19,I19)) -> FALSE
A20: ='25. Data Input Object # 3'!A12 -> 28 | B20: =IF(A20=0,1000,'25. Data Input Object # 3'!B12) -> 11 | C20: ='25. Data Input Object # 3'!CB12 -> 34 | D20: ='25. Data Input Object # 3'!CC12 -> 1 | E20: ='25. Data Input Object # 3'!CD12 -> 33 | F20: 0.02941176471 | H20: =SUM(V20:$V$39) -> 29 | I20: =SUM($W$10:W20) -> 180 | S20: 28 | T20: 11 | U20: 34 | V20: 1 | W20: 33 | X20: 0.02941176471 | Y20: FALSE
A21: ='25. Data Input Object # 3'!A11 -> 27 | B21: =IF(A21=0,1000,'25. Data Input Object # 3'!B11) -> 14 | C21: ='25. Data Input Object # 3'!CB11 -> 34 | D21: ='25. Data Input Object # 3'!CC11 -> 2 | E21: ='25. Data Input Object # 3'!CD11 -> 32 | F21: 0.05882352941 | H21: =SUM(V21:$V$39) -> 28 | I21: =SUM($W$10:W21) -> 212 | S21: 27 | T21: 14 | U21: 34 | V21: 2 | W21: 32 | X21: 0.05882352941 | Y21: FALSE
A22: ='25. Data Input Object # 3'!A15 -> 35 | B22: =IF(A22=0,1000,'25. Data Input Object # 3'!B15) -> 14 | C22: ='25. Data Input Object # 3'!CB15 -> 34 | D22: ='25. Data Input Object # 3'!CC15 -> 1 | E22: ='25. Data Input Object # 3'!CD15 -> 33 | F22: 0.02941176471 | H22: =SUM(V22:$V$39) -> 26 | I22: =SUM($W$10:W22) -> 245 | S22: 35 | T22: 14 | U22: 34 | V22: 1 | W22: 33 | X22: 0.02941176471 | Y22: FALSE
A23: ='25. Data Input Object # 3'!A20 -> 45v | B23: =IF(A23=0,1000,'25. Data Input Object # 3'!B20) -> 14 | C23: ='25. Data Input Object # 3'!CB20 -> 34 | D23: ='25. Data Input Object # 3'!CC20 -> 0 | E23: ='25. Data Input Object # 3'!CD20 -> 34 | F23: 0 | H23: =SUM(V23:$V$39) -> 25 | I23: =SUM($W$10:W23) -> 279 | S23: 45v | T23: 14 | U23: 34 | V23: 0 | W23: 34 | X23: 0 | Y23: FALSE
A24: ='25. Data Input Object # 3'!A8 -> 18 | B24: =IF(A24=0,1000,'25. Data Input Object # 3'!B8) -> 18 | C24: ='25. Data Input Object # 3'!CB8 -> 34 | D24: ='25. Data Input Object # 3'!CC8 -> 0 | E24: ='25. Data Input Object # 3'!CD8 -> 34 | F24: 0 | H24: =SUM(V24:$V$39) -> 25 | I24: =SUM($W$10:W24) -> 313 | S24: 18 | T24: 18 | U24: 34 | V24: 0 | W24: 34 | X24: 0 | Y24: FALSE
A25: ='25. Data Input Object # 3'!A6 -> 7 | B25: =IF(A25=0,1000,'25. Data Input Object # 3'!B6) -> 18 | C25: ='25. Data Input Object # 3'!CB6 -> 34 | D25: ='25. Data Input Object # 3'!CC6 -> 25 | E25: ='25. Data Input Object # 3'!CD6 -> 9 | F25: 0.7352941176 | H25: =SUM(V25:$V$39) -> 25 | I25: =SUM($W$10:W25) -> 322 | S25: 7 | T25: 18 | U25: 34 | V25: 25 | W25: 9 | X25: 0.7352941176 | Y25: FALSE
A26: ='25. Data Input Object # 3'!A21 -> 0 | B26: =IF(A26=0,1000,'25. Data Input Object # 3'!B21) -> 1000 | C26: ='25. Data Input Object # 3'!CB21 -> 0 | D26: ='25. Data Input Object # 3'!CC21 -> 0 | E26: ='25. Data Input Object # 3'!CD21 -> 0 | F26: -1 | H26: =SUM(V26:$V$39) -> 0 | I26: =SUM($W$10:W26) -> 322 | S26: 0 | T26: 18 | U26: 0 | V26: 0 | W26: 0 | X26: 0.7352941176 | Y26: FALSE
A27: ='25. Data Input Object # 3'!A22 -> 0 | B27: =IF(A27=0,1000,'25. Data Input Object # 3'!B22) -> 1000 | C27: ='25. Data Input Object # 3'!CB22 -> 0 | D27: ='25. Data Input Object # 3'!CC22 -> 0 | E27: ='25. Data Input Object # 3'!CD22 -> 0 | F27: -1 | H27: =SUM(V27:$V$39) -> 0 | I27: =SUM($W$10:W27) -> 322 | S27: 0 | T27: 18 | U27: 0 | V27: 0 | W27: 0 | X27: 0.7352941176 | Y27: FALSE
A28: ='25. Data Input Object # 3'!A23 -> 0 | B28: =IF(A28=0,1000,'25. Data Input Object # 3'!B23) -> 1000 | C28: ='25. Data Input Object # 3'!CB23 -> 0 | D28: ='25. Data Input Object # 3'!CC23 -> 0 | E28: ='25. Data Input Object # 3'!CD23 -> 0 | F28: -1 | H28: =SUM(V28:$V$39) -> 0 | I28: =SUM($W$10:W28) -> 322 | S28: 0 | T28: 18 | U28: 0 | V28: 0 | W28: 0 | X28: 0.7352941176 | Y28: FALSE
A29: ='25. Data Input Object # 3'!A24 -> 0 | B29: =IF(A29=0,1000,'25. Data Input Object # 3'!B24) -> 1000 | C29: ='25. Data Input Object # 3'!CB24 -> 0 | D29: ='25. Data Input Object # 3'!CC24 -> 0 | E29: ='25. Data Input Object # 3'!CD24 -> 0 | F29: -1 | H29: =SUM(V29:$V$39) -> 0 | I29: =SUM($W$10:W29) -> 322 | S29: 0 | T29: 18 | U29: 0 | V29: 0 | W29: 0 | X29: 0.7352941176 | Y29: FALSE
A30: ='25. Data Input Object # 3'!A25 -> 0 | B30: =IF(A30=0,1000,'25. Data Input Object # 3'!B25) -> 1000 | C30: ='25. Data Input Object # 3'!CB25 -> 0 | D30: ='25. Data Input Object # 3'!CC25 -> 0 | E30: ='25. Data Input Object # 3'!CD25 -> 0 | F30: -1 | H30: =SUM(V30:$V$39) -> 0 | I30: =SUM($W$10:W30) -> 322 | S30: 0 | T30: 18 | U30: 0 | V30: 0 | W30: 0 | X30: 0.7352941176 | Y30: FALSE
A31: ='25. Data Input Object # 3'!A26 -> 0 | B31: =IF(A31=0,1000,'25. Data Input Object # 3'!B26) -> 1000 | C31: ='25. Data Input Object # 3'!CB26 -> 0 | D31: ='25. Data Input Object # 3'!CC26 -> 0 | E31: ='25. Data Input Object # 3'!CD26 -> 0 | F31: -1 | H31: =SUM(V31:$V$39) -> 0 | I31: =SUM($W$10:W31) -> 322 | S31: 0 | T31: 18 | U31: 0 | V31: 0 | W31: 0 | X31: 0.7352941176 | Y31: FALSE
A32: ='25. Data Input Object # 3'!A27 -> 0 | B32: =IF(A32=0,1000,'25. Data Input Object # 3'!B27) -> 1000 | C32: ='25. Data Input Object # 3'!CB27 -> 0 | D32: ='25. Data Input Object # 3'!CC27 -> 0 | E32: ='25. Data Input Object # 3'!CD27 -> 0 | F32: -1 | H32: =SUM(V32:$V$39) -> 0 | I32: =SUM($W$10:W32) -> 322 | S32: 0 | T32: 18 | U32: 0 | V32: 0 | W32: 0 | X32: 0.7352941176 | Y32: FALSE
A33: ='25. Data Input Object # 3'!A28 -> 0 | B33: =IF(A33=0,1000,'25. Data Input Object # 3'!B28) -> 1000 | C33: ='25. Data Input Object # 3'!CB28 -> 0 | D33: ='25. Data Input Object # 3'!CC28 -> 0 | E33: ='25. Data Input Object # 3'!CD28 -> 0 | F33: -1 | H33: =SUM(V33:$V$39) -> 0 | I33: =SUM($W$10:W33) -> 322 | S33: 0 | T33: 18 | U33: 0 | V33: 0 | W33: 0 | X33: 0.7352941176 | Y33: FALSE
A34: ='25. Data Input Object # 3'!A29 -> 0 | B34: =IF(A34=0,1000,'25. Data Input Object # 3'!B29) -> 1000 | C34: ='25. Data Input Object # 3'!CB29 -> 0 | D34: ='25. Data Input Object # 3'!CC29 -> 0 | E34: ='25. Data Input Object # 3'!CD29 -> 0 | F34: -1 | H34: =SUM(V34:$V$39) -> 0 | I34: =SUM($W$10:W34) -> 322 | S34: 0 | T34: 18 | U34: 0 | V34: 0 | W34: 0 | X34: 0.7352941176 | Y34: FALSE
A35: ='25. Data Input Object # 3'!A30 -> 0 | B35: =IF(A35=0,1000,'25. Data Input Object # 3'!B30) -> 1000 | C35: ='25. Data Input Object # 3'!CB30 -> 0 | D35: ='25. Data Input Object # 3'!CC30 -> 0 | E35: ='25. Data Input Object # 3'!CD30 -> 0 | F35: -1 | H35: =SUM(V35:$V$39) -> 0 | I35: =SUM($W$10:W35) -> 322 | S35: 0 | T35: 18 | U35: 0 | V35: 0 | W35: 0 | X35: 0.7352941176 | Y35: FALSE
A36: ='25. Data Input Object # 3'!A31 -> 0 | B36: =IF(A36=0,1000,'25. Data Input Object # 3'!B31) -> 1000 | C36: ='25. Data Input Object # 3'!CB31 -> 0 | D36: ='25. Data Input Object # 3'!CC31 -> 0 | E36: ='25. Data Input Object # 3'!CD31 -> 0 | F36: -1 | H36: =SUM(V36:$V$39) -> 0 | I36: =SUM($W$10:W36) -> 322 | S36: 0 | T36: 18 | U36: 0 | V36: 0 | W36: 0 | X36: 0.7352941176 | Y36: FALSE
A37: ='25. Data Input Object # 3'!A32 -> 0 | B37: =IF(A37=0,1000,'25. Data Input Object # 3'!B32) -> 1000 | C37: ='25. Data Input Object # 3'!CB32 -> 0 | D37: ='25. Data Input Object # 3'!CC32 -> 0 | E37: ='25. Data Input Object # 3'!CD32 -> 0 | F37: -1 | H37: =SUM(V37:$V$39) -> 0 | I37: =SUM($W$10:W37) -> 322 | S37: 0 | T37: 18 | U37: 0 | V37: 0 | W37: 0 | X37: 0.7352941176 | Y37: FALSE
A38: ='25. Data Input Object # 3'!A33 -> 0 | B38: =IF(A38=0,1000,'25. Data Input Object # 3'!B33) -> 1000 | C38: ='25. Data Input Object # 3'!CB33 -> 0 | D38: ='25. Data Input Object # 3'!CC33 -> 0 | E38: ='25. Data Input Object # 3'!CD33 -> 0 | F38: -1 | H38: =SUM(V38:$V$39) -> 0 | I38: =SUM($W$10:W38) -> 322 | S38: 0 | T38: 18 | U38: 0 | V38: 0 | W38: 0 | X38: 0.7352941176 | Y38: FALSE
A39: ='25. Data Input Object # 3'!A34 -> 0 | B39: =IF(A39=0,1000,'25. Data Input Object # 3'!B34) -> 1000 | C39: ='25. Data Input Object # 3'!CB34 -> 0 | D39: ='25. Data Input Object # 3'!CC34 -> 0 | E39: ='25. Data Input Object # 3'!CD34 -> 0 | F39: -1 | H39: =SUM(V39:$V$39) -> 0 | I39: =SUM($W$10:W39) -> 322 | S39: 0 | T39: 18 | U39: 0 | V39: 0 | W39: 0 | X39: 0.7352941176 | Y39: FALSE
A41: Check Sums | C41: =SUM(C10:C39) -> 510 | D41: =SUM(D10:D39) -> 188 | E41: =SUM(E10:E39) -> 322
A42: Effective Sweep Width | D42: =2*MAX(Y10:Y39) -> 12 | E42: ='46. Calculations'!P9 -> Yards
A43: Maximum POD = | C43: =MAX(F10:F39) -> 0.9411764706

Sheet 37. Data Summary Object # 4
A1: Data Summary Object # 4 | F1: ='26. Data Input Object # 4'!K1 -> Not applicable
A2: Purpose: This worksheet allows the researcher to easily review the summary data involving detections of search object type # 4. It also sets up the two graphs
A3: used to determine the sweep width of search object type # 4. No data entry is required on this worksheet.
A4: Instructions: Click on the green button below to sort the data by lateral range values. The data should now be arranged from the smallest lateral range to the
A5: greatest lateral range. Chart One (Area under the curve for search object type # 4) and chart two (intersection of values) should automatically be generated. See
A6: instructions found at someplace clever to determine the sweep width value.
A9: Location # | B9: LR | C9: Count | D9: Detections | E9: Misses | F9: % Detected | H9: Detcum | I9: Missescum | S9: Clue # | T9: LR | U9: Count | V9: Detections | W9: Misses | X9: % Detected
A10: ='26. Data Input Object # 4'!A5 -> 0 | B10: =IF(A10=0,1000,'26. Data Input Object # 4'!B5) -> 1000 | C10: ='26. Data Input Object # 4'!CB5 -> 0 | D10: ='26. Data Input Object # 4'!CC5 -> 0 | E10: ='26. Data Input Object # 4'!CD5 -> 0 | F10: =IF(A10=0,-1,D10/C10) -> -1 | H10: =SUM(V10:$V$39) -> 0 | I10: =SUM($W$10:W10) -> 0 | S10: =A10 -> 0 | T10: =IF(A10=0,T9,B10) -> LR | U10: =C10 -> 0 | V10: =D10 -> 0 | W10: =E10 -> 0 | X10: =IF(A10=0,X9,V10/U10) -> % Detected | Y10: =IF(AND(H10>I10,H11<I11),T10+(I10-H10)*(T11-T10)/((H11-H10)-(I11-I10)),IF(H10=I10,I10)) -> 0
A11: ='26. Data Input Object # 4'!A11 -> 0 | B11: =IF(A11=0,1000,'26. Data Input Object # 4'!B11) -> 1000 | C11: ='26. Data Input Object # 4'!CB11 -> 0 | D11: ='26. Data Input Object # 4'!CC11 -> 0 | E11: ='26. Data Input Object # 4'!CD11 -> 0 | F11: -1 | H11: =SUM(V11:$V$39) -> 0 | I11: =SUM($W$10:W11) -> 0 | S11: 0 | T11: =IF(A11=0,T10,B11) -> LR | U11: 0 | V11: 0 | W11: 0 | X11: =IF(A11=0,X10,V11/U11) -> % Detected | Y11: 0
A12: ='26. Data Input Object # 4'!A8 -> 0 | B12: =IF(A12=0,1000,'26. Data Input Object # 4'!B8) -> 1000 | C12: ='26. Data Input Object # 4'!CB8 -> 0 | D12: ='26. Data Input Object # 4'!CC8 -> 0 | E12: ='26. Data Input Object # 4'!CD8 -> 0 | F12: -1 | H12: =SUM(V12:$V$39) -> 0 | I12: =SUM($W$10:W12) -> 0 | S12: 0 | T12: LR | U12: 0 | V12: 0 | W12: 0 | X12: % Detected | Y12: 0
A13: ='26. Data Input Object # 4'!A6 -> 0 | B13: =IF(A13=0,1000,'26. Data Input Object # 4'!B6) -> 1000 | C13: ='26. Data Input Object # 4'!CB6 -> 0 | D13: ='26. Data Input Object # 4'!CC6 -> 0 | E13: ='26. Data Input Object # 4'!CD6 -> 0 | F13: -1 | H13: =SUM(V13:$V$39) -> 0 | I13: =SUM($W$10:W13) -> 0 | S13: 0 | T13: LR | U13: 0 | V13: 0 | W13: 0 | X13: % Detected | Y13: 0
A14: ='26. Data Input Object # 4'!A10 -> 0 | B14: =IF(A14=0,1000,'26. Data Input Object # 4'!B10) -> 1000 | C14: ='26. Data Input Object # 4'!CB10 -> 0 | D14: ='26. Data Input Object # 4'!CC10 -> 0 | E14: ='26. Data Input Object # 4'!CD10 -> 0 | F14: -1 | H14: =SUM(V14:$V$39) -> 0 | I14: =SUM($W$10:W14) -> 0 | S14: 0 | T14: LR | U14: 0 | V14: 0 | W14: 0 | X14: % Detected | Y14: 0
A15: ='26. Data Input Object # 4'!A12 -> 0 | B15: =IF(A15=0,1000,'26. Data Input Object # 4'!B12) -> 1000 | C15: ='26. Data Input Object # 4'!CB12 -> 0 | D15: ='26. Data Input Object # 4'!CC12 -> 0 | E15: ='26. Data Input Object # 4'!CD12 -> 0 | F15: -1 | H15: =SUM(V15:$V$39) -> 0 | I15: =SUM($W$10:W15) -> 0 | S15: 0 | T15: LR | U15: 0 | V15: 0 | W15: 0 | X15: % Detected | Y15: 0
A16: ='26. Data Input Object # 4'!A7 -> 0 | B16: =IF(A16=0,1000,'26. Data Input Object # 4'!B7) -> 1000 | C16: ='26. Data Input Object # 4'!CB7 -> 0 | D16: ='26. Data Input Object # 4'!CC7 -> 0 | E16: ='26. Data Input Object # 4'!CD7 -> 0 | F16: -1 | H16: =SUM(V16:$V$39) -> 0 | I16: =SUM($W$10:W16) -> 0 | S16: 0 | T16: LR | U16: 0 | V16: 0 | W16: 0 | X16: % Detected | Y16: 0
A17: ='26. Data Input Object # 4'!A13 -> 0 | B17: =IF(A17=0,1000,'26. Data Input Object # 4'!B13) -> 1000 | C17: ='26. Data Input Object # 4'!CB13 -> 0 | D17: ='26. Data Input Object # 4'!CC13 -> 0 | E17: ='26. Data Input Object # 4'!CD13 -> 0 | F17: -1 | H17: =SUM(V17:$V$39) -> 0 | I17: =SUM($W$10:W17) -> 0 | S17: 0 | T17: LR | U17: 0 | V17: 0 | W17: 0 | X17: % Detected | Y17: 0
A18: ='26. Data Input Object # 4'!A9 -> 0 | B18: =IF(A18=0,1000,'26. Data Input Object # 4'!B9) -> 1000 | C18: ='26. Data Input Object # 4'!CB9 -> 0 | D18: ='26. Data Input Object # 4'!CC9 -> 0 | E18: ='26. Data Input Object # 4'!CD9 -> 0 | F18: -1 | H18: =SUM(V18:$V$39) -> 0 | I18: =SUM($W$10:W18) -> 0 | S18: 0 | T18: LR | U18: 0 | V18: 0 | W18: 0 | X18: % Detected | Y18: 0
A19: ='26. Data Input Object # 4'!A14 -> 0 | B19: =IF(A19=0,1000,'26. Data Input Object # 4'!B14) -> 1000 | C19: ='26. Data Input Object # 4'!CB14 -> 0 | D19: ='26. Data Input Object # 4'!CC14 -> 0 | E19: ='26. Data Input Object # 4'!CD14 -> 0 | F19: -1 | H19: =SUM(V19:$V$39) -> 0 | I19: =SUM($W$10:W19) -> 0 | S19: 0 | T19: LR | U19: 0 | V19: 0 | W19: 0 | X19: % Detected | Y19: 0
A20: ='26. Data Input Object # 4'!A15 -> 0 | B20: =IF(A20=0,1000,'26. Data Input Object # 4'!B15) -> 1000 | C20: ='26. Data Input Object # 4'!CB15 -> 0 | D20: ='26. Data Input Object # 4'!CC15 -> 0 | E20: ='26. Data Input Object # 4'!CD15 -> 0 | F20: -1 | H20: =SUM(V20:$V$39) -> 0 | I20: =SUM($W$10:W20) -> 0 | S20: 0 | T20: LR | U20: 0 | V20: 0 | W20: 0 | X20: % Detected | Y20: 0
A21: ='26. Data Input Object # 4'!A16 -> 0 | B21: =IF(A21=0,1000,'26. Data Input Object # 4'!B16) -> 1000 | C21: ='26. Data Input Object # 4'!CB16 -> 0 | D21: ='26. Data Input Object # 4'!CC16 -> 0 | E21: ='26. Data Input Object # 4'!CD16 -> 0 | F21: -1 | H21: =SUM(V21:$V$39) -> 0 | I21: =SUM($W$10:W21) -> 0 | S21: 0 | T21: LR | U21: 0 | V21: 0 | W21: 0 | X21: % Detected | Y21: 0
A22: ='26. Data Input Object # 4'!A17 -> 0 | B22: =IF(A22=0,1000,'26. Data Input Object # 4'!B17) -> 1000 | C22: ='26. Data Input Object # 4'!CB17 -> 0 | D22: ='26. Data Input Object # 4'!CC17 -> 0 | E22: ='26. Data Input Object # 4'!CD17 -> 0 | F22: -1 | H22: =SUM(V22:$V$39) -> 0 | I22: =SUM($W$10:W22) -> 0 | S22: 0 | T22: LR | U22: 0 | V22: 0 | W22: 0 | X22: % Detected | Y22: 0
A23: ='26. Data Input Object # 4'!A18 -> 0 | B23: =IF(A23=0,1000,'26. Data Input Object # 4'!B18) -> 1000 | C23: ='26. Data Input Object # 4'!CB18 -> 0 | D23: ='26. Data Input Object # 4'!CC18 -> 0 | E23: ='26. Data Input Object # 4'!CD18 -> 0 | F23: -1 | H23: =SUM(V23:$V$39) -> 0 | I23: =SUM($W$10:W23) -> 0 | S23: 0 | T23: LR | U23: 0 | V23: 0 | W23: 0 | X23: % Detected | Y23: 0
A24: ='26. Data Input Object # 4'!A19 -> 0 | B24: =IF(A24=0,1000,'26. Data Input Object # 4'!B19) -> 1000 | C24: ='26. Data Input Object # 4'!CB19 -> 0 | D24: ='26. Data Input Object # 4'!CC19 -> 0 | E24: ='26. Data Input Object # 4'!CD19 -> 0 | F24: -1 | H24: =SUM(V24:$V$39) -> 0 | I24: =SUM($W$10:W24) -> 0 | S24: 0 | T24: LR | U24: 0 | V24: 0 | W24: 0 | X24: % Detected | Y24: 0
A25: ='26. Data Input Object # 4'!A20 -> 0 | B25: =IF(A25=0,1000,'26. Data Input Object # 4'!B20) -> 1000 | C25: ='26. Data Input Object # 4'!CB20 -> 0 | D25: ='26. Data Input Object # 4'!CC20 -> 0 | E25: ='26. Data Input Object # 4'!CD20 -> 0 | F25: -1 | H25: =SUM(V25:$V$39) -> 0 | I25: =SUM($W$10:W25) -> 0 | S25: 0 | T25: LR | U25: 0 | V25: 0 | W25: 0 | X25: % Detected | Y25: 0
A26: ='26. Data Input Object # 4'!A21 -> 0 | B26: =IF(A26=0,1000,'26. Data Input Object # 4'!B21) -> 1000 | C26: ='26. Data Input Object # 4'!CB21 -> 0 | D26: ='26. Data Input Object # 4'!CC21 -> 0 | E26: ='26. Data Input Object # 4'!CD21 -> 0 | F26: -1 | H26: =SUM(V26:$V$39) -> 0 | I26: =SUM($W$10:W26) -> 0 | S26: 0 | T26: LR | U26: 0 | V26: 0 | W26: 0 | X26: % Detected | Y26: 0
A27: ='26. Data Input Object # 4'!A22 -> 0 | B27: =IF(A27=0,1000,'26. Data Input Object # 4'!B22) -> 1000 | C27: ='26. Data Input Object # 4'!CB22 -> 0 | D27: ='26. Data Input Object # 4'!CC22 -> 0 | E27: ='26. Data Input Object # 4'!CD22 -> 0 | F27: -1 | H27: =SUM(V27:$V$39) -> 0 | I27: =SUM($W$10:W27) -> 0 | S27: 0 | T27: LR | U27: 0 | V27: 0 | W27: 0 | X27: % Detected | Y27: 0
A28: ='26. Data Input Object # 4'!A23 -> 0 | B28: =IF(A28=0,1000,'26. Data Input Object # 4'!B23) -> 1000 | C28: ='26. Data Input Object # 4'!CB23 -> 0 | D28: ='26. Data Input Object # 4'!CC23 -> 0 | E28: ='26. Data Input Object # 4'!CD23 -> 0 | F28: -1 | H28: =SUM(V28:$V$39) -> 0 | I28: =SUM($W$10:W28) -> 0 | S28: 0 | T28: LR | U28: 0 | V28: 0 | W28: 0 | X28: % Detected | Y28: =IF(AND(H28>I28,H34<I34),T28+(I28-H28)*(T34-T28)/((H34-H28)-(I34-I28)),IF(H28=I28,I28)) -> 0
A29: ='26. Data Input Object # 4'!A24 -> 0 | B29: =IF(A29=0,1000,'26. Data Input Object # 4'!B24) -> 1000 | C29: ='26. Data Input Object # 4'!CB24 -> 0 | D29: ='26. Data Input Object # 4'!CC24 -> 0 | E29: ='26. Data Input Object # 4'!CD24 -> 0 | F29: -1 | H29: =SUM(V29:$V$39) -> 0 | I29: =SUM($W$10:W29) -> 0 | S29: =A29 -> 0 | T29: LR | U29: =C29 -> 0 | V29: =D29 -> 0 | W29: =E29 -> 0 | X29: % Detected | Y29: =IF(AND(H29>I29,H35<I35),T29+(I29-H29)*(T35-T29)/((H35-H29)-(I35-I29)),IF(H29=I29,I29)) -> 0
A30: ='26. Data Input Object # 4'!A25 -> 0 | B30: =IF(A30=0,1000,'26. Data Input Object # 4'!B25) -> 1000 | C30: ='26. Data Input Object # 4'!CB25 -> 0 | D30: ='26. Data Input Object # 4'!CC25 -> 0 | E30: ='26. Data Input Object # 4'!CD25 -> 0 | F30: -1 | H30: =SUM(V30:$V$39) -> 0 | I30: =SUM($W$10:W30) -> 0 | S30: 0 | T30: LR | U30: 0 | V30: 0 | W30: 0 | X30: % Detected | Y30: 0
A31: ='26. Data Input Object # 4'!A26 -> 0 | B31: =IF(A31=0,1000,'26. Data Input Object # 4'!B26) -> 1000 | C31: ='26. Data Input Object # 4'!CB26 -> 0 | D31: ='26. Data Input Object # 4'!CC26 -> 0 | E31: ='26. Data Input Object # 4'!CD26 -> 0 | F31: -1 | H31: =SUM(V31:$V$39) -> 0 | I31: =SUM($W$10:W31) -> 0 | S31: 0 | T31: LR | U31: 0 | V31: 0 | W31: 0 | X31: % Detected | Y31: 0
A32: ='26. Data Input Object # 4'!A27 -> 0 | B32: =IF(A32=0,1000,'26. Data Input Object # 4'!B27) -> 1000 | C32: ='26. Data Input Object # 4'!CB27 -> 0 | D32: ='26. Data Input Object # 4'!CC27 -> 0 | E32: ='26. Data Input Object # 4'!CD27 -> 0 | F32: -1 | H32: =SUM(V32:$V$39) -> 0 | I32: =SUM($W$10:W32) -> 0 | S32: 0 | T32: LR | U32: 0 | V32: 0 | W32: 0 | X32: % Detected | Y32: 0
A33: ='26. Data Input Object # 4'!A28 -> 0 | B33: =IF(A33=0,1000,'26. Data Input Object # 4'!B28) -> 1000 | C33: ='26. Data Input Object # 4'!CB28 -> 0 | D33: ='26. Data Input Object # 4'!CC28 -> 0 | E33: ='26. Data Input Object # 4'!CD28 -> 0 | F33: -1 | H33: =SUM(V33:$V$39) -> 0 | I33: =SUM($W$10:W33) -> 0 | S33: 0 | T33: LR | U33: 0 | V33: 0 | W33: 0 | X33: % Detected | Y33: 0
A34: ='26. Data Input Object # 4'!A29 -> 0 | B34: =IF(A34=0,1000,'26. Data Input Object # 4'!B29) -> 1000 | C34: ='26. Data Input Object # 4'!CB29 -> 0 | D34: ='26. Data Input Object # 4'!CC29 -> 0 | E34: ='26. Data Input Object # 4'!CD29 -> 0 | F34: -1 | H34: =SUM(V34:$V$39) -> 0 | I34: =SUM($W$10:W34) -> 0 | S34: 0 | T34: LR | U34: 0 | V34: 0 | W34: 0 | X34: % Detected | Y34: 0
A35: ='26. Data Input Object # 4'!A30 -> 0 | B35: =IF(A35=0,1000,'26. Data Input Object # 4'!B30) -> 1000 | C35: ='26. Data Input Object # 4'!CB30 -> 0 | D35: ='26. Data Input Object # 4'!CC30 -> 0 | E35: ='26. Data Input Object # 4'!CD30 -> 0 | F35: -1 | H35: =SUM(V35:$V$39) -> 0 | I35: =SUM($W$10:W35) -> 0 | S35: 0 | T35: LR | U35: 0 | V35: 0 | W35: 0 | X35: % Detected | Y35: 0
A36: ='26. Data Input Object # 4'!A31 -> 0 | B36: =IF(A36=0,1000,'26. Data Input Object # 4'!B31) -> 1000 | C36: ='26. Data Input Object # 4'!CB31 -> 0 | D36: ='26. Data Input Object # 4'!CC31 -> 0 | E36: ='26. Data Input Object # 4'!CD31 -> 0 | F36: -1 | H36: =SUM(V36:$V$39) -> 0 | I36: =SUM($W$10:W36) -> 0 | S36: 0 | T36: LR | U36: 0 | V36: 0 | W36: 0 | X36: % Detected | Y36: 0
A37: ='26. Data Input Object # 4'!A32 -> 0 | B37: =IF(A37=0,1000,'26. Data Input Object # 4'!B32) -> 1000 | C37: ='26. Data Input Object # 4'!CB32 -> 0 | D37: ='26. Data Input Object # 4'!CC32 -> 0 | E37: ='26. Data Input Object # 4'!CD32 -> 0 | F37: -1 | H37: =SUM(V37:$V$39) -> 0 | I37: =SUM($W$10:W37) -> 0 | S37: 0 | T37: LR | U37: 0 | V37: 0 | W37: 0 | X37: % Detected | Y37: 0
A38: ='26. Data Input Object # 4'!A33 -> 0 | B38: =IF(A38=0,1000,'26. Data Input Object # 4'!B33) -> 1000 | C38: ='26. Data Input Object # 4'!CB33 -> 0 | D38: ='26. Data Input Object # 4'!CC33 -> 0 | E38: ='26. Data Input Object # 4'!CD33 -> 0 | F38: -1 | H38: =SUM(V38:$V$39) -> 0 | I38: =SUM($W$10:W38) -> 0 | S38: 0 | T38: LR | U38: 0 | V38: 0 | W38: 0 | X38: % Detected | Y38: 0
A39: ='26. Data Input Object # 4'!A34 -> 0 | B39: =IF(A39=0,1000,'26. Data Input Object # 4'!B34) -> 1000 | C39: ='26. Data Input Object # 4'!CB34 -> 0 | D39: ='26. Data Input Object # 4'!CC34 -> 0 | E39: ='26. Data Input Object # 4'!CD34 -> 0 | F39: -1 | H39: =SUM(V39:$V$39) -> 0 | I39: =SUM($W$10:W39) -> 0 | S39: 0 | T39: LR | U39: 0 | V39: 0 | W39: 0 | X39: % Detected | Y39: 0
A41: Check Sums | C41: =SUM(C10:C39) -> 0 | D41: =SUM(D10:D39) -> 0 | E41: =SUM(E10:E39) -> 0
A42: Effective Sweep Width | D42: =2*MAX(Y10:Y39) -> 0 | E42: ='46. Calculations'!P9 -> Yards
A43: Maximum POD = | C43: =MAX(F10:F39) -> -1

Sheet 40. Raw Data Summary
A1: Raw Data Summary
C2: ='27. Searcher Profile Data'!B4 -> Searcher Number
A3: ='27. Searcher Profile Data'!A5 -> Searcher Characteristic | C3: ='27. Searcher Profile Data'!B5 -> 1 | D3: ='27. Searcher Profile Data'!C5 -> 2 | E3: ='27. Searcher Profile Data'!D5 -> 3 | F3: ='27. Searcher Profile Data'!E5 -> 4 | G3: ='27. Searcher Profile Data'!F5 -> 5 | H3: ='27. Searcher Profile Data'!G5 -> 6 | I3: ='27. Searcher Profile Data'!H5 -> 7 | J3: ='27. Searcher Profile Data'!I5 -> 8 | K3: ='27. Searcher Profile Data'!J5 -> 9 | L3: ='27. Searcher Profile Data'!K5 -> 10 | M3: ='27. Searcher Profile Data'!L5 -> 11 | N3: ='27. Searcher Profile Data'!M5 -> 12 | O3: ='27. Searcher Profile Data'!N5 -> 13 | P3: ='27. Searcher Profile Data'!O5 -> 14 | Q3: ='27. Searcher Profile Data'!P5 -> 15 | R3: ='27. Searcher Profile Data'!Q5 -> 16 | S3: ='27. Searcher Profile Data'!R5 -> 17 | T3: ='27. Searcher Profile Data'!S5 -> 18 | U3: ='27. Searcher Profile Data'!T5 -> 19 | V3: ='27. Searcher Profile Data'!U5 -> 20 | W3: ='27. Searcher Profile Data'!V5 -> 21 | X3: ='27. Searcher Profile Data'!W5 -> 22 | Y3: ='27. Searcher Profile Data'!X5 -> 23 | Z3: ='27. Searcher Profile Data'!Y5 -> 24 | AA3: ='27. Searcher Profile Data'!Z5 -> 25 | AB3: ='27. Searcher Profile Data'!AA5 -> 26 | AC3: ='27. Searcher Profile Data'!AB5 -> 27 | AD3: ='27. Searcher Profile Data'!AC5 -> 28 | AE3: ='27. Searcher Profile Data'!AD5 -> 29 | AF3: ='27. Searcher Profile Data'!AE5 -> 30 | AG3: ='27. Searcher Profile Data'!AF5 -> 31 | AH3: ='27. Searcher Profile Data'!AG5 -> 32 | AI3: ='27. Searcher Profile Data'!AH5 -> 33 | AJ3: ='27. Searcher Profile Data'!AI5 -> 34 | AK3: ='27. Searcher Profile Data'!AJ5 -> 35 | AL3: ='27. Searcher Profile Data'!AK5 -> 36 | AM3: ='27. Searcher Profile Data'!AL5 -> 37 | AN3: ='27. Searcher Profile Data'!AM5 -> 38 | AO3: ='27. Searcher Profile Data'!AN5 -> 39 | AP3: ='27. Searcher Profile Data'!AO5 -> 40 | AQ3: ='27. Searcher Profile Data'!AP5 -> 41 | AR3: ='27. Searcher Profile Data'!AQ5 -> 42 | AS3: ='27. Searcher Profile Data'!AR5 -> 43 | AT3: ='27. Searcher Profile Data'!AS5 -> 44 | AU3: ='27. Searcher Profile Data'!AT5 -> 45 | AV3: ='27. Searcher Profile Data'!AU5 -> 46 | AW3: ='27. Searcher Profile Data'!AV5 -> 47 | AX3: ='27. Searcher Profile Data'!AW5 -> 48 | AY3: ='27. Searcher Profile Data'!AX5 -> 49 | AZ3: ='27. Searcher Profile Data'!AY5 -> 50 | BA3: ='27. Searcher Profile Data'!AZ5 -> 51 | BB3: ='27. Searcher Profile Data'!BA5 -> 52 | BC3: ='27. Searcher Profile Data'!BB5 -> 53 | BD3: ='27. Searcher Profile Data'!BC5 -> 54 | BE3: ='27. Searcher Profile Data'!BD5 -> 55 | BF3: ='27. Searcher Profile Data'!BE5 -> 56 | BG3: ='27. Searcher Profile Data'!BF5 -> 57 | BH3: ='27. Searcher Profile Data'!BG5 -> 58 | BI3: ='27. Searcher Profile Data'!BH5 -> 59 | BJ3: ='27. Searcher Profile Data'!BI5 -> 60 | BK3: ='27. Searcher Profile Data'!BJ5 -> 61 | BL3: ='27. Searcher Profile Data'!BK5 -> 62 | BM3: ='27. Searcher Profile Data'!BL5 -> 63 | BN3: ='27. Searcher Profile Data'!BM5 -> 64 | BO3: ='27. Searcher Profile Data'!BN5 -> 65 | BP3: ='27. Searcher Profile Data'!BO5 -> 66 | BQ3: ='27. Searcher Profile Data'!BP5 -> 67 | BR3: ='27. Searcher Profile Data'!BQ5 -> 68 | BS3: ='27. Searcher Profile Data'!BR5 -> 69 | BT3: ='27. Searcher Profile Data'!BS5 -> 70 | BU3: ='27. Searcher Profile Data'!BT5 -> 71 | BV3: ='27. Searcher Profile Data'!BU5 -> 72 | BW3: ='27. Searcher Profile Data'!BV5 -> 73 | BX3: ='27. Searcher Profile Data'!BW5 -> 74 | BY3: ='27. Searcher Profile Data'!BX5 -> 75 | BZ3: ='27. Searcher Profile Data'!BY5 -> 76 | CA3: ='27. Searcher Profile Data'!BZ5 -> 77
A4: ='27. Searcher Profile Data'!A6 -> Age (in years) | C4: ='27. Searcher Profile Data'!B6 -> 0 | D4: ='27. Searcher Profile Data'!C6 -> 0 | E4: ='27. Searcher Profile Data'!D6 -> 0 | F4: ='27. Searcher Profile Data'!E6 -> 0 | G4: ='27. Searcher Profile Data'!F6 -> 0 | H4: ='27. Searcher Profile Data'!G6 -> 0 | I4: ='27. Searcher Profile Data'!H6 -> 0 | J4: ='27. Searcher Profile Data'!I6 -> 0 | K4: ='27. Searcher Profile Data'!J6 -> 0 | L4: ='27. Searcher Profile Data'!K6 -> 0 | M4: ='27. Searcher Profile Data'!L6 -> 0 | N4: ='27. Searcher Profile Data'!M6 -> 0 | O4: ='27. Searcher Profile Data'!N6 -> 0 | P4: ='27. Searcher Profile Data'!O6 -> 0 | Q4: ='27. Searcher Profile Data'!P6 -> 0 | R4: ='27. Searcher Profile Data'!Q6 -> 0 | S4: ='27. Searcher Profile Data'!R6 -> 0 | T4: ='27. Searcher Profile Data'!S6 -> 0 | U4: ='27. Searcher Profile Data'!T6 -> 0 | V4: ='27. Searcher Profile Data'!U6 -> 0 | W4: ='27. Searcher Profile Data'!V6 -> 0 | X4: ='27. Searcher Profile Data'!W6 -> 0 | Y4: ='27. Searcher Profile Data'!X6 -> 0 | Z4: ='27. Searcher Profile Data'!Y6 -> 0 | AA4: ='27. Searcher Profile Data'!Z6 -> 0 | AB4: ='27. Searcher Profile Data'!AA6 -> 0 | AC4: ='27. Searcher Profile Data'!AB6 -> 0 | AD4: ='27. Searcher Profile Data'!AC6 -> 0 | AE4: ='27. Searcher Profile Data'!AD6 -> 0 | AF4: ='27. Searcher Profile Data'!AE6 -> 0 | AG4: ='27. Searcher Profile Data'!AF6 -> 0 | AH4: ='27. Searcher Profile Data'!AG6 -> 0 | AI4: ='27. Searcher Profile Data'!AH6 -> 0 | AJ4: ='27. Searcher Profile Data'!AI6 -> 0 | AK4: ='27. Searcher Profile Data'!AJ6 -> 0 | AL4: ='27. Searcher Profile Data'!AK6 -> 0 | AM4: ='27. Searcher Profile Data'!AL6 -> 0 | AN4: ='27. Searcher Profile Data'!AM6 -> 0 | AO4: ='27. Searcher Profile Data'!AN6 -> 0 | AP4: ='27. Searcher Profile Data'!AO6 -> 0 | AQ4: ='27. Searcher Profile Data'!AP6 -> 0 | AR4: ='27. Searcher Profile Data'!AQ6 -> 0 | AS4: ='27. Searcher Profile Data'!AR6 -> 0 | AT4: ='27. Searcher Profile Data'!AS6 -> 0 | AU4: ='27. Searcher Profile Data'!AT6 -> 0 | AV4: ='27. Searcher Profile Data'!AU6 -> 0 | AW4: ='27. Searcher Profile Data'!AV6 -> 0 | AX4: ='27. Searcher Profile Data'!AW6 -> 0 | AY4: ='27. Searcher Profile Data'!AX6 -> 0 | AZ4: ='27. Searcher Profile Data'!AY6 -> 0 | BA4: ='27. Searcher Profile Data'!AZ6 -> 0 | BB4: ='27. Searcher Profile Data'!BA6 -> 0 | BC4: ='27. Searcher Profile Data'!BB6 -> 0 | BD4: ='27. Searcher Profile Data'!BC6 -> 0 | BE4: ='27. Searcher Profile Data'!BD6 -> 0 | BF4: ='27. Searcher Profile Data'!BE6 -> 0 | BG4: ='27. Searcher Profile Data'!BF6 -> 0 | BH4: ='27. Searcher Profile Data'!BG6 -> 0 | BI4: ='27. Searcher Profile Data'!BH6 -> 0 | BJ4: ='27. Searcher Profile Data'!BI6 -> 0 | BK4: ='27. Searcher Profile Data'!BJ6 -> 0 | BL4: ='27. Searcher Profile Data'!BK6 -> 0 | BM4: ='27. Searcher Profile Data'!BL6 -> 0 | BN4: ='27. Searcher Profile Data'!BM6 -> 0 | BO4: ='27. Searcher Profile Data'!BN6 -> 0 | BP4: ='27. Searcher Profile Data'!BO6 -> 0 | BQ4: ='27. Searcher Profile Data'!BP6 -> 0 | BR4: ='27. Searcher Profile Data'!BQ6 -> 0 | BS4: ='27. Searcher Profile Data'!BR6 -> 0 | BT4: ='27. Searcher Profile Data'!BS6 -> 0 | BU4: ='27. Searcher Profile Data'!BT6 -> 0 | BV4: ='27. Searcher Profile Data'!BU6 -> 0 | BW4: ='27. Searcher Profile Data'!BV6 -> 0 | BX4: ='27. Searcher Profile Data'!BW6 -> 0 | BY4: ='27. Searcher Profile Data'!BX6 -> 0 | BZ4: ='27. Searcher Profile Data'!BY6 -> 0 | CA4: ='27. Searcher Profile Data'!BZ6 -> 0
A5: ='27. Searcher Profile Data'!A7 -> Gender (M or F) | C5: ='27. Searcher Profile Data'!B7 -> 0 | D5: ='27. Searcher Profile Data'!C7 -> 0 | E5: ='27. Searcher Profile Data'!D7 -> 0 | F5: ='27. Searcher Profile Data'!E7 -> 0 | G5: ='27. Searcher Profile Data'!F7 -> 0 | H5: ='27. Searcher Profile Data'!G7 -> 0 | I5: ='27. Searcher Profile Data'!H7 -> 0 | J5: ='27. Searcher Profile Data'!I7 -> 0 | K5: ='27. Searcher Profile Data'!J7 -> 0 | L5: ='27. Searcher Profile Data'!K7 -> 0 | M5: ='27. Searcher Profile Data'!L7 -> 0 | N5: ='27. Searcher Profile Data'!M7 -> 0 | O5: ='27. Searcher Profile Data'!N7 -> 0 | P5: ='27. Searcher Profile Data'!O7 -> 0 | Q5: ='27. Searcher Profile Data'!P7 -> 0 | R5: ='27. Searcher Profile Data'!Q7 -> 0 | S5: ='27. Searcher Profile Data'!R7 -> 0 | T5: ='27. Searcher Profile Data'!S7 -> 0 | U5: ='27. Searcher Profile Data'!T7 -> 0 | V5: ='27. Searcher Profile Data'!U7 -> 0 | W5: ='27. Searcher Profile Data'!V7 -> 0 | X5: ='27. Searcher Profile Data'!W7 -> 0 | Y5: ='27. Searcher Profile Data'!X7 -> 0 | Z5: ='27. Searcher Profile Data'!Y7 -> 0 | AA5: ='27. Searcher Profile Data'!Z7 -> 0 | AB5: ='27. Searcher Profile Data'!AA7 -> 0 | AC5: ='27. Searcher Profile Data'!AB7 -> 0 | AD5: ='27. Searcher Profile Data'!AC7 -> 0 | AE5: ='27. Searcher Profile Data'!AD7 -> 0 | AF5: ='27. Searcher Profile Data'!AE7 -> 0 | AG5: ='27. Searcher Profile Data'!AF7 -> 0 | AH5: ='27. Searcher Profile Data'!AG7 -> 0 | AI5: ='27. Searcher Profile Data'!AH7 -> 0 | AJ5: ='27. Searcher Profile Data'!AI7 -> 0 | AK5: ='27. Searcher Profile Data'!AJ7 -> 0 | AL5: ='27. Searcher Profile Data'!AK7 -> 0 | AM5: ='27. Searcher Profile Data'!AL7 -> 0 | AN5: ='27. Searcher Profile Data'!AM7 -> 0 | AO5: ='27. Searcher Profile Data'!AN7 -> 0 | AP5: ='27. Searcher Profile Data'!AO7 -> 0 | AQ5: ='27. Searcher Profile Data'!AP7 -> 0 | AR5: ='27. Searcher Profile Data'!AQ7 -> 0 | AS5: ='27. Searcher Profile Data'!AR7 -> 0 | AT5: ='27. Searcher Profile Data'!AS7 -> 0 | AU5: ='27. Searcher Profile Data'!AT7 -> 0 | AV5: ='27. Searcher Profile Data'!AU7 -> 0 | AW5: ='27. Searcher Profile Data'!AV7 -> 0 | AX5: ='27. Searcher Profile Data'!AW7 -> 0 | AY5: ='27. Searcher Profile Data'!AX7 -> 0 | AZ5: ='27. Searcher Profile Data'!AY7 -> 0 | BA5: ='27. Searcher Profile Data'!AZ7 -> 0 | BB5: ='27. Searcher Profile Data'!BA7 -> 0 | BC5: ='27. Searcher Profile Data'!BB7 -> 0 | BD5: ='27. Searcher Profile Data'!BC7 -> 0 | BE5: ='27. Searcher Profile Data'!BD7 -> 0 | BF5: ='27. Searcher Profile Data'!BE7 -> 0 | BG5: ='27. Searcher Profile Data'!BF7 -> 0 | BH5: ='27. Searcher Profile Data'!BG7 -> 0 | BI5: ='27. Searcher Profile Data'!BH7 -> 0 | BJ5: ='27. Searcher Profile Data'!BI7 -> 0 | BK5: ='27. Searcher Profile Data'!BJ7 -> 0 | BL5: ='27. Searcher Profile Data'!BK7 -> 0 | BM5: ='27. Searcher Profile Data'!BL7 -> 0 | BN5: ='27. Searcher Profile Data'!BM7 -> 0 | BO5: ='27. Searcher Profile Data'!BN7 -> 0 | BP5: ='27. Searcher Profile Data'!BO7 -> 0 | BQ5: ='27. Searcher Profile Data'!BP7 -> 0 | BR5: ='27. Searcher Profile Data'!BQ7 -> 0 | BS5: ='27. Searcher Profile Data'!BR7 -> 0 | BT5: ='27. Searcher Profile Data'!BS7 -> 0 | BU5: ='27. Searcher Profile Data'!BT7 -> 0 | BV5: ='27. Searcher Profile Data'!BU7 -> 0 | BW5: ='27. Searcher Profile Data'!BV7 -> 0 | BX5: ='27. Searcher Profile Data'!BW7 -> 0 | BY5: ='27. Searcher Profile Data'!BX7 -> 0 | BZ5: ='27. Searcher Profile Data'!BY7 -> 0 | CA5: ='27. Searcher Profile Data'!BZ7 -> 0
A6: ='27. Searcher Profile Data'!A8 -> Years in SAR | C6: ='27. Searcher Profile Data'!B8 -> 0 | D6: ='27. Searcher Profile Data'!C8 -> 0 | E6: ='27. Searcher Profile Data'!D8 -> 0 | F6: ='27. Searcher Profile Data'!E8 -> 0 | G6: ='27. Searcher Profile Data'!F8 -> 0 | H6: ='27. Searcher Profile Data'!G8 -> 0 | I6: ='27. Searcher Profile Data'!H8 -> 0 | J6: ='27. Searcher Profile Data'!I8 -> 0 | K6: ='27. Searcher Profile Data'!J8 -> 0 | L6: ='27. Searcher Profile Data'!K8 -> 0 | M6: ='27. Searcher Profile Data'!L8 -> 0 | N6: ='27. Searcher Profile Data'!M8 -> 0 | O6: ='27. Searcher Profile Data'!N8 -> 0 | P6: ='27. Searcher Profile Data'!O8 -> 0 | Q6: ='27. Searcher Profile Data'!P8 -> 0 | R6: ='27. Searcher Profile Data'!Q8 -> 0 | S6: ='27. Searcher Profile Data'!R8 -> 0 | T6: ='27. Searcher Profile Data'!S8 -> 0 | U6: ='27. Searcher Profile Data'!T8 -> 0 | V6: ='27. Searcher Profile Data'!U8 -> 0 | W6: ='27. Searcher Profile Data'!V8 -> 0 | X6: ='27. Searcher Profile Data'!W8 -> 0 | Y6: ='27. Searcher Profile Data'!X8 -> 0 | Z6: ='27. Searcher Profile Data'!Y8 -> 0 | AA6: ='27. Searcher Profile Data'!Z8 -> 0 | AB6: ='27. Searcher Profile Data'!AA8 -> 0 | AC6: ='27. Searcher Profile Data'!AB8 -> 0 | AD6: ='27. Searcher Profile Data'!AC8 -> 0 | AE6: ='27. Searcher Profile Data'!AD8 -> 0 | AF6: ='27. Searcher Profile Data'!AE8 -> 0 | AG6: ='27. Searcher Profile Data'!AF8 -> 0 | AH6: ='27. Searcher Profile Data'!AG8 -> 0 | AI6: ='27. Searcher Profile Data'!AH8 -> 0 | AJ6: ='27. Searcher Profile Data'!AI8 -> 0 | AK6: ='27. Searcher Profile Data'!AJ8 -> 0 | AL6: ='27. Searcher Profile Data'!AK8 -> 0 | AM6: ='27. Searcher Profile Data'!AL8 -> 0 | AN6: ='27. Searcher Profile Data'!AM8 -> 0 | AO6: ='27. Searcher Profile Data'!AN8 -> 0 | AP6: ='27. Searcher Profile Data'!AO8 -> 0 | AQ6: ='27. Searcher Profile Data'!AP8 -> 0 | AR6: ='27. Searcher Profile Data'!AQ8 -> 0 | AS6: ='27. Searcher Profile Data'!AR8 -> 0 | AT6: ='27. Searcher Profile Data'!AS8 -> 0 | AU6: ='27. Searcher Profile Data'!AT8 -> 0 | AV6: ='27. Searcher Profile Data'!AU8 -> 0 | AW6: ='27. Searcher Profile Data'!AV8 -> 0 | AX6: ='27. Searcher Profile Data'!AW8 -> 0 | AY6: ='27. Searcher Profile Data'!AX8 -> 0 | AZ6: ='27. Searcher Profile Data'!AY8 -> 0 | BA6: ='27. Searcher Profile Data'!AZ8 -> 0 | BB6: ='27. Searcher Profile Data'!BA8 -> 0 | BC6: ='27. Searcher Profile Data'!BB8 -> 0 | BD6: ='27. Searcher Profile Data'!BC8 -> 0 | BE6: ='27. Searcher Profile Data'!BD8 -> 0 | BF6: ='27. Searcher Profile Data'!BE8 -> 0 | BG6: ='27. Searcher Profile Data'!BF8 -> 0 | BH6: ='27. Searcher Profile Data'!BG8 -> 0 | BI6: ='27. Searcher Profile Data'!BH8 -> 0 | BJ6: ='27. Searcher Profile Data'!BI8 -> 0 | BK6: ='27. Searcher Profile Data'!BJ8 -> 0 | BL6: ='27. Searcher Profile Data'!BK8 -> 0 | BM6: ='27. Searcher Profile Data'!BL8 -> 0 | BN6: ='27. Searcher Profile Data'!BM8 -> 0 | BO6: ='27. Searcher Profile Data'!BN8 -> 0 | BP6: ='27. Searcher Profile Data'!BO8 -> 0 | BQ6: ='27. Searcher Profile Data'!BP8 -> 0 | BR6: ='27. Searcher Profile Data'!BQ8 -> 0 | BS6: ='27. Searcher Profile Data'!BR8 -> 0 | BT6: ='27. Searcher Profile Data'!BS8 -> 0 | BU6: ='27. Searcher Profile Data'!BT8 -> 0 | BV6: ='27. Searcher Profile Data'!BU8 -> 0 | BW6: ='27. Searcher Profile Data'!BV8 -> 0 | BX6: ='27. Searcher Profile Data'!BW8 -> 0 | BY6: ='27. Searcher Profile Data'!BX8 -> 0 | BZ6: ='27. Searcher Profile Data'!BY8 -> 0 | CA6: ='27. Searcher Profile Data'!BZ8 -> 0
A7: ='27. Searcher Profile Data'!A9 -> # of SAR Searches | C7: ='27. Searcher Profile Data'!B9 -> 0 | D7: ='27. Searcher Profile Data'!C9 -> 0 | E7: ='27. Searcher Profile Data'!D9 -> 0 | F7: ='27. Searcher Profile Data'!E9 -> 0 | G7: ='27. Searcher Profile Data'!F9 -> 0 | H7: ='27. Searcher Profile Data'!G9 -> 0 | I7: ='27. Searcher Profile Data'!H9 -> 0 | J7: ='27. Searcher Profile Data'!I9 -> 0 | K7: ='27. Searcher Profile Data'!J9 -> 0 | L7: ='27. Searcher Profile Data'!K9 -> 0 | M7: ='27. Searcher Profile Data'!L9 -> 0 | N7: ='27. Searcher Profile Data'!M9 -> 0 | O7: ='27. Searcher Profile Data'!N9 -> 0 | P7: ='27. Searcher Profile Data'!O9 -> 0 | Q7: ='27. Searcher Profile Data'!P9 -> 0 | R7: ='27. Searcher Profile Data'!Q9 -> 0 | S7: ='27. Searcher Profile Data'!R9 -> 0 | T7: ='27. Searcher Profile Data'!S9 -> 0 | U7: ='27. Searcher Profile Data'!T9 -> 0 | V7: ='27. Searcher Profile Data'!U9 -> 0 | W7: ='27. Searcher Profile Data'!V9 -> 0 | X7: ='27. Searcher Profile Data'!W9 -> 0 | Y7: ='27. Searcher Profile Data'!X9 -> 0 | Z7: ='27. Searcher Profile Data'!Y9 -> 0 | AA7: ='27. Searcher Profile Data'!Z9 -> 0 | AB7: ='27. Searcher Profile Data'!AA9 -> 0 | AC7: ='27. Searcher Profile Data'!AB9 -> 0 | AD7: ='27. Searcher Profile Data'!AC9 -> 0 | AE7: ='27. Searcher Profile Data'!AD9 -> 0 | AF7: ='27. Searcher Profile Data'!AE9 -> 0 | AG7: ='27. Searcher Profile Data'!AF9 -> 0 | AH7: ='27. Searcher Profile Data'!AG9 -> 0 | AI7: ='27. Searcher Profile Data'!AH9 -> 0 | AJ7: ='27. Searcher Profile Data'!AI9 -> 0 | AK7: ='27. Searcher Profile Data'!AJ9 -> 0 | AL7: ='27. Searcher Profile Data'!AK9 -> 0 | AM7: ='27. Searcher Profile Data'!AL9 -> 0 | AN7: ='27. Searcher Profile Data'!AM9 -> 0 | AO7: ='27. Searcher Profile Data'!AN9 -> 0 | AP7: ='27. Searcher Profile Data'!AO9 -> 0 | AQ7: ='27. Searcher Profile Data'!AP9 -> 0 | AR7: ='27. Searcher Profile Data'!AQ9 -> 0 | AS7: ='27. Searcher Profile Data'!AR9 -> 0 | AT7: ='27. Searcher Profile Data'!AS9 -> 0 | AU7: ='27. Searcher Profile Data'!AT9 -> 0 | AV7: ='27. Searcher Profile Data'!AU9 -> 0 | AW7: ='27. Searcher Profile Data'!AV9 -> 0 | AX7: ='27. Searcher Profile Data'!AW9 -> 0 | AY7: ='27. Searcher Profile Data'!AX9 -> 0 | AZ7: ='27. Searcher Profile Data'!AY9 -> 0 | BA7: ='27. Searcher Profile Data'!AZ9 -> 0 | BB7: ='27. Searcher Profile Data'!BA9 -> 0 | BC7: ='27. Searcher Profile Data'!BB9 -> 0 | BD7: ='27. Searcher Profile Data'!BC9 -> 0 | BE7: ='27. Searcher Profile Data'!BD9 -> 0 | BF7: ='27. Searcher Profile Data'!BE9 -> 0 | BG7: ='27. Searcher Profile Data'!BF9 -> 0 | BH7: ='27. Searcher Profile Data'!BG9 -> 0 | BI7: ='27. Searcher Profile Data'!BH9 -> 0 | BJ7: ='27. Searcher Profile Data'!BI9 -> 0 | BK7: ='27. Searcher Profile Data'!BJ9 -> 0 | BL7: ='27. Searcher Profile Data'!BK9 -> 0 | BM7: ='27. Searcher Profile Data'!BL9 -> 0 | BN7: ='27. Searcher Profile Data'!BM9 -> 0 | BO7: ='27. Searcher Profile Data'!BN9 -> 0 | BP7: ='27. Searcher Profile Data'!BO9 -> 0 | BQ7: ='27. Searcher Profile Data'!BP9 -> 0 | BR7: ='27. Searcher Profile Data'!BQ9 -> 0 | BS7: ='27. Searcher Profile Data'!BR9 -> 0 | BT7: ='27. Searcher Profile Data'!BS9 -> 0 | BU7: ='27. Searcher Profile Data'!BT9 -> 0 | BV7: ='27. Searcher Profile Data'!BU9 -> 0 | BW7: ='27. Searcher Profile Data'!BV9 -> 0 | BX7: ='27. Searcher Profile Data'!BW9 -> 0 | BY7: ='27. Searcher Profile Data'!BX9 -> 0 | BZ7: ='27. Searcher Profile Data'!BY9 -> 0 | CA7: ='27. Searcher Profile Data'!BZ9 -> 0
A8: ='27. Searcher Profile Data'!A10 -> # of Searches in a field | C8: ='27. Searcher Profile Data'!B10 -> 0 | D8: ='27. Searcher Profile Data'!C10 -> 0 | E8: ='27. Searcher Profile Data'!D10 -> 0 | F8: ='27. Searcher Profile Data'!E10 -> 0 | G8: ='27. Searcher Profile Data'!F10 -> 0 | H8: ='27. Searcher Profile Data'!G10 -> 0 | I8: ='27. Searcher Profile Data'!H10 -> 0 | J8: ='27. Searcher Profile Data'!I10 -> 0 | K8: ='27. Searcher Profile Data'!J10 -> 0 | L8: ='27. Searcher Profile Data'!K10 -> 0 | M8: ='27. Searcher Profile Data'!L10 -> 0 | N8: ='27. Searcher Profile Data'!M10 -> 0 | O8: ='27. Searcher Profile Data'!N10 -> 0 | P8: ='27. Searcher Profile Data'!O10 -> 0 | Q8: ='27. Searcher Profile Data'!P10 -> 0 | R8: ='27. Searcher Profile Data'!Q10 -> 0 | S8: ='27. Searcher Profile Data'!R10 -> 0 | T8: ='27. Searcher Profile Data'!S10 -> 0 | U8: ='27. Searcher Profile Data'!T10 -> 0 | V8: ='27. Searcher Profile Data'!U10 -> 0 | W8: ='27. Searcher Profile Data'!V10 -> 0 | X8: ='27. Searcher Profile Data'!W10 -> 0 | Y8: ='27. Searcher Profile Data'!X10 -> 0 | Z8: ='27. Searcher Profile Data'!Y10 -> 0 | AA8: ='27. Searcher Profile Data'!Z10 -> 0 | AB8: ='27. Searcher Profile Data'!AA10 -> 0 | AC8: ='27. Searcher Profile Data'!AB10 -> 0 | AD8: ='27. Searcher Profile Data'!AC10 -> 0 | AE8: ='27. Searcher Profile Data'!AD10 -> 0 | AF8: ='27. Searcher Profile Data'!AE10 -> 0 | AG8: ='27. Searcher Profile Data'!AF10 -> 0 | AH8: ='27. Searcher Profile Data'!AG10 -> 0 | AI8: ='27. Searcher Profile Data'!AH10 -> 0 | AJ8: ='27. Searcher Profile Data'!AI10 -> 0 | AK8: ='27. Searcher Profile Data'!AJ10 -> 0 | AL8: ='27. Searcher Profile Data'!AK10 -> 0 | AM8: ='27. Searcher Profile Data'!AL10 -> 0 | AN8: ='27. Searcher Profile Data'!AM10 -> 0 | AO8: ='27. Searcher Profile Data'!AN10 -> 0 | AP8: ='27. Searcher Profile Data'!AO10 -> 0 | AQ8: ='27. Searcher Profile Data'!AP10 -> 0 | AR8: ='27. Searcher Profile Data'!AQ10 -> 0 | AS8: ='27. Searcher Profile Data'!AR10 -> 0 | AT8: ='27. Searcher Profile Data'!AS10 -> 0 | AU8: ='27. Searcher Profile Data'!AT10 -> 0 | AV8: ='27. Searcher Profile Data'!AU10 -> 0 | AW8: ='27. Searcher Profile Data'!AV10 -> 0 | AX8: ='27. Searcher Profile Data'!AW10 -> 0 | AY8: ='27. Searcher Profile Data'!AX10 -> 0 | AZ8: ='27. Searcher Profile Data'!AY10 -> 0 | BA8: ='27. Searcher Profile Data'!AZ10 -> 0 | BB8: ='27. Searcher Profile Data'!BA10 -> 0 | BC8: ='27. Searcher Profile Data'!BB10 -> 0 | BD8: ='27. Searcher Profile Data'!BC10 -> 0 | BE8: ='27. Searcher Profile Data'!BD10 -> 0 | BF8: ='27. Searcher Profile Data'!BE10 -> 0 | BG8: ='27. Searcher Profile Data'!BF10 -> 0 | BH8: ='27. Searcher Profile Data'!BG10 -> 0 | BI8: ='27. Searcher Profile Data'!BH10 -> 0 | BJ8: ='27. Searcher Profile Data'!BI10 -> 0 | BK8: ='27. Searcher Profile Data'!BJ10 -> 0 | BL8: ='27. Searcher Profile Data'!BK10 -> 0 | BM8: ='27. Searcher Profile Data'!BL10 -> 0 | BN8: ='27. Searcher Profile Data'!BM10 -> 0 | BO8: ='27. Searcher Profile Data'!BN10 -> 0 | BP8: ='27. Searcher Profile Data'!BO10 -> 0 | BQ8: ='27. Searcher Profile Data'!BP10 -> 0 | BR8: ='27. Searcher Profile Data'!BQ10 -> 0 | BS8: ='27. Searcher Profile Data'!BR10 -> 0 | BT8: ='27. Searcher Profile Data'!BS10 -> 0 | BU8: ='27. Searcher Profile Data'!BT10 -> 0 | BV8: ='27. Searcher Profile Data'!BU10 -> 0 | BW8: ='27. Searcher Profile Data'!BV10 -> 0 | BX8: ='27. Searcher Profile Data'!BW10 -> 0 | BY8: ='27. Searcher Profile Data'!BX10 -> 0 | BZ8: ='27. Searcher Profile Data'!BY10 -> 0 | CA8: ='27. Searcher Profile Data'!BZ10 -> 0
A9: ='27. Searcher Profile Data'!A11 -> Regular Occupation | C9: ='27. Searcher Profile Data'!B11 -> 0 | D9: ='27. Searcher Profile Data'!C11 -> 0 | E9: ='27. Searcher Profile Data'!D11 -> 0 | F9: ='27. Searcher Profile Data'!E11 -> 0 | G9: ='27. Searcher Profile Data'!F11 -> 0 | H9: ='27. Searcher Profile Data'!G11 -> 0 | I9: ='27. Searcher Profile Data'!H11 -> 0 | J9: ='27. Searcher Profile Data'!I11 -> 0 | K9: ='27. Searcher Profile Data'!J11 -> 0 | L9: ='27. Searcher Profile Data'!K11 -> 0 | M9: ='27. Searcher Profile Data'!L11 -> 0 | N9: ='27. Searcher Profile Data'!M11 -> 0 | O9: ='27. Searcher Profile Data'!N11 -> 0 | P9: ='27. Searcher Profile Data'!O11 -> 0 | Q9: ='27. Searcher Profile Data'!P11 -> 0 | R9: ='27. Searcher Profile Data'!Q11 -> 0 | S9: ='27. Searcher Profile Data'!R11 -> 0 | T9: ='27. Searcher Profile Data'!S11 -> 0 | U9: ='27. Searcher Profile Data'!T11 -> 0 | V9: ='27. Searcher Profile Data'!U11 -> 0 | W9: ='27. Searcher Profile Data'!V11 -> 0 | X9: ='27. Searcher Profile Data'!W11 -> 0 | Y9: ='27. Searcher Profile Data'!X11 -> 0 | Z9: ='27. Searcher Profile Data'!Y11 -> 0 | AA9: ='27. Searcher Profile Data'!Z11 -> 0 | AB9: ='27. Searcher Profile Data'!AA11 -> 0 | AC9: ='27. Searcher Profile Data'!AB11 -> 0 | AD9: ='27. Searcher Profile Data'!AC11 -> 0 | AE9: ='27. Searcher Profile Data'!AD11 -> 0 | AF9: ='27. Searcher Profile Data'!AE11 -> 0 | AG9: ='27. Searcher Profile Data'!AF11 -> 0 | AH9: ='27. Searcher Profile Data'!AG11 -> 0 | AI9: ='27. Searcher Profile Data'!AH11 -> 0 | AJ9: ='27. Searcher Profile Data'!AI11 -> 0 | AK9: ='27. Searcher Profile Data'!AJ11 -> 0 | AL9: ='27. Searcher Profile Data'!AK11 -> 0 | AM9: ='27. Searcher Profile Data'!AL11 -> 0 | AN9: ='27. Searcher Profile Data'!AM11 -> 0 | AO9: ='27. Searcher Profile Data'!AN11 -> 0 | AP9: ='27. Searcher Profile Data'!AO11 -> 0 | AQ9: ='27. Searcher Profile Data'!AP11 -> 0 | AR9: ='27. Searcher Profile Data'!AQ11 -> 0 | AS9: ='27. Searcher Profile Data'!AR11 -> 0 | AT9: ='27. Searcher Profile Data'!AS11 -> 0 | AU9: ='27. Searcher Profile Data'!AT11 -> 0 | AV9: ='27. Searcher Profile Data'!AU11 -> 0 | AW9: ='27. Searcher Profile Data'!AV11 -> 0 | AX9: ='27. Searcher Profile Data'!AW11 -> 0 | AY9: ='27. Searcher Profile Data'!AX11 -> 0 | AZ9: ='27. Searcher Profile Data'!AY11 -> 0 | BA9: ='27. Searcher Profile Data'!AZ11 -> 0 | BB9: ='27. Searcher Profile Data'!BA11 -> 0 | BC9: ='27. Searcher Profile Data'!BB11 -> 0 | BD9: ='27. Searcher Profile Data'!BC11 -> 0 | BE9: ='27. Searcher Profile Data'!BD11 -> 0 | BF9: ='27. Searcher Profile Data'!BE11 -> 0 | BG9: ='27. Searcher Profile Data'!BF11 -> 0 | BH9: ='27. Searcher Profile Data'!BG11 -> 0 | BI9: ='27. Searcher Profile Data'!BH11 -> 0 | BJ9: ='27. Searcher Profile Data'!BI11 -> 0 | BK9: ='27. Searcher Profile Data'!BJ11 -> 0 | BL9: ='27. Searcher Profile Data'!BK11 -> 0 | BM9: ='27. Searcher Profile Data'!BL11 -> 0 | BN9: ='27. Searcher Profile Data'!BM11 -> 0 | BO9: ='27. Searcher Profile Data'!BN11 -> 0 | BP9: ='27. Searcher Profile Data'!BO11 -> 0 | BQ9: ='27. Searcher Profile Data'!BP11 -> 0 | BR9: ='27. Searcher Profile Data'!BQ11 -> 0 | BS9: ='27. Searcher Profile Data'!BR11 -> 0 | BT9: ='27. Searcher Profile Data'!BS11 -> 0 | BU9: ='27. Searcher Profile Data'!BT11 -> 0 | BV9: ='27. Searcher Profile Data'!BU11 -> 0 | BW9: ='27. Searcher Profile Data'!BV11 -> 0 | BX9: ='27. Searcher Profile Data'!BW11 -> 0 | BY9: ='27. Searcher Profile Data'!BX11 -> 0 | BZ9: ='27. Searcher Profile Data'!BY11 -> 0 | CA9: ='27. Searcher Profile Data'!BZ11 -> 0
A10: ='27. Searcher Profile Data'!A12 -> Avg # of Searches | C10: ='27. Searcher Profile Data'!B12 ->  | D10: ='27. Searcher Profile Data'!C12 ->  | E10: ='27. Searcher Profile Data'!D12 ->  | F10: ='27. Searcher Profile Data'!E12 ->  | G10: ='27. Searcher Profile Data'!F12 ->  | H10: ='27. Searcher Profile Data'!G12 ->  | I10: ='27. Searcher Profile Data'!H12 ->  | J10: ='27. Searcher Profile Data'!I12 ->  | K10: ='27. Searcher Profile Data'!J12 ->  | L10: ='27. Searcher Profile Data'!K12 ->  | M10: ='27. Searcher Profile Data'!L12 ->  | N10: ='27. Searcher Profile Data'!M12 ->  | O10: ='27. Searcher Profile Data'!N12 ->  | P10: ='27. Searcher Profile Data'!O12 ->  | Q10: ='27. Searcher Profile Data'!P12 ->  | R10: ='27. Searcher Profile Data'!Q12 ->  | S10: ='27. Searcher Profile Data'!R12 ->  | T10: ='27. Searcher Profile Data'!S12 ->  | U10: ='27. Searcher Profile Data'!T12 ->  | V10: ='27. Searcher Profile Data'!U12 ->  | W10: ='27. Searcher Profile Data'!V12 ->  | X10: ='27. Searcher Profile Data'!W12 ->  | Y10: ='27. Searcher Profile Data'!X12 ->  | Z10: ='27. Searcher Profile Data'!Y12 ->  | AA10: ='27. Searcher Profile Data'!Z12 ->  | AB10: ='27. Searcher Profile Data'!AA12 ->  | AC10: ='27. Searcher Profile Data'!AB12 ->  | AD10: ='27. Searcher Profile Data'!AC12 ->  | AE10: ='27. Searcher Profile Data'!AD12 ->  | AF10: ='27. Searcher Profile Data'!AE12 ->  | AG10: ='27. Searcher Profile Data'!AF12 ->  | AH10: ='27. Searcher Profile Data'!AG12 ->  | AI10: ='27. Searcher Profile Data'!AH12 ->  | AJ10: ='27. Searcher Profile Data'!AI12 ->  | AK10: ='27. Searcher Profile Data'!AJ12 ->  | AL10: ='27. Searcher Profile Data'!AK12 ->  | AM10: ='27. Searcher Profile Data'!AL12 ->  | AN10: ='27. Searcher Profile Data'!AM12 ->  | AO10: ='27. Searcher Profile Data'!AN12 ->  | AP10: ='27. Searcher Profile Data'!AO12 ->  | AQ10: ='27. Searcher Profile Data'!AP12 ->  | AR10: ='27. Searcher Profile Data'!AQ12 ->  | AS10: ='27. Searcher Profile Data'!AR12 ->  | AT10: ='27. Searcher Profile Data'!AS12 ->  | AU10: ='27. Searcher Profile Data'!AT12 ->  | AV10: ='27. Searcher Profile Data'!AU12 ->  | AW10: ='27. Searcher Profile Data'!AV12 ->  | AX10: ='27. Searcher Profile Data'!AW12 ->  | AY10: ='27. Searcher Profile Data'!AX12 ->  | AZ10: ='27. Searcher Profile Data'!AY12 ->  | BA10: ='27. Searcher Profile Data'!AZ12 ->  | BB10: ='27. Searcher Profile Data'!BA12 ->  | BC10: ='27. Searcher Profile Data'!BB12 ->  | BD10: ='27. Searcher Profile Data'!BC12 ->  | BE10: ='27. Searcher Profile Data'!BD12 ->  | BF10: ='27. Searcher Profile Data'!BE12 ->  | BG10: ='27. Searcher Profile Data'!BF12 ->  | BH10: ='27. Searcher Profile Data'!BG12 ->  | BI10: ='27. Searcher Profile Data'!BH12 ->  | BJ10: ='27. Searcher Profile Data'!BI12 ->  | BK10: ='27. Searcher Profile Data'!BJ12 ->  | BL10: ='27. Searcher Profile Data'!BK12 ->  | BM10: ='27. Searcher Profile Data'!BL12 ->  | BN10: ='27. Searcher Profile Data'!BM12 ->  | BO10: ='27. Searcher Profile Data'!BN12 ->  | BP10: ='27. Searcher Profile Data'!BO12 ->  | BQ10: ='27. Searcher Profile Data'!BP12 ->  | BR10: ='27. Searcher Profile Data'!BQ12 ->  | BS10: ='27. Searcher Profile Data'!BR12 ->  | BT10: ='27. Searcher Profile Data'!BS12 ->  | BU10: ='27. Searcher Profile Data'!BT12 ->  | BV10: ='27. Searcher Profile Data'!BU12 ->  | BW10: ='27. Searcher Profile Data'!BV12 ->  | BX10: ='27. Searcher Profile Data'!BW12 ->  | BY10: ='27. Searcher Profile Data'!BX12 ->  | BZ10: ='27. Searcher Profile Data'!BY12 ->  | CA10: ='27. Searcher Profile Data'!BZ12 -> 
A11: ='27. Searcher Profile Data'!A13 -> Primary SAR specialty | C11: ='27. Searcher Profile Data'!B13 -> 0 | D11: ='27. Searcher Profile Data'!C13 -> 0 | E11: ='27. Searcher Profile Data'!D13 -> 0 | F11: ='27. Searcher Profile Data'!E13 -> 0 | G11: ='27. Searcher Profile Data'!F13 -> 0 | H11: ='27. Searcher Profile Data'!G13 -> 0 | I11: ='27. Searcher Profile Data'!H13 -> 0 | J11: ='27. Searcher Profile Data'!I13 -> 0 | K11: ='27. Searcher Profile Data'!J13 -> 0 | L11: ='27. Searcher Profile Data'!K13 -> 0 | M11: ='27. Searcher Profile Data'!L13 -> 0 | N11: ='27. Searcher Profile Data'!M13 -> 0 | O11: ='27. Searcher Profile Data'!N13 -> 0 | P11: ='27. Searcher Profile Data'!O13 -> 0 | Q11: ='27. Searcher Profile Data'!P13 -> 0 | R11: ='27. Searcher Profile Data'!Q13 -> 0 | S11: ='27. Searcher Profile Data'!R13 -> 0 | T11: ='27. Searcher Profile Data'!S13 -> 0 | U11: ='27. Searcher Profile Data'!T13 -> 0 | V11: ='27. Searcher Profile Data'!U13 -> 0 | W11: ='27. Searcher Profile Data'!V13 -> 0 | X11: ='27. Searcher Profile Data'!W13 -> 0 | Y11: ='27. Searcher Profile Data'!X13 -> 0 | Z11: ='27. Searcher Profile Data'!Y13 -> 0 | AA11: ='27. Searcher Profile Data'!Z13 -> 0 | AB11: ='27. Searcher Profile Data'!AA13 -> 0 | AC11: ='27. Searcher Profile Data'!AB13 -> 0 | AD11: ='27. Searcher Profile Data'!AC13 -> 0 | AE11: ='27. Searcher Profile Data'!AD13 -> 0 | AF11: ='27. Searcher Profile Data'!AE13 -> 0 | AG11: ='27. Searcher Profile Data'!AF13 -> 0 | AH11: ='27. Searcher Profile Data'!AG13 -> 0 | AI11: ='27. Searcher Profile Data'!AH13 -> 0 | AJ11: ='27. Searcher Profile Data'!AI13 -> 0 | AK11: ='27. Searcher Profile Data'!AJ13 -> 0 | AL11: ='27. Searcher Profile Data'!AK13 -> 0 | AM11: ='27. Searcher Profile Data'!AL13 -> 0 | AN11: ='27. Searcher Profile Data'!AM13 -> 0 | AO11: ='27. Searcher Profile Data'!AN13 -> 0 | AP11: ='27. Searcher Profile Data'!AO13 -> 0 | AQ11: ='27. Searcher Profile Data'!AP13 -> 0 | AR11: ='27. Searcher Profile Data'!AQ13 -> 0 | AS11: ='27. Searcher Profile Data'!AR13 -> 0 | AT11: ='27. Searcher Profile Data'!AS13 -> 0 | AU11: ='27. Searcher Profile Data'!AT13 -> 0 | AV11: ='27. Searcher Profile Data'!AU13 -> 0 | AW11: ='27. Searcher Profile Data'!AV13 -> 0 | AX11: ='27. Searcher Profile Data'!AW13 -> 0 | AY11: ='27. Searcher Profile Data'!AX13 -> 0 | AZ11: ='27. Searcher Profile Data'!AY13 -> 0 | BA11: ='27. Searcher Profile Data'!AZ13 -> 0 | BB11: ='27. Searcher Profile Data'!BA13 -> 0 | BC11: ='27. Searcher Profile Data'!BB13 -> 0 | BD11: ='27. Searcher Profile Data'!BC13 -> 0 | BE11: ='27. Searcher Profile Data'!BD13 -> 0 | BF11: ='27. Searcher Profile Data'!BE13 -> 0 | BG11: ='27. Searcher Profile Data'!BF13 -> 0 | BH11: ='27. Searcher Profile Data'!BG13 -> 0 | BI11: ='27. Searcher Profile Data'!BH13 -> 0 | BJ11: ='27. Searcher Profile Data'!BI13 -> 0 | BK11: ='27. Searcher Profile Data'!BJ13 -> 0 | BL11: ='27. Searcher Profile Data'!BK13 -> 0 | BM11: ='27. Searcher Profile Data'!BL13 -> 0 | BN11: ='27. Searcher Profile Data'!BM13 -> 0 | BO11: ='27. Searcher Profile Data'!BN13 -> 0 | BP11: ='27. Searcher Profile Data'!BO13 -> 0 | BQ11: ='27. Searcher Profile Data'!BP13 -> 0 | BR11: ='27. Searcher Profile Data'!BQ13 -> 0 | BS11: ='27. Searcher Profile Data'!BR13 -> 0 | BT11: ='27. Searcher Profile Data'!BS13 -> 0 | BU11: ='27. Searcher Profile Data'!BT13 -> 0 | BV11: ='27. Searcher Profile Data'!BU13 -> 0 | BW11: ='27. Searcher Profile Data'!BV13 -> 0 | BX11: ='27. Searcher Profile Data'!BW13 -> 0 | BY11: ='27. Searcher Profile Data'!BX13 -> 0 | BZ11: ='27. Searcher Profile Data'!BY13 -> 0 | CA11: ='27. Searcher Profile Data'!BZ13 -> 0
A12: ='27. Searcher Profile Data'!A14 -> SAR Certifications | C12: ='27. Searcher Profile Data'!B14 -> 0 | D12: ='27. Searcher Profile Data'!C14 -> 0 | E12: ='27. Searcher Profile Data'!D14 -> 0 | F12: ='27. Searcher Profile Data'!E14 -> 0 | G12: ='27. Searcher Profile Data'!F14 -> 0 | H12: ='27. Searcher Profile Data'!G14 -> 0 | I12: ='27. Searcher Profile Data'!H14 -> 0 | J12: ='27. Searcher Profile Data'!I14 -> 0 | K12: ='27. Searcher Profile Data'!J14 -> 0 | L12: ='27. Searcher Profile Data'!K14 -> 0 | M12: ='27. Searcher Profile Data'!L14 -> 0 | N12: ='27. Searcher Profile Data'!M14 -> 0 | O12: ='27. Searcher Profile Data'!N14 -> 0 | P12: ='27. Searcher Profile Data'!O14 -> 0 | Q12: ='27. Searcher Profile Data'!P14 -> 0 | R12: ='27. Searcher Profile Data'!Q14 -> 0 | S12: ='27. Searcher Profile Data'!R14 -> 0 | T12: ='27. Searcher Profile Data'!S14 -> 0 | U12: ='27. Searcher Profile Data'!T14 -> 0 | V12: ='27. Searcher Profile Data'!U14 -> 0 | W12: ='27. Searcher Profile Data'!V14 -> 0 | X12: ='27. Searcher Profile Data'!W14 -> 0 | Y12: ='27. Searcher Profile Data'!X14 -> 0 | Z12: ='27. Searcher Profile Data'!Y14 -> 0 | AA12: ='27. Searcher Profile Data'!Z14 -> 0 | AB12: ='27. Searcher Profile Data'!AA14 -> 0 | AC12: ='27. Searcher Profile Data'!AB14 -> 0 | AD12: ='27. Searcher Profile Data'!AC14 -> 0 | AE12: ='27. Searcher Profile Data'!AD14 -> 0 | AF12: ='27. Searcher Profile Data'!AE14 -> 0 | AG12: ='27. Searcher Profile Data'!AF14 -> 0 | AH12: ='27. Searcher Profile Data'!AG14 -> 0 | AI12: ='27. Searcher Profile Data'!AH14 -> 0 | AJ12: ='27. Searcher Profile Data'!AI14 -> 0 | AK12: ='27. Searcher Profile Data'!AJ14 -> 0 | AL12: ='27. Searcher Profile Data'!AK14 -> 0 | AM12: ='27. Searcher Profile Data'!AL14 -> 0 | AN12: ='27. Searcher Profile Data'!AM14 -> 0 | AO12: ='27. Searcher Profile Data'!AN14 -> 0 | AP12: ='27. Searcher Profile Data'!AO14 -> 0 | AQ12: ='27. Searcher Profile Data'!AP14 -> 0 | AR12: ='27. Searcher Profile Data'!AQ14 -> 0 | AS12: ='27. Searcher Profile Data'!AR14 -> 0 | AT12: ='27. Searcher Profile Data'!AS14 -> 0 | AU12: ='27. Searcher Profile Data'!AT14 -> 0 | AV12: ='27. Searcher Profile Data'!AU14 -> 0 | AW12: ='27. Searcher Profile Data'!AV14 -> 0 | AX12: ='27. Searcher Profile Data'!AW14 -> 0 | AY12: ='27. Searcher Profile Data'!AX14 -> 0 | AZ12: ='27. Searcher Profile Data'!AY14 -> 0 | BA12: ='27. Searcher Profile Data'!AZ14 -> 0 | BB12: ='27. Searcher Profile Data'!BA14 -> 0 | BC12: ='27. Searcher Profile Data'!BB14 -> 0 | BD12: ='27. Searcher Profile Data'!BC14 -> 0 | BE12: ='27. Searcher Profile Data'!BD14 -> 0 | BF12: ='27. Searcher Profile Data'!BE14 -> 0 | BG12: ='27. Searcher Profile Data'!BF14 -> 0 | BH12: ='27. Searcher Profile Data'!BG14 -> 0 | BI12: ='27. Searcher Profile Data'!BH14 -> 0 | BJ12: ='27. Searcher Profile Data'!BI14 -> 0 | BK12: ='27. Searcher Profile Data'!BJ14 -> 0 | BL12: ='27. Searcher Profile Data'!BK14 -> 0 | BM12: ='27. Searcher Profile Data'!BL14 -> 0 | BN12: ='27. Searcher Profile Data'!BM14 -> 0 | BO12: ='27. Searcher Profile Data'!BN14 -> 0 | BP12: ='27. Searcher Profile Data'!BO14 -> 0 | BQ12: ='27. Searcher Profile Data'!BP14 -> 0 | BR12: ='27. Searcher Profile Data'!BQ14 -> 0 | BS12: ='27. Searcher Profile Data'!BR14 -> 0 | BT12: ='27. Searcher Profile Data'!BS14 -> 0 | BU12: ='27. Searcher Profile Data'!BT14 -> 0 | BV12: ='27. Searcher Profile Data'!BU14 -> 0 | BW12: ='27. Searcher Profile Data'!BV14 -> 0 | BX12: ='27. Searcher Profile Data'!BW14 -> 0 | BY12: ='27. Searcher Profile Data'!BX14 -> 0 | BZ12: ='27. Searcher Profile Data'!BY14 -> 0 | CA12: ='27. Searcher Profile Data'!BZ14 -> 0
A13: ='27. Searcher Profile Data'!A15 -> Height with boots | C13: ='27. Searcher Profile Data'!B15 -> 0 | D13: ='27. Searcher Profile Data'!C15 -> 0 | E13: ='27. Searcher Profile Data'!D15 -> 0 | F13: ='27. Searcher Profile Data'!E15 -> 0 | G13: ='27. Searcher Profile Data'!F15 -> 0 | H13: ='27. Searcher Profile Data'!G15 -> 0 | I13: ='27. Searcher Profile Data'!H15 -> 0 | J13: ='27. Searcher Profile Data'!I15 -> 0 | K13: ='27. Searcher Profile Data'!J15 -> 0 | L13: ='27. Searcher Profile Data'!K15 -> 0 | M13: ='27. Searcher Profile Data'!L15 -> 0 | N13: ='27. Searcher Profile Data'!M15 -> 0 | O13: ='27. Searcher Profile Data'!N15 -> 0 | P13: ='27. Searcher Profile Data'!O15 -> 0 | Q13: ='27. Searcher Profile Data'!P15 -> 0 | R13: ='27. Searcher Profile Data'!Q15 -> 0 | S13: ='27. Searcher Profile Data'!R15 -> 0 | T13: ='27. Searcher Profile Data'!S15 -> 0 | U13: ='27. Searcher Profile Data'!T15 -> 0 | V13: ='27. Searcher Profile Data'!U15 -> 0 | W13: ='27. Searcher Profile Data'!V15 -> 0 | X13: ='27. Searcher Profile Data'!W15 -> 0 | Y13: ='27. Searcher Profile Data'!X15 -> 0 | Z13: ='27. Searcher Profile Data'!Y15 -> 0 | AA13: ='27. Searcher Profile Data'!Z15 -> 0 | AB13: ='27. Searcher Profile Data'!AA15 -> 0 | AC13: ='27. Searcher Profile Data'!AB15 -> 0 | AD13: ='27. Searcher Profile Data'!AC15 -> 0 | AE13: ='27. Searcher Profile Data'!AD15 -> 0 | AF13: ='27. Searcher Profile Data'!AE15 -> 0 | AG13: ='27. Searcher Profile Data'!AF15 -> 0 | AH13: ='27. Searcher Profile Data'!AG15 -> 0 | AI13: ='27. Searcher Profile Data'!AH15 -> 0 | AJ13: ='27. Searcher Profile Data'!AI15 -> 0 | AK13: ='27. Searcher Profile Data'!AJ15 -> 0 | AL13: ='27. Searcher Profile Data'!AK15 -> 0 | AM13: ='27. Searcher Profile Data'!AL15 -> 0 | AN13: ='27. Searcher Profile Data'!AM15 -> 0 | AO13: ='27. Searcher Profile Data'!AN15 -> 0 | AP13: ='27. Searcher Profile Data'!AO15 -> 0 | AQ13: ='27. Searcher Profile Data'!AP15 -> 0 | AR13: ='27. Searcher Profile Data'!AQ15 -> 0 | AS13: ='27. Searcher Profile Data'!AR15 -> 0 | AT13: ='27. Searcher Profile Data'!AS15 -> 0 | AU13: ='27. Searcher Profile Data'!AT15 -> 0 | AV13: ='27. Searcher Profile Data'!AU15 -> 0 | AW13: ='27. Searcher Profile Data'!AV15 -> 0 | AX13: ='27. Searcher Profile Data'!AW15 -> 0 | AY13: ='27. Searcher Profile Data'!AX15 -> 0 | AZ13: ='27. Searcher Profile Data'!AY15 -> 0 | BA13: ='27. Searcher Profile Data'!AZ15 -> 0 | BB13: ='27. Searcher Profile Data'!BA15 -> 0 | BC13: ='27. Searcher Profile Data'!BB15 -> 0 | BD13: ='27. Searcher Profile Data'!BC15 -> 0 | BE13: ='27. Searcher Profile Data'!BD15 -> 0 | BF13: ='27. Searcher Profile Data'!BE15 -> 0 | BG13: ='27. Searcher Profile Data'!BF15 -> 0 | BH13: ='27. Searcher Profile Data'!BG15 -> 0 | BI13: ='27. Searcher Profile Data'!BH15 -> 0 | BJ13: ='27. Searcher Profile Data'!BI15 -> 0 | BK13: ='27. Searcher Profile Data'!BJ15 -> 0 | BL13: ='27. Searcher Profile Data'!BK15 -> 0 | BM13: ='27. Searcher Profile Data'!BL15 -> 0 | BN13: ='27. Searcher Profile Data'!BM15 -> 0 | BO13: ='27. Searcher Profile Data'!BN15 -> 0 | BP13: ='27. Searcher Profile Data'!BO15 -> 0 | BQ13: ='27. Searcher Profile Data'!BP15 -> 0 | BR13: ='27. Searcher Profile Data'!BQ15 -> 0 | BS13: ='27. Searcher Profile Data'!BR15 -> 0 | BT13: ='27. Searcher Profile Data'!BS15 -> 0 | BU13: ='27. Searcher Profile Data'!BT15 -> 0 | BV13: ='27. Searcher Profile Data'!BU15 -> 0 | BW13: ='27. Searcher Profile Data'!BV15 -> 0 | BX13: ='27. Searcher Profile Data'!BW15 -> 0 | BY13: ='27. Searcher Profile Data'!BX15 -> 0 | BZ13: ='27. Searcher Profile Data'!BY15 -> 0 | CA13: ='27. Searcher Profile Data'!BZ15 -> 0
A14: ='27. Searcher Profile Data'!A16 -> Wear glasses | C14: ='27. Searcher Profile Data'!B16 -> 0 | D14: ='27. Searcher Profile Data'!C16 -> 0 | E14: ='27. Searcher Profile Data'!D16 -> 0 | F14: ='27. Searcher Profile Data'!E16 -> 0 | G14: ='27. Searcher Profile Data'!F16 -> 0 | H14: ='27. Searcher Profile Data'!G16 -> 0 | I14: ='27. Searcher Profile Data'!H16 -> 0 | J14: ='27. Searcher Profile Data'!I16 -> 0 | K14: ='27. Searcher Profile Data'!J16 -> 0 | L14: ='27. Searcher Profile Data'!K16 -> 0 | M14: ='27. Searcher Profile Data'!L16 -> 0 | N14: ='27. Searcher Profile Data'!M16 -> 0 | O14: ='27. Searcher Profile Data'!N16 -> 0 | P14: ='27. Searcher Profile Data'!O16 -> 0 | Q14: ='27. Searcher Profile Data'!P16 -> 0 | R14: ='27. Searcher Profile Data'!Q16 -> 0 | S14: ='27. Searcher Profile Data'!R16 -> 0 | T14: ='27. Searcher Profile Data'!S16 -> 0 | U14: ='27. Searcher Profile Data'!T16 -> 0 | V14: ='27. Searcher Profile Data'!U16 -> 0 | W14: ='27. Searcher Profile Data'!V16 -> 0 | X14: ='27. Searcher Profile Data'!W16 -> 0 | Y14: ='27. Searcher Profile Data'!X16 -> 0 | Z14: ='27. Searcher Profile Data'!Y16 -> 0 | AA14: ='27. Searcher Profile Data'!Z16 -> 0 | AB14: ='27. Searcher Profile Data'!AA16 -> 0 | AC14: ='27. Searcher Profile Data'!AB16 -> 0 | AD14: ='27. Searcher Profile Data'!AC16 -> 0 | AE14: ='27. Searcher Profile Data'!AD16 -> 0 | AF14: ='27. Searcher Profile Data'!AE16 -> 0 | AG14: ='27. Searcher Profile Data'!AF16 -> 0 | AH14: ='27. Searcher Profile Data'!AG16 -> 0 | AI14: ='27. Searcher Profile Data'!AH16 -> 0 | AJ14: ='27. Searcher Profile Data'!AI16 -> 0 | AK14: ='27. Searcher Profile Data'!AJ16 -> 0 | AL14: ='27. Searcher Profile Data'!AK16 -> 0 | AM14: ='27. Searcher Profile Data'!AL16 -> 0 | AN14: ='27. Searcher Profile Data'!AM16 -> 0 | AO14: ='27. Searcher Profile Data'!AN16 -> 0 | AP14: ='27. Searcher Profile Data'!AO16 -> 0 | AQ14: ='27. Searcher Profile Data'!AP16 -> 0 | AR14: ='27. Searcher Profile Data'!AQ16 -> 0 | AS14: ='27. Searcher Profile Data'!AR16 -> 0 | AT14: ='27. Searcher Profile Data'!AS16 -> 0 | AU14: ='27. Searcher Profile Data'!AT16 -> 0 | AV14: ='27. Searcher Profile Data'!AU16 -> 0 | AW14: ='27. Searcher Profile Data'!AV16 -> 0 | AX14: ='27. Searcher Profile Data'!AW16 -> 0 | AY14: ='27. Searcher Profile Data'!AX16 -> 0 | AZ14: ='27. Searcher Profile Data'!AY16 -> 0 | BA14: ='27. Searcher Profile Data'!AZ16 -> 0 | BB14: ='27. Searcher Profile Data'!BA16 -> 0 | BC14: ='27. Searcher Profile Data'!BB16 -> 0 | BD14: ='27. Searcher Profile Data'!BC16 -> 0 | BE14: ='27. Searcher Profile Data'!BD16 -> 0 | BF14: ='27. Searcher Profile Data'!BE16 -> 0 | BG14: ='27. Searcher Profile Data'!BF16 -> 0 | BH14: ='27. Searcher Profile Data'!BG16 -> 0 | BI14: ='27. Searcher Profile Data'!BH16 -> 0 | BJ14: ='27. Searcher Profile Data'!BI16 -> 0 | BK14: ='27. Searcher Profile Data'!BJ16 -> 0 | BL14: ='27. Searcher Profile Data'!BK16 -> 0 | BM14: ='27. Searcher Profile Data'!BL16 -> 0 | BN14: ='27. Searcher Profile Data'!BM16 -> 0 | BO14: ='27. Searcher Profile Data'!BN16 -> 0 | BP14: ='27. Searcher Profile Data'!BO16 -> 0 | BQ14: ='27. Searcher Profile Data'!BP16 -> 0 | BR14: ='27. Searcher Profile Data'!BQ16 -> 0 | BS14: ='27. Searcher Profile Data'!BR16 -> 0 | BT14: ='27. Searcher Profile Data'!BS16 -> 0 | BU14: ='27. Searcher Profile Data'!BT16 -> 0 | BV14: ='27. Searcher Profile Data'!BU16 -> 0 | BW14: ='27. Searcher Profile Data'!BV16 -> 0 | BX14: ='27. Searcher Profile Data'!BW16 -> 0 | BY14: ='27. Searcher Profile Data'!BX16 -> 0 | BZ14: ='27. Searcher Profile Data'!BY16 -> 0 | CA14: ='27. Searcher Profile Data'!BZ16 -> 0
A15: ='27. Searcher Profile Data'!A17 -> Eyewear in field | C15: ='27. Searcher Profile Data'!B17 -> 0 | D15: ='27. Searcher Profile Data'!C17 -> 0 | E15: ='27. Searcher Profile Data'!D17 -> 0 | F15: ='27. Searcher Profile Data'!E17 -> 0 | G15: ='27. Searcher Profile Data'!F17 -> 0 | H15: ='27. Searcher Profile Data'!G17 -> 0 | I15: ='27. Searcher Profile Data'!H17 -> 0 | J15: ='27. Searcher Profile Data'!I17 -> 0 | K15: ='27. Searcher Profile Data'!J17 -> 0 | L15: ='27. Searcher Profile Data'!K17 -> 0 | M15: ='27. Searcher Profile Data'!L17 -> 0 | N15: ='27. Searcher Profile Data'!M17 -> 0 | O15: ='27. Searcher Profile Data'!N17 -> 0 | P15: ='27. Searcher Profile Data'!O17 -> 0 | Q15: ='27. Searcher Profile Data'!P17 -> 0 | R15: ='27. Searcher Profile Data'!Q17 -> 0 | S15: ='27. Searcher Profile Data'!R17 -> 0 | T15: ='27. Searcher Profile Data'!S17 -> 0 | U15: ='27. Searcher Profile Data'!T17 -> 0 | V15: ='27. Searcher Profile Data'!U17 -> 0 | W15: ='27. Searcher Profile Data'!V17 -> 0 | X15: ='27. Searcher Profile Data'!W17 -> 0 | Y15: ='27. Searcher Profile Data'!X17 -> 0 | Z15: ='27. Searcher Profile Data'!Y17 -> 0 | AA15: ='27. Searcher Profile Data'!Z17 -> 0 | AB15: ='27. Searcher Profile Data'!AA17 -> 0 | AC15: ='27. Searcher Profile Data'!AB17 -> 0 | AD15: ='27. Searcher Profile Data'!AC17 -> 0 | AE15: ='27. Searcher Profile Data'!AD17 -> 0 | AF15: ='27. Searcher Profile Data'!AE17 -> 0 | AG15: ='27. Searcher Profile Data'!AF17 -> 0 | AH15: ='27. Searcher Profile Data'!AG17 -> 0 | AI15: ='27. Searcher Profile Data'!AH17 -> 0 | AJ15: ='27. Searcher Profile Data'!AI17 -> 0 | AK15: ='27. Searcher Profile Data'!AJ17 -> 0 | AL15: ='27. Searcher Profile Data'!AK17 -> 0 | AM15: ='27. Searcher Profile Data'!AL17 -> 0 | AN15: ='27. Searcher Profile Data'!AM17 -> 0 | AO15: ='27. Searcher Profile Data'!AN17 -> 0 | AP15: ='27. Searcher Profile Data'!AO17 -> 0 | AQ15: ='27. Searcher Profile Data'!AP17 -> 0 | AR15: ='27. Searcher Profile Data'!AQ17 -> 0 | AS15: ='27. Searcher Profile Data'!AR17 -> 0 | AT15: ='27. Searcher Profile Data'!AS17 -> 0 | AU15: ='27. Searcher Profile Data'!AT17 -> 0 | AV15: ='27. Searcher Profile Data'!AU17 -> 0 | AW15: ='27. Searcher Profile Data'!AV17 -> 0 | AX15: ='27. Searcher Profile Data'!AW17 -> 0 | AY15: ='27. Searcher Profile Data'!AX17 -> 0 | AZ15: ='27. Searcher Profile Data'!AY17 -> 0 | BA15: ='27. Searcher Profile Data'!AZ17 -> 0 | BB15: ='27. Searcher Profile Data'!BA17 -> 0 | BC15: ='27. Searcher Profile Data'!BB17 -> 0 | BD15: ='27. Searcher Profile Data'!BC17 -> 0 | BE15: ='27. Searcher Profile Data'!BD17 -> 0 | BF15: ='27. Searcher Profile Data'!BE17 -> 0 | BG15: ='27. Searcher Profile Data'!BF17 -> 0 | BH15: ='27. Searcher Profile Data'!BG17 -> 0 | BI15: ='27. Searcher Profile Data'!BH17 -> 0 | BJ15: ='27. Searcher Profile Data'!BI17 -> 0 | BK15: ='27. Searcher Profile Data'!BJ17 -> 0 | BL15: ='27. Searcher Profile Data'!BK17 -> 0 | BM15: ='27. Searcher Profile Data'!BL17 -> 0 | BN15: ='27. Searcher Profile Data'!BM17 -> 0 | BO15: ='27. Searcher Profile Data'!BN17 -> 0 | BP15: ='27. Searcher Profile Data'!BO17 -> 0 | BQ15: ='27. Searcher Profile Data'!BP17 -> 0 | BR15: ='27. Searcher Profile Data'!BQ17 -> 0 | BS15: ='27. Searcher Profile Data'!BR17 -> 0 | BT15: ='27. Searcher Profile Data'!BS17 -> 0 | BU15: ='27. Searcher Profile Data'!BT17 -> 0 | BV15: ='27. Searcher Profile Data'!BU17 -> 0 | BW15: ='27. Searcher Profile Data'!BV17 -> 0 | BX15: ='27. Searcher Profile Data'!BW17 -> 0 | BY15: ='27. Searcher Profile Data'!BX17 -> 0 | BZ15: ='27. Searcher Profile Data'!BY17 -> 0 | CA15: ='27. Searcher Profile Data'!BZ17 -> 0
A16: ='27. Searcher Profile Data'!A18 -> R eye visual acuity | C16: ='27. Searcher Profile Data'!B18 -> 0 | D16: ='27. Searcher Profile Data'!C18 -> 0 | E16: ='27. Searcher Profile Data'!D18 -> 0 | F16: ='27. Searcher Profile Data'!E18 -> 0 | G16: ='27. Searcher Profile Data'!F18 -> 0 | H16: ='27. Searcher Profile Data'!G18 -> 0 | I16: ='27. Searcher Profile Data'!H18 -> 0 | J16: ='27. Searcher Profile Data'!I18 -> 0 | K16: ='27. Searcher Profile Data'!J18 -> 0 | L16: ='27. Searcher Profile Data'!K18 -> 0 | M16: ='27. Searcher Profile Data'!L18 -> 0 | N16: ='27. Searcher Profile Data'!M18 -> 0 | O16: ='27. Searcher Profile Data'!N18 -> 0 | P16: ='27. Searcher Profile Data'!O18 -> 0 | Q16: ='27. Searcher Profile Data'!P18 -> 0 | R16: ='27. Searcher Profile Data'!Q18 -> 0 | S16: ='27. Searcher Profile Data'!R18 -> 0 | T16: ='27. Searcher Profile Data'!S18 -> 0 | U16: ='27. Searcher Profile Data'!T18 -> 0 | V16: ='27. Searcher Profile Data'!U18 -> 0 | W16: ='27. Searcher Profile Data'!V18 -> 0 | X16: ='27. Searcher Profile Data'!W18 -> 0 | Y16: ='27. Searcher Profile Data'!X18 -> 0 | Z16: ='27. Searcher Profile Data'!Y18 -> 0 | AA16: ='27. Searcher Profile Data'!Z18 -> 0 | AB16: ='27. Searcher Profile Data'!AA18 -> 0 | AC16: ='27. Searcher Profile Data'!AB18 -> 0 | AD16: ='27. Searcher Profile Data'!AC18 -> 0 | AE16: ='27. Searcher Profile Data'!AD18 -> 0 | AF16: ='27. Searcher Profile Data'!AE18 -> 0 | AG16: ='27. Searcher Profile Data'!AF18 -> 0 | AH16: ='27. Searcher Profile Data'!AG18 -> 0 | AI16: ='27. Searcher Profile Data'!AH18 -> 0 | AJ16: ='27. Searcher Profile Data'!AI18 -> 0 | AK16: ='27. Searcher Profile Data'!AJ18 -> 0 | AL16: ='27. Searcher Profile Data'!AK18 -> 0 | AM16: ='27. Searcher Profile Data'!AL18 -> 0 | AN16: ='27. Searcher Profile Data'!AM18 -> 0 | AO16: ='27. Searcher Profile Data'!AN18 -> 0 | AP16: ='27. Searcher Profile Data'!AO18 -> 0 | AQ16: ='27. Searcher Profile Data'!AP18 -> 0 | AR16: ='27. Searcher Profile Data'!AQ18 -> 0 | AS16: ='27. Searcher Profile Data'!AR18 -> 0 | AT16: ='27. Searcher Profile Data'!AS18 -> 0 | AU16: ='27. Searcher Profile Data'!AT18 -> 0 | AV16: ='27. Searcher Profile Data'!AU18 -> 0 | AW16: ='27. Searcher Profile Data'!AV18 -> 0 | AX16: ='27. Searcher Profile Data'!AW18 -> 0 | AY16: ='27. Searcher Profile Data'!AX18 -> 0 | AZ16: ='27. Searcher Profile Data'!AY18 -> 0 | BA16: ='27. Searcher Profile Data'!AZ18 -> 0 | BB16: ='27. Searcher Profile Data'!BA18 -> 0 | BC16: ='27. Searcher Profile Data'!BB18 -> 0 | BD16: ='27. Searcher Profile Data'!BC18 -> 0 | BE16: ='27. Searcher Profile Data'!BD18 -> 0 | BF16: ='27. Searcher Profile Data'!BE18 -> 0 | BG16: ='27. Searcher Profile Data'!BF18 -> 0 | BH16: ='27. Searcher Profile Data'!BG18 -> 0 | BI16: ='27. Searcher Profile Data'!BH18 -> 0 | BJ16: ='27. Searcher Profile Data'!BI18 -> 0 | BK16: ='27. Searcher Profile Data'!BJ18 -> 0 | BL16: ='27. Searcher Profile Data'!BK18 -> 0 | BM16: ='27. Searcher Profile Data'!BL18 -> 0 | BN16: ='27. Searcher Profile Data'!BM18 -> 0 | BO16: ='27. Searcher Profile Data'!BN18 -> 0 | BP16: ='27. Searcher Profile Data'!BO18 -> 0 | BQ16: ='27. Searcher Profile Data'!BP18 -> 0 | BR16: ='27. Searcher Profile Data'!BQ18 -> 0 | BS16: ='27. Searcher Profile Data'!BR18 -> 0 | BT16: ='27. Searcher Profile Data'!BS18 -> 0 | BU16: ='27. Searcher Profile Data'!BT18 -> 0 | BV16: ='27. Searcher Profile Data'!BU18 -> 0 | BW16: ='27. Searcher Profile Data'!BV18 -> 0 | BX16: ='27. Searcher Profile Data'!BW18 -> 0 | BY16: ='27. Searcher Profile Data'!BX18 -> 0 | BZ16: ='27. Searcher Profile Data'!BY18 -> 0 | CA16: ='27. Searcher Profile Data'!BZ18 -> 0
A17: ='27. Searcher Profile Data'!A19 -> L eye visual acuity | C17: ='27. Searcher Profile Data'!B19 -> 0 | D17: ='27. Searcher Profile Data'!C19 -> 0 | E17: ='27. Searcher Profile Data'!D19 -> 0 | F17: ='27. Searcher Profile Data'!E19 -> 0 | G17: ='27. Searcher Profile Data'!F19 -> 0 | H17: ='27. Searcher Profile Data'!G19 -> 0 | I17: ='27. Searcher Profile Data'!H19 -> 0 | J17: ='27. Searcher Profile Data'!I19 -> 0 | K17: ='27. Searcher Profile Data'!J19 -> 0 | L17: ='27. Searcher Profile Data'!K19 -> 0 | M17: ='27. Searcher Profile Data'!L19 -> 0 | N17: ='27. Searcher Profile Data'!M19 -> 0 | O17: ='27. Searcher Profile Data'!N19 -> 0 | P17: ='27. Searcher Profile Data'!O19 -> 0 | Q17: ='27. Searcher Profile Data'!P19 -> 0 | R17: ='27. Searcher Profile Data'!Q19 -> 0 | S17: ='27. Searcher Profile Data'!R19 -> 0 | T17: ='27. Searcher Profile Data'!S19 -> 0 | U17: ='27. Searcher Profile Data'!T19 -> 0 | V17: ='27. Searcher Profile Data'!U19 -> 0 | W17: ='27. Searcher Profile Data'!V19 -> 0 | X17: ='27. Searcher Profile Data'!W19 -> 0 | Y17: ='27. Searcher Profile Data'!X19 -> 0 | Z17: ='27. Searcher Profile Data'!Y19 -> 0 | AA17: ='27. Searcher Profile Data'!Z19 -> 0 | AB17: ='27. Searcher Profile Data'!AA19 -> 0 | AC17: ='27. Searcher Profile Data'!AB19 -> 0 | AD17: ='27. Searcher Profile Data'!AC19 -> 0 | AE17: ='27. Searcher Profile Data'!AD19 -> 0 | AF17: ='27. Searcher Profile Data'!AE19 -> 0 | AG17: ='27. Searcher Profile Data'!AF19 -> 0 | AH17: ='27. Searcher Profile Data'!AG19 -> 0 | AI17: ='27. Searcher Profile Data'!AH19 -> 0 | AJ17: ='27. Searcher Profile Data'!AI19 -> 0 | AK17: ='27. Searcher Profile Data'!AJ19 -> 0 | AL17: ='27. Searcher Profile Data'!AK19 -> 0 | AM17: ='27. Searcher Profile Data'!AL19 -> 0 | AN17: ='27. Searcher Profile Data'!AM19 -> 0 | AO17: ='27. Searcher Profile Data'!AN19 -> 0 | AP17: ='27. Searcher Profile Data'!AO19 -> 0 | AQ17: ='27. Searcher Profile Data'!AP19 -> 0 | AR17: ='27. Searcher Profile Data'!AQ19 -> 0 | AS17: ='27. Searcher Profile Data'!AR19 -> 0 | AT17: ='27. Searcher Profile Data'!AS19 -> 0 | AU17: ='27. Searcher Profile Data'!AT19 -> 0 | AV17: ='27. Searcher Profile Data'!AU19 -> 0 | AW17: ='27. Searcher Profile Data'!AV19 -> 0 | AX17: ='27. Searcher Profile Data'!AW19 -> 0 | AY17: ='27. Searcher Profile Data'!AX19 -> 0 | AZ17: ='27. Searcher Profile Data'!AY19 -> 0 | BA17: ='27. Searcher Profile Data'!AZ19 -> 0 | BB17: ='27. Searcher Profile Data'!BA19 -> 0 | BC17: ='27. Searcher Profile Data'!BB19 -> 0 | BD17: ='27. Searcher Profile Data'!BC19 -> 0 | BE17: ='27. Searcher Profile Data'!BD19 -> 0 | BF17: ='27. Searcher Profile Data'!BE19 -> 0 | BG17: ='27. Searcher Profile Data'!BF19 -> 0 | BH17: ='27. Searcher Profile Data'!BG19 -> 0 | BI17: ='27. Searcher Profile Data'!BH19 -> 0 | BJ17: ='27. Searcher Profile Data'!BI19 -> 0 | BK17: ='27. Searcher Profile Data'!BJ19 -> 0 | BL17: ='27. Searcher Profile Data'!BK19 -> 0 | BM17: ='27. Searcher Profile Data'!BL19 -> 0 | BN17: ='27. Searcher Profile Data'!BM19 -> 0 | BO17: ='27. Searcher Profile Data'!BN19 -> 0 | BP17: ='27. Searcher Profile Data'!BO19 -> 0 | BQ17: ='27. Searcher Profile Data'!BP19 -> 0 | BR17: ='27. Searcher Profile Data'!BQ19 -> 0 | BS17: ='27. Searcher Profile Data'!BR19 -> 0 | BT17: ='27. Searcher Profile Data'!BS19 -> 0 | BU17: ='27. Searcher Profile Data'!BT19 -> 0 | BV17: ='27. Searcher Profile Data'!BU19 -> 0 | BW17: ='27. Searcher Profile Data'!BV19 -> 0 | BX17: ='27. Searcher Profile Data'!BW19 -> 0 | BY17: ='27. Searcher Profile Data'!BX19 -> 0 | BZ17: ='27. Searcher Profile Data'!BY19 -> 0 | CA17: ='27. Searcher Profile Data'!BZ19 -> 0
A18: ='27. Searcher Profile Data'!A20 -> Colorblindness | C18: ='27. Searcher Profile Data'!B20 -> 0 | D18: ='27. Searcher Profile Data'!C20 -> 0 | E18: ='27. Searcher Profile Data'!D20 -> 0 | F18: ='27. Searcher Profile Data'!E20 -> 0 | G18: ='27. Searcher Profile Data'!F20 -> 0 | H18: ='27. Searcher Profile Data'!G20 -> 0 | I18: ='27. Searcher Profile Data'!H20 -> 0 | J18: ='27. Searcher Profile Data'!I20 -> 0 | K18: ='27. Searcher Profile Data'!J20 -> 0 | L18: ='27. Searcher Profile Data'!K20 -> 0 | M18: ='27. Searcher Profile Data'!L20 -> 0 | N18: ='27. Searcher Profile Data'!M20 -> 0 | O18: ='27. Searcher Profile Data'!N20 -> 0 | P18: ='27. Searcher Profile Data'!O20 -> 0 | Q18: ='27. Searcher Profile Data'!P20 -> 0 | R18: ='27. Searcher Profile Data'!Q20 -> 0 | S18: ='27. Searcher Profile Data'!R20 -> 0 | T18: ='27. Searcher Profile Data'!S20 -> 0 | U18: ='27. Searcher Profile Data'!T20 -> 0 | V18: ='27. Searcher Profile Data'!U20 -> 0 | W18: ='27. Searcher Profile Data'!V20 -> 0 | X18: ='27. Searcher Profile Data'!W20 -> 0 | Y18: ='27. Searcher Profile Data'!X20 -> 0 | Z18: ='27. Searcher Profile Data'!Y20 -> 0 | AA18: ='27. Searcher Profile Data'!Z20 -> 0 | AB18: ='27. Searcher Profile Data'!AA20 -> 0 | AC18: ='27. Searcher Profile Data'!AB20 -> 0 | AD18: ='27. Searcher Profile Data'!AC20 -> 0 | AE18: ='27. Searcher Profile Data'!AD20 -> 0 | AF18: ='27. Searcher Profile Data'!AE20 -> 0 | AG18: ='27. Searcher Profile Data'!AF20 -> 0 | AH18: ='27. Searcher Profile Data'!AG20 -> 0 | AI18: ='27. Searcher Profile Data'!AH20 -> 0 | AJ18: ='27. Searcher Profile Data'!AI20 -> 0 | AK18: ='27. Searcher Profile Data'!AJ20 -> 0 | AL18: ='27. Searcher Profile Data'!AK20 -> 0 | AM18: ='27. Searcher Profile Data'!AL20 -> 0 | AN18: ='27. Searcher Profile Data'!AM20 -> 0 | AO18: ='27. Searcher Profile Data'!AN20 -> 0 | AP18: ='27. Searcher Profile Data'!AO20 -> 0 | AQ18: ='27. Searcher Profile Data'!AP20 -> 0 | AR18: ='27. Searcher Profile Data'!AQ20 -> 0 | AS18: ='27. Searcher Profile Data'!AR20 -> 0 | AT18: ='27. Searcher Profile Data'!AS20 -> 0 | AU18: ='27. Searcher Profile Data'!AT20 -> 0 | AV18: ='27. Searcher Profile Data'!AU20 -> 0 | AW18: ='27. Searcher Profile Data'!AV20 -> 0 | AX18: ='27. Searcher Profile Data'!AW20 -> 0 | AY18: ='27. Searcher Profile Data'!AX20 -> 0 | AZ18: ='27. Searcher Profile Data'!AY20 -> 0 | BA18: ='27. Searcher Profile Data'!AZ20 -> 0 | BB18: ='27. Searcher Profile Data'!BA20 -> 0 | BC18: ='27. Searcher Profile Data'!BB20 -> 0 | BD18: ='27. Searcher Profile Data'!BC20 -> 0 | BE18: ='27. Searcher Profile Data'!BD20 -> 0 | BF18: ='27. Searcher Profile Data'!BE20 -> 0 | BG18: ='27. Searcher Profile Data'!BF20 -> 0 | BH18: ='27. Searcher Profile Data'!BG20 -> 0 | BI18: ='27. Searcher Profile Data'!BH20 -> 0 | BJ18: ='27. Searcher Profile Data'!BI20 -> 0 | BK18: ='27. Searcher Profile Data'!BJ20 -> 0 | BL18: ='27. Searcher Profile Data'!BK20 -> 0 | BM18: ='27. Searcher Profile Data'!BL20 -> 0 | BN18: ='27. Searcher Profile Data'!BM20 -> 0 | BO18: ='27. Searcher Profile Data'!BN20 -> 0 | BP18: ='27. Searcher Profile Data'!BO20 -> 0 | BQ18: ='27. Searcher Profile Data'!BP20 -> 0 | BR18: ='27. Searcher Profile Data'!BQ20 -> 0 | BS18: ='27. Searcher Profile Data'!BR20 -> 0 | BT18: ='27. Searcher Profile Data'!BS20 -> 0 | BU18: ='27. Searcher Profile Data'!BT20 -> 0 | BV18: ='27. Searcher Profile Data'!BU20 -> 0 | BW18: ='27. Searcher Profile Data'!BV20 -> 0 | BX18: ='27. Searcher Profile Data'!BW20 -> 0 | BY18: ='27. Searcher Profile Data'!BX20 -> 0 | BZ18: ='27. Searcher Profile Data'!BY20 -> 0 | CA18: ='27. Searcher Profile Data'!BZ20 -> 0
A19: ='27. Searcher Profile Data'!A21 -> Hours on Task | C19: ='27. Searcher Profile Data'!B21 -> 0 | D19: ='27. Searcher Profile Data'!C21 -> 0 | E19: ='27. Searcher Profile Data'!D21 -> 0 | F19: ='27. Searcher Profile Data'!E21 -> 0 | G19: ='27. Searcher Profile Data'!F21 -> 0 | H19: ='27. Searcher Profile Data'!G21 -> 0 | I19: ='27. Searcher Profile Data'!H21 -> 0 | J19: ='27. Searcher Profile Data'!I21 -> 0 | K19: ='27. Searcher Profile Data'!J21 -> 0 | L19: ='27. Searcher Profile Data'!K21 -> 0 | M19: ='27. Searcher Profile Data'!L21 -> 0 | N19: ='27. Searcher Profile Data'!M21 -> 0 | O19: ='27. Searcher Profile Data'!N21 -> 0 | P19: ='27. Searcher Profile Data'!O21 -> 0 | Q19: ='27. Searcher Profile Data'!P21 -> 0 | R19: ='27. Searcher Profile Data'!Q21 -> 0 | S19: ='27. Searcher Profile Data'!R21 -> 0 | T19: ='27. Searcher Profile Data'!S21 -> 0 | U19: ='27. Searcher Profile Data'!T21 -> 0 | V19: ='27. Searcher Profile Data'!U21 -> 0 | W19: ='27. Searcher Profile Data'!V21 -> 0 | X19: ='27. Searcher Profile Data'!W21 -> 0 | Y19: ='27. Searcher Profile Data'!X21 -> 0 | Z19: ='27. Searcher Profile Data'!Y21 -> 0 | AA19: ='27. Searcher Profile Data'!Z21 -> 0 | AB19: ='27. Searcher Profile Data'!AA21 -> 0 | AC19: ='27. Searcher Profile Data'!AB21 -> 0 | AD19: ='27. Searcher Profile Data'!AC21 -> 0 | AE19: ='27. Searcher Profile Data'!AD21 -> 0 | AF19: ='27. Searcher Profile Data'!AE21 -> 0 | AG19: ='27. Searcher Profile Data'!AF21 -> 0 | AH19: ='27. Searcher Profile Data'!AG21 -> 0 | AI19: ='27. Searcher Profile Data'!AH21 -> 0 | AJ19: ='27. Searcher Profile Data'!AI21 -> 0 | AK19: ='27. Searcher Profile Data'!AJ21 -> 0 | AL19: ='27. Searcher Profile Data'!AK21 -> 0 | AM19: ='27. Searcher Profile Data'!AL21 -> 0 | AN19: ='27. Searcher Profile Data'!AM21 -> 0 | AO19: ='27. Searcher Profile Data'!AN21 -> 0 | AP19: ='27. Searcher Profile Data'!AO21 -> 0 | AQ19: ='27. Searcher Profile Data'!AP21 -> 0 | AR19: ='27. Searcher Profile Data'!AQ21 -> 0 | AS19: ='27. Searcher Profile Data'!AR21 -> 0 | AT19: ='27. Searcher Profile Data'!AS21 -> 0 | AU19: ='27. Searcher Profile Data'!AT21 -> 0 | AV19: ='27. Searcher Profile Data'!AU21 -> 0 | AW19: ='27. Searcher Profile Data'!AV21 -> 0 | AX19: ='27. Searcher Profile Data'!AW21 -> 0 | AY19: ='27. Searcher Profile Data'!AX21 -> 0 | AZ19: ='27. Searcher Profile Data'!AY21 -> 0 | BA19: ='27. Searcher Profile Data'!AZ21 -> 0 | BB19: ='27. Searcher Profile Data'!BA21 -> 0 | BC19: ='27. Searcher Profile Data'!BB21 -> 0 | BD19: ='27. Searcher Profile Data'!BC21 -> 0 | BE19: ='27. Searcher Profile Data'!BD21 -> 0 | BF19: ='27. Searcher Profile Data'!BE21 -> 0 | BG19: ='27. Searcher Profile Data'!BF21 -> 0 | BH19: ='27. Searcher Profile Data'!BG21 -> 0 | BI19: ='27. Searcher Profile Data'!BH21 -> 0 | BJ19: ='27. Searcher Profile Data'!BI21 -> 0 | BK19: ='27. Searcher Profile Data'!BJ21 -> 0 | BL19: ='27. Searcher Profile Data'!BK21 -> 0 | BM19: ='27. Searcher Profile Data'!BL21 -> 0 | BN19: ='27. Searcher Profile Data'!BM21 -> 0 | BO19: ='27. Searcher Profile Data'!BN21 -> 0 | BP19: ='27. Searcher Profile Data'!BO21 -> 0 | BQ19: ='27. Searcher Profile Data'!BP21 -> 0 | BR19: ='27. Searcher Profile Data'!BQ21 -> 0 | BS19: ='27. Searcher Profile Data'!BR21 -> 0 | BT19: ='27. Searcher Profile Data'!BS21 -> 0 | BU19: ='27. Searcher Profile Data'!BT21 -> 0 | BV19: ='27. Searcher Profile Data'!BU21 -> 0 | BW19: ='27. Searcher Profile Data'!BV21 -> 0 | BX19: ='27. Searcher Profile Data'!BW21 -> 0 | BY19: ='27. Searcher Profile Data'!BX21 -> 0 | BZ19: ='27. Searcher Profile Data'!BY21 -> 0 | CA19: ='27. Searcher Profile Data'!BZ21 -> 0
